Workbook

Sheet Readme
A1: disclaimer
A2: The information presented in this spreadsheet has been prepared following recognized principles of design. While it is believed to be accurate & best efforts have been made to address as much design requirements, this information should not be used or relied upon for any specific application without competent professional examination and verification of its accuracy, suitability and applicability by a licensed engineer or architect. The publication of this information is not a representation or warranty on the part of the American Institute of Steel Construction, its officers, agents, employees or committee members, or of any other person or entity named herein, that this information is suitable for any general or particular use, or of freedom from infringement of any patent or patents. All representations or warranties, express or implied, other than as stated above, are specifically disclaimed. Anyone making use of the information presented in this publication assumes all liability arising from such use.
A13: Caution must be exercised when relying upon standards and guidelines developed by other entities and incorporated by reference herein since such material may be modified or amended from time to time subsequent to the printing of this edition. The American Institute of Steel Construction bears no responsibility for such material other than to refer to it and incorporate it by reference at the time of the initial publication of this edition.
A18: Best efforts have been taken to test as much plausible combinations of dimensions, angles, and units to test the accuracy of the diagram, however, it might be still some cases in which the diagram shows discontinuities or leaps.
A21: The use of this tool and everything included in it, is subject to individual personal/professional use, corporate use or use that is not from a single persons not permitted.
A25: Scope.
A26: 1 - | B26: This interaction diagram can be used for columns composite design or concrete design.
A27: 2 - | B27: This spreadsheet uses the strain compatibility method to calculate the strain linear distribution using the concrete compressive strain at 0.003 per ACI-318-14/19 Sect. and AISC Sect. I1.2b.
A29: 3 - | B29: This spreadsheet does not calculate first and second order moments due to column slenderness, Pu and Mu shall include second order effects as required by AISC & ACI.
A30: 4 -
A31: 5 - | B31: For the purposes of calculating the magnitudes of Pn, Mn, The rotated section is divided in 3 parts, 2 triangles and a trapezoid with dimensions derived using hi(l). See fig. 1.
D54: Fig. 1 - Section subdivisions triangles and trapezoid.
A56: 6 - | B56: The interaction diagram is valid for any angle larger than 0° and smaller than 90°. The equations become undetermined for 0° and 90° as either Tan or Cot functions become infinite.
A58: 7 - | B58: This interaction diagram is only applicable for 2 sides or 4 sides reinforcement steel with double symmetrical structural shapes (W & HSS). The reinforcement and structural section is located concentrically to the center of the gross concrete section.
A61: 8 - | B61: The global axis X & Y never rotate, Mn is always around global X.
A62: 9 - | B62: The resisting moments Mny & Mnx, are not respect the global axes X & Y, they are respect the local column section axes. Mnx is around local x and Mny is around local y.
A64: 10 - | B64: The spreadsheet uses the Y-axis centroids to calculate the flexure capacity (Mn). All the Centroids are referred to the center of the gross concrete section.
A66: 11 - | B66: The section diagram in fig. 2. is for illustrative purposes and describe graphically each one of the section dimensions. The dimensions thss and tw are not used simultaneously unless the user manually overwrite the cells.
A69: 12 - | B69: The steel reinforcement equivalent thicknesses t1b & t1h are programed to be equal, but user may overwrite either one to make them uneven. Bear in mid that overwriting these values will not update r and As.
A72: 13 - | B72: Only rectangular HSS and I shaped sections from AISC section database can be selected.
A73: 14 - | B73: Structural steel is built-in in the spreadsheet, please check AISC Table 2-4 for material applicability for W & HSS sections.
A74: 15- | B74: It is understood that Mu is resisted by fMn at a given angle l bringing the column into equilibrium. However, because the centroids also shift along global axis X, there is an unbalanced moment pedicular to the Mn with no load to bring it into equilibrium, moment is under further evaluation.
A78: References
A79: - | B79: AISC Steel construction Manual 16th ed.
A80: - | B80: ANSI/AISC 360-16 Specification for Structural Steel buildings Ch. I
A81: - | B81: Steel Design Guide - 6 - Load & Resistance Factor Design of W-Shapes Encased in Concrete
A82: - | B82: ACI 318-14 Building code requirements for Structural Concrete
A83: - | B83: ACI 318-19 Building code requirements for Structural Concrete
A85: Bibliography
A86: - | B86: Design of Concrete Structures. 16th Ed. David Darwin, Charles W. Dolan
A87: - | B87: Structural Steel Design. Jack C. McCormack & Stephen F. Csernak.
A88: - | B88: Structural Analysis The Analytical Method. 1st Ed. Ramon V. Jarquio
A90: Variables Definitions
C125: Fig. 2 - Definition of section dimensions & angles.
A127: H: | B127: Height of the concrete section.
A128: b: | B128: Base of the concrete section.
A129: rb: | B129: Concrete cover parallel to the concrete section base.
A130: rh: | B130: Concrete cover parallel to the concrete Height.
A131: f'c: | B131: Concrete compressive stress
A132: fy: | B132: Reinforcement steel yield stress
A133: ec: | B133: Concrete maximum strain
A134: r: | B134: Reinforcement steel ratio (As/(b*H))
A135: Ey: | B135: Steel elastic modulus.
A136: eyt: | B136: Reinforcement steel strain (fy/Ey)
A137: As: | B137: Longitudinal reinforcement steel area.
A138: hi(q): | B138: High to each corner of the rotated section from the top highest corner. See Fig. 2.
A139: bi(q): | B139: Horizontal distance to each corner of the rotated section from the most left corner. See Fig. 2.
A140: b1: | B140: Equivalent rectangular compressive stress block factor
A141: bc: | B141: Reinforcement steel compression elastic limit factor. Used to determine the limit between plastic and elastic behavior.
A143: bt: | B143: Reinforcement steel tension elastic limit factor. Used to determine the limit between plastic and elastic behavior.
A145: t1b: | B145: Top/bottom equivalent reinforcement steel thickness.
A146: t1h: | B146: Left/right sides equivalent reinforcement steel thickness.
A147: Pu: | B147: Ultimate factored axial load (from the structural analysis load combination).
A148: Mu: | B148: Ultimate factored bending moment (from the structural analysis load combination).
A149: Mux: | B149: Ultimate factored bending moment X-axis component (from the structural analysis load combination).
A151: Muy: | B151: Ultimate factored bending moment Y-axis component (from the structural analysis load combination).
A153: λ: | B153: Rotation angle of the column section determined by ArcTan(Muy/Mux)
A154: Pn: | B154: Nominal axial capacity.
A155: Mn: | B155: Nominal flexure capacity
A156: Mu∟: | B156: 2nd order non-linear geometrical moment.
A157: Pi: | B157: Partial axial capacity for each one of the subsections (triangles & trapezoid) derived using hi(q).
A158: Mi: | B158: Partial flexure capacity for each one of the subsections (triangles & trapezoid) derived using hi(q).
A159: d: | B159: Structural Section Height.
A160: bf: | B160: Structural Section base.
A161: thss: | B161: Structural Section thickness of the HSS profile.
A162: tw: | B162: Structural Section thickness of the I-shaped web profile.
A163: tf: | B163: Structural Section thickness of the HSS profile base or I-shaped profile flange.
A164: Asx: | B164: Structural profile cross section area
A165: rbs: | B165: Concrete cover parallel to the concrete section base to the Structural profile.
A166: rhs: | B166: Concrete cover parallel to the concrete section height to the Structural profile.
A167: fys: | B167: Structural steel yield stress
A168: eys: | B168: Structural steel strain (fys/Ey)
A169: bcs: | B169: Structural steel compression elastic limit factor. Used to determine the limit between plastic and elastic behavior.
A171: bts: | B171: Structural steel tension elastic limit factor. Used to determine the limit between plastic and elastic behavior.
A173: rs: | B173: Structural steel ratio (Asx/(b*H))
A174: q0: | B174: Angle determined by ArcTan(H/b)
A175: q1: | B175: Angle determined by ArcTan((H-2 rh)/(b-2 rb))
A176: q2: | B176: Angle determined by ArcTan((H-2 (rh+t1b))/(b-2 (rb+t1h)))
A177: q3: | B177: Angle determined by ArcTan(d/bf)
A178: q4: | B178: Angle determined by ArcTan((d-2 tf)/(bf-2 thss))
A179: q5: | B179: Angle determined by ArcTan((d-2 tf)/tw)

Sheet Input & Summary
A1: Design of bi-axial loaded columns.
A4: Structural concrete dimensions | J4: Structural Steel dimensions
A5: Units: | B5: Imperial | C5: =IF($B$5="Metric","Pa, N, m","Psi, Lb, in") -> Psi, Lb, in | D5: Reinf. On: | E5: 4 sides | J5: Structural Steel: | K5: ASTM-A992 | M5: Composite: | N5: Yes
A6: Code: | B6: ACI 318-14 | J6: Section: | K6: W44X230
A7: H= | B7: 55 | C7: =IF($B$5="Metric","m","in") -> in | D7: Ey= | E7: =IF($B$5="Metric",200000000000,29000000) -> 29000000 | F7: =IF($B$5="Metric","Pa","psi") -> psi | G7: bc= | H7: =1-eyt/ec -> 0.5172413793 | J7: d= | K7: =VLOOKUP(K6,'Database v16.0'!$C$2:$X$881,IF(LEFT(K6,3)="HSS",7,5),FALSE)*IF($B$5="Metric",0.0254,1) -> 42.9 | L7: =IF($B$5="Metric","m","in") -> in | M7: rhs= | N7: =((h - d)/2) -> 6.05 | O7: =IF($B$5="Metric","m","in") -> in
A8: b= | B8: 35 | C8: =IF($B$5="Metric","m","in") -> in | D8: eyt= | E8: =fy/Ey -> 0.001448275862 | G8: bt= | H8: =1+eyt/ec -> 1.482758621 | J8: bf= | K8: =VLOOKUP(K6,'Database v16.0'!$C$2:$X$881,IF(LEFT(K6,3)="HSS",12,10),FALSE)*IF($B$5="Metric",0.0254,1) -> 15.8 | L8: =IF($B$5="Metric","m","in") -> in | M8: rbs= | N8: =((b - bf)/2) -> 9.6 | O8: =IF($B$5="Metric","m","in") -> in
A9: rb= | B9: 2 | C9: =IF($B$5="Metric","m","in") -> in | D9: As= | E9: =ro*b*h -> 57.75 | F9: =IF($B$5="Metric","m²","in²") -> in² | G9: b1= | H9: =IF(B5="Metric",IF(AND(17000000<=fc,fc<=28000000),0.85,IF(AND(28000000<fc,fc<55000000),0.85-0.05/7000000*(fc-28000000),0.65)),IF(AND(2500<=fc,fc<=4000),0.85,IF(AND(4000<fc,fc<8000),0.85-0.05/1000*(fc-4000),0.65))) -> 0.85 | J9: thss= | K9: =VLOOKUP(K6,'Database v16.0'!$C$2:$X$881,22,FALSE)*IF($B$5="Metric",0.0254,1) -> 0 | L9: =IF($B$5="Metric","m","in") -> in | M9: fys= | N9: =VLOOKUP($K$5,'Database v16.0'!A917:G946,2,FALSE)*IF($B$5="Metric",6896551.72413793,1000) -> 50000 | O9: =IF($B$5="Metric","Pa","psi") -> psi
A10: rh= | B10: 2 | C10: =IF($B$5="Metric","m","in") -> in | D10: 0.85 f'c= | E10: =0.85*fc -> 2550 | F10: =IF($B$5="Metric","Pa","psi") -> psi | G10: t1b= | H10: =IF($E$5="4 sides",1/8*(2*b+2*h-4*rb-SQRT(-16*as +(2*b+2*h-4*rb-4*rh)^2) -4*rh),as/(2*(b-2*rb))) -> 0.3552115921 | I10: =IF($B$5="Metric","m","in") -> in | J10: tw= | K10: =VLOOKUP(K6,'Database v16.0'!$C$2:$X$881,15,FALSE)*IF($B$5="Metric",0.0254,1) -> 0.71 | L10: =IF($B$5="Metric","m","in") -> in | M10: eys= | N10: =fys/Ey -> 0.001724137931
A11: f'c= | B11: 3000 | C11: =IF($B$5="Metric","Pa","psi") -> psi | G11: t1h= | H11: =IF($E$5="4 sides",t1b,0) -> 0.3552115921 | I11: =IF($B$5="Metric","m","in") -> in | J11: tf= | K11: =VLOOKUP(K6,'Database v16.0'!$C$2:$X$881,IF(LEFT(K6,3)="HSS",22,18),FALSE)*IF($B$5="Metric",0.0254,1) -> 1.22 | L11: =IF($B$5="Metric","m","in") -> in | M11: bcs= | N11: =1-eys/ec -> 0.4252873563
A12: fy= | B12: 42000 | C12: =IF($B$5="Metric","Pa ","psi")&IF(fy>IF(B5="Metric",420000000,6000),IF(B5="Metric"," fy<5.5E+08Pa or fy<4.2E+08 for Seismic"," fy<80000psi or fy<60000psi for Seismic"),"")&" See ACI 318 sect. 20.2.2.4" -> psi fy<80000psi or fy<60000psi for Seismic See ACI 318 sect. 20.2.2.4 | J12: Asx= | K12: =IF(LEFT(K6,3)="HSS",bf*d-(d-2*tf)*(bf-2*thss),bf*tf*2+tw*(d-2*tf)) -> 67.2786 | L12: =IF($B$5="Metric","m²","in²") -> in² | M12: bts= | N12: =1+eys/ec -> 1.574712644
A13: ec= | B13: 0.003 | C13: See ACI Sect. 22.2.2.1 or AISC sect. 2.2b. | M13: rs= | N13: =K12/(b*h) -> 0.03494992208
A14: r= | B14: 0.03 | C14: =IF(ro<0.01,"increase upto 0.01",IF(ro>0.08,"Reduce to 0.08",""))&" See ACI 318 Sect. 10.6.1.1. Estimated ρ= "& IF(ROUNDUP(((B17/(0.8*0.65)-f1c)/(fy-f1c))/(b*h),4)<0.01,0.01,IF(AND(0.01<ROUNDUP(((B17/(0.8*0.65)-f1c)/(fy-f1c))/(b*h),4),ROUNDUP(((B17/(0.8*0.65)-f1c)/(fy-f1c))/(b*h),4)<0.08),ROUNDUP(((B17/(0.8*0.65)-f1c)/(fy-f1c))/(b*h),4),0.08)) -> See ACI 318 Sect. 10.6.1.1. Estimated ρ= 0.01
A16: Design Requirements | E16: Diagram limits
A17: Pu | B17: -4500000 | C17: =IF($B$5="Metric","N","lb") -> lb | E17: Pn,max= | F17: =Calcs!E16 -> 9690868.01 | G17: =IF($B$5="Metric","N","lb") -> lb
A18: Mux | B18: 5880000 | C18: =IF($B$5="Metric","N m","lb in") -> lb in | E18: Pn,min= | F18: =Calcs!E18 -> -5210487 | G18: =IF($B$5="Metric","N","lb") -> lb
A19: Muy | B19: 5880000 | C19: =IF($B$5="Metric","N m","lb in") -> lb in | E19: Mn,max= | F19: =Calcs!E20 -> 86354646.61 | G19: =IF($B$5="Metric","N m","lb in") -> lb in
A20: ="Mu @ "&ROUND(DEGREES(Lmda),2)&"°" -> Mu @ 45° | B20: =SQRT(SUMSQ(B18:B19)) -> 8315575.747 | C20: =IF($B$5="Metric","N m","lb in") -> lb in | E20: φID= | F20: =Calcs!E22 -> 0.9
A21: λ= | B21: =ATAN(B19/B18) -> 0.7853981634 | C21: =DEGREES(Lmda) -> 45
A24: Design capacities | D24: Overall section design.
E25: ' --> | F25: =B17 -> -4500000 | G25: = | H25: =B17/B26 -> 1.000933682 | I25: =IF(H25<1," < 1.0", " > 1.0") -> > 1.0 | J25: Eq. 1
A26: φPn | B26: =Calcs!E12 -> -4495802.349 | C26: =Calcs!F12 -> lb | F26: =B26 -> -4495802.349
A27: φMnx | B27: =Calcs!E13 -> 12453761.37 | C27: =Calcs!F13 -> lb in
A28: φMny | B28: =Calcs!E14 -> 12453761.37 | C28: =Calcs!F14 -> lb in | J28: Eq. 2 | L28: Fig. 1: Rotated section
A29: φMn | B29: =ROUND(Calcs!E15,0) -> 17612278 | C29: =Calcs!F15 -> lb in
D31: ="√(("&B18&")^2+("&B19&")^2)" -> √((5880000)^2+(5880000)^2) | H31: ' --> | I31: =SQRT((B18+ABS(I17))^2+(B19+ABS(I18))^2)/B29 -> 0.4721465189 | J31: =IF(I31<1," < 1.0", " > 1.0") -> < 1.0
D32: =B29 -> 17612278
B34: #8(#25) | C34: ="Proposed "&IF(ROUNDUP(as/(IF(Calcs!B1="Metric",0.00064516,1)*IF(B34="#3(#10)",0.11,IF(B34="#4(#13)",0.2,IF(B34="#5(#16)",0.31,IF(B34="#6(#19)",0.44,IF(B34="#7(#22)",0.6,IF(B34="#8(#25)",0.79,IF(B34="#9(#29)",1,IF(B34="#10(#32)",1.27,IF(B34="#11(#36)",1.56,IF(B34="#14(#43)",2.25,IF(B34="#18(#57)",4,0)))))))))))),0)<4,4,ROUNDUP(as/(IF(Calcs!B1="Metric",0.00064516,1)*IF(B34="#3(#10)",0.11,IF(B34="#4(#13)",0.2,IF(B34="#5(#16)",0.31,IF(B34="#6(#19)",0.44,IF(B34="#7(#22)",0.6,IF(B34="#8(#25)",0.79,IF(B34="#9(#29)",1,IF(B34="#10(#32)",1.27,IF(B34="#11(#36)",1.56,IF(B34="#14(#43)",2.25,IF(B34="#18(#57)",4,0)))))))))))),0))&" Bars. @ "&ROUNDUP(IF(Calcs!B1="Metric",0.0254,1)*IF(B34="#3(#10)",0.375,IF(B34="#4(#13)",0.5,IF(B34="#5(#16)",0.625,IF(B34="#6(#19)",0.75,IF(B34="#7(#22)",0.85,IF(B34="#8(#25)",1,IF(B34="#9(#29)",1.128,IF(B34="#10(#32)",1.27,IF(B34="#11(#36)",1.41,IF(B34="#14(#43)",1.693,IF(B34="#18(#57)",2.257,0))))))))))),3)*1.5&IF(Calcs!B1="Metric","m","in")&" max. or "&IF(Calcs!B1="Metric","0.038m","1.5in") &" min. w/ties "&IF(OR(B34="#3(#10)",B34="#4(#13)",B34="#5(#16)",B34="#6(#19)",B34="#7(#22)",B34="#8(#25)",B34="#9(#29)",B34="#10(#32)"),"#3(#10)","#4(#13)")&" @ "&ROUNDUP(MIN(48*IF(Calcs!B1="Metric",0.0254,1)*IF(OR(B34="#3(#10)",B34="#4(#13)",B34="#5(#16)",B34="#6(#19)",B34="#7(#22)",B34="#8(#25)",B34="#9(#29)",B34="#10(#32)"),0.375,0.5),16*IF(Calcs!B1="Metric",0.0254,1)*IF(B34="#3(#10)",0.375,IF(B34="#4(#13)",0.5,IF(B34="#5(#16)",0.625,IF(B34="#6(#19)",0.75,IF(B34="#7(#22)",0.85,IF(B34="#8(#25)",1,IF(B34="#9(#29)",1.128,IF(B34="#10(#32)",1.27,IF(B34="#11(#36)",1.41,IF(B34="#14(#43)",1.693,IF(B34="#18(#57)",2.257,0))))))))))),h,b),3) & IF(Calcs!B1="Metric","m","in") &" max. "&IF(Calcs!B1="Metric","0.038m","1.5 in")&" min. ACI 318 Sect. 25.2.3 & 25.7.2.2" -> Proposed 74 Bars. @ 1.5in max. or 1.5in min. w/ties #3(#10) @ 16in max. 1.5 in min. ACI 318 Sect. 25.2.3 & 25.7.2.2
A36: Note 1: The intent of the AISC-360 ch. I is to design the columns composite sections using a modified provisions of the ACI 318. it allows in section I.2b. The use of the Strain compatibility method which is stated in the ACI-318 sect. 22. this spreadsheet comply with the strain method as the relationships for the concrete, reinforcing steel and structural steel, strains are refered to the position of the neutral axis, this refrence leads to the calculation of the factors bc, bt, bcs & bts.
A40: Note 2: The Eq. 2 is a derivation of the load contour equation (Mux/f Mnx)a1+(Muy/f Mny)a2<1.0. with a1 = a2 = 1.0, these is because Mnx and Mny are not longer approximation but the true values of the interaction diagram for a given Pn.
A42: ="Note 3: The section"&IF(OR(B14<0.01,0.08<B14)," doesn't","")&" meet the ACI 318 requirement of minimum reinforcement steel see ACI 318 sect. 10.6.1.2" -> Note 3: The section meet the ACI 318 requirement of minimum reinforcement steel see ACI 318 sect. 10.6.1.2
A43: ="Note 4: The section"&IF(N13>0.01,""," doesn't")&" qualify as conposite since ρs"&IF(N13>0.01," > "," < ")&"1% SEE AISC/ANSI 360-16 sect. I2.1a.(a)" -> Note 4: The section qualify as conposite since ρs > 1% SEE AISC/ANSI 360-16 sect. I2.1a.(a)
A44: Note 5: When using this spreadsheet for biaxial flexure on beams, the ρmax shall correspond to a ey=0.004.
A45: Note 6: Each load case from the structural analysis require one interaction diagram since each load case will yield a different axial load and different angle (l). This requirement can be understood by extrapolating ACI-318 sect. R10.4.2.
A47: Note 7: Concrete section dimensions, compressive strength and reinforcement properties require update if the units are switched between Imperial and metric. Structural steel sections and properties does not require update unless are overwritten.

Sheet Calcs
A1: Units: | B1: ='Input & Summary'!B5 -> Imperial | C1: ='Input & Summary'!C5 -> Psi, Lb, in | D1: Reinf. On: | E1: ='Input & Summary'!E5 -> 4 sides | G1: Concrete and reinforcement steel | M1: Structural steel (Composite) | AC1: For Interaction diagram
A2: Code: | B2: ='Input & Summary'!B6 -> ACI 318-14 | G2: h1(q)= | H2: =rh*COS(Lmda)+rb*SIN(Lmda) -> 2.828427125 | I2: =IF($B$1="Metric","m","in") -> in | J2: b1(q)= | K2: =rb *COS(Lmda) + rh*SIN(Lmda) -> 2.828427125 | L2: =IF($B$1="Metric","m","in") -> in | M2: h12(q)= | N2: =rhs*COS(Lmda) + rbs*SIN(Lmda) -> 11.06622113 | O2: =IF($B$1="Metric","m","in") -> in | P2: b12(q)= | Q2: =rbs*COS(Lmda)+ rhs*SIN(Lmda) -> 11.06622113 | R2: =IF($B$1="Metric","m","in") -> in | AD2: c | AE2: f | AF2: φ Pn | AG2: ="φ Mn @ "&ROUND(DEGREES(Lmda),2)&"°" -> φ Mn @ 45° | AH2: φ Mnx | AI2: φ Mny | AJ2: Pn | AK2: ="Mn @ "&ROUND(DEGREES(Lmda),2)&"°" -> Mn @ 45° | AL2: Mnx | AM2: Mny
G3: h2(q)= | H3: =H2+t1b*COS(Lmda)+t1h*SIN(Lmda) -> 3.330772176 | I3: =IF($B$1="Metric","m","in") -> in | J3: b2(q)= | K3: =K2 + t1b*SIN(Lmda) + t1h*COS(Lmda) -> 3.330772176 | L3: in | M3: h13(q)= | N3: =N2+ tf*COS(Lmda)+ thss*SIN(Lmda) -> 11.9288914 | O3: =IF($B$1="Metric","m","in") -> in | P3: b13(q)= | Q3: =Q2+ tf*SIN(Lmda)+ thss*COS(Lmda) -> 11.9288914 | R3: =IF($B$1="Metric","m","in") -> in | AC3: Pure Tens. | AD3: =A30 -> 1e-11 | AE3: =VLOOKUP($AD3,$A$30:$J$229,2,TRUE) -> 0.9 | AF3: =VLOOKUP($AD3,$A$30:$J$229,3,TRUE) -> -5210487 | AG3: =VLOOKUP($AD3,$A$30:$J$229,4,TRUE) -> 5.276161217e-18 | AH3: =VLOOKUP($AD3,$A$30:$J$229,5,TRUE) -> 3.730809375e-18 | AI3: =VLOOKUP($AD3,$A$30:$J$229,6,TRUE) -> 3.730809375e-18 | AJ3: =VLOOKUP($AD3,$A$30:$J$229,7,TRUE) -> -5789430 | AK3: =VLOOKUP($AD3,$A$30:$J$229,8,TRUE) -> 5.862401352e-18 | AL3: =VLOOKUP($AD3,$A$30:$J$229,9,TRUE) -> 4.14534375e-18 | AM3: =VLOOKUP($AD3,$A$30:$J$229,10,TRUE) -> 4.14534375e-18
A4: H= | B4: ='Input & Summary'!B7 -> 55 | C4: ='Input & Summary'!C7 -> in | D4: Pu | E4: ='Input & Summary'!B17 -> -4500000 | F4: ='Input & Summary'!C17 -> lb | G4: h3(q)= | H4: =IF(Lmda<=N17,b*SIN(Lmda),h*COS(Lmda)) -> 24.74873734 | I4: in | J4: b3(q)= | K4: =b*COS(Lmda) -> 24.74873734 | L4: in | M4: h14(q)= | N4: =N2+IF(Lmda<=N20,bf*SIN(Lmda),d*COS(Lmda)) -> 22.23850827 | O4: in | P4: b14(q)= | Q4: =Q2 + bf*COS(Lmda) -> 22.23850827 | R4: in | AC4: Tens. Ctrl Lim. | AD4: =IF($B$2="ACI 318-14",ec/(ec+0.005),ec/(ec+0.003+fy/Ey))*H11 -> 22.80419369 | AE4: 0.9 | AF4: =VLOOKUP($AD4,$A$30:$J$229,3,TRUE) -> -1118100.991 | AG4: 65970330.23 | AH4: 46648067.86 | AI4: 46648067.86 | AJ4: -1242334.434 | AK4: 73300366.92 | AL4: 51831186.51 | AM4: 51831186.51
A5: b= | B5: ='Input & Summary'!B8 -> 35 | C5: ='Input & Summary'!C8 -> in | D5: Mux | E5: ='Input & Summary'!B18 -> 5880000 | F5: ='Input & Summary'!C18 -> lb in | G5: h4(q)= | H5: =IF(Lmda<=N18,H2+(b-2*rb)*SIN(Lmda),H2+(h-2*rh)*COS(Lmda)) -> 24.74873734 | I5: in | J5: b4(q)= | K5: =K2+ (b - 2*rb)*COS(Lmda) -> 24.74873734 | L5: in | M5: h15(q)= | N5: =N3+IF(Lmda<=N21,(bf - 2*thss)*SIN(Lmda),(d - 2*tf)*COS(Lmda)) -> 23.10117854 | O5: in | P5: b15(q)= | Q5: =Q3 + (bf - 2*thss)* COS(Lmda) -> 23.10117854 | R5: in | AC5: Pure flex. | AD5: =LOOKUP(AF5,C30:C229,A30:A229) -> 26.58579365 | AE5: 0.8199029126 | AF5: =IF((MIN(ABS(VLOOKUP(0,C30:C229,1,TRUE)),INDEX(C30:C229,REPLACE((CELL("address",INDEX(C30:C229,MATCH(VLOOKUP(0,C30:C229,1,TRUE),C30:C229,1)))),1,3,"")+1-29,1)))=(INDEX(C30:C229,REPLACE((CELL("address",INDEX(C30:C229,MATCH(VLOOKUP(0,C30:C229,1,TRUE),C30:C229,1)))),1,3,"")+1-29,1)),INDEX(C30:C229,REPLACE((CELL("address",INDEX(C30:C229,MATCH(VLOOKUP(0,C30:C229,1,TRUE),C30:C229,1)))),1,3,"")+1-29,1),VLOOKUP(0,C30:C229,1,TRUE)) -> 29765.8959 | AG5: 67971401.85 | AH5: 48063039.18 | AI5: 48063039.18 | AJ5: 36304.17144 | AK5: 82901768.99 | AL5: 58620403.02 | AM5: 58620403.02
A6: rb= | B6: ='Input & Summary'!B9 -> 2 | C6: ='Input & Summary'!C9 -> in | D6: Muy | E6: ='Input & Summary'!B19 -> 5880000 | F6: ='Input & Summary'!C19 -> lb in | G6: h5(q)= | H6: =IF(Lmda<=N19,H3+(b-2*(rb+t1h))*SIN(Lmda),H3+(h-2*(rh+t1b))*COS(Lmda)) -> 24.74873734 | I6: in | J6: b5(q)= | K6: =K3 + (b - 2*(rb + t1h))*COS(Lmda) -> 24.74873734 | L6: in | M6: h16(q)= | N6: =N3+IF(Lmda>N21,(bf - 2*thss)*SIN(Lmda),(d - 2*tf)*COS(Lmda)) -> 40.53843177 | O6: in | P6: b16(q)= | Q6: =Q3+ (d - 2*tf)* SIN(Lmda) -> 40.53843177 | R6: in | AC6: Comp. Ctrl Lim. | AD6: =ec/(ec+fy/Ey)*H11 -> 41.01219331 | AE6: 0.6518995357 | AF6: =VLOOKUP($AD6,$A$30:$J$229,3,TRUE) -> 3121306.729 | AG6: 48478386.48 | AH6: 34279395.82 | AI6: 34279395.82 | AJ6: 4788018.027 | AK6: 74364812.11 | AL6: 52583862.92 | AM6: 52583862.92
A7: rh= | B7: ='Input & Summary'!B10 -> 2 | C7: ='Input & Summary'!C10 -> in | D7: ="Mu @ "&ROUND(DEGREES(Lmda),2)&"°" -> Mu @ 45° | E7: ='Input & Summary'!B20 -> 8315575.747 | F7: ='Input & Summary'!C20 -> lb in | G7: h6(q)= | H7: =IF(Lmda>N19,H3+(b-2*(rb+t1h))*SIN(Lmda),H3+(h-2*(rh+t1b))*COS(Lmda)) -> 38.89087297 | I7: in | J7: b6(q)= | K7: =K3+ (h - 2*(rh + t1b))*SIN(Lmda) -> 38.89087297 | L7: in | M7: h17(q)= | N7: =N2+IF(Lmda>N20,bf*SIN(Lmda),d*COS(Lmda)) -> 41.40110204 | O7: in | P7: b17(q)= | Q7: =Q2+ d*SIN(Lmda) -> 41.40110204 | R7: in | AC7: fy0% | AD7: =H11 -> 60.81118318 | AE7: 0.65 | AF7: =VLOOKUP($AD7,$A$30:$J$229,3,TRUE) -> 5714534.658 | AG7: 20978218.43 | AH7: 14833840.51 | AI7: 14833840.51 | AJ7: 8791591.781 | AK7: 32274182.2 | AL7: 22821293.09 | AM7: 22821293.09
A8: f'c= | B8: ='Input & Summary'!B11 -> 3000 | C8: ='Input & Summary'!C11 -> psi | D8: λ= | E8: ='Input & Summary'!B21 -> 0.7853981634 | F8: 35 | G8: h7(q)= | H8: =IF(Lmda>N18,H2+(b-2*rb)*SIN(Lmda),H2+(h-2*rh)*COS(Lmda)) -> 38.89087297 | I8: in | J8: b7(q)= | K8: =K2 + (h - 2* rh)* SIN(Lmda) -> 38.89087297 | L8: in | M8: h18(q)= | N8: =H12-N3 -> 51.71071891 | O8: in | P8: b18(q)= | Q8: =K12-Q3 -> 51.71071891 | R8: in | AC8: fy50% | AD8: =ec/(ec-0.5*fy/Ey)*H11 -> 80.16019601 | AE8: 0.65 | AF8: =VLOOKUP($AD8,$A$30:$J$229,3,TRUE) -> 6299064.206 | AG8: 6192377.606 | AH8: 4378672.197 | AI8: 4378672.197 | AJ8: 10146649.72 | AK8: 9526734.778 | AL8: 6736418.764 | AM8: 6736418.764
A9: fy= | B9: ='Input & Summary'!B12 -> 42000 | C9: ='Input & Summary'!C12 -> psi fy<80000psi or fy<60000psi for Seismic See ACI 318 sect. 20.2.2.4 | F9: 89 | G9: h8(q)= | H9: =IF(Lmda>N17,b*SIN(Lmda),h*COS(Lmda)) -> 38.89087297 | I9: in | J9: b8(q)= | K9: =h*SIN(Lmda) -> 38.89087297 | L9: in | M9: h19(q)= | N9: =H12-N2 -> 52.57338918 | O9: in | P9: b19(q)= | Q9: =K12-Q2 -> 52.57338918 | R9: in | AC9: Pure Comp. | AD9: =A129 -> 58.48874604 | AE9: 0.65 | AF9: =VLOOKUP($AD9,$A$30:$J$229,3,TRUE) -> 5563044.721 | AG9: 23290631.14 | AH9: 16468963.22 | AI9: 16468963.22 | AJ9: 8558530.339 | AK9: 35831740.21 | AL9: 25336866.49 | AM9: 25336866.49
A10: ec= | B10: ='Input & Summary'!B13 -> 0.003 | C10: ='Input & Summary'!C13 -> See ACI Sect. 22.2.2.1 or AISC sect. 2.2b. | G10: h9(q)= | H10: =H12-H3 -> 60.30883813 | I10: in | J10: b9(q)= | K10: =K12-K3 -> 60.30883813 | L10: in | M10: Structural steelweb of I shaped section (Composite) | AC10: Origin | AD10: N/A | AE10: N/A | AF10: 0 | AG10: 0 | AH10: 0 | AI10: 0 | AJ10: 0 | AK10: 0 | AL10: 0 | AM10: 0
A11: r= | B11: ='Input & Summary'!B14 -> 0.03 | C11: ='Input & Summary'!C14 -> See ACI 318 Sect. 10.6.1.1. Estimated ρ= 0.01 | G11: h10(q)= | H11: =H12-H2 -> 60.81118318 | I11: in | J11: b10(q)= | K11: =K12-K2 -> 60.81118318 | L11: in | M11: h20(q)= | N11: =(rhs + tf)*COS(Lmda) + (b - tw)/2*SIN(Lmda) -> 17.26401206 | O11: =IF($B$1="Metric","m","in") -> in | P11: b20(q)= | Q11: =(rhs + tf)*SIN(Lmda)+ (b - tw)/2 *COS(Lmda) -> 17.26401206 | R11: =IF($B$1="Metric","m","in") -> in | AC11: For Load Contour diagram
D12: fPn | E12: =VLOOKUP(IF((E4-INDEX(C30:C229,MATCH(VLOOKUP(E4,C30:C229,1,TRUE),C30:C229,1),1))>0,INDEX(C30:C229,MATCH(VLOOKUP(E4,C30:C229,1,TRUE),C30:C229,1)+1,1),INDEX(C30:C229,MATCH(VLOOKUP(E4,C30:C229,1,TRUE),C30:C229,1),1)),C30:R229,1,TRUE) -> -4495802.349 | F12: =IF($B$1="Metric","N","lb") -> lb | G12: h11(q)= | H12: =H4+H9 -> 63.63961031 | I12: in | J12: b11(q)= | K12: =K4+K9 -> 63.63961031 | L12: in | M12: h21(q)= | N12: =N11+IF(Lmda<=N22, tw*SIN(Lmda), (d - 2*tf)*COS(Lmda)) -> 17.76605788 | O12: in | P12: b21(q)= | Q12: =Q11 + tw*COS(Lmda) -> 17.76605788 | R12: in | AC12: =H29 -> Mn @ 45° | AD12: =INDEX(A30:B129,IF(E4>=INDEX(A30:D129,MATCH(MAX(D30:D129),D30:D129,0),3),MATCH(E4,C30:C129,1)+1,MATCH(E4,C30:C129,1)),1) -> 8.861931217 | AE12: =VLOOKUP($AD$12,$A$30:$J$129,2,FALSE) -> 0.9 | AF12: =VLOOKUP($AD$12,$A$30:$J$129,3,FALSE) -> -4594569.616 | AG12: N/A | AH12: =VLOOKUP($AD$12,$A$30:$J$129,5,FALSE) -> 10974295.91 | AI12: =VLOOKUP($AD$12,$A$30:$J$129,6,FALSE) -> 10974295.91 | AJ12: =VLOOKUP($AD$12,$A$30:$J$129,7,FALSE) -> -5105077.351 | AK12: N/A | AL12: =VLOOKUP($AD$12,$A$30:$J$129,9,FALSE) -> 12193662.12 | AM12: =VLOOKUP($AD$12,$A$30:$J$129,10,FALSE) -> 12193662.12
A13: Ey= | B13: ='Input & Summary'!E7 -> 29000000 | C13: ='Input & Summary'!F7 -> psi | D13: fMnx | E13: =VLOOKUP(E12,C30:F229,3,FALSE) -> 12453761.37 | F13: =IF($B$1="Metric","N m","lb in") -> lb in | G13: =matc ->  | M13: h22(q)= | N13: =N11+IF(Lmda>N22, tw*SIN(Lmda), (d - 2*tf)*COS(Lmda)) -> 45.87355243 | O13: in | P13: b22(q)= | Q13: =Q11+ (d - 2*tf)* SIN(Lmda) -> 45.87355243 | R13: in
A14: eyt= | B14: ='Input & Summary'!E8 -> 0.001448275862 | D14: fMny | E14: =VLOOKUP(E12,C30:F229,4,FALSE) -> 12453761.37 | F14: =IF($B$1="Metric","N m","lb in") -> lb in | G14: Structural Steel dimensions | M14: h23(q)= | N14: =H12-N11 -> 46.37559824 | O14: in | P14: b23(q)= | Q14: =K12-Q11 -> 46.37559824 | R14: in | AC14: =AC7 -> fy0% | AD14: =AD7 -> 60.81118318
A15: As= | B15: ='Input & Summary'!E9 -> 57.75 | C15: ='Input & Summary'!F9 -> in² | D15: fMn | E15: =VLOOKUP(E12,C30:F229,2,FALSE) -> 17612278.23 | F15: =IF($B$1="Metric","N m","lb in") -> lb in | G15: Structural Steel: | H15: ='Input & Summary'!K5 -> ASTM-A992 | I15: ='Input & Summary'!L5 -> 0 | J15: Composite: | K15: ='Input & Summary'!N5 -> Yes | AC15: Tens. Ctrl Lim. | AD15: =AD4 -> 22.80419369
A16: 0.85 f'c= | B16: ='Input & Summary'!E10 -> 2550 | C16: ='Input & Summary'!F10 -> psi | D16: Pn,max= | E16: =IF(K15="Yes",0.85,0.8)*f1c*(h*b-as-IF(K15="Yes",H22,0))+fy*as+fys*IF(K15="Yes",H22,0) -> 9690868.01 | F16: =IF($B$1="Metric","N","lb") -> lb | G16: Section: | H16: ='Input & Summary'!K6 -> W44X230 | I16: ='Input & Summary'!L6 -> 0 | M16: Critical angles | AC16: Comp. Ctrl Lim. | AD16: =AD6 -> 41.01219331
A17: bc= | B17: ='Input & Summary'!H7 -> 0.5172413793 | D17: Mu∟,max= | E17: =MAX(O30:O129) -> 0 | F17: =IF($B$1="Metric","N m","lb in") -> lb in | G17: d= | H17: ='Input & Summary'!K7 -> 42.9 | I17: ='Input & Summary'!L7 -> in | J17: rhs= | K17: ='Input & Summary'!N7 -> 6.05 | L17: ='Input & Summary'!O7 -> in | M17: q0= | N17: =ATAN(h/ b) -> 1.004067109 | O17: =DEGREES(N17) -> 57.52880771
A18: bt= | B18: ='Input & Summary'!H8 -> 1.482758621 | D18: Pn,min= | E18: =MIN(C30:C129) -> -5210487 | F18: =IF($B$1="Metric","N","lb") -> lb | G18: bf= | H18: ='Input & Summary'!K8 -> 15.8 | I18: ='Input & Summary'!L8 -> in | J18: rbs= | K18: ='Input & Summary'!N8 -> 9.6 | L18: ='Input & Summary'!O8 -> in | M18: q1= | N18: =ATAN((h - 2* rh)/(b - 2*rb)) -> 1.024629763 | O18: =DEGREES(N18) -> 58.706961 | AC18: stirrup size | AD18: =IF(B1="Metric",0.0254,1)*IF(OR('Input & Summary'!B34="#3(#10)",'Input & Summary'!B34="#4(#13)",'Input & Summary'!B34="#5(#16)",'Input & Summary'!B34="#6(#19)",'Input & Summary'!B34="#7(#22)",'Input & Summary'!B34="#8(#25)",'Input & Summary'!B34="#9(#29)",'Input & Summary'!B34="#10(#32)"),0.375,0.5) -> 0.375
A19: b1= | B19: ='Input & Summary'!H9 -> 0.85 | D19: Mu∟,min= | E19: =MIN(O30:O129) -> 0 | F19: =IF($B$1="Metric","N m","lb in") -> lb in | G19: thss= | H19: ='Input & Summary'!K9 -> 0 | I19: ='Input & Summary'!L9 -> in | J19: fys= | K19: ='Input & Summary'!N9 -> 50000 | L19: ='Input & Summary'!O9 -> psi | M19: q2= | N19: =ATAN((h - 2* (rh + t1b))/(b - 2* ( rb + t1h))) -> 1.028684963 | O19: 58.93930681 | AC19: rebar area | AD19: =IF(B1="Metric",0.0254,1)*IF('Input & Summary'!B34="#3(#10)",0.375,IF('Input & Summary'!B34="#4(#13)",0.5,IF('Input & Summary'!B34="#5(#16)",0.625,IF('Input & Summary'!B34="#6(#19)",0.75,IF('Input & Summary'!B34="#7(#22)",0.85,IF('Input & Summary'!B34="#8(#25)",1,IF('Input & Summary'!B34="#9(#29)",1.128,IF('Input & Summary'!B34="#10(#32)",1.27,IF('Input & Summary'!B34="#11(#36)",1.41,IF('Input & Summary'!B34="#14(#43)",1.693,IF('Input & Summary'!B34="#18(#57)",2.257,0))))))))))) -> 1
A20: t1b= | B20: ='Input & Summary'!H10 -> 0.3552115921 | C20: ='Input & Summary'!I10 -> in | D20: Mn,max= | E20: =MAX(H30:H129) -> 86354646.61 | F20: =IF($B$1="Metric","N m","lb in") -> lb in | G20: tw= | H20: ='Input & Summary'!K10 -> 0.71 | I20: ='Input & Summary'!L10 -> in | J20: eys= | K20: ='Input & Summary'!N10 -> 0.001724137931 | M20: q3= | N20: =ATAN(d/bf) -> 1.217913965 | O20: 69.78133002
A21: t1h= | B21: ='Input & Summary'!H11 -> 0.3552115921 | C21: ='Input & Summary'!I11 -> in | G21: tf= | H21: ='Input & Summary'!K11 -> 1.22 | I21: ='Input & Summary'!L11 -> in | J21: bcs= | K21: ='Input & Summary'!N11 -> 0.4252873563 | M21: q4= | N21: =ATAN((d - 2*tf)/(bf - 2*thss)) -> 1.198498401 | O21: 68.66890016
D22: φID | E22: =INDEX(B30:B129,MATCH(VLOOKUP(E12,C30:C129,1,TRUE),C30:C129,0),1) -> 0.9 | G22: Asx= | H22: ='Input & Summary'!K12 -> 67.2786 | I22: ='Input & Summary'!L12 -> in² | J22: bts= | K22: ='Input & Summary'!N12 -> 1.574712644 | M22: q5= | N22: =IF(tw=0,ATAN((d - 2* tf)/0.00000001),ATAN((d - 2* tf)/tw)) -> 1.553249932 | O22: 88.99466563 | U22: ='Input & Summary'!A44 -> Note 5: When using this spreadsheet for biaxial flexure on beams, the ρmax shall correspond to a ey=0.004.
J23: rs= | K23: ='Input & Summary'!N13 -> 0.03494992208
U24: ='Input & Summary'!A42 -> Note 3: The section meet the ACI 318 requirement of minimum reinforcement steel see ACI 318 sect. 10.6.1.2
U25: ='Input & Summary'!A43 -> Note 4: The section qualify as conposite since ρs > 1% SEE AISC/ANSI 360-16 sect. I2.1a.(a)
C27: Interaction Diagram | U27: Interaction diagram data
C28: factored capacity | G28: Total Nominal Capacity | U28: Concrete | V28: Steel plastic compr. | X28: Steel plastic tension | Z28: Steel elastic tension | AF28: Steel elastic compression | AL28: Structural Steel plastic compr. | AN28: Structural Steel plastic tension | AP28: Structural Steel elastic tension | AV28: Structural Steel elastic compression | BB28: Structural Steel web plastic compr. | BC28: Structural Steel web plastic Tension. | BD28: Structural Steel web elastic tension | BG28: Structural Steel web elastic compression | BJ28: Concrete | BK28: Steel plastic compr. | BM28: Steel plastic tension | BO28: Steel elastic tension | BU28: Steel elastic compression | CA28: Structural Steel plastic compr. | CC28: Structural Steel plastic tension | CE28: Structural Steel elastic tension | CK28: Structural Steel elastic compression | CQ28: Structural Steel web plastic compr. | CR28: Structural Steel web plastic Tension. | CS28: Structural Steel web elastic tension | CV28: Structural Steel web elastic compression
A29: c | B29: φinteraction | C29: φ Pn | D29: ="φ Mn @ "&ROUND(DEGREES(Lmda),2)&"°" -> φ Mn @ 45° | E29: ="φ Mn @"&ROUND(DEGREES(Lmda),2)&"° Cos(λ)" -> φ Mn @45° Cos(λ) | F29: ="φ Mn @"&ROUND(DEGREES(Lmda),2)&"° Sin(λ)" -> φ Mn @45° Sin(λ) | G29: Pn | H29: ="Mn @ "&ROUND(DEGREES(Lmda),2)&"°" -> Mn @ 45° | I29: ="Mn @ "&ROUND(DEGREES(Lmda),2)&"° Cos(λ)" -> Mn @ 45° Cos(λ) | J29: ="Mn @"&ROUND(DEGREES(Lmda),2)&"° Sin(λ)" -> Mn @45° Sin(λ) | U29: P0 | V29: P1 | W29: P2 | X29: P3 | Y29: P4 | Z29: P5 | AA29: P6 | AB29: P7 | AC29: P8 | AD29: P9 | AE29: P10 | AF29: P11 | AG29: P12 | AH29: P13 | AI29: P14 | AJ29: P15 | AK29: P16 | AL29: P17 | AM29: P18 | AN29: P19 | AO29: P20 | AP29: P21 | AQ29: P22 | AR29: P23 | AS29: P24 | AT29: P25 | AU29: P26 | AV29: P27 | AW29: P28 | AX29: P29 | AY29: P30 | AZ29: P31 | BA29: P32 | BB29: P33 | BC29: P34 | BD29: P35 | BE29: P36 | BF29: P37 | BG29: P38 | BH29: P39 | BI29: P40 | BJ29: M0 | BK29: M1 | BL29: M2 | BM29: M3 | BN29: M4 | BO29: M5 | BP29: M6 | BQ29: M7 | BR29: M8 | BS29: M9 | BT29: M10 | BU29: M11 | BV29: M12 | BW29: M13 | BX29: M14 | BY29: M15 | BZ29: M16 | CA29: M17 | CB29: M18 | CC29: M19 | CD29: M20 | CE29: M21 | CF29: M22 | CG29: M23 | CH29: M24 | CI29: M25 | CJ29: M26 | CK29: M27 | CL29: M28 | CM29: M29 | CN29: M30 | CO29: M31 | CP29: M32 | CQ29: M33 | CR29: M34 | CS29: M35 | CT29: M36 | CU29: M37 | CV29: M38 | CW29: M39 | CX29: M40
A30: 1e-11 | B30: =IF($B$2="ACI 318-14",IF(ec/$A30*(-$H$11+$A30)<-0.005,0.9,IF(AND(-0.005<ec/$A30*(-$H$11+$A30),ec/$A30*(-$H$11+$A30)<-eyt),0.65+0.25*(-ec/$A30*($A30-$H$11)-eyt)/(0.005-eyt),0.65)),IF(ec/$A30*(-$H$11+$A30)<-0.003-eyt,0.9,IF(AND(-0.003-eyt<ec/$A30*(-$H$11+$A30),ec/$A30*(-$H$11+$A30)<-eyt),0.65+0.25*(-ec/$A30*($A30-$H$11)-eyt)/(0.003),0.65))) -> 0.9 | C30: =$B30*MIN(G30,$E$16) -> -5210487 | D30: =$B30*H30 -> 5.276161217e-18 | E30: =$B30*I30 -> 3.730809375e-18 | F30: =$B30*J30 -> 3.730809375e-18 | G30: =SUM(U30:AK30)+IF($K$15="Yes", SUM(AL30:BI30),0) -> -5789430 | H30: =SUM(BJ30:BZ30)+IF($K$15="Yes",SUM(CA30:CX30),0) -> 5.862401352e-18 | I30: =H30*COS(Lmda) -> 4.14534375e-18 | J30: =H30*SIN(Lmda) -> 4.14534375e-18 | U30: =f1c*IF(beta*$A30<$H$4,beta^2*$A30^2*_xlfn.CSC(2*Lmda),IF(AND($H$4<=beta*$A30,beta*$A30<=$H$9),(2*beta*$A30-$H$4)*$H$4*_xlfn.CSC(2*Lmda),IF(AND($H$9<beta*$A30,beta*$A30<=$H$12),_xlfn.CSC(2*Lmda)*(-(beta^2)*$A30^2+2*beta*$A30*$H$12-($H$12^2)+b*h*SIN(2*Lmda)),b*h))) -> 1.842375e-19 | V30: =fy*IF(bc*$A30<=$H$2,0,IF(AND($H$2<bc*$A30,bc*$A30<$H$5),(-bc*$A30+$H$2)^2*_xlfn.CSC(2*Lmda),IF(AND($H$5<=bc*$A30,bc*$A30<=$H$8),-(2*bc*$A30-$H$2-$H$5)*($H$2-$H$5)*_xlfn.CSC(2*Lmda),IF(AND($H$8<bc*$A30,bc*$A30<=$H$11),(b-2*rb)*(h-2*rh)-(bc^2)*$A30^2*_xlfn.CSC(2*Lmda)-($H$11^2)*_xlfn.CSC(2*Lmda)+bc*$A30*$H$11*_xlfn.CSC(Lmda)*_xlfn.SEC(Lmda),(b-2*rb)*(h-2*rh))))) -> 0 | W30: =-fy*IF(bc*$A30<=$H$3,0,IF(AND($H$3<bc*$A30,bc*$A30<$H$6),(-bc*$A30+$H$3)^2*_xlfn.CSC(2*Lmda),IF(AND($H$6<=bc*$A30,bc*$A30<=$H$7),-(2*bc*$A30-$H$3-$H$6)*($H$3-$H$6)*_xlfn.CSC(2*Lmda),IF(AND($H$7<bc*$A30,bc*$A30<=$H$10),(h-2*(rh+t1b))*(b-2*(rb+t1h))-(bc^2)*$A30^2*_xlfn.CSC(2*Lmda)-($H$10^2)*_xlfn.CSC(2*Lmda)+bc*$A30*$H$10*_xlfn.CSC(Lmda)*_xlfn.SEC(Lmda),(h-2*(rh+t1b))*(b-2*(rb+t1h)))))) -> 0 | X30: =-fy*IF(bt*$A30<=$H$2,(b-2*rb)*(h-2*rh),IF(AND($H$2<bt*$A30,bt*$A30<$H$5),(b-2*rb)*(h-2*rh)-(bt^2)*$A30^2*_xlfn.CSC(2*Lmda)-($H$2^2)*_xlfn.CSC(2*Lmda)+bt*$A30*$H$2*_xlfn.CSC(Lmda)*_xlfn.SEC(Lmda),IF(AND($H$5<=bt*$A30,bt*$A30<=$H$8),(b-2*rb)*(h-2*rh)-($H$2^2)*_xlfn.CSC(2*Lmda)+$H$5^2*_xlfn.CSC(2*Lmda)+bt*$A30*$H$2*_xlfn.CSC(Lmda)*_xlfn.SEC(Lmda)-bt*$A30*$H$5*_xlfn.CSC(Lmda)*_xlfn.SEC(Lmda),IF(AND($H$8<bt*$A30,bt*$A30<=$H$11),(-bt*$A30+$H$11)^2*_xlfn.CSC(2*Lmda),0)))) -> -66402000 | Y30: =fy*IF(bt*$A30<=$H$3,(h-2*(rh+t1b))*(b-2*(rb+t1h)),IF(AND($H$3<bt*$A30,bt*$A30<$H$6),(h-2*(rh+t1b))*(b-2*(rb+t1h))-(bt^2)*$A30^2*_xlfn.CSC(2*Lmda)-($H$3^2)*_xlfn.CSC(2*Lmda)+bt*$A30*$H$3*_xlfn.CSC(Lmda)*_xlfn.SEC(Lmda),IF(AND($H$6<=bt*$A30,bt*$A30<=$H$7),(h-2*(rh+t1b))*(b-2*(rb+t1h))-($H$3^2)*_xlfn.CSC(2*Lmda)+$H$6^2*_xlfn.CSC(2*Lmda)+bt*$A30*$H$3*_xlfn.CSC(Lmda)*_xlfn.SEC(Lmda)-bt*$A30*$H$6*_xlfn.CSC(Lmda)*_xlfn.SEC(Lmda),IF(AND($H$7<bt*$A30,bt*$A30<=$H$10),(-bt*$A30+$H$10)^2*_xlfn.CSC(2*Lmda),0)))) -> 63976500 | Z30: =-Ey*ec*IF(bt*$A30<=$H$2,0,IF(AND($A30<=$H$2,$H$2<bt*$A30,bt*$A30<=$H$5),((-bt*$A30+$H$2)^2*((-3+2*bt)*$A30+$H$2)*_xlfn.CSC(Lmda)*_xlfn.SEC(Lmda))/(6*$A30),IF(AND($A30<=$H$2,$H$5<bt*$A30),-(((3*$A30-$H$2-2*$H$5)*($H$2-$H$5)^2*_xlfn.CSC(Lmda)*_xlfn.SEC(Lmda))/(6*$A30)),IF(AND($H$2<$A30,$A30<=$H$5,$H$2<bt*$A30,bt*$A30<=$H$5),1/6*(-1+bt)^2*$A30*($A30+2*bt*$A30-3*$H$2)*_xlfn.CSC(Lmda)*_xlfn.SEC(Lmda),IF(AND($H$2<$A30,$A30<=$H$5,$H$5<bt*$A30),(($A30-$H$5)^2*($A30-3*$H$2+2*$H$5)*_xlfn.CSC(Lmda)*_xlfn.SEC(Lmda))/(6*$A30),0))))) -> 0 | AA30: =Ey*ec*IF(bt*$A30<=$H$3,0,IF(AND($A30<=$H$3,$H$3<bt*$A30,bt*$A30<=$H$6),((-bt*$A30+$H$3)^2*((-3+2*bt)*$A30+$H$3)*_xlfn.CSC(Lmda)*_xlfn.SEC(Lmda))/(6*$A30),IF(AND($A30<=$H$3,$H$6<bt*$A30),-(((3*$A30-$H$3-2*$H$6)*($H$3-$H$6)^2*_xlfn.CSC(Lmda)*_xlfn.SEC(Lmda))/(6*$A30)),IF(AND($H$3<$A30,$A30<=$H$6,$H$3<bt*$A30,bt*$A30<=$H$6),1/6*(-1+bt)^2*$A30*($A30+2*bt*$A30-3*$H$3)*_xlfn.CSC(Lmda)*_xlfn.SEC(Lmda),IF(AND($H$3<$A30,$A30<=$H$6,$H$6<bt*$A30),(($A30-$H$6)^2*($A30-3*$H$3+2*$H$6)*_xlfn.CSC(Lmda)*_xlfn.SEC(Lmda))/(6*$A30),0))))) -> 0 | AB30: =-Ey*ec*IF(bt*$A30<=$H$5,0,IF(AND($A30<=$H$5,$H$5<bt*$A30,bt*$A30<=$H$8),((bt*$A30-$H$5)*((-2+bt)*$A30+$H$5)*(-$H$2+$H$5)*_xlfn.CSC(2*Lmda))/$A30,IF(AND($A30<=$H$5,$H$8<bt*$A30),(($H$2-$H$5)*($H$5-$H$8)*(-2*$A30+$H$5+$H$8)*_xlfn.CSC(2*Lmda))/$A30,IF(AND($H$5<$A30,$A30<=$H$8,$H$5<bt*$A30,bt*$A30<=$H$8),-((-1+bt)^2)*$A30*($H$2-$H$5)*_xlfn.CSC(2*Lmda),IF(AND($H$5<$A30,$A30<=$H$8,$H$8<bt*$A30),-((($H$2-$H$5)*($A30-$H$8)^2*_xlfn.CSC(2*Lmda))/$A30),0))))) -> 0 | AC30: =Ey*ec*IF(bt*$A30<=$H$6,0,IF(AND($A30<=$H$6,$H$6<bt*$A30,bt*$A30<=$H$7),((bt*$A30-$H$6)*((-2+bt)*$A30+$H$6)*(-$H$3+$H$6)*_xlfn.CSC(2*Lmda))/$A30,IF(AND($A30<=$H$6,$H$7<bt*$A30),(($H$3-$H$6)*($H$6-$H$7)*(-2*$A30+$H$6+$H$7)*_xlfn.CSC(2*Lmda))/$A30,IF(AND($H$6<$A30,$A30<=$H$7,$H$6<bt*$A30,bt*$A30<=$H$7),-((-1+bt)^2)*$A30*($H$3-$H$6)*_xlfn.CSC(2*Lmda),IF(AND($H$6<$A30,$A30<=$H$7,$H$7<bt*$A30),-((($H$3-$H$6)*($A30-$H$7)^2*_xlfn.CSC(2*Lmda))/$A30),0))))) -> 0 | AD30: =-Ey*ec*IF(bt*$A30<=$H$8,0,IF(AND($A30<=$H$8,$H$8<bt*$A30,bt*$A30<=$H$11),-(((bt*$A30-$H$8)*(bt*(-3+2*bt)*$A30^2+(-3+2*bt)*$A30*$H$8+2*$H$8^2-3*$H$11*((-2+bt)*$A30+$H$8))*_xlfn.CSC(Lmda)*_xlfn.SEC(Lmda))/(6*$A30)),IF(AND($A30<=$H$8,$H$11<bt*$A30),-(((3*$A30-$H$11-2*$H$8)*($H$11-$H$8)^2*_xlfn.CSC(Lmda)*_xlfn.SEC(Lmda))/(6*$A30)),IF(AND($H$8<$A30,$A30<=$H$11,$H$8<bt*$A30,bt*$A30<=$H$11),-(1/6)*(-1+bt)^2*$A30*($A30+2*bt*$A30-3*$H$11)*_xlfn.CSC(Lmda)*_xlfn.SEC(Lmda),IF(AND($H$8<$A30,$A30<=$H$11,$H$11<bt*$A30),-((($A30-$H$11)^3*_xlfn.CSC(Lmda)*_xlfn.SEC(Lmda))/(6*$A30)),0))))) -> 0 | AE30: =Ey*ec*IF(bt*$A30<=$H$7,0,IF(AND($A30<=$H$7,$H$7<bt*$A30,bt*$A30<=$H$10),((bt*$A30^2*((3-2*bt)*bt*$A30+3*(-2+bt)*$H$10)+6*$A30*$H$10*$H$7-3*($A30+$H$10)*$H$7^2+2*$H$7^3)*_xlfn.CSC(Lmda)*_xlfn.SEC(Lmda))/(6*$A30),IF(AND($A30<=$H$7,$H$10<bt*$A30),-(((3*$A30-$H$10-2*$H$7)*(-$H$10+$H$7)^2*_xlfn.CSC(Lmda)*_xlfn.SEC(Lmda))/(6*$A30)),IF(AND($H$7<$A30,$A30<=$H$10,$H$7<bt*$A30,bt*$A30<=$H$10),-(1/6)*(-1+bt)^2*$A30*($A30+2*bt*$A30-3*$H$10)*_xlfn.CSC(Lmda)*_xlfn.SEC(Lmda),IF(AND($H$7<$A30,$A30<=$H$10,$H$10<bt*$A30),-((($A30-$H$10)^3*_xlfn.CSC(Lmda)*_xlfn.SEC(Lmda))/(6*$A30)),0))))) -> 0 | AF30: =Ey*ec*IF($A30<=$H$2,0,IF(AND(bc*$A30<=$H$2,$H$2<$A30,$A30<=$H$5),(($A30-$H$2)^3*_xlfn.CSC(Lmda)*_xlfn.SEC(Lmda))/(6*$A30),IF(AND(bc*$A30<=$H$2,$H$5<$A30),((3*$A30-$H$2-2*$H$5)*($H$2-$H$5)^2*_xlfn.CSC(Lmda)*_xlfn.SEC(Lmda))/(6*$A30),IF(AND($H$2<bc*$A30,bc*$A30<=$H$5,$H$2<$A30,$A30<=$H$5),1/6*(-1+bc)^2*$A30*($A30+2*bc*$A30-3*$H$2)*_xlfn.CSC(Lmda)*_xlfn.SEC(Lmda),IF(AND($H$2<bc*$A30,bc*$A30<=$H$5,$H$5<$A30),((bc*$A30-$H$5)*(bc*(-3+2*bc)*$A30^2+(-3+2*bc)*$A30*$H$5+2*$H$5^2-3*$H$2*((-2+bc)*$A30+$H$5))*_xlfn.CSC(Lmda)*_xlfn.SEC(Lmda))/(6*$A30),0))))) -> 0 | AG30: =-Ey*ec*IF($A30<=$H$3,0,IF(AND(bc*$A30<=$H$3,$H$3<$A30,$A30<=$H$6),(($A30-$H$3)^3*_xlfn.CSC(Lmda)*_xlfn.SEC(Lmda))/(6*$A30),IF(AND(bc*$A30<=$H$3,$H$6<$A30),((3*$A30-$H$3-2*$H$6)*($H$3-$H$6)^2*_xlfn.CSC(Lmda)*_xlfn.SEC(Lmda))/(6*$A30),IF(AND($H$3<bc*$A30,bc*$A30<=$H$6,$H$3<$A30,$A30<=$H$6),1/6*(-1+bc)^2*$A30*($A30+2*bc*$A30-3*$H$3)*_xlfn.CSC(Lmda)*_xlfn.SEC(Lmda),IF(AND($H$3<bc*$A30,bc*$A30<=$H$6,$H$6<$A30),((bc*$A30-$H$6)*(bc*(-3+2*bc)*$A30^2+(-3+2*bc)*$A30*$H$6+2*$H$6^2-3*$H$3*((-2+bc)*$A30+$H$6))*_xlfn.CSC(Lmda)*_xlfn.SEC(Lmda))/(6*$A30),0))))) -> 0 | AH30: =Ey*ec*IF($A30<=$H$5,0,IF(AND(bc*$A30<=$H$5,$H$5<$A30,$A30<=$H$8),(($A30-$H$5)^2*(-$H$2+$H$5)*_xlfn.CSC(2*Lmda))/$A30,IF(AND(bc*$A30<=$H$5,$H$8<$A30),-((($H$2-$H$5)*($H$5-$H$8)*(-2*$A30+$H$5+$H$8)*_xlfn.CSC(2*Lmda))/$A30),IF(AND($H$5<bc*$A30,bc*$A30<=$H$8,$H$5<$A30,$A30<=$H$8),-((-1+bc)^2)*$A30*($H$2-$H$5)*_xlfn.CSC(2*Lmda),IF(AND($H$5<bc*$A30,bc*$A30<=$H$8,$H$8<$A30),-((($H$2-$H$5)*(bc*$A30-$H$8)*((-2+bc)*$A30+$H$8)*_xlfn.CSC(2*Lmda))/$A30),0))))) -> 0 | AI30: =-Ey*ec*IF($A30<=$H$6,0,IF(AND(bc*$A30<=$H$6,$H$6<$A30,$A30<=$H$7),(($A30-$H$6)^2*(-$H$3+$H$6)*_xlfn.CSC(2*Lmda))/$A30,IF(AND(bc*$A30<=$H$6,$H$7<$A30),-((($H$3-$H$6)*($H$6-$H$7)*(-2*$A30+$H$6+$H$7)*_xlfn.CSC(2*Lmda))/$A30),IF(AND($H$6<bc*$A30,bc*$A30<=$H$7,$H$6<$A30,$A30<=$H$7),-((-1+bc)^2)*$A30*($H$3-$H$6)*_xlfn.CSC(2*Lmda),IF(AND($H$6<bc*$A30,bc*$A30<=$H$7,$H$7<$A30),-((($H$3-$H$6)*(bc*$A30-$H$7)*((-2+bc)*$A30+$H$7)*_xlfn.CSC(2*Lmda))/$A30),0))))) -> 0 | AJ30: =Ey*ec*IF($A30<=$H$8,0,IF(AND(bc*$A30<=$H$8,$H$8<$A30,$A30<=$H$11),-((($A30-$H$8)^2*($A30-3*$H$11+2*$H$8)*_xlfn.CSC(Lmda)*_xlfn.SEC(Lmda))/(6*$A30)),IF(AND(bc*$A30<=$H$8,$H$11<$A30),((3*$A30-$H$11-2*$H$8)*($H$11-$H$8)^2*_xlfn.CSC(Lmda)*_xlfn.SEC(Lmda))/(6*$A30),IF(AND($H$8<bc*$A30,bc*$A30<=$H$11,$H$8<$A30,$A30<=$H$11),-(1/6)*(-1+bc)^2*$A30*($A30+2*bc*$A30-3*$H$11)*_xlfn.CSC(Lmda)*_xlfn.SEC(Lmda),IF(AND($H$8<bc*$A30,bc*$A30<=$H$11,$H$11<$A30),-(((-bc*$A30+$H$11)^2*((-3+2*bc)*$A30+$H$11)*_xlfn.CSC(Lmda)*_xlfn.SEC(Lmda))/(6*$A30)),0))))) -> 0 | AK30: =-Ey*ec*IF($A30<=$H$7,0,IF(AND(bc*$A30<=$H$7,$H$7<$A30,$A30<=$H$10),-((($A30-$H$7)^2*($A30-3*$H$10+2*$H$7)*_xlfn.CSC(Lmda)*_xlfn.SEC(Lmda))/(6*$A30)),IF(AND(bc*$A30<=$H$7,$H$10<$A30),((3*$A30-$H$10-2*$H$7)*(-$H$10+$H$7)^2*_xlfn.CSC(Lmda)*_xlfn.SEC(Lmda))/(6*$A30),IF(AND($H$7<bc*$A30,bc*$A30<=$H$10,$H$7<$A30,$A30<=$H$10),-(1/6)*(-1+bc)^2*$A30*($A30+2*bc*$A30-3*$H$10)*_xlfn.CSC(Lmda)*_xlfn.SEC(Lmda),IF(AND($H$7<bc*$A30,bc*$A30<=$H$10,$H$10<$A30),-(((-bc*$A30+$H$10)^2*((-3+2*bc)*$A30+$H$10)*_xlfn.CSC(Lmda)*_xlfn.SEC(Lmda))/(6*$A30)),0))))) -> 0 | AL30: =fys*IF(bcs*$A30<=$N$2,0,IF(AND($N$2<bcs*$A30,bcs*$A30<$N$4),(-bcs*$A30+$N$2)^2*_xlfn.CSC(2*Lmda),IF(AND($N$4<=bcs*$A30,bcs*$A30<=$N$7),-(2*bcs*$A30-$N$2-$N$4)*($N$2-$N$4)*_xlfn.CSC(2*Lmda),IF(AND($N$7<bcs*$A30,bcs*$A30<=$N$9),_xlfn.CSC(2*Lmda)*(-(bcs^2)*$A30^2+2*bcs*$A30*$N$9-($N$9^2)+bf*d*SIN(2*Lmda)),bf*d)))) -> 0 | AM30: =-fys*IF(bcs*$A30<=$N$3,0,IF(AND($N$3<bcs*$A30,bcs*$A30<$N$5),(-bcs*$A30+$N$3)^2*_xlfn.CSC(2*Lmda),IF(AND($N$5<=bcs*$A30,bcs*$A30<=$N$6),-(2*bcs*$A30-$N$3-$N$5)*($N$3-$N$5)*_xlfn.CSC(2*Lmda),IF(AND($N$6<bcs*$A30,bcs*$A30<=$N$8),(d-2*tf)*(bf-2*thss)-(bcs^2)*$A30^2*_xlfn.CSC(2*Lmda)-($N$8^2)*_xlfn.CSC(2*Lmda)+bcs*$A30*$N$8*_xlfn.CSC(Lmda)*_xlfn.SEC(Lmda),(bf-2*thss)*(d-2*tf))))) -> 0 | AN30: =-fys*IF(bts*$A30<=$N$2,bf*d,IF(AND($N$2<bts*$A30,bts*$A30<$N$4),_xlfn.CSC(2*Lmda)*(-(bts^2)*$A30^2+2*bts*$A30*$N$2-($N$2^2)+bf*d*SIN(2*Lmda)),IF(AND($N$4<=bts*$A30,bts*$A30<=$N$7),_xlfn.CSC(2*Lmda)*(2*bts*$A30*$N$2-($N$2^2)-2*bts*$A30*$N$4+$N$4^2+bf*d*SIN(2*Lmda)),IF(AND($N$7<bts*$A30,bts*$A30<=$N$9),(-bts*$A30+$N$9)^2*_xlfn.CSC(2*Lmda),0)))) -> -33891000 | AO30: =fys*IF(bts*$A30<=$N$3,(bf-2*thss)*(d-2*tf),IF(AND($N$3<bts*$A30,bts*$A30<$N$5),(d-2*tf)*(bf-2*thss)-(bts^2)*$A30^2*_xlfn.CSC(2*Lmda)-($N$3^2)*_xlfn.CSC(2*Lmda)+bts*$A30*$N$3*_xlfn.CSC(Lmda)*_xlfn.SEC(Lmda),IF(AND($N$5<=bts*$A30,bts*$A30<=$N$6),(d-2*tf)*(bf-2*thss)-($N$3^2)*_xlfn.CSC(2*Lmda)+$N$5^2*_xlfn.CSC(2*Lmda)+bts*$A30*$N$3*_xlfn.CSC(Lmda)*_xlfn.SEC(Lmda)-bts*$A30*$N$5*_xlfn.CSC(Lmda)*_xlfn.SEC(Lmda),IF(AND($N$6<bts*$A30,bts*$A30<=$N$8),(-bts*$A30+$N$8)^2*_xlfn.CSC(2*Lmda),0)))) -> 31963400 | AP30: =-Ey*ec*IF(bts*$A30<=$N$2,0,IF(AND($A30<=$N$2,$N$2<bts*$A30,bts*$A30<=$N$4),((-bts*$A30+$N$2)^2*((-3+2*bts)*$A30+$N$2)*_xlfn.CSC(Lmda)*_xlfn.SEC(Lmda))/(6*$A30),IF(AND($A30<=$N$2,$N$4<bts*$A30),-(((3*$A30-$N$2-2*$N$4)*($N$2-$N$4)^2*_xlfn.CSC(Lmda)*_xlfn.SEC(Lmda))/(6*$A30)),IF(AND($N$2<$A30,$A30<=$N$4,$N$2<bts*$A30,bts*$A30<=$N$4),1/6*(-1+bts)^2*$A30*($A30+2*bts*$A30-3*$N$2)*_xlfn.CSC(Lmda)*_xlfn.SEC(Lmda),IF(AND($N$2<$A30,$A30<=$N$4,$N$4<bts*$A30),(($A30-$N$4)^2*($A30-3*$N$2+2*$N$4)*_xlfn.CSC(Lmda)*_xlfn.SEC(Lmda))/(6*$A30),0))))) -> 0 | AQ30: =Ey*ec*IF(bts*$A30<=$N$3,0,IF(AND($A30<=$N$3,$N$3<bts*$A30,bts*$A30<=$N$5),((-bts*$A30+$N$3)^2*((-3+2*bts)*$A30+$N$3)*_xlfn.CSC(Lmda)*_xlfn.SEC(Lmda))/(6*$A30),IF(AND($A30<=$N$3,$N$5<bts*$A30),-(((3*$A30-$N$3-2*$N$5)*($N$3-$N$5)^2*_xlfn.CSC(Lmda)*_xlfn.SEC(Lmda))/(6*$A30)),IF(AND($N$3<$A30,$A30<=$N$5,$N$3<bts*$A30,bts*$A30<=$N$5),1/6*(-1+bts)^2*$A30*($A30+2*bts*$A30-3*$N$3)*_xlfn.CSC(Lmda)*_xlfn.SEC(Lmda),IF(AND($N$3<$A30,$A30<=$N$5,$N$5<bts*$A30),(($A30-$N$5)^2*($A30-3*$N$3+2*$N$5)*_xlfn.CSC(Lmda)*_xlfn.SEC(Lmda))/(6*$A30),0))))) -> 0 | AR30: =-Ey*ec*IF(bts*$A30<=$N$4,0,IF(AND($A30<=$N$4,$N$4<bts*$A30,bts*$A30<=$N$7),((bts*$A30-$N$4)*((-2+bts)*$A30+$N$4)*(-$N$2+$N$4)*_xlfn.CSC(2*Lmda))/$A30,IF(AND($A30<=$N$4,$N$7<bts*$A30),(($N$2-$N$4)*($N$4-$N$7)*(-2*$A30+$N$4+$N$7)*_xlfn.CSC(2*Lmda))/$A30,IF(AND($N$4<$A30,$A30<=$N$7,$N$4<bts*$A30,bts*$A30<=$N$7),-((-1+bts)^2)*$A30*($N$2-$N$4)*_xlfn.CSC(2*Lmda),IF(AND($N$4<$A30,$A30<=$N$7,$N$7<bts*$A30),-((($N$2-$N$4)*($A30-$N$7)^2*_xlfn.CSC(2*Lmda))/$A30),0))))) -> 0 | AS30: =Ey*ec*IF(bts*$A30<=$N$5,0,IF(AND($A30<=$N$5,$N$5<bts*$A30,bts*$A30<=$N$6),((bts*$A30-$N$5)*((-2+bts)*$A30+$N$5)*(-$N$3+$N$5)*_xlfn.CSC(2*Lmda))/$A30,IF(AND($A30<=$N$5,$N$6<bts*$A30),(($N$3-$N$5)*($N$5-$N$6)*(-2*$A30+$N$5+$N$6)*_xlfn.CSC(2*Lmda))/$A30,IF(AND($N$5<$A30,$A30<=$N$6,$N$5<bts*$A30,bts*$A30<=$N$6),-((-1+bts)^2)*$A30*($N$3-$N$5)*_xlfn.CSC(2*Lmda),IF(AND($N$5<$A30,$A30<=$N$6,$N$6<bts*$A30),-((($N$3-$N$5)*($A30-$N$6)^2*_xlfn.CSC(2*Lmda))/$A30),0))))) -> 0 | AT30: =-Ey*ec*IF(bts*$A30<=$N$7,0,IF(AND($A30<=$N$7,$N$7<bts*$A30,bts*$A30<=$N$9),((2*$N$7^3+6*$A30*$N$7*$N$9-3*$N$7^2*($A30+$N$9)+bts*$A30^2*((3-2*bts)*bts*$A30+3*(-2+bts)*$N$9))*_xlfn.CSC(Lmda)*_xlfn.SEC(Lmda))/(6*$A30),IF(AND($A30<=$N$7,$N$9<bts*$A30),-(((3*$A30-2*$N$7-$N$9)*($N$7-$N$9)^2*_xlfn.CSC(Lmda)*_xlfn.SEC(Lmda))/(6*$A30)),IF(AND($N$7<$A30,$A30<=$N$9,$N$7<bts*$A30,bts*$A30<=$N$9),-(1/6)*(-1+bts)^2*$A30*($A30+2*bts*$A30-3*$N$9)*_xlfn.CSC(Lmda)*_xlfn.SEC(Lmda),IF(AND($N$7<$A30,$A30<=$N$9,$N$9<bts*$A30),-((($A30-$N$9)^3*_xlfn.CSC(Lmda)*_xlfn.SEC(Lmda))/(6*$A30)),0))))) -> 0 | AU30: =Ey*ec*IF(bts*$A30<=$N$6,0,IF(AND($A30<=$N$6,$N$6<bts*$A30,bts*$A30<=$N$8),((2*$N$6^3+6*$A30*$N$6*$N$8-3*$N$6^2*($A30+$N$8)+bts*$A30^2*((3-2*bts)*bts*$A30+3*(-2+bts)*$N$8))*_xlfn.CSC(Lmda)*_xlfn.SEC(Lmda))/(6*$A30),IF(AND($A30<=$N$6,$N$8<bts*$A30),-(((3*$A30-2*$N$6-$N$8)*($N$6-$N$8)^2*_xlfn.CSC(Lmda)*_xlfn.SEC(Lmda))/(6*$A30)),IF(AND($N$6<$A30,$A30<=$N$8,$N$6<bts*$A30,bts*$A30<=$N$8),-(1/6)*(-1+bts)^2*$A30*($A30+2*bts*$A30-3*$N$8)*_xlfn.CSC(Lmda)*_xlfn.SEC(Lmda),IF(AND($N$6<$A30,$A30<=$N$8,$N$8<bts*$A30),-((($A30-$N$8)^3*_xlfn.CSC(Lmda)*_xlfn.SEC(Lmda))/(6*$A30)),0))))) -> 0 | AV30: =Ey*ec*IF($A30<=$N$2,0,IF(AND(bcs*$A30<=$N$2,$N$2<$A30,$A30<=$N$4),(($A30-$N$2)^3*_xlfn.CSC(Lmda)*_xlfn.SEC(Lmda))/(6*$A30),IF(AND(bcs*$A30<=$N$2,$N$4<$A30),((3*$A30-$N$2-2*$N$4)*($N$2-$N$4)^2*_xlfn.CSC(Lmda)*_xlfn.SEC(Lmda))/(6*$A30),IF(AND($N$2<bcs*$A30,bcs*$A30<=$N$4,$N$2<$A30,$A30<=$N$4),1/6*(-1+bcs)^2*$A30*($A30+2*bcs*$A30-3*$N$2)*_xlfn.CSC(Lmda)*_xlfn.SEC(Lmda),IF(AND($N$2<bcs*$A30,bcs*$A30<=$N$4,$N$4<$A30),((bcs*$A30-$N$4)*(bcs*(-3+2*bcs)*$A30^2+(-3+2*bcs)*$A30*$N$4+2*$N$4^2-3*$N$2*((-2+bcs)*$A30+$N$4))*_xlfn.CSC(Lmda)*_xlfn.SEC(Lmda))/(6*$A30),0))))) -> 0 | AW30: =-Ey*ec*IF($A30<=$N$3,0,IF(AND(bcs*$A30<=$N$3,$N$3<$A30,$A30<=$N$5),(($A30-$N$3)^3*_xlfn.CSC(Lmda)*_xlfn.SEC(Lmda))/(6*$A30),IF(AND(bcs*$A30<=$N$3,$N$5<$A30),((3*$A30-$N$3-2*$N$5)*($N$3-$N$5)^2*_xlfn.CSC(Lmda)*_xlfn.SEC(Lmda))/(6*$A30),IF(AND($N$3<bcs*$A30,bcs*$A30<=$N$5,$N$3<$A30,$A30<=$N$5),1/6*(-1+bcs)^2*$A30*($A30+2*bcs*$A30-3*$N$3)*_xlfn.CSC(Lmda)*_xlfn.SEC(Lmda),IF(AND($N$3<bcs*$A30,bcs*$A30<=$N$5,$N$5<$A30),((bcs*$A30-$N$5)*(bcs*(-3+2*bcs)*$A30^2+(-3+2*bcs)*$A30*$N$5+2*$N$5^2-3*$N$3*((-2+bcs)*$A30+$N$5))*_xlfn.CSC(Lmda)*_xlfn.SEC(Lmda))/(6*$A30),0))))) -> 0 | AX30: =Ey*ec*IF($A30<=$N$4,0,IF(AND(bcs*$A30<=$N$4,$N$4<$A30,$A30<=$N$7),(($A30-$N$4)^2*(-$N$2+$N$4)*_xlfn.CSC(2*Lmda))/$A30,IF(AND(bcs*$A30<=$N$4,$N$7<$A30),-((($N$2-$N$4)*($N$4-$N$7)*(-2*$A30+$N$4+$N$7)*_xlfn.CSC(2*Lmda))/$A30),IF(AND($N$4<bcs*$A30,bcs*$A30<=$N$7,$N$4<$A30,$A30<=$N$7),-((-1+bcs)^2)*$A30*($N$2-$N$4)*_xlfn.CSC(2*Lmda),IF(AND($N$4<bcs*$A30,bcs*$A30<=$N$7,$N$7<$A30),-((($N$2-$N$4)*(bcs*$A30-$N$7)*((-2+bcs)*$A30+$N$7)*_xlfn.CSC(2*Lmda))/$A30),0))))) -> 0 | AY30: =-Ey*ec*IF($A30<=$N$5,0,IF(AND(bcs*$A30<=$N$5,$N$5<$A30,$A30<=$N$6),(($A30-$N$5)^2*(-$N$3+$N$5)*_xlfn.CSC(2*Lmda))/$A30,IF(AND(bcs*$A30<=$N$5,$N$6<$A30),-((($N$3-$N$5)*($N$5-$N$6)*(-2*$A30+$N$5+$N$6)*_xlfn.CSC(2*Lmda))/$A30),IF(AND($N$5<bcs*$A30,bcs*$A30<=$N$6,$N$5<$A30,$A30<=$N$6),-((-1+bcs)^2)*$A30*($N$3-$N$5)*_xlfn.CSC(2*Lmda),IF(AND($N$5<bcs*$A30,bcs*$A30<=$N$6,$N$6<$A30),-((($N$3-$N$5)*(bcs*$A30-$N$6)*((-2+bcs)*$A30+$N$6)*_xlfn.CSC(2*Lmda))/$A30),0))))) -> 0 | AZ30: =Ey*ec*IF($A30<=$N$7,0,IF(AND(bcs*$A30<=$N$7,$N$7<$A30,$A30<=$N$9),-((($A30-$N$7)^2*($A30+2*$N$7-3*$N$9)*_xlfn.CSC(Lmda)*_xlfn.SEC(Lmda))/(6*$A30)),IF(AND(bcs*$A30<=$N$7,$N$9<$A30),((3*$A30-2*$N$7-$N$9)*($N$7-$N$9)^2*_xlfn.CSC(Lmda)*_xlfn.SEC(Lmda))/(6*$A30),IF(AND($N$7<bcs*$A30,bcs*$A30<=$N$9,$N$7<$A30,$A30<=$N$9),-(1/6)*(-1+bcs)^2*$A30*($A30+2*bcs*$A30-3*$N$9)*_xlfn.CSC(Lmda)*_xlfn.SEC(Lmda),IF(AND($N$7<bcs*$A30,bcs*$A30<=$N$9,$N$9<$A30),-(((-bcs*$A30+$N$9)^2*((-3+2*bcs)*$A30+$N$9)*_xlfn.CSC(Lmda)*_xlfn.SEC(Lmda))/(6*$A30)),0))))) -> 0 | BA30: =-Ey*ec*IF($A30<=$N$6,0,IF(AND(bcs*$A30<=$N$6,$N$6<$A30,$A30<=$N$8),-((($A30-$N$6)^2*($A30+2*$N$6-3*$N$8)*_xlfn.CSC(Lmda)*_xlfn.SEC(Lmda))/(6*$A30)),IF(AND(bcs*$A30<=$N$6,$N$8<$A30),((3*$A30-2*$N$6-$N$8)*($N$6-$N$8)^2*_xlfn.CSC(Lmda)*_xlfn.SEC(Lmda))/(6*$A30),IF(AND($N$6<bcs*$A30,bcs*$A30<=$N$8,$N$6<$A30,$A30<=$N$8),-(1/6)*(-1+bcs)^2*$A30*($A30+2*bcs*$A30-3*$N$8)*_xlfn.CSC(Lmda)*_xlfn.SEC(Lmda),IF(AND($N$6<bcs*$A30,bcs*$A30<=$N$8,$N$8<$A30),-(((-bcs*$A30+$N$8)^2*((-3+2*bcs)*$A30+$N$8)*_xlfn.CSC(Lmda)*_xlfn.SEC(Lmda))/(6*$A30)),0))))) -> 0 | BB30: =fys*IF(bcs*$A30<=$N$11,0,IF(AND($N$11<bcs*$A30,bcs*$A30<$N$12),(-bcs*$A30+$N$11)^2*_xlfn.CSC(2*Lmda),IF(AND($N$12<=bcs*$A30,bcs*$A30<=$N$13),-(2*bcs*$A30-$N$11-$N$12)*($N$11-$N$12)*_xlfn.CSC(2*Lmda),IF(AND($N$13<bcs*$A30,bcs*$A30<=$N$14),(d-2*tf)*tw-(bcs^2)*$A30^2*_xlfn.CSC(2*Lmda)-($N$14^2)*_xlfn.CSC(2*Lmda)+bcs*$A30*$N$14*_xlfn.CSC(Lmda)*_xlfn.SEC(Lmda),tw*(d-2*tf))))) -> 0 | BC30: =-fys*IF(bts*$A30<=$N$11,tw*(d-2*tf),IF(AND($N$11<bts*$A30,bts*$A30<$N$12),(d-2*tf)*tw-(bts^2)*$A30^2*_xlfn.CSC(2*Lmda)-($N$11^2)*_xlfn.CSC(2*Lmda)+bts*$A30*$N$11*_xlfn.CSC(Lmda)*_xlfn.SEC(Lmda),IF(AND($N$12<=bts*$A30,bts*$A30<=$N$13),_xlfn.CSC(2*Lmda)*(2*bts*$A30*$N$11-($N$11^2)-2*bts*$A30*$N$12+$N$12^2+(d-2*tf)*tw*SIN(2*Lmda)),IF(AND($N$13<bts*$A30,bts*$A30<=$N$14),(-bts*$A30+$N$14)^2*_xlfn.CSC(2*Lmda),0)))) -> -1436330 | BD30: =-Ey*ec*IF(bts*$A30<=$N$11,0,IF(AND($A30<=$N$11,$N$11<bts*$A30,bts*$A30<=$N$12),((-bts*$A30+$N$11)^2*((-3+2*bts)*$A30+$N$11)*_xlfn.CSC(Lmda)*_xlfn.SEC(Lmda))/(6*$A30),IF(AND($A30<=$N$11,$N$12<bts*$A30),-(((3*$A30-$N$11-2*$N$12)*($N$11-$N$12)^2*_xlfn.CSC(Lmda)*_xlfn.SEC(Lmda))/(6*$A30)),IF(AND($N$11<$A30,$A30<=$N$12,$N$11<bts*$A30,bts*$A30<=$N$12),1/6*(-1+bts)^2*$A30*($A30+2*bts*$A30-3*$N$11)*_xlfn.CSC(Lmda)*_xlfn.SEC(Lmda),IF(AND($N$11<$A30,$A30<=$N$12,$N$12<bts*$A30),(($A30-$N$12)^2*($A30-3*$N$11+2*$N$12)*_xlfn.CSC(Lmda)*_xlfn.SEC(Lmda))/(6*$A30),0))))) -> 0 | BE30: =-Ey*ec*IF(bts*$A30<=$N$12,0,IF(AND($A30<=$N$12,$N$12<bts*$A30,bts*$A30<=$N$13),((bts*$A30-$N$12)*((-2+bts)*$A30+$N$12)*(-$N$11+$N$12)*_xlfn.CSC(2*Lmda))/$A30,IF(AND($A30<=$N$12,$N$13<bts*$A30),-(_xlfn.CSC(2*Lmda)*($N$11 - $N$12)*($N$12 - $N$13)*(6*$A30*$N$12 - (4*$N$12^2) + 6*$A30*$N$13-4*$N$12*$N$13-(4*$N$13^2) + 3*$H$12*(-2*$A30 + $N$12 + $N$13)))/(6*$A30),IF(AND($N$12<$A30,$A30<=$N$13,$N$12<bts*$A30,bts*$A30<=$N$13),-((-1+bts)^2)*$A30*($N$11-$N$12)*_xlfn.CSC(2*Lmda),IF(AND($N$12<$A30,$A30<=$N$13,$N$13<bts*$A30),-((($N$11-$N$12)*($A30-$N$13)^2*_xlfn.CSC(2*Lmda))/$A30),0))))) -> 0 | BF30: =-Ey*ec*IF(bts*$A30<=$N$13,0,IF(AND($A30<=$N$13,$N$13<bts*$A30,bts*$A30<=$N$14),((2*$N$13^3+6*$A30*$N$13*$N$14-3*$N$13^2*($A30+$N$14)+bts*$A30^2*((3-2*bts)*bts*$A30+3*(-2+bts)*$N$14))*_xlfn.CSC(Lmda)*_xlfn.SEC(Lmda))/(6*$A30),IF(AND($A30<=$N$13,$N$14<bts*$A30),-(((3*$A30-2*$N$13-$N$14)*($N$13-$N$14)^2*_xlfn.CSC(Lmda)*_xlfn.SEC(Lmda))/(6*$A30)),IF(AND($N$13<$A30,$A30<=$N$14,$N$13<bts*$A30,bts*$A30<=$N$14),-(1/6)*(-1+bts)^2*$A30*($A30+2*bts*$A30-3*$N$14)*_xlfn.CSC(Lmda)*_xlfn.SEC(Lmda),IF(AND($N$13<$A30,$A30<=$N$14,$N$14<bts*$A30),-((($A30-$N$14)^3*_xlfn.CSC(Lmda)*_xlfn.SEC(Lmda))/(6*$A30)),0))))) -> 0 | BG30: =Ey*ec*IF($A30<=$N$11,0,IF(AND(bcs*$A30<=$N$11,$N$11<$A30,$A30<=$N$12),(($A30-$N$11)^3*_xlfn.CSC(Lmda)*_xlfn.SEC(Lmda))/(6*$A30),IF(AND(bcs*$A30<=$N$11,$N$12<$A30),((3*$A30-$N$11-2*$N$12)*($N$11-$N$12)^2*_xlfn.CSC(Lmda)*_xlfn.SEC(Lmda))/(6*$A30),IF(AND($N$11<bcs*$A30,bcs*$A30<=$N$12,$N$11<$A30,$A30<=$N$12),1/6*(-1+bcs)^2*$A30*($A30+2*bcs*$A30-3*$N$11)*_xlfn.CSC(Lmda)*_xlfn.SEC(Lmda),IF(AND($N$11<bcs*$A30,bcs*$A30<=$N$12,$N$12<$A30),((bcs*$A30-$N$12)*(bcs*(-3+2*bcs)*$A30^2+(-3+2*bcs)*$A30*$N$12+2*$N$12^2-3*$N$11*((-2+bcs)*$A30+$N$12))*_xlfn.CSC(Lmda)*_xlfn.SEC(Lmda))/(6*$A30),0))))) -> 0 | BH30: =Ey*ec*IF($A30<=$N$12,0,IF(AND(bcs*$A30<=$N$12,$N$12<$A30,$A30<=$N$13),(($A30-$N$12)^2*(-$N$11+$N$12)*_xlfn.CSC(2*Lmda))/$A30,IF(AND(bcs*$A30<=$N$12,$N$13<$A30),-((($N$11-$N$12)*($N$12-$N$13)*(-2*$A30+$N$12+$N$13)*_xlfn.CSC(2*Lmda))/$A30),IF(AND($N$12<bcs*$A30,bcs*$A30<=$N$13,$N$12<$A30,$A30<=$N$13),-((-1+bcs)^2)*$A30*($N$11-$N$12)*_xlfn.CSC(2*Lmda),IF(AND($N$12<bcs*$A30,bcs*$A30<=$N$13,$N$13<$A30),-((($N$11-$N$12)*(bcs*$A30-$N$13)*((-2+bcs)*$A30+$N$13)*_xlfn.CSC(2*Lmda))/$A30),0))))) -> 0 | BI30: =Ey*ec*IF($A30<=$N$13,0,IF(AND(bcs*$A30<=$N$13,$N$13<$A30,$A30<=$N$14),-((($A30-$N$13)^2*($A30+2*$N$13-3*$N$14)*_xlfn.CSC(Lmda)*_xlfn.SEC(Lmda))/(6*$A30)),IF(AND(bcs*$A30<=$N$13,$N$14<$A30),((3*$A30-2*$N$13-$N$14)*($N$13-$N$14)^2*_xlfn.CSC(Lmda)*_xlfn.SEC(Lmda))/(6*$A30),IF(AND($N$13<bcs*$A30,bcs*$A30<=$N$14,$N$13<$A30,$A30<=$N$14),-(1/6)*(-1+bcs)^2*$A30*($A30+2*bcs*$A30-3*$N$14)*_xlfn.CSC(Lmda)*_xlfn.SEC(Lmda),IF(AND($N$13<bcs*$A30,bcs*$A30<=$N$14,$N$14<$A30),-(((-bcs*$A30+$N$14)^2*((-3+2*bcs)*$A30+$N$14)*_xlfn.CSC(Lmda)*_xlfn.SEC(Lmda))/(6*$A30)),0))))) -> 0 | BJ30: =f1c*IF(beta*$A30<$H$4,-(1/6)*beta^2*$A30^2*(4*beta*$A30-3*$H$12)*_xlfn.CSC(2*Lmda),IF(AND($H$4<=beta*$A30,beta*$A30<=$H$9),1/6*$H$4*(-6*beta^2*$A30^2+$H$12*(6*beta*$A30-3*$H$4)+2*$H$4^2)*_xlfn.CSC(2*Lmda),IF(AND($H$9<beta*$A30,beta*$A30<=$H$12),1/6*(4*beta*$A30-$H$12)*(-beta*$A30+$H$12)^2*_xlfn.CSC(2*Lmda),0))) -> 5.862401352e-18 | BK30: =fy*IF(bc*$A30<=$H$2,0,IF(AND($H$2<bc*$A30,bc*$A30<$H$5),-(1/6)*(-bc*$A30+$H$2)^2*(4*bc*$A30-3*$H$12+2*$H$2)*_xlfn.CSC(2*Lmda),IF(AND($H$5<=bc*$A30,bc*$A30<=$H$8),-(1/6)*($H$2-$H$5)*(-6*bc^2*$A30^2+2*$H$2^2+$H$12*(6*bc*$A30-3*$H$5)+2*$H$5^2+$H$2*(-3*$H$12+2*$H$5))*_xlfn.CSC(2*Lmda),IF(AND($H$8<bc*$A30,bc*$A30<=$H$11),1/6*(-bc*$A30+$H$11)^2*(4*bc*$A30+2*$H$11-3*$H$12)*_xlfn.CSC(2*Lmda),0)))) -> 0 | BL30: =-fy*IF(bc*$A30<=$H$3,0,IF(AND($H$3<bc*$A30,bc*$A30<$H$6),-(1/6)*(-bc*$A30+$H$3)^2*(4*bc*$A30-3*$H$12+2*$H$3)*_xlfn.CSC(2*Lmda),IF(AND($H$6<=bc*$A30,bc*$A30<=$H$7),-(1/6)*($H$3-$H$6)*($H$12*(6*bc*$A30-3*$H$3-3*$H$6)+2*(-3*bc^2*$A30^2+$H$3^2+$H$3*$H$6+$H$6^2))*_xlfn.CSC(2*Lmda),IF(AND($H$7<bc*$A30,bc*$A30<=$H$10),1/6*(-bc*$A30+$H$10)^2*(4*bc*$A30+2*$H$10-3*$H$12)*_xlfn.CSC(2*Lmda),0)))) -> 0 | BM30: =fy*IF(bt*$A30<=$H$2,0,IF(AND($H$2<bt*$A30,bt*$A30<$H$5),-(1/6)*(-bt*$A30+$H$2)^2*(4*bt*$A30-3*$H$12+2*$H$2)*_xlfn.CSC(2*Lmda),IF(AND($H$5<=bt*$A30,bt*$A30<=$H$8),-(1/6)*($H$2-$H$5)*(-6*bt^2*$A30^2+2*$H$2^2+$H$12*(6*bt*$A30-3*$H$5)+2*$H$5^2+$H$2*(-3*$H$12+2*$H$5))*_xlfn.CSC(2*Lmda),IF(AND($H$8<bt*$A30,bt*$A30<=$H$11),1/6*(-bt*$A30+$H$11)^2*(4*bt*$A30+2*$H$11-3*$H$12)*_xlfn.CSC(2*Lmda),0)))) -> 0 | BN30: =-fy*IF(bt*$A30<=$H$3,0,IF(AND($H$3<bt*$A30,bt*$A30<$H$6),-(1/6)*(-bt*$A30+$H$3)^2*(4*bt*$A30-3*$H$12+2*$H$3)*_xlfn.CSC(2*Lmda),IF(AND($H$6<=bt*$A30,bt*$A30<=$H$7),-(1/6)*($H$3-$H$6)*($H$12*(6*bt*$A30-3*$H$3-3*$H$6)+2*(-3*bt^2*$A30^2+$H$3^2+$H$3*$H$6+$H$6^2))*_xlfn.CSC(2*Lmda),IF(AND($H$7<bt*$A30,bt*$A30<=$H$10),1/6*(-bt*$A30+$H$10)^2*(4*bt*$A30+2*$H$10-3*$H$12)*_xlfn.CSC(2*Lmda),0)))) -> 0 | BO30: =-Ey*ec*IF(bt*$A30<=$H$2,0,IF(AND($A30<=$H$2,$H$2<bt*$A30,bt*$A30<=$H$5),-(((-bt*$A30+$H$2)^2*($A30*(bt*(-4+3*bt)*$A30+(3-2*bt)*$H$12)+(2*(-1+bt)*$A30-$H$12)*$H$2+$H$2^2)*_xlfn.CSC(2*Lmda))/(6*$A30)),IF(AND($A30<=$H$2,$H$5<bt*$A30),-((($H$2-$H$5)^2*($H$2^2+$H$12*(3*$A30-2*$H$5)-$H$2*(2*$A30+$H$12-2*$H$5)+$H$5*(-4*$A30+3*$H$5))*_xlfn.CSC(2*Lmda))/(6*$A30)),IF(AND($H$2<$A30,$A30<=$H$5,$H$2<bt*$A30,bt*$A30<=$H$5),-(1/6)*(-1+bt)^2*$A30*($A30*((1+2*bt+3*bt^2)*$A30-(1+2*bt)*$H$12)+(-2*($A30+2*bt*$A30)+3*$H$12)*$H$2)*_xlfn.CSC(2*Lmda),IF(AND($H$2<$A30,$A30<=$H$5,$H$5<bt*$A30),-((($A30-$H$5)^2*($A30^2+2*$A30*$H$5+3*$H$5^2-$H$12*($A30+2*$H$5)+$H$2*(3*$H$12-2*($A30+2*$H$5)))*_xlfn.CSC(2*Lmda))/(6*$A30)),0))))) -> 0 | BP30: =Ey*ec*IF(bt*$A30<=$H$3,0,IF(AND($A30<=$H$3,$H$3<bt*$A30,bt*$A30<=$H$6),-(((-bt*$A30+$H$3)^2*(bt*(-4+3*bt)*$A30^2+2*(-1+bt)*$A30*$H$3+$H$3^2-$H$12*((-3+2*bt)*$A30+$H$3))*_xlfn.CSC(2*Lmda))/(6*$A30)),IF(AND($A30<=$H$3,$H$6<bt*$A30),(($H$3-$H$6)^2*(-($H$3^2)+2*$H$3*($A30-$H$6)+(4*$A30-3*$H$6)*$H$6+$H$12*(-3*$A30+$H$3+2*$H$6))*_xlfn.CSC(2*Lmda))/(6*$A30),IF(AND($H$3<$A30,$A30<=$H$6,$H$3<bt*$A30,bt*$A30<=$H$6),-(1/6)*(-1+bt)^2*$A30*(-$H$12*($A30+2*bt*$A30-3*$H$3)+$A30*((1+2*bt+3*bt^2)*$A30-2*(1+2*bt)*$H$3))*_xlfn.CSC(2*Lmda),IF(AND($H$3<$A30,$A30<=$H$6,$H$6<bt*$A30),-((($A30-$H$6)^2*($A30^2+2*$A30*$H$6+3*$H$6^2-2*$H$3*($A30+2*$H$6)-$H$12*($A30-3*$H$3+2*$H$6))*_xlfn.CSC(2*Lmda))/(6*$A30)),0))))) -> 0 | BQ30: =-Ey*ec*IF(bt*$A30<=$H$5,0,IF(AND($A30<=$H$5,$H$5<bt*$A30,bt*$A30<=$H$8),-(((bt*$A30-$H$5)*(-$H$2+$H$5)*(2*bt*(-3+2*bt)*$A30^2+2*(-3+2*bt)*$A30*$H$5+4*$H$5^2-3*$H$12*((-2+bt)*$A30+$H$5))*_xlfn.CSC(2*Lmda))/(6*$A30)),IF(AND($A30<=$H$5,$H$8<bt*$A30),(($H$2-$H$5)*($H$5-$H$8)*(6*$A30*$H$5-4*$H$5^2+6*$A30*$H$8-4*$H$5*$H$8-4*$H$8^2+3*$H$12*(-2*$A30+$H$5+$H$8))*_xlfn.CSC(2*Lmda))/(6*$A30),IF(AND($H$5<$A30,$A30<=$H$8,$H$5<bt*$A30,bt*$A30<=$H$8),1/6*(-1+bt)^2*$A30*(2*$A30+4*bt*$A30-3*$H$12)*($H$2-$H$5)*_xlfn.CSC(2*Lmda),IF(AND($H$5<$A30,$A30<=$H$8,$H$8<bt*$A30),(($H$2-$H$5)*($A30-$H$8)^2*(2*$A30-3*$H$12+4*$H$8)*_xlfn.CSC(2*Lmda))/(6*$A30),0))))) -> 0 | BR30: =Ey*ec*IF(bt*$A30<=$H$6,0,IF(AND($A30<=$H$6,$H$6<bt*$A30,bt*$A30<=$H$7),-(((bt*$A30-$H$6)*(-$H$3+$H$6)*(2*bt*(-3+2*bt)*$A30^2+2*(-3+2*bt)*$A30*$H$6+4*$H$6^2-3*$H$12*((-2+bt)*$A30+$H$6))*_xlfn.CSC(2*Lmda))/(6*$A30)),IF(AND($A30<=$H$6,$H$7<bt*$A30),(($H$3-$H$6)*($H$6-$H$7)*(6*$A30*$H$6-4*$H$6^2+6*$A30*$H$7-4*$H$6*$H$7-4*$H$7^2+3*$H$12*(-2*$A30+$H$6+$H$7))*_xlfn.CSC(2*Lmda))/(6*$A30),IF(AND($H$6<$A30,$A30<=$H$7,$H$6<bt*$A30,bt*$A30<=$H$7),1/6*(-1+bt)^2*$A30*(2*$A30+4*bt*$A30-3*$H$12)*($H$3-$H$6)*_xlfn.CSC(2*Lmda),IF(AND($H$6<$A30,$A30<=$H$7,$H$7<bt*$A30),(($H$3-$H$6)*($A30-$H$7)^2*(2*$A30-3*$H$12+4*$H$7)*_xlfn.CSC(2*Lmda))/(6*$A30),0))))) -> 0 | BS30: =-Ey*ec*IF(bt*$A30<=$H$8,0,IF(AND($A30<=$H$8,$H$8<bt*$A30,bt*$A30<=$H$11),((-4*bt^3*$A30^4+3*bt^4*$A30^4+4*$A30*$H$8^3-3*$H$8^4+$H$12*((3-2*bt)*bt^2*$A30^3-3*$A30*$H$8^2+2*$H$8^3)-$H$11*(bt*$A30-$H$8)*(2*bt*(-3+2*bt)*$A30^2+2*(-3+2*bt)*$A30*$H$8+4*$H$8^2-3*$H$12*((-2+bt)*$A30+$H$8)))*_xlfn.CSC(2*Lmda))/(6*$A30),IF(AND($A30<=$H$8,$H$11<bt*$A30),-((($H$11-$H$8)^2*($H$11^2+$H$12*(3*$A30-2*$H$8)-$H$11*(2*$A30+$H$12-2*$H$8)+$H$8*(-4*$A30+3*$H$8))*_xlfn.CSC(2*Lmda))/(6*$A30)),IF(AND($H$8<$A30,$A30<=$H$11,$H$8<bt*$A30,bt*$A30<=$H$11),1/6*(-1+bt)^2*$A30*($H$11*(-2*($A30+2*bt*$A30)+3*$H$12)+$A30*((1+2*bt+3*bt^2)*$A30-(1+2*bt)*$H$12))*_xlfn.CSC(2*Lmda),IF(AND($H$8<$A30,$A30<=$H$11,$H$11<bt*$A30),(($A30-$H$11)^3*($A30+$H$11-$H$12)*_xlfn.CSC(2*Lmda))/(6*$A30),0))))) -> 0 | BT30: =Ey*ec*IF(bt*$A30<=$H$7,0,IF(AND($A30<=$H$7,$H$7<bt*$A30,bt*$A30<=$H$10),((bt*$A30-$H$7)*(bt*$A30^2*(bt*(-4+3*bt)*$A30+(6-4*bt)*$H$10)+$A30*(bt*(-4+3*bt)*$A30+(6-4*bt)*$H$10)*$H$7+((-4+3*bt)*$A30-4*$H$10)*$H$7^2+3*$H$7^3+$H$12*($A30*((3-2*bt)*bt*$A30+3*(-2+bt)*$H$10)+((3-2*bt)*$A30+3*$H$10)*$H$7-2*$H$7^2))*_xlfn.CSC(2*Lmda))/(6*$A30),IF(AND($A30<=$H$7,$H$10<bt*$A30),((-$H$10+$H$7)^2*((2*$A30-$H$10)*$H$10+(4*$A30-2*$H$10)*$H$7-3*$H$7^2+$H$12*(-3*$A30+$H$10+2*$H$7))*_xlfn.CSC(2*Lmda))/(6*$A30),IF(AND($H$7<$A30,$A30<=$H$10,$H$7<bt*$A30,bt*$A30<=$H$10),1/6*(-1+bt)^2*$A30*($A30*((1+2*bt+3*bt^2)*$A30-2*(1+2*bt)*$H$10)-($A30+2*bt*$A30-3*$H$10)*$H$12)*_xlfn.CSC(2*Lmda),IF(AND($H$7<$A30,$A30<=$H$10,$H$10<bt*$A30),(($A30-$H$10)^3*($A30+$H$10-$H$12)*_xlfn.CSC(2*Lmda))/(6*$A30),0))))) -> 0 | BU30: =Ey*ec*IF($A30<=$H$2,0,IF(AND(bc*$A30<=$H$2,$H$2<$A30,$A30<=$H$5),-((($A30-$H$2)^3*($A30-$H$12+$H$2)*_xlfn.CSC(2*Lmda))/(6*$A30)),IF(AND(bc*$A30<=$H$2,$H$5<$A30),(($H$2-$H$5)^2*($H$2^2+$H$12*(3*$A30-2*$H$5)-$H$2*(2*$A30+$H$12-2*$H$5)+$H$5*(-4*$A30+3*$H$5))*_xlfn.CSC(2*Lmda))/(6*$A30),IF(AND($H$2<bc*$A30,bc*$A30<=$H$5,$H$2<$A30,$A30<=$H$5),-(1/6)*(-1+bc)^2*$A30*($A30*((1+2*bc+3*bc^2)*$A30-(1+2*bc)*$H$12)+(-2*($A30+2*bc*$A30)+3*$H$12)*$H$2)*_xlfn.CSC(2*Lmda),IF(AND($H$2<bc*$A30,bc*$A30<=$H$5,$H$5<$A30),((4*bc^3*$A30^4-3*bc^4*$A30^4-4*$A30*$H$5^3+3*$H$5^4+$H$12*(bc^2*(-3+2*bc)*$A30^3+3*$A30*$H$5^2-2*$H$5^3)+$H$2*(bc*$A30-$H$5)*(2*bc*(-3+2*bc)*$A30^2+2*(-3+2*bc)*$A30*$H$5+4*$H$5^2-3*$H$12*((-2+bc)*$A30+$H$5)))*_xlfn.CSC(2*Lmda))/(6*$A30),0))))) -> 0 | BV30: =-Ey*ec*IF($A30<=$H$3,0,IF(AND(bc*$A30<=$H$3,$H$3<$A30,$A30<=$H$6),-((($A30-$H$3)^3*($A30-$H$12+$H$3)*_xlfn.CSC(2*Lmda))/(6*$A30)),IF(AND(bc*$A30<=$H$3,$H$6<$A30),(($H$3-$H$6)^2*($H$3^2+$H$12*(3*$A30-$H$3-2*$H$6)-2*$H$3*($A30-$H$6)+$H$6*(-4*$A30+3*$H$6))*_xlfn.CSC(2*Lmda))/(6*$A30),IF(AND($H$3<bc*$A30,bc*$A30<=$H$6,$H$3<$A30,$A30<=$H$6),-(1/6)*(-1+bc)^2*$A30*(-$H$12*($A30+2*bc*$A30-3*$H$3)+$A30*((1+2*bc+3*bc^2)*$A30-2*(1+2*bc)*$H$3))*_xlfn.CSC(2*Lmda),IF(AND($H$3<bc*$A30,bc*$A30<=$H$6,$H$6<$A30),((4*bc^3*$A30^4-3*bc^4*$A30^4-4*$A30*$H$6^3+3*$H$6^4+$H$3*(2*bc^2*(-3+2*bc)*$A30^3+6*$A30*$H$6^2-4*$H$6^3)+$H$12*(bc*$A30-$H$6)*(bc*(-3+2*bc)*$A30^2+(-3+2*bc)*$A30*$H$6+2*$H$6^2-3*$H$3*((-2+bc)*$A30+$H$6)))*_xlfn.CSC(2*Lmda))/(6*$A30),0))))) -> 0 | BW30: =Ey*ec*IF($A30<=$H$5,0,IF(AND(bc*$A30<=$H$5,$H$5<$A30,$A30<=$H$8),-((($A30-$H$5)^2*(-$H$2+$H$5)*(2*$A30-3*$H$12+4*$H$5)*_xlfn.CSC(2*Lmda))/(6*$A30)),IF(AND(bc*$A30<=$H$5,$H$8<$A30),(($H$2-$H$5)*($H$5-$H$8)*(4*$H$5^2+$H$12*(6*$A30-3*$H$5-3*$H$8)-6*$A30*$H$8+4*$H$8^2+$H$5*(-6*$A30+4*$H$8))*_xlfn.CSC(2*Lmda))/(6*$A30),IF(AND($H$5<bc*$A30,bc*$A30<=$H$8,$H$5<$A30,$A30<=$H$8),1/6*(-1+bc)^2*$A30*(2*$A30+4*bc*$A30-3*$H$12)*($H$2-$H$5)*_xlfn.CSC(2*Lmda),IF(AND($H$5<bc*$A30,bc*$A30<=$H$8,$H$8<$A30),(($H$2-$H$5)*(bc*$A30-$H$8)*(2*bc*(-3+2*bc)*$A30^2+2*(-3+2*bc)*$A30*$H$8+4*$H$8^2-3*$H$12*((-2+bc)*$A30+$H$8))*_xlfn.CSC(2*Lmda))/(6*$A30),0))))) -> 0 | BX30: =-Ey*ec*IF($A30<=$H$6,0,IF(AND(bc*$A30<=$H$6,$H$6<$A30,$A30<=$H$7),-((($A30-$H$6)^2*(-$H$3+$H$6)*(2*$A30-3*$H$12+4*$H$6)*_xlfn.CSC(2*Lmda))/(6*$A30)),IF(AND(bc*$A30<=$H$6,$H$7<$A30),(($H$3-$H$6)*($H$6-$H$7)*(4*$H$6^2+$H$12*(6*$A30-3*$H$6-3*$H$7)-6*$A30*$H$7+4*$H$7^2+$H$6*(-6*$A30+4*$H$7))*_xlfn.CSC(2*Lmda))/(6*$A30),IF(AND($H$6<bc*$A30,bc*$A30<=$H$7,$H$6<$A30,$A30<=$H$7),1/6*(-1+bc)^2*$A30*(2*$A30+4*bc*$A30-3*$H$12)*($H$3-$H$6)*_xlfn.CSC(2*Lmda),IF(AND($H$6<bc*$A30,bc*$A30<=$H$7,$A30>$H$7),(($H$3-$H$6)*(bc*$A30-$H$7)*(2*bc*(-3+2*bc)*$A30^2+2*(-3+2*bc)*$A30*$H$7+4*$H$7^2-3*$H$12*((-2+bc)*$A30+$H$7))*_xlfn.CSC(2*Lmda))/(6*$A30),0))))) -> 0 | BY30: =Ey*ec*IF($A30<=$H$8,0,IF(AND(bc*$A30<=$H$8,$H$8<$A30,$A30<=$H$11),(($A30-$H$8)^2*($A30^2+2*$A30*$H$8+3*$H$8^2-$H$12*($A30+2*$H$8)+$H$11*(3*$H$12-2*($A30+2*$H$8)))*_xlfn.CSC(2*Lmda))/(6*$A30),IF(AND(bc*$A30<=$H$8,$H$11<$A30),(($H$11-$H$8)^2*($H$11^2+$H$12*(3*$A30-2*$H$8)-$H$11*(2*$A30+$H$12-2*$H$8)+$H$8*(-4*$A30+3*$H$8))*_xlfn.CSC(2*Lmda))/(6*$A30),IF(AND($H$8<bc*$A30,bc*$A30<=$H$11,$H$8<$A30,$A30<=$H$11),1/6*(-1+bc)^2*$A30*($H$11*(-2*($A30+2*bc*$A30)+3*$H$12)+$A30*((1+2*bc+3*bc^2)*$A30-(1+2*bc)*$H$12))*_xlfn.CSC(2*Lmda),IF(AND($H$8<bc*$A30,bc*$A30<=$H$11,$H$11<$A30),((-bc*$A30+$H$11)^2*($H$11^2+$H$11*(2*(-1+bc)*$A30-$H$12)+$A30*(bc*(-4+3*bc)*$A30+(3-2*bc)*$H$12))*_xlfn.CSC(2*Lmda))/(6*$A30),0))))) -> 0 | BZ30: =-Ey*ec*IF($A30<=$H$7,0,IF(AND(bc*$A30<=$H$7,$H$7<$A30,$A30<=$H$10),(($A30-$H$7)^2*($A30*($A30-2*$H$10)+2*($A30-2*$H$10)*$H$7+3*$H$7^2-$H$12*($A30-3*$H$10+2*$H$7))*_xlfn.CSC(2*Lmda))/(6*$A30),IF(AND(bc*$A30<=$H$7,$H$10<$A30),((-$H$10+$H$7)^2*($H$10*(-2*$A30+$H$10)+$H$12*(3*$A30-$H$10-2*$H$7)+(-4*$A30+2*$H$10)*$H$7+3*$H$7^2)*_xlfn.CSC(2*Lmda))/(6*$A30),IF(AND($H$7<bc*$A30,bc*$A30<=$H$10,$H$7<$A30,$A30<=$H$10),1/6*(-1+bc)^2*$A30*($A30*((1+2*bc+3*bc^2)*$A30-2*(1+2*bc)*$H$10)-($A30+2*bc*$A30-3*$H$10)*$H$12)*_xlfn.CSC(2*Lmda),IF(AND($H$7<bc*$A30,bc*$A30<=$H$10,$H$10<$A30),((-bc*$A30+$H$10)^2*(bc*(-4+3*bc)*$A30^2+2*(-1+bc)*$A30*$H$10+$H$10^2-((-3+2*bc)*$A30+$H$10)*$H$12)*_xlfn.CSC(2*Lmda))/(6*$A30),0))))) -> 0 | CA30: =fys*IF(bcs*$A30<=$N$2,0,IF(AND($N$2<bcs*$A30,bcs*$A30<$N$4),-(1/6)*(-bcs*$A30+$N$2)^2*(4*bcs*$A30-3*$H$12+2*$N$2)*_xlfn.CSC(2*Lmda),IF(AND($N$4<=bcs*$A30,bcs*$A30<=$N$7),-(1/6)*($N$2-$N$4)*($H$12*(6*bcs*$A30-3*$N$2-3*$N$4)+2*(-3*bcs^2*$A30^2+$N$2^2+$N$2*$N$4+$N$4^2))*_xlfn.CSC(2*Lmda),IF(AND($N$7<bcs*$A30,bcs*$A30<=$N$9),1/6*(-bcs*$A30+$N$9)^2*(4*bcs*$A30-3*$H$12+2*$N$9)*_xlfn.CSC(2*Lmda),0)))) -> 0 | CB30: =-fys*IF(bcs*$A30<=$N$3,0,IF(AND($N$3<bcs*$A30,bcs*$A30<$N$5),-(1/6)*(-bcs*$A30+$N$3)^2*(4*bcs*$A30-3*$H$12+2*$N$3)*_xlfn.CSC(2*Lmda),IF(AND($N$5<=bcs*$A30,bcs*$A30<=$N$6),-(1/6)*($N$3-$N$5)*($H$12*(6*bcs*$A30-3*$N$3-3*$N$5)+2*(-3*bcs^2*$A30^2+$N$3^2+$N$3*$N$5+$N$5^2))*_xlfn.CSC(2*Lmda),IF(AND($N$6<bcs*$A30,bcs*$A30<=$N$8),1/6*(-bcs*$A30+$N$8)^2*(4*bcs*$A30-3*$H$12+2*$N$8)*_xlfn.CSC(2*Lmda),0)))) -> 0 | CC30: =fys*IF(bts*$A30<=$N$2,0,IF(AND($N$2<bts*$A30,bts*$A30<$N$4),-(1/6)*(-bts*$A30+$N$2)^2*(4*bts*$A30-3*$H$12+2*$N$2)*_xlfn.CSC(2*Lmda),IF(AND($N$4<=bts*$A30,bts*$A30<=$N$7),-(1/6)*($N$2-$N$4)*($H$12*(6*bts*$A30-3*$N$2-3*$N$4)+2*(-3*bts^2*$A30^2+$N$2^2+$N$2*$N$4+$N$4^2))*_xlfn.CSC(2*Lmda),IF(AND($N$7<bts*$A30,bts*$A30<=$N$9),1/6*(-bts*$A30+$N$9)^2*(4*bts*$A30-3*$H$12+2*$N$9)*_xlfn.CSC(2*Lmda),0)))) -> 0 | CD30: =-fys*IF(bts*$A30<=$N$3,0,IF(AND($N$3<bts*$A30,bts*$A30<$N$5),-(1/6)*(-bts*$A30+$N$3)^2*(4*bts*$A30-3*$H$12+2*$N$3)*_xlfn.CSC(2*Lmda),IF(AND($N$5<=bts*$A30,bts*$A30<=$N$6),-(1/6)*($N$3-$N$5)*($H$12*(6*bts*$A30-3*$N$3-3*$N$5)+2*(-3*bts^2*$A30^2+$N$3^2+$N$3*$N$5+$N$5^2))*_xlfn.CSC(2*Lmda),IF(AND($N$6<bts*$A30,bts*$A30<=$N$8),1/6*(-bts*$A30+$N$8)^2*(4*bts*$A30-3*$H$12+2*$N$8)*_xlfn.CSC(2*Lmda),0)))) -> 0 | CE30: =-Ey*ec*IF(bts*$A30<=$N$2,0,IF(AND($A30<=$N$2,$N$2<bts*$A30,bts*$A30<=$N$4),-(((-bts*$A30+$N$2)^2*(bts*(-4+3*bts)*$A30^2+2*(-1+bts)*$A30*$N$2+$N$2^2-$H$12*((-3+2*bts)*$A30+$N$2))*_xlfn.CSC(2*Lmda))/(6*$A30)),IF(AND($A30<=$N$2,$N$4<bts*$A30),(($N$2-$N$4)^2*(-($N$2^2)+2*$N$2*($A30-$N$4)+(4*$A30-3*$N$4)*$N$4+$H$12*(-3*$A30+$N$2+2*$N$4))*_xlfn.CSC(2*Lmda))/(6*$A30),IF(AND($N$2<$A30,$A30<=$N$4,$N$2<bts*$A30,bts*$A30<=$N$4),-(1/6)*(-1+bts)^2*$A30*(-$H$12*($A30+2*bts*$A30-3*$N$2)+$A30*((1+2*bts+3*bts^2)*$A30-2*(1+2*bts)*$N$2))*_xlfn.CSC(2*Lmda),IF(AND($N$2<$A30,$A30<=$N$4,$N$4<bts*$A30),-((($A30-$N$4)^2*($A30^2+2*$A30*$N$4+3*$N$4^2-2*$N$2*($A30+2*$N$4)-$H$12*($A30-3*$N$2+2*$N$4))*_xlfn.CSC(2*Lmda))/(6*$A30)),0))))) -> 0 | CF30: =Ey*ec*IF(bts*$A30<=$N$3,0,IF(AND($A30<=$N$3,$N$3<bts*$A30,bts*$A30<=$N$5),-(((-bts*$A30+$N$3)^2*(bts*(-4+3*bts)*$A30^2+2*(-1+bts)*$A30*$N$3+$N$3^2-$H$12*((-3+2*bts)*$A30+$N$3))*_xlfn.CSC(2*Lmda))/(6*$A30)),IF(AND($A30<=$N$3,$N$5<bts*$A30),(($N$3-$N$5)^2*(-($N$3^2)+2*$N$3*($A30-$N$5)+(4*$A30-3*$N$5)*$N$5+$H$12*(-3*$A30+$N$3+2*$N$5))*_xlfn.CSC(2*Lmda))/(6*$A30),IF(AND($N$3<$A30,$A30<=$N$5,$N$3<bts*$A30,bts*$A30<=$N$5),-(1/6)*(-1+bts)^2*$A30*(-$H$12*($A30+2*bts*$A30-3*$N$3)+$A30*((1+2*bts+3*bts^2)*$A30-2*(1+2*bts)*$N$3))*_xlfn.CSC(2*Lmda),IF(AND($N$3<$A30,$A30<=$N$5,$N$5<bts*$A30),-((($A30-$N$5)^2*($A30^2+2*$A30*$N$5+3*$N$5^2-2*$N$3*($A30+2*$N$5)-$H$12*($A30-3*$N$3+2*$N$5))*_xlfn.CSC(2*Lmda))/(6*$A30)),0))))) -> 0 | CG30: =-Ey*ec*IF(bts*$A30<=$N$4,0,IF(AND($A30<=$N$4,$N$4<bts*$A30,bts*$A30<=$N$7),-(((bts*$A30-$N$4)*(-$N$2+$N$4)*(2*bts*(-3+2*bts)*$A30^2+2*(-3+2*bts)*$A30*$N$4+4*$N$4^2-3*$H$12*((-2+bts)*$A30+$N$4))*_xlfn.CSC(2*Lmda))/(6*$A30)),IF(AND($A30<=$N$4,$N$7<bts*$A30),(($N$2-$N$4)*($N$4-$N$7)*(6*$A30*$N$4-4*$N$4^2+6*$A30*$N$7-4*$N$4*$N$7-4*$N$7^2+3*$H$12*(-2*$A30+$N$4+$N$7))*_xlfn.CSC(2*Lmda))/(6*$A30),IF(AND($N$4<$A30,$A30<=$N$7,$N$4<bts*$A30,bts*$A30<=$N$7),1/6*(-1+bts)^2*$A30*(2*$A30+4*bts*$A30-3*$H$12)*($N$2-$N$4)*_xlfn.CSC(2*Lmda),IF(AND($N$4<$A30,$A30<=$N$7,$N$7<bts*$A30),(($N$2-$N$4)*($A30-$N$7)^2*(2*$A30-3*$H$12+4*$N$7)*_xlfn.CSC(2*Lmda))/(6*$A30),0))))) -> 0 | CH30: =Ey*ec*IF(bts*$A30<=$N$5,0,IF(AND($A30<=$N$5,$N$5<bts*$A30,bts*$A30<=$N$6),-(((bts*$A30-$N$5)*(-$N$3+$N$5)*(2*bts*(-3+2*bts)*$A30^2+2*(-3+2*bts)*$A30*$N$5+4*$N$5^2-3*$H$12*((-2+bts)*$A30+$N$5))*_xlfn.CSC(2*Lmda))/(6*$A30)),IF(AND($A30<=$N$5,$N$6<bts*$A30),(($N$3-$N$5)*($N$5-$N$6)*(6*$A30*$N$5-4*$N$5^2+6*$A30*$N$6-4*$N$5*$N$6-4*$N$6^2+3*$H$12*(-2*$A30+$N$5+$N$6))*_xlfn.CSC(2*Lmda))/(6*$A30),IF(AND($N$5<$A30,$A30<=$N$6,$N$5<bts*$A30,bts*$A30<=$N$6),1/6*(-1+bts)^2*$A30*(2*$A30+4*bts*$A30-3*$H$12)*($N$3-$N$5)*_xlfn.CSC(2*Lmda),IF(AND($N$5<$A30,$A30<=$N$6,$N$6<bts*$A30),(($N$3-$N$5)*($A30-$N$6)^2*(2*$A30-3*$H$12+4*$N$6)*_xlfn.CSC(2*Lmda))/(6*$A30),0))))) -> 0 | CI30: =-Ey*ec*IF(bts*$A30<=$N$7,0,IF(AND($A30<=$N$7,$N$7<bts*$A30,bts*$A30<=$N$9),((bts*$A30-$N$7)*(3*$N$7^3+$N$7^2*((-4+3*bts)*$A30-4*$N$9)+bts*$A30^2*(bts*(-4+3*bts)*$A30+(6-4*bts)*$N$9)+$A30*$N$7*(bts*(-4+3*bts)*$A30+(6-4*bts)*$N$9)+$H$12*(-2*$N$7^2+$N$7*((3-2*bts)*$A30+3*$N$9)+$A30*((3-2*bts)*bts*$A30+3*(-2+bts)*$N$9)))*_xlfn.CSC(2*Lmda))/(6*$A30),IF(AND($A30<=$N$7,$N$9<bts*$A30),(($N$7-$N$9)^2*(-3*$N$7^2+$N$7*(4*$A30-2*$N$9)+(2*$A30-$N$9)*$N$9+$H$12*(-3*$A30+2*$N$7+$N$9))*_xlfn.CSC(2*Lmda))/(6*$A30),IF(AND($N$7<$A30,$A30<=$N$9,$N$7<bts*$A30,bts*$A30<=$N$9),1/6*(-1+bts)^2*$A30*(-$H$12*($A30+2*bts*$A30-3*$N$9)+$A30*((1+2*bts+3*bts^2)*$A30-2*(1+2*bts)*$N$9))*_xlfn.CSC(2*Lmda),IF(AND($N$7<$A30,$A30<=$N$9,$N$9<bts*$A30),(($A30-$N$9)^3*($A30-$H$12+$N$9)*_xlfn.CSC(2*Lmda))/(6*$A30),0))))) -> 0 | CJ30: =Ey*ec*IF(bts*$A30<=$N$6,0,IF(AND($A30<=$N$6,$N$6<bts*$A30,bts*$A30<=$N$8),((bts*$A30-$N$6)*(3*$N$6^3+$N$6^2*((-4+3*bts)*$A30-4*$N$8)+bts*$A30^2*(bts*(-4+3*bts)*$A30+(6-4*bts)*$N$8)+$A30*$N$6*(bts*(-4+3*bts)*$A30+(6-4*bts)*$N$8)+$H$12*(-2*$N$6^2+$N$6*((3-2*bts)*$A30+3*$N$8)+$A30*((3-2*bts)*bts*$A30+3*(-2+bts)*$N$8)))*_xlfn.CSC(2*Lmda))/(6*$A30),IF(AND($A30<=$N$6,$N$8<bts*$A30),(($N$6-$N$8)^2*(-3*$N$6^2+$N$6*(4*$A30-2*$N$8)+(2*$A30-$N$8)*$N$8+$H$12*(-3*$A30+2*$N$6+$N$8))*_xlfn.CSC(2*Lmda))/(6*$A30),IF(AND($N$6<$A30,$A30<=$N$8,$N$6<bts*$A30,bts*$A30<=$N$8),1/6*(-1+bts)^2*$A30*(-$H$12*($A30+2*bts*$A30-3*$N$8)+$A30*((1+2*bts+3*bts^2)*$A30-2*(1+2*bts)*$N$8))*_xlfn.CSC(2*Lmda),IF(AND($N$6<$A30,$A30<=$N$8,$N$8<bts*$A30),(($A30-$N$8)^3*($A30-$H$12+$N$8)*_xlfn.CSC(2*Lmda))/(6*$A30),0))))) -> 0 | CK30: =Ey*ec*IF($A30<=$N$2,0,IF(AND(bcs*$A30<=$N$2,$N$2<$A30,$A30<=$N$4),-((($A30-$N$2)^3*($A30-$H$12+$N$2)*_xlfn.CSC(2*Lmda))/(6*$A30)),IF(AND(bcs*$A30<=$N$2,$N$4<$A30),(($N$2-$N$4)^2*($N$2^2+$H$12*(3*$A30-$N$2-2*$N$4)-2*$N$2*($A30-$N$4)+$N$4*(-4*$A30+3*$N$4))*_xlfn.CSC(2*Lmda))/(6*$A30),IF(AND($N$2<bcs*$A30,bcs*$A30<=$N$4,$N$2<$A30,$A30<=$N$4),-(1/6)*(-1+bcs)^2*$A30*(-$H$12*($A30+2*bcs*$A30-3*$N$2)+$A30*((1+2*bcs+3*bcs^2)*$A30-2*(1+2*bcs)*$N$2))*_xlfn.CSC(2*Lmda),IF(AND($N$2<bcs*$A30,bcs*$A30<=$N$4,$N$4<$A30),((4*bcs^3*$A30^4-3*bcs^4*$A30^4-4*$A30*$N$4^3+3*$N$4^4+$N$2*(2*bcs^2*(-3+2*bcs)*$A30^3+6*$A30*$N$4^2-4*$N$4^3)+$H$12*(bcs*$A30-$N$4)*(bcs*(-3+2*bcs)*$A30^2+(-3+2*bcs)*$A30*$N$4+2*$N$4^2-3*$N$2*((-2+bcs)*$A30+$N$4)))*_xlfn.CSC(2*Lmda))/(6*$A30),0))))) -> 0 | CL30: =-Ey*ec*IF($A30<=$N$3,0,IF(AND(bcs*$A30<=$N$3,$N$3<$A30,$A30<=$N$5),-((($A30-$N$3)^3*($A30-$H$12+$N$3)*_xlfn.CSC(2*Lmda))/(6*$A30)),IF(AND(bcs*$A30<=$N$3,$N$5<$A30),(($N$3-$N$5)^2*($N$3^2+$H$12*(3*$A30-$N$3-2*$N$5)-2*$N$3*($A30-$N$5)+$N$5*(-4*$A30+3*$N$5))*_xlfn.CSC(2*Lmda))/(6*$A30),IF(AND($N$3<bcs*$A30,bcs*$A30<=$N$5,$N$3<$A30,$A30<=$N$5),-(1/6)*(-1+bcs)^2*$A30*(-$H$12*($A30+2*bcs*$A30-3*$N$3)+$A30*((1+2*bcs+3*bcs^2)*$A30-2*(1+2*bcs)*$N$3))*_xlfn.CSC(2*Lmda),IF(AND($N$3<bcs*$A30,bcs*$A30<=$N$5,$N$5<$A30),((4*bcs^3*$A30^4-3*bcs^4*$A30^4-4*$A30*$N$5^3+3*$N$5^4+$N$3*(2*bcs^2*(-3+2*bcs)*$A30^3+6*$A30*$N$5^2-4*$N$5^3)+$H$12*(bcs*$A30-$N$5)*(bcs*(-3+2*bcs)*$A30^2+(-3+2*bcs)*$A30*$N$5+2*$N$5^2-3*$N$3*((-2+bcs)*$A30+$N$5)))*_xlfn.CSC(2*Lmda))/(6*$A30),0))))) -> 0 | CM30: =Ey*ec*IF($A30<=$N$4,0,IF(AND(bcs*$A30<=$N$4,$N$4<$A30,$A30<=$N$7),-((($A30-$N$4)^2*(-$N$2+$N$4)*(2*$A30-3*$H$12+4*$N$4)*_xlfn.CSC(2*Lmda))/(6*$A30)),IF(AND(bcs*$A30<=$N$4,$N$7<$A30),(($N$2-$N$4)*($N$4-$N$7)*(4*$N$4^2+$H$12*(6*$A30-3*$N$4-3*$N$7)-6*$A30*$N$7+4*$N$7^2+$N$4*(-6*$A30+4*$N$7))*_xlfn.CSC(2*Lmda))/(6*$A30),IF(AND($N$4<bcs*$A30,bcs*$A30<=$N$7,$N$4<$A30,$A30<=$N$7),1/6*(-1+bcs)^2*$A30*(2*$A30+4*bcs*$A30-3*$H$12)*($N$2-$N$4)*_xlfn.CSC(2*Lmda),IF(AND($N$4<bcs*$A30,bcs*$A30<=$N$7,$N$7<$A30),(($N$2-$N$4)*(bcs*$A30-$N$7)*(2*bcs*(-3+2*bcs)*$A30^2+2*(-3+2*bcs)*$A30*$N$7+4*$N$7^2-3*$H$12*((-2+bcs)*$A30+$N$7))*_xlfn.CSC(2*Lmda))/(6*$A30),0))))) -> 0 | CN30: =-Ey*ec*IF($A30<=$N$5,0,IF(AND(bcs*$A30<=$N$5,$N$5<$A30,$A30<=$N$6),-((($A30-$N$5)^2*(-$N$3+$N$5)*(2*$A30-3*$H$12+4*$N$5)*_xlfn.CSC(2*Lmda))/(6*$A30)),IF(AND(bcs*$A30<=$N$5,$N$6<$A30),(($N$3-$N$5)*($N$5-$N$6)*(4*$N$5^2+$H$12*(6*$A30-3*$N$5-3*$N$6)-6*$A30*$N$6+4*$N$6^2+$N$5*(-6*$A30+4*$N$6))*_xlfn.CSC(2*Lmda))/(6*$A30),IF(AND($N$5<bcs*$A30,bcs*$A30<=$N$6,$N$5<$A30,$A30<=$N$6),1/6*(-1+bcs)^2*$A30*(2*$A30+4*bcs*$A30-3*$H$12)*($N$3-$N$5)*_xlfn.CSC(2*Lmda),IF(AND($N$5<bcs*$A30,bcs*$A30<=$N$6,$A30>$N$6),(($N$3-$N$5)*(bcs*$A30-$N$6)*(2*bcs*(-3+2*bcs)*$A30^2+2*(-3+2*bcs)*$A30*$N$6+4*$N$6^2-3*$H$12*((-2+bcs)*$A30+$N$6))*_xlfn.CSC(2*Lmda))/(6*$A30),0))))) -> 0 | CO30: =Ey*ec*IF($A30<=$N$7,0,IF(AND(bcs*$A30<=$N$7,$N$7<$A30,$A30<=$N$9),(($A30-$N$7)^2*(3*$N$7^2-$H$12*($A30+2*$N$7-3*$N$9)+$A30*($A30-2*$N$9)+2*$N$7*($A30-2*$N$9))*_xlfn.CSC(2*Lmda))/(6*$A30),IF(AND(bcs*$A30<=$N$7,$N$9<$A30),(($N$7-$N$9)^2*(3*$N$7^2+$H$12*(3*$A30-2*$N$7-$N$9)+$N$9*(-2*$A30+$N$9)+$N$7*(-4*$A30+2*$N$9))*_xlfn.CSC(2*Lmda))/(6*$A30),IF(AND($N$7<bcs*$A30,bcs*$A30<=$N$9,$N$7<$A30,$A30<=$N$9),1/6*(-1+bcs)^2*$A30*(-$H$12*($A30+2*bcs*$A30-3*$N$9)+$A30*((1+2*bcs+3*bcs^2)*$A30-2*(1+2*bcs)*$N$9))*_xlfn.CSC(2*Lmda),IF(AND($N$7<bcs*$A30,bcs*$A30<=$N$9,$N$9<$A30),((-bcs*$A30+$N$9)^2*(bcs*(-4+3*bcs)*$A30^2+2*(-1+bcs)*$A30*$N$9+$N$9^2-$H$12*((-3+2*bcs)*$A30+$N$9))*_xlfn.CSC(2*Lmda))/(6*$A30),0))))) -> 0 | CP30: =-Ey*ec*IF($A30<=$N$6,0,IF(AND(bcs*$A30<=$N$6,$N$6<$A30,$A30<=$N$8),(($A30-$N$6)^2*(3*$N$6^2-$H$12*($A30+2*$N$6-3*$N$8)+$A30*($A30-2*$N$8)+2*$N$6*($A30-2*$N$8))*_xlfn.CSC(2*Lmda))/(6*$A30),IF(AND(bcs*$A30<=$N$6,$N$8<$A30),(($N$6-$N$8)^2*(3*$N$6^2+$H$12*(3*$A30-2*$N$6-$N$8)+$N$8*(-2*$A30+$N$8)+$N$6*(-4*$A30+2*$N$8))*_xlfn.CSC(2*Lmda))/(6*$A30),IF(AND($N$6<bcs*$A30,bcs*$A30<=$N$8,$N$6<$A30,$A30<=$N$8),1/6*(-1+bcs)^2*$A30*(-$H$12*($A30+2*bcs*$A30-3*$N$8)+$A30*((1+2*bcs+3*bcs^2)*$A30-2*(1+2*bcs)*$N$8))*_xlfn.CSC(2*Lmda),IF(AND($N$6<bcs*$A30,bcs*$A30<=$N$8,$N$8<$A30),((-bcs*$A30+$N$8)^2*(bcs*(-4+3*bcs)*$A30^2+2*(-1+bcs)*$A30*$N$8+$N$8^2-$H$12*((-3+2*bcs)*$A30+$N$8))*_xlfn.CSC(2*Lmda))/(6*$A30),0))))) -> 0 | CQ30: =fys*IF(bcs*$A30<=$N$11,0,IF(AND($N$11<bcs*$A30,bcs*$A30<$N$12),-(1/6)*(-bcs*$A30+$N$11)^2*(4*bcs*$A30-3*$H$12+2*$N$11)*_xlfn.CSC(2*Lmda),IF(AND($N$12<=bcs*$A30,bcs*$A30<=$N$13),-(1/6)*($N$11-$N$12)*($H$12*(6*bcs*$A30-3*$N$11-3*$N$12)+2*(-3*bcs^2*$A30^2+$N$11^2+$N$11*$N$12+$N$12^2))*_xlfn.CSC(2*Lmda),IF(AND($N$13<bcs*$A30,bcs*$A30<=$N$14),1/6*(-bcs*$A30+$N$14)^2*(4*bcs*$A30-3*$H$12+2*$N$14)*_xlfn.CSC(2*Lmda),0)))) -> 0 | CR30: =fys*IF(bts*$A30<=$N$11,0,IF(AND($N$11<bts*$A30,bts*$A30<$N$12),-(1/6)*(-bts*$A30+$N$11)^2*(4*bts*$A30-3*$H$12+2*$N$11)*_xlfn.CSC(2*Lmda),IF(AND($N$12<=bts*$A30,bts*$A30<=$N$13),-(1/6)*($N$11-$N$12)*($H$12*(6*bts*$A30-3*$N$11-3*$N$12)+2*(-3*bts^2*$A30^2+$N$11^2+$N$11*$N$12+$N$12^2))*_xlfn.CSC(2*Lmda),IF(AND($N$13<bts*$A30,bts*$A30<=$N$14),1/6*(-bts*$A30+$N$14)^2*(4*bts*$A30-3*$H$12+2*$N$14)*_xlfn.CSC(2*Lmda),0)))) -> 0 | CS30: =-Ey*ec*IF(bts*$A30<=$N$11,0,IF(AND($A30<=$N$11,$N$11<bts*$A30,bts*$A30<=$N$12),-(((-bts*$A30+$N$11)^2*(bts*(-4+3*bts)*$A30^2+2*(-1+bts)*$A30*$N$11+$N$11^2-$H$12*((-3+2*bts)*$A30+$N$11))*_xlfn.CSC(2*Lmda))/(6*$A30)),IF(AND($A30<=$N$11,$N$12<bts*$A30),(($N$11-$N$12)^2*(-($N$11^2)+2*$N$11*($A30-$N$12)+(4*$A30-3*$N$12)*$N$12+$H$12*(-3*$A30+$N$11+2*$N$12))*_xlfn.CSC(2*Lmda))/(6*$A30),IF(AND($N$11<$A30,$A30<=$N$12,$N$11<bts*$A30,bts*$A30<=$N$12),-(1/6)*(-1+bts)^2*$A30*(-$H$12*($A30+2*bts*$A30-3*$N$11)+$A30*((1+2*bts+3*bts^2)*$A30-2*(1+2*bts)*$N$11))*_xlfn.CSC(2*Lmda),IF(AND($N$11<$A30,$A30<=$N$12,$N$12<bts*$A30),-((($A30-$N$12)^2*($A30^2+2*$A30*$N$12+3*$N$12^2-2*$N$11*($A30+2*$N$12)-$H$12*($A30-3*$N$11+2*$N$12))*_xlfn.CSC(2*Lmda))/(6*$A30)),0))))) -> 0 | CT30: =-Ey*ec*IF(bts*$A30<=$N$12,0,IF(AND($A30<=$N$12,$N$12<bts*$A30,bts*$A30<=$N$13),-(((bts*$A30-$N$12)*(-$N$11+$N$12)*(2*bts*(-3+2*bts)*$A30^2+2*(-3+2*bts)*$A30*$N$12+4*$N$12^2-3*$H$12*((-2+bts)*$A30+$N$12))*_xlfn.CSC(2*Lmda))/(6*$A30)),IF(AND($A30<=$N$12,$N$13<bts*$A30),(($N$11-$N$12)*($N$12-$N$13)*(6*$A30*$N$12-4*$N$12^2+6*$A30*$N$13-4*$N$12*$N$13-4*$N$13^2+3*$H$12*(-2*$A30+$N$12+$N$13))*_xlfn.CSC(2*Lmda))/(6*$A30),IF(AND($N$12<$A30,$A30<=$N$13,$N$12<bts*$A30,bts*$A30<=$N$13),1/6*(-1+bts)^2*$A30*(2*$A30+4*bts*$A30-3*$H$12)*($N$11-$N$12)*_xlfn.CSC(2*Lmda),IF(AND($N$12<$A30,$A30<=$N$13,$N$13<bts*$A30),(($N$11-$N$12)*($A30-$N$13)^2*(2*$A30-3*$H$12+4*$N$13)*_xlfn.CSC(2*Lmda))/(6*$A30),0))))) -> 0 | CU30: =-Ey*ec*IF(bts*$A30<=$N$13,0,IF(AND($A30<=$N$13,$N$13<bts*$A30,bts*$A30<=$N$14),((bts*$A30-$N$13)*(3*$N$13^3+$N$13^2*((-4+3*bts)*$A30-4*$N$14)+bts*$A30^2*(bts*(-4+3*bts)*$A30+(6-4*bts)*$N$14)+$A30*$N$13*(bts*(-4+3*bts)*$A30+(6-4*bts)*$N$14)+$H$12*(-2*$N$13^2+$N$13*((3-2*bts)*$A30+3*$N$14)+$A30*((3-2*bts)*bts*$A30+3*(-2+bts)*$N$14)))*_xlfn.CSC(2*Lmda))/(6*$A30),IF(AND($A30<=$N$13,$N$14<bts*$A30),(($N$13-$N$14)^2*(-3*$N$13^2+$N$13*(4*$A30-2*$N$14)+(2*$A30-$N$14)*$N$14+$H$12*(-3*$A30+2*$N$13+$N$14))*_xlfn.CSC(2*Lmda))/(6*$A30),IF(AND($N$13<$A30,$A30<=$N$14,$N$13<bts*$A30,bts*$A30<=$N$14),1/6*(-1+bts)^2*$A30*(-$H$12*($A30+2*bts*$A30-3*$N$14)+$A30*((1+2*bts+3*bts^2)*$A30-2*(1+2*bts)*$N$14))*_xlfn.CSC(2*Lmda),IF(AND($N$13<$A30,$A30<=$N$14,$N$14<bts*$A30),(($A30-$N$14)^3*($A30-$H$12+$N$14)*_xlfn.CSC(2*Lmda))/(6*$A30),0))))) -> 0 | CV30: =Ey*ec*IF($A30<=$N$11,0,IF(AND(bcs*$A30<=$N$11,$N$11<$A30,$A30<=$N$12),-((($A30-$N$11)^3*($A30-$H$12+$N$11)*_xlfn.CSC(2*Lmda))/(6*$A30)),IF(AND(bcs*$A30<=$N$11,$N$12<$A30),(($N$11-$N$12)^2*($N$11^2+$H$12*(3*$A30-$N$11-2*$N$12)-2*$N$11*($A30-$N$12)+$N$12*(-4*$A30+3*$N$12))*_xlfn.CSC(2*Lmda))/(6*$A30),IF(AND($N$11<bcs*$A30,bcs*$A30<=$N$12,$N$11<$A30,$A30<=$N$12),-(1/6)*(-1+bcs)^2*$A30*(-$H$12*($A30+2*bcs*$A30-3*$N$11)+$A30*((1+2*bcs+3*bcs^2)*$A30-2*(1+2*bcs)*$N$11))*_xlfn.CSC(2*Lmda),IF(AND($N$11<bcs*$A30,bcs*$A30<=$N$12,$N$12<$A30),((4*bcs^3*$A30^4-3*bcs^4*$A30^4-4*$A30*$N$12^3+3*$N$12^4+$N$11*(2*bcs^2*(-3+2*bcs)*$A30^3+6*$A30*$N$12^2-4*$N$12^3)+$H$12*(bcs*$A30-$N$12)*(bcs*(-3+2*bcs)*$A30^2+(-3+2*bcs)*$A30*$N$12+2*$N$12^2-3*$N$11*((-2+bcs)*$A30+$N$12)))*_xlfn.CSC(2*Lmda))/(6*$A30),0))))) -> 0 | CW30: =Ey*ec*IF($A30<=$N$12,0,IF(AND(bcs*$A30<=$N$12,$N$12<$A30,$A30<=$N$13),-((($A30-$N$12)^2*(-$N$11+$N$12)*(2*$A30-3*$H$12+4*$N$12)*_xlfn.CSC(2*Lmda))/(6*$A30)),IF(AND(bcs*$A30<=$N$12,$N$13<$A30),(($N$11-$N$12)*($N$12-$N$13)*(4*$N$12^2+$H$12*(6*$A30-3*$N$12-3*$N$13)-6*$A30*$N$13+4*$N$13^2+$N$12*(-6*$A30+4*$N$13))*_xlfn.CSC(2*Lmda))/(6*$A30),IF(AND($N$12<bcs*$A30,bcs*$A30<=$N$13,$N$12<$A30,$A30<=$N$13),1/6*(-1+bcs)^2*$A30*(2*$A30+4*bcs*$A30-3*$H$12)*($N$11-$N$12)*_xlfn.CSC(2*Lmda),IF(AND($N$12<bcs*$A30,bcs*$A30<=$N$13,$N$13<$A30),(($N$11-$N$12)*(bcs*$A30-$N$13)*(2*bcs*(-3+2*bcs)*$A30^2+2*(-3+2*bcs)*$A30*$N$13+4*$N$13^2-3*$H$12*((-2+bcs)*$A30+$N$13))*_xlfn.CSC(2*Lmda))/(6*$A30),0))))) -> 0 | CX30: =Ey*ec*IF($A30<=$N$13,0,IF(AND(bcs*$A30<=$N$13,$N$13<$A30,$A30<=$N$14),(($A30-$N$13)^2*(3*$N$13^2-$H$12*($A30+2*$N$13-3*$N$14)+$A30*($A30-2*$N$14)+2*$N$13*($A30-2*$N$14))*_xlfn.CSC(2*Lmda))/(6*$A30),IF(AND(bcs*$A30<=$N$13,$N$14<$A30),(($N$13-$N$14)^2*(3*$N$13^2+$H$12*(3*$A30-2*$N$13-$N$14)+$N$14*(-2*$A30+$N$14)+$N$13*(-4*$A30+2*$N$14))*_xlfn.CSC(2*Lmda))/(6*$A30),IF(AND($N$13<bcs*$A30,bcs*$A30<=$N$14,$N$13<$A30,$A30<=$N$14),1/6*(-1+bcs)^2*$A30*(-$H$12*($A30+2*bcs*$A30-3*$N$14)+$A30*((1+2*bcs+3*bcs^2)*$A30-2*(1+2*bcs)*$N$14))*_xlfn.CSC(2*Lmda),IF(AND($N$13<bcs*$A30,bcs*$A30<=$N$14,$N$14<$A30),((-bcs*$A30+$N$14)^2*(bcs*(-4+3*bcs)*$A30^2+2*(-1+bcs)*$A30*$N$14+$N$14^2-$H$12*((-3+2*bcs)*$A30+$N$14))*_xlfn.CSC(2*Lmda))/(6*$A30),0))))) -> 0
A31: =A30+$H$11/bc/199 -> 0.5907954145 | B31: 0.9 | C31: -5209908.245 | D31: 18222.11409 | E31: 12884.98044 | F31: 12884.98044 | G31: -5788786.939 | H31: 20246.79343 | I31: =H31*COS(Lmda) -> 14316.64493 | J31: =H31*SIN(Lmda) -> 14316.64493 | U31: 643.0611363 | V31: =fy*IF(bc*$A31<=$H$2,0,IF(AND($H$2<bc*$A31,bc*$A31<$H$5),(-bc*$A31+$H$2)^2*_xlfn.CSC(2*Lmda),IF(AND($H$5<=bc*$A31,bc*$A31<=$H$8),-(2*bc*$A31-$H$2-$H$5)*($H$2-$H$5)*_xlfn.CSC(2*Lmda),IF(AND($H$8<bc*$A31,bc*$A31<=$H$11),(b-2*rb)*(h-2*rh)-(bc^2)*$A31^2*_xlfn.CSC(2*Lmda)-($H$11^2)*_xlfn.CSC(2*Lmda)+bc*$A31*$H$11*_xlfn.CSC(Lmda)*_xlfn.SEC(Lmda),(b-2*rb)*(h-2*rh))))) -> 0 | W31: =-fy*IF(bc*$A31<=$H$3,0,IF(AND($H$3<bc*$A31,bc*$A31<$H$6),(-bc*$A31+$H$3)^2*_xlfn.CSC(2*Lmda),IF(AND($H$6<=bc*$A31,bc*$A31<=$H$7),-(2*bc*$A31-$H$3-$H$6)*($H$3-$H$6)*_xlfn.CSC(2*Lmda),IF(AND($H$7<bc*$A31,bc*$A31<=$H$10),(h-2*(rh+t1b))*(b-2*(rb+t1h))-(bc^2)*$A31^2*_xlfn.CSC(2*Lmda)-($H$10^2)*_xlfn.CSC(2*Lmda)+bc*$A31*$H$10*_xlfn.CSC(Lmda)*_xlfn.SEC(Lmda),(h-2*(rh+t1b))*(b-2*(rb+t1h)))))) -> 0 | X31: =-fy*IF(bt*$A31<=$H$2,(b-2*rb)*(h-2*rh),IF(AND($H$2<bt*$A31,bt*$A31<$H$5),(b-2*rb)*(h-2*rh)-$A31^2*bt^2*_xlfn.CSC(2*Lmda)-_xlfn.CSC(2*Lmda)*$H$2*(-2*$A31*bt+$H$2),IF(AND($H$5<=bt*$A31,bt*$A31<=$H$8),(b-2*rb)*(h-2*rh)+_xlfn.CSC(2*Lmda)*(2*$A31*bt-$H$2-$H$5)*($H$2-$H$5),IF(AND($H$8<bt*$A31,bt*$A31<=$H$11),_xlfn.CSC(2*Lmda)*(-$A31*bt+$H$11)^2,0)))) -> -66402000 | Y31: =fy*IF(bt*$A31<=$H$3,(h-2*(rh+t1b))*(b-2*(rb+t1h)),IF(AND($H$3<bt*$A31,bt*$A31<$H$6),(h-2*(rh+t1b))*(b-2*(rb+t1h))-(bt^2)*$A31^2*_xlfn.CSC(2*Lmda)-($H$3^2)*_xlfn.CSC(2*Lmda)+bt*$A31*$H$3*_xlfn.CSC(Lmda)*_xlfn.SEC(Lmda),IF(AND($H$6<=bt*$A31,bt*$A31<=$H$7),(h-2*(rh+t1b))*(b-2*(rb+t1h))-($H$3^2)*_xlfn.CSC(2*Lmda)+$H$6^2*_xlfn.CSC(2*Lmda)+bt*$A31*$H$3*_xlfn.CSC(Lmda)*_xlfn.SEC(Lmda)-bt*$A31*$H$6*_xlfn.CSC(Lmda)*_xlfn.SEC(Lmda),IF(AND($H$7<bt*$A31,bt*$A31<=$H$10),(-bt*$A31+$H$10)^2*_xlfn.CSC(2*Lmda),0)))) -> 63976500 | Z31: =-Ey*ec*IF(bt*$A31<=$H$2,0,IF(AND($A31<=$H$2,$H$2<bt*$A31,bt*$A31<=$H$5),((-bt*$A31+$H$2)^2*((-3+2*bt)*$A31+$H$2)*_xlfn.CSC(Lmda)*_xlfn.SEC(Lmda))/(6*$A31),IF(AND($A31<=$H$2,$H$5<bt*$A31),-(((3*$A31-$H$2-2*$H$5)*($H$2-$H$5)^2*_xlfn.CSC(Lmda)*_xlfn.SEC(Lmda))/(6*$A31)),IF(AND($H$2<$A31,$A31<=$H$5,$H$2<bt*$A31,bt*$A31<=$H$5),1/6*(-1+bt)^2*$A31*($A31+2*bt*$A31-3*$H$2)*_xlfn.CSC(Lmda)*_xlfn.SEC(Lmda),IF(AND($H$2<$A31,$A31<=$H$5,$H$5<bt*$A31),(($A31-$H$5)^2*($A31-3*$H$2+2*$H$5)*_xlfn.CSC(Lmda)*_xlfn.SEC(Lmda))/(6*$A31),0))))) -> 0 | AA31: =Ey*ec*IF(bt*$A31<=$H$3,0,IF(AND($A31<=$H$3,$H$3<bt*$A31,bt*$A31<=$H$6),((-bt*$A31+$H$3)^2*((-3+2*bt)*$A31+$H$3)*_xlfn.CSC(Lmda)*_xlfn.SEC(Lmda))/(6*$A31),IF(AND($A31<=$H$3,$H$6<bt*$A31),-(((3*$A31-$H$3-2*$H$6)*($H$3-$H$6)^2*_xlfn.CSC(Lmda)*_xlfn.SEC(Lmda))/(6*$A31)),IF(AND($H$3<$A31,$A31<=$H$6,$H$3<bt*$A31,bt*$A31<=$H$6),1/6*(-1+bt)^2*$A31*($A31+2*bt*$A31-3*$H$3)*_xlfn.CSC(Lmda)*_xlfn.SEC(Lmda),IF(AND($H$3<$A31,$A31<=$H$6,$H$6<bt*$A31),(($A31-$H$6)^2*($A31-3*$H$3+2*$H$6)*_xlfn.CSC(Lmda)*_xlfn.SEC(Lmda))/(6*$A31),0))))) -> 0 | AB31: 0 | AC31: 0 | AD31: =-Ey*ec*IF(bt*$A31<=$H$8,0,IF(AND($A31<=$H$8,$H$8<bt*$A31,bt*$A31<=$H$11),-(((bt*$A31-$H$8)*(bt*(-3+2*bt)*$A31^2+(-3+2*bt)*$A31*$H$8+2*$H$8^2-3*$H$11*((-2+bt)*$A31+$H$8))*_xlfn.CSC(Lmda)*_xlfn.SEC(Lmda))/(6*$A31)),IF(AND($A31<=$H$8,$H$11<bt*$A31),-(((3*$A31-$H$11-2*$H$8)*($H$11-$H$8)^2*_xlfn.CSC(Lmda)*_xlfn.SEC(Lmda))/(6*$A31)),IF(AND($H$8<$A31,$A31<=$H$11,$H$8<bt*$A31,bt*$A31<=$H$11),-(1/6)*(-1+bt)^2*$A31*($A31+2*bt*$A31-3*$H$11)*_xlfn.CSC(Lmda)*_xlfn.SEC(Lmda),IF(AND($H$8<$A31,$A31<=$H$11,$H$11<bt*$A31),-((($A31-$H$11)^3*_xlfn.CSC(Lmda)*_xlfn.SEC(Lmda))/(6*$A31)),0))))) -> 0 | AE31: =Ey*ec*IF(bt*$A31<=$H$7,0,IF(AND($A31<=$H$7,$H$7<bt*$A31,bt*$A31<=$H$10),((bt*$A31^2*((3-2*bt)*bt*$A31+3*(-2+bt)*$H$10)+6*$A31*$H$10*$H$7-3*($A31+$H$10)*$H$7^2+2*$H$7^3)*_xlfn.CSC(Lmda)*_xlfn.SEC(Lmda))/(6*$A31),IF(AND($A31<=$H$7,$H$10<bt*$A31),-(((3*$A31-$H$10-2*$H$7)*(-$H$10+$H$7)^2*_xlfn.CSC(Lmda)*_xlfn.SEC(Lmda))/(6*$A31)),IF(AND($H$7<$A31,$A31<=$H$10,$H$7<bt*$A31,bt*$A31<=$H$10),-(1/6)*(-1+bt)^2*$A31*($A31+2*bt*$A31-3*$H$10)*_xlfn.CSC(Lmda)*_xlfn.SEC(Lmda),IF(AND($H$7<$A31,$A31<=$H$10,$H$10<bt*$A31),-((($A31-$H$10)^3*_xlfn.CSC(Lmda)*_xlfn.SEC(Lmda))/(6*$A31)),0))))) -> 0 | AF31: =Ey*ec*IF($A31<=$H$2,0,IF(AND(bc*$A31<=$H$2,$H$2<$A31,$A31<=$H$5),(($A31-$H$2)^3*_xlfn.CSC(Lmda)*_xlfn.SEC(Lmda))/(6*$A31),IF(AND(bc*$A31<=$H$2,$H$5<$A31),((3*$A31-$H$2-2*$H$5)*($H$2-$H$5)^2*_xlfn.CSC(Lmda)*_xlfn.SEC(Lmda))/(6*$A31),IF(AND($H$2<bc*$A31,bc*$A31<=$H$5,$H$2<$A31,$A31<=$H$5),1/6*(-1+bc)^2*$A31*($A31+2*bc*$A31-3*$H$2)*_xlfn.CSC(Lmda)*_xlfn.SEC(Lmda),IF(AND($H$2<bc*$A31,bc*$A31<=$H$5,$H$5<$A31),((bc*$A31-$H$5)*(bc*(-3+2*bc)*$A31^2+(-3+2*bc)*$A31*$H$5+2*$H$5^2-3*$H$2*((-2+bc)*$A31+$H$5))*_xlfn.CSC(Lmda)*_xlfn.SEC(Lmda))/(6*$A31),0))))) -> 0 | AG31: =-Ey*ec*IF($A31<=$H$3,0,IF(AND(bc*$A31<=$H$3,$H$3<$A31,$A31<=$H$6),(($A31-$H$3)^3*_xlfn.CSC(Lmda)*_xlfn.SEC(Lmda))/(6*$A31),IF(AND(bc*$A31<=$H$3,$H$6<$A31),((3*$A31-$H$3-2*$H$6)*($H$3-$H$6)^2*_xlfn.CSC(Lmda)*_xlfn.SEC(Lmda))/(6*$A31),IF(AND($H$3<bc*$A31,bc*$A31<=$H$6,$H$3<$A31,$A31<=$H$6),1/6*(-1+bc)^2*$A31*($A31+2*bc*$A31-3*$H$3)*_xlfn.CSC(Lmda)*_xlfn.SEC(Lmda),IF(AND($H$3<bc*$A31,bc*$A31<=$H$6,$H$6<$A31),((bc*$A31-$H$6)*(bc*(-3+2*bc)*$A31^2+(-3+2*bc)*$A31*$H$6+2*$H$6^2-3*$H$3*((-2+bc)*$A31+$H$6))*_xlfn.CSC(Lmda)*_xlfn.SEC(Lmda))/(6*$A31),0))))) -> 0 | AH31: =Ey*ec*IF($A31<=$H$5,0,IF(AND(bc*$A31<=$H$5,$H$5<$A31,$A31<=$H$8),(($A31-$H$5)^2*(-$H$2+$H$5)*_xlfn.CSC(2*Lmda))/$A31,IF(AND(bc*$A31<=$H$5,$H$8<$A31),-((($H$2-$H$5)*($H$5-$H$8)*(-2*$A31+$H$5+$H$8)*_xlfn.CSC(2*Lmda))/$A31),IF(AND($H$5<bc*$A31,bc*$A31<=$H$8,$H$5<$A31,$A31<=$H$8),-((-1+bc)^2)*$A31*($H$2-$H$5)*_xlfn.CSC(2*Lmda),IF(AND($H$5<bc*$A31,bc*$A31<=$H$8,$H$8<$A31),-((($H$2-$H$5)*(bc*$A31-$H$8)*((-2+bc)*$A31+$H$8)*_xlfn.CSC(2*Lmda))/$A31),0))))) -> 0 | AI31: =-Ey*ec*IF($A31<=$H$6,0,IF(AND(bc*$A31<=$H$6,$H$6<$A31,$A31<=$H$7),(($A31-$H$6)^2*(-$H$3+$H$6)*_xlfn.CSC(2*Lmda))/$A31,IF(AND(bc*$A31<=$H$6,$H$7<$A31),-((($H$3-$H$6)*($H$6-$H$7)*(-2*$A31+$H$6+$H$7)*_xlfn.CSC(2*Lmda))/$A31),IF(AND($H$6<bc*$A31,bc*$A31<=$H$7,$H$6<$A31,$A31<=$H$7),-((-1+bc)^2)*$A31*($H$3-$H$6)*_xlfn.CSC(2*Lmda),IF(AND($H$6<bc*$A31,bc*$A31<=$H$7,$H$7<$A31),-((($H$3-$H$6)*(bc*$A31-$H$7)*((-2+bc)*$A31+$H$7)*_xlfn.CSC(2*Lmda))/$A31),0))))) -> 0 | AJ31: =Ey*ec*IF($A31<=$H$8,0,IF(AND(bc*$A31<=$H$8,$H$8<$A31,$A31<=$H$11),-((($A31-$H$8)^2*($A31-3*$H$11+2*$H$8)*_xlfn.CSC(Lmda)*_xlfn.SEC(Lmda))/(6*$A31)),IF(AND(bc*$A31<=$H$8,$H$11<$A31),((3*$A31-$H$11-2*$H$8)*($H$11-$H$8)^2*_xlfn.CSC(Lmda)*_xlfn.SEC(Lmda))/(6*$A31),IF(AND($H$8<bc*$A31,bc*$A31<=$H$11,$H$8<$A31,$A31<=$H$11),-(1/6)*(-1+bc)^2*$A31*($A31+2*bc*$A31-3*$H$11)*_xlfn.CSC(Lmda)*_xlfn.SEC(Lmda),IF(AND($H$8<bc*$A31,bc*$A31<=$H$11,$H$11<$A31),-(((-bc*$A31+$H$11)^2*((-3+2*bc)*$A31+$H$11)*_xlfn.CSC(Lmda)*_xlfn.SEC(Lmda))/(6*$A31)),0))))) -> 0 | AK31: =-Ey*ec*IF($A31<=$H$7,0,IF(AND(bc*$A31<=$H$7,$H$7<$A31,$A31<=$H$10),-((($A31-$H$7)^2*($A31-3*$H$10+2*$H$7)*_xlfn.CSC(Lmda)*_xlfn.SEC(Lmda))/(6*$A31)),IF(AND(bc*$A31<=$H$7,$H$10<$A31),((3*$A31-$H$10-2*$H$7)*(-$H$10+$H$7)^2*_xlfn.CSC(Lmda)*_xlfn.SEC(Lmda))/(6*$A31),IF(AND($H$7<bc*$A31,bc*$A31<=$H$10,$H$7<$A31,$A31<=$H$10),-(1/6)*(-1+bc)^2*$A31*($A31+2*bc*$A31-3*$H$10)*_xlfn.CSC(Lmda)*_xlfn.SEC(Lmda),IF(AND($H$7<bc*$A31,bc*$A31<=$H$10,$H$10<$A31),-(((-bc*$A31+$H$10)^2*((-3+2*bc)*$A31+$H$10)*_xlfn.CSC(Lmda)*_xlfn.SEC(Lmda))/(6*$A31)),0))))) -> 0 | AL31: =fys*IF(bcs*$A31<=$N$2,0,IF(AND($N$2<bcs*$A31,bcs*$A31<$N$4),(-bcs*$A31+$N$2)^2*_xlfn.CSC(2*Lmda),IF(AND($N$4<=bcs*$A31,bcs*$A31<=$N$7),-(2*bcs*$A31-$N$2-$N$4)*($N$2-$N$4)*_xlfn.CSC(2*Lmda),IF(AND($N$7<bcs*$A31,bcs*$A31<=$N$9),_xlfn.CSC(2*Lmda)*(-(bcs^2)*$A31^2+2*bcs*$A31*$N$9-($N$9^2)+bf*d*SIN(2*Lmda)),bf*d)))) -> 0 | AM31: =-fys*IF(bcs*$A31<=$N$3,0,IF(AND($N$3<bcs*$A31,bcs*$A31<$N$5),(-bcs*$A31+$N$3)^2*_xlfn.CSC(2*Lmda),IF(AND($N$5<=bcs*$A31,bcs*$A31<=$N$6),-(2*bcs*$A31-$N$3-$N$5)*($N$3-$N$5)*_xlfn.CSC(2*Lmda),IF(AND($N$6<bcs*$A31,bcs*$A31<=$N$8),(d-2*tf)*(bf-2*thss)-(bcs^2)*$A31^2*_xlfn.CSC(2*Lmda)-($N$8^2)*_xlfn.CSC(2*Lmda)+bcs*$A31*$N$8*_xlfn.CSC(Lmda)*_xlfn.SEC(Lmda),(bf-2*thss)*(d-2*tf))))) -> 0 | AN31: =-fys*IF(bts*$A31<=$N$2,bf*d,IF(AND($N$2<bts*$A31,bts*$A31<$N$4),_xlfn.CSC(2*Lmda)*(-(bts^2)*$A31^2+2*bts*$A31*$N$2-($N$2^2)+bf*d*SIN(2*Lmda)),IF(AND($N$4<=bts*$A31,bts*$A31<=$N$7),_xlfn.CSC(2*Lmda)*(2*bts*$A31*$N$2-($N$2^2)-2*bts*$A31*$N$4+$N$4^2+bf*d*SIN(2*Lmda)),IF(AND($N$7<bts*$A31,bts*$A31<=$N$9),(-bts*$A31+$N$9)^2*_xlfn.CSC(2*Lmda),0)))) -> -33891000 | AO31: =fys*IF(bts*$A31<=$N$3,(bf-2*thss)*(d-2*tf),IF(AND($N$3<bts*$A31,bts*$A31<$N$5),(d-2*tf)*(bf-2*thss)-(bts^2)*$A31^2*_xlfn.CSC(2*Lmda)-($N$3^2)*_xlfn.CSC(2*Lmda)+bts*$A31*$N$3*_xlfn.CSC(Lmda)*_xlfn.SEC(Lmda),IF(AND($N$5<=bts*$A31,bts*$A31<=$N$6),(d-2*tf)*(bf-2*thss)-($N$3^2)*_xlfn.CSC(2*Lmda)+$N$5^2*_xlfn.CSC(2*Lmda)+bts*$A31*$N$3*_xlfn.CSC(Lmda)*_xlfn.SEC(Lmda)-bts*$A31*$N$5*_xlfn.CSC(Lmda)*_xlfn.SEC(Lmda),IF(AND($N$6<bts*$A31,bts*$A31<=$N$8),(-bts*$A31+$N$8)^2*_xlfn.CSC(2*Lmda),0)))) -> 31963400 | AP31: =-Ey*ec*IF(bts*$A31<=$N$2,0,IF(AND($A31<=$N$2,$N$2<bts*$A31,bts*$A31<=$N$4),((-bts*$A31+$N$2)^2*((-3+2*bts)*$A31+$N$2)*_xlfn.CSC(Lmda)*_xlfn.SEC(Lmda))/(6*$A31),IF(AND($A31<=$N$2,$N$4<bts*$A31),-(((3*$A31-$N$2-2*$N$4)*($N$2-$N$4)^2*_xlfn.CSC(Lmda)*_xlfn.SEC(Lmda))/(6*$A31)),IF(AND($N$2<$A31,$A31<=$N$4,$N$2<bts*$A31,bts*$A31<=$N$4),1/6*(-1+bts)^2*$A31*($A31+2*bts*$A31-3*$N$2)*_xlfn.CSC(Lmda)*_xlfn.SEC(Lmda),IF(AND($N$2<$A31,$A31<=$N$4,$N$4<bts*$A31),(($A31-$N$4)^2*($A31-3*$N$2+2*$N$4)*_xlfn.CSC(Lmda)*_xlfn.SEC(Lmda))/(6*$A31),0))))) -> 0 | AQ31: =Ey*ec*IF(bts*$A31<=$N$3,0,IF(AND($A31<=$N$3,$N$3<bts*$A31,bts*$A31<=$N$5),((-bts*$A31+$N$3)^2*((-3+2*bts)*$A31+$N$3)*_xlfn.CSC(Lmda)*_xlfn.SEC(Lmda))/(6*$A31),IF(AND($A31<=$N$3,$N$5<bts*$A31),-(((3*$A31-$N$3-2*$N$5)*($N$3-$N$5)^2*_xlfn.CSC(Lmda)*_xlfn.SEC(Lmda))/(6*$A31)),IF(AND($N$3<$A31,$A31<=$N$5,$N$3<bts*$A31,bts*$A31<=$N$5),1/6*(-1+bts)^2*$A31*($A31+2*bts*$A31-3*$N$3)*_xlfn.CSC(Lmda)*_xlfn.SEC(Lmda),IF(AND($N$3<$A31,$A31<=$N$5,$N$5<bts*$A31),(($A31-$N$5)^2*($A31-3*$N$3+2*$N$5)*_xlfn.CSC(Lmda)*_xlfn.SEC(Lmda))/(6*$A31),0))))) -> 0 | AR31: =-Ey*ec*IF(bts*$A31<=$N$4,0,IF(AND($A31<=$N$4,$N$4<bts*$A31,bts*$A31<=$N$7),((bts*$A31-$N$4)*((-2+bts)*$A31+$N$4)*(-$N$2+$N$4)*_xlfn.CSC(2*Lmda))/$A31,IF(AND($A31<=$N$4,$N$7<bts*$A31),(($N$2-$N$4)*($N$4-$N$7)*(-2*$A31+$N$4+$N$7)*_xlfn.CSC(2*Lmda))/$A31,IF(AND($N$4<$A31,$A31<=$N$7,$N$4<bts*$A31,bts*$A31<=$N$7),-((-1+bts)^2)*$A31*($N$2-$N$4)*_xlfn.CSC(2*Lmda),IF(AND($N$4<$A31,$A31<=$N$7,$N$7<bts*$A31),-((($N$2-$N$4)*($A31-$N$7)^2*_xlfn.CSC(2*Lmda))/$A31),0))))) -> 0 | AS31: =Ey*ec*IF(bts*$A31<=$N$5,0,IF(AND($A31<=$N$5,$N$5<bts*$A31,bts*$A31<=$N$6),((bts*$A31-$N$5)*((-2+bts)*$A31+$N$5)*(-$N$3+$N$5)*_xlfn.CSC(2*Lmda))/$A31,IF(AND($A31<=$N$5,$N$6<bts*$A31),(($N$3-$N$5)*($N$5-$N$6)*(-2*$A31+$N$5+$N$6)*_xlfn.CSC(2*Lmda))/$A31,IF(AND($N$5<$A31,$A31<=$N$6,$N$5<bts*$A31,bts*$A31<=$N$6),-((-1+bts)^2)*$A31*($N$3-$N$5)*_xlfn.CSC(2*Lmda),IF(AND($N$5<$A31,$A31<=$N$6,$N$6<bts*$A31),-((($N$3-$N$5)*($A31-$N$6)^2*_xlfn.CSC(2*Lmda))/$A31),0))))) -> 0 | AT31: =-Ey*ec*IF(bts*$A31<=$N$7,0,IF(AND($A31<=$N$7,$N$7<bts*$A31,bts*$A31<=$N$9),((2*$N$7^3+6*$A31*$N$7*$N$9-3*$N$7^2*($A31+$N$9)+bts*$A31^2*((3-2*bts)*bts*$A31+3*(-2+bts)*$N$9))*_xlfn.CSC(Lmda)*_xlfn.SEC(Lmda))/(6*$A31),IF(AND($A31<=$N$7,$N$9<bts*$A31),-(((3*$A31-2*$N$7-$N$9)*($N$7-$N$9)^2*_xlfn.CSC(Lmda)*_xlfn.SEC(Lmda))/(6*$A31)),IF(AND($N$7<$A31,$A31<=$N$9,$N$7<bts*$A31,bts*$A31<=$N$9),-(1/6)*(-1+bts)^2*$A31*($A31+2*bts*$A31-3*$N$9)*_xlfn.CSC(Lmda)*_xlfn.SEC(Lmda),IF(AND($N$7<$A31,$A31<=$N$9,$N$9<bts*$A31),-((($A31-$N$9)^3*_xlfn.CSC(Lmda)*_xlfn.SEC(Lmda))/(6*$A31)),0))))) -> 0 | AU31: =Ey*ec*IF(bts*$A31<=$N$6,0,IF(AND($A31<=$N$6,$N$6<bts*$A31,bts*$A31<=$N$8),((2*$N$6^3+6*$A31*$N$6*$N$8-3*$N$6^2*($A31+$N$8)+bts*$A31^2*((3-2*bts)*bts*$A31+3*(-2+bts)*$N$8))*_xlfn.CSC(Lmda)*_xlfn.SEC(Lmda))/(6*$A31),IF(AND($A31<=$N$6,$N$8<bts*$A31),-(((3*$A31-2*$N$6-$N$8)*($N$6-$N$8)^2*_xlfn.CSC(Lmda)*_xlfn.SEC(Lmda))/(6*$A31)),IF(AND($N$6<$A31,$A31<=$N$8,$N$6<bts*$A31,bts*$A31<=$N$8),-(1/6)*(-1+bts)^2*$A31*($A31+2*bts*$A31-3*$N$8)*_xlfn.CSC(Lmda)*_xlfn.SEC(Lmda),IF(AND($N$6<$A31,$A31<=$N$8,$N$8<bts*$A31),-((($A31-$N$8)^3*_xlfn.CSC(Lmda)*_xlfn.SEC(Lmda))/(6*$A31)),0))))) -> 0 | AV31: =Ey*ec*IF($A31<=$N$2,0,IF(AND(bcs*$A31<=$N$2,$N$2<$A31,$A31<=$N$4),(($A31-$N$2)^3*_xlfn.CSC(Lmda)*_xlfn.SEC(Lmda))/(6*$A31),IF(AND(bcs*$A31<=$N$2,$N$4<$A31),((3*$A31-$N$2-2*$N$4)*($N$2-$N$4)^2*_xlfn.CSC(Lmda)*_xlfn.SEC(Lmda))/(6*$A31),IF(AND($N$2<bcs*$A31,bcs*$A31<=$N$4,$N$2<$A31,$A31<=$N$4),1/6*(-1+bcs)^2*$A31*($A31+2*bcs*$A31-3*$N$2)*_xlfn.CSC(Lmda)*_xlfn.SEC(Lmda),IF(AND($N$2<bcs*$A31,bcs*$A31<=$N$4,$N$4<$A31),((bcs*$A31-$N$4)*(bcs*(-3+2*bcs)*$A31^2+(-3+2*bcs)*$A31*$N$4+2*$N$4^2-3*$N$2*((-2+bcs)*$A31+$N$4))*_xlfn.CSC(Lmda)*_xlfn.SEC(Lmda))/(6*$A31),0))))) -> 0 | AW31: =-Ey*ec*IF($A31<=$N$3,0,IF(AND(bcs*$A31<=$N$3,$N$3<$A31,$A31<=$N$5),(($A31-$N$3)^3*_xlfn.CSC(Lmda)*_xlfn.SEC(Lmda))/(6*$A31),IF(AND(bcs*$A31<=$N$3,$N$5<$A31),((3*$A31-$N$3-2*$N$5)*($N$3-$N$5)^2*_xlfn.CSC(Lmda)*_xlfn.SEC(Lmda))/(6*$A31),IF(AND($N$3<bcs*$A31,bcs*$A31<=$N$5,$N$3<$A31,$A31<=$N$5),1/6*(-1+bcs)^2*$A31*($A31+2*bcs*$A31-3*$N$3)*_xlfn.CSC(Lmda)*_xlfn.SEC(Lmda),IF(AND($N$3<bcs*$A31,bcs*$A31<=$N$5,$N$5<$A31),((bcs*$A31-$N$5)*(bcs*(-3+2*bcs)*$A31^2+(-3+2*bcs)*$A31*$N$5+2*$N$5^2-3*$N$3*((-2+bcs)*$A31+$N$5))*_xlfn.CSC(Lmda)*_xlfn.SEC(Lmda))/(6*$A31),0))))) -> 0 | AX31: =Ey*ec*IF($A31<=$N$4,0,IF(AND(bcs*$A31<=$N$4,$N$4<$A31,$A31<=$N$7),(($A31-$N$4)^2*(-$N$2+$N$4)*_xlfn.CSC(2*Lmda))/$A31,IF(AND(bcs*$A31<=$N$4,$N$7<$A31),-((($N$2-$N$4)*($N$4-$N$7)*(-2*$A31+$N$4+$N$7)*_xlfn.CSC(2*Lmda))/$A31),IF(AND($N$4<bcs*$A31,bcs*$A31<=$N$7,$N$4<$A31,$A31<=$N$7),-((-1+bcs)^2)*$A31*($N$2-$N$4)*_xlfn.CSC(2*Lmda),IF(AND($N$4<bcs*$A31,bcs*$A31<=$N$7,$N$7<$A31),-((($N$2-$N$4)*(bcs*$A31-$N$7)*((-2+bcs)*$A31+$N$7)*_xlfn.CSC(2*Lmda))/$A31),0))))) -> 0 | AY31: =-Ey*ec*IF($A31<=$N$5,0,IF(AND(bcs*$A31<=$N$5,$N$5<$A31,$A31<=$N$6),(($A31-$N$5)^2*(-$N$3+$N$5)*_xlfn.CSC(2*Lmda))/$A31,IF(AND(bcs*$A31<=$N$5,$N$6<$A31),-((($N$3-$N$5)*($N$5-$N$6)*(-2*$A31+$N$5+$N$6)*_xlfn.CSC(2*Lmda))/$A31),IF(AND($N$5<bcs*$A31,bcs*$A31<=$N$6,$N$5<$A31,$A31<=$N$6),-((-1+bcs)^2)*$A31*($N$3-$N$5)*_xlfn.CSC(2*Lmda),IF(AND($N$5<bcs*$A31,bcs*$A31<=$N$6,$N$6<$A31),-((($N$3-$N$5)*(bcs*$A31-$N$6)*((-2+bcs)*$A31+$N$6)*_xlfn.CSC(2*Lmda))/$A31),0))))) -> 0 | AZ31: =Ey*ec*IF($A31<=$N$7,0,IF(AND(bcs*$A31<=$N$7,$N$7<$A31,$A31<=$N$9),-((($A31-$N$7)^2*($A31+2*$N$7-3*$N$9)*_xlfn.CSC(Lmda)*_xlfn.SEC(Lmda))/(6*$A31)),IF(AND(bcs*$A31<=$N$7,$N$9<$A31),((3*$A31-2*$N$7-$N$9)*($N$7-$N$9)^2*_xlfn.CSC(Lmda)*_xlfn.SEC(Lmda))/(6*$A31),IF(AND($N$7<bcs*$A31,bcs*$A31<=$N$9,$N$7<$A31,$A31<=$N$9),-(1/6)*(-1+bcs)^2*$A31*($A31+2*bcs*$A31-3*$N$9)*_xlfn.CSC(Lmda)*_xlfn.SEC(Lmda),IF(AND($N$7<bcs*$A31,bcs*$A31<=$N$9,$N$9<$A31),-(((-bcs*$A31+$N$9)^2*((-3+2*bcs)*$A31+$N$9)*_xlfn.CSC(Lmda)*_xlfn.SEC(Lmda))/(6*$A31)),0))))) -> 0 | BA31: =-Ey*ec*IF($A31<=$N$6,0,IF(AND(bcs*$A31<=$N$6,$N$6<$A31,$A31<=$N$8),-((($A31-$N$6)^2*($A31+2*$N$6-3*$N$8)*_xlfn.CSC(Lmda)*_xlfn.SEC(Lmda))/(6*$A31)),IF(AND(bcs*$A31<=$N$6,$N$8<$A31),((3*$A31-2*$N$6-$N$8)*($N$6-$N$8)^2*_xlfn.CSC(Lmda)*_xlfn.SEC(Lmda))/(6*$A31),IF(AND($N$6<bcs*$A31,bcs*$A31<=$N$8,$N$6<$A31,$A31<=$N$8),-(1/6)*(-1+bcs)^2*$A31*($A31+2*bcs*$A31-3*$N$8)*_xlfn.CSC(Lmda)*_xlfn.SEC(Lmda),IF(AND($N$6<bcs*$A31,bcs*$A31<=$N$8,$N$8<$A31),-(((-bcs*$A31+$N$8)^2*((-3+2*bcs)*$A31+$N$8)*_xlfn.CSC(Lmda)*_xlfn.SEC(Lmda))/(6*$A31)),0))))) -> 0 | BB31: =fys*IF(bcs*$A31<=$N$11,0,IF(AND($N$11<bcs*$A31,bcs*$A31<$N$12),(-bcs*$A31+$N$11)^2*_xlfn.CSC(2*Lmda),IF(AND($N$12<=bcs*$A31,bcs*$A31<=$N$13),-(2*bcs*$A31-$N$11-$N$12)*($N$11-$N$12)*_xlfn.CSC(2*Lmda),IF(AND($N$13<bcs*$A31,bcs*$A31<=$N$14),(d-2*tf)*tw-(bcs^2)*$A31^2*_xlfn.CSC(2*Lmda)-($N$14^2)*_xlfn.CSC(2*Lmda)+bcs*$A31*$N$14*_xlfn.CSC(Lmda)*_xlfn.SEC(Lmda),tw*(d-2*tf))))) -> 0 | BC31: =-fys*IF(bts*$A31<=$N$11,tw*(d-2*tf),IF(AND($N$11<bts*$A31,bts*$A31<$N$12),(d-2*tf)*tw-(bts^2)*$A31^2*_xlfn.CSC(2*Lmda)-($N$11^2)*_xlfn.CSC(2*Lmda)+bts*$A31*$N$11*_xlfn.CSC(Lmda)*_xlfn.SEC(Lmda),IF(AND($N$12<=bts*$A31,bts*$A31<=$N$13),_xlfn.CSC(2*Lmda)*(2*bts*$A31*$N$11-($N$11^2)-2*bts*$A31*$N$12+$N$12^2+(d-2*tf)*tw*SIN(2*Lmda)),IF(AND($N$13<bts*$A31,bts*$A31<=$N$14),(-bts*$A31+$N$14)^2*_xlfn.CSC(2*Lmda),0)))) -> -1436330 | BD31: =-Ey*ec*IF(bts*$A31<=$N$11,0,IF(AND($A31<=$N$11,$N$11<bts*$A31,bts*$A31<=$N$12),((-bts*$A31+$N$11)^2*((-3+2*bts)*$A31+$N$11)*_xlfn.CSC(Lmda)*_xlfn.SEC(Lmda))/(6*$A31),IF(AND($A31<=$N$11,$N$12<bts*$A31),-(((3*$A31-$N$11-2*$N$12)*($N$11-$N$12)^2*_xlfn.CSC(Lmda)*_xlfn.SEC(Lmda))/(6*$A31)),IF(AND($N$11<$A31,$A31<=$N$12,$N$11<bts*$A31,bts*$A31<=$N$12),1/6*(-1+bts)^2*$A31*($A31+2*bts*$A31-3*$N$11)*_xlfn.CSC(Lmda)*_xlfn.SEC(Lmda),IF(AND($N$11<$A31,$A31<=$N$12,$N$12<bts*$A31),(($A31-$N$12)^2*($A31-3*$N$11+2*$N$12)*_xlfn.CSC(Lmda)*_xlfn.SEC(Lmda))/(6*$A31),0))))) -> 0 | BE31: 0 | BF31: =-Ey*ec*IF(bts*$A31<=$N$13,0,IF(AND($A31<=$N$13,$N$13<bts*$A31,bts*$A31<=$N$14),((2*$N$13^3+6*$A31*$N$13*$N$14-3*$N$13^2*($A31+$N$14)+bts*$A31^2*((3-2*bts)*bts*$A31+3*(-2+bts)*$N$14))*_xlfn.CSC(Lmda)*_xlfn.SEC(Lmda))/(6*$A31),IF(AND($A31<=$N$13,$N$14<bts*$A31),-(((3*$A31-2*$N$13-$N$14)*($N$13-$N$14)^2*_xlfn.CSC(Lmda)*_xlfn.SEC(Lmda))/(6*$A31)),IF(AND($N$13<$A31,$A31<=$N$14,$N$13<bts*$A31,bts*$A31<=$N$14),-(1/6)*(-1+bts)^2*$A31*($A31+2*bts*$A31-3*$N$14)*_xlfn.CSC(Lmda)*_xlfn.SEC(Lmda),IF(AND($N$13<$A31,$A31<=$N$14,$N$14<bts*$A31),-((($A31-$N$14)^3*_xlfn.CSC(Lmda)*_xlfn.SEC(Lmda))/(6*$A31)),0))))) -> 0 | BG31: =Ey*ec*IF($A31<=$N$11,0,IF(AND(bcs*$A31<=$N$11,$N$11<$A31,$A31<=$N$12),(($A31-$N$11)^3*_xlfn.CSC(Lmda)*_xlfn.SEC(Lmda))/(6*$A31),IF(AND(bcs*$A31<=$N$11,$N$12<$A31),((3*$A31-$N$11-2*$N$12)*($N$11-$N$12)^2*_xlfn.CSC(Lmda)*_xlfn.SEC(Lmda))/(6*$A31),IF(AND($N$11<bcs*$A31,bcs*$A31<=$N$12,$N$11<$A31,$A31<=$N$12),1/6*(-1+bcs)^2*$A31*($A31+2*bcs*$A31-3*$N$11)*_xlfn.CSC(Lmda)*_xlfn.SEC(Lmda),IF(AND($N$11<bcs*$A31,bcs*$A31<=$N$12,$N$12<$A31),((bcs*$A31-$N$12)*(bcs*(-3+2*bcs)*$A31^2+(-3+2*bcs)*$A31*$N$12+2*$N$12^2-3*$N$11*((-2+bcs)*$A31+$N$12))*_xlfn.CSC(Lmda)*_xlfn.SEC(Lmda))/(6*$A31),0))))) -> 0 | BH31: =Ey*ec*IF($A31<=$N$12,0,IF(AND(bcs*$A31<=$N$12,$N$12<$A31,$A31<=$N$13),(($A31-$N$12)^2*(-$N$11+$N$12)*_xlfn.CSC(2*Lmda))/$A31,IF(AND(bcs*$A31<=$N$12,$N$13<$A31),-((($N$11-$N$12)*($N$12-$N$13)*(-2*$A31+$N$12+$N$13)*_xlfn.CSC(2*Lmda))/$A31),IF(AND($N$12<bcs*$A31,bcs*$A31<=$N$13,$N$12<$A31,$A31<=$N$13),-((-1+bcs)^2)*$A31*($N$11-$N$12)*_xlfn.CSC(2*Lmda),IF(AND($N$12<bcs*$A31,bcs*$A31<=$N$13,$N$13<$A31),-((($N$11-$N$12)*(bcs*$A31-$N$13)*((-2+bcs)*$A31+$N$13)*_xlfn.CSC(2*Lmda))/$A31),0))))) -> 0 | BI31: =Ey*ec*IF($A31<=$N$13,0,IF(AND(bcs*$A31<=$N$13,$N$13<$A31,$A31<=$N$14),-((($A31-$N$13)^2*($A31+2*$N$13-3*$N$14)*_xlfn.CSC(Lmda)*_xlfn.SEC(Lmda))/(6*$A31)),IF(AND(bcs*$A31<=$N$13,$N$14<$A31),((3*$A31-2*$N$13-$N$14)*($N$13-$N$14)^2*_xlfn.CSC(Lmda)*_xlfn.SEC(Lmda))/(6*$A31),IF(AND($N$13<bcs*$A31,bcs*$A31<=$N$14,$N$13<$A31,$A31<=$N$14),-(1/6)*(-1+bcs)^2*$A31*($A31+2*bcs*$A31-3*$N$14)*_xlfn.CSC(Lmda)*_xlfn.SEC(Lmda),IF(AND($N$13<bcs*$A31,bcs*$A31<=$N$14,$N$14<$A31),-(((-bcs*$A31+$N$14)^2*((-3+2*bcs)*$A31+$N$14)*_xlfn.CSC(Lmda)*_xlfn.SEC(Lmda))/(6*$A31)),0))))) -> 0 | BJ31: =f1c*IF(beta*$A31<$H$4,-(1/6)*beta^2*$A31^2*(4*beta*$A31-3*$H$12)*_xlfn.CSC(2*Lmda),IF(AND($H$4<=beta*$A31,beta*$A31<=$H$9),1/6*$H$4*(-6*beta^2*$A31^2+$H$12*(6*beta*$A31-3*$H$4)+2*$H$4^2)*_xlfn.CSC(2*Lmda),IF(AND($H$9<beta*$A31,beta*$A31<=$H$12),1/6*(4*beta*$A31-$H$12)*(-beta*$A31+$H$12)^2*_xlfn.CSC(2*Lmda),0))) -> 20246.79343 | BK31: =fy*IF(bc*$A31<=$H$2,0,IF(AND($H$2<bc*$A31,bc*$A31<$H$5),-(1/6)*(-bc*$A31+$H$2)^2*(4*bc*$A31-3*$H$12+2*$H$2)*_xlfn.CSC(2*Lmda),IF(AND($H$5<=bc*$A31,bc*$A31<=$H$8),-(1/6)*($H$2-$H$5)*(-6*bc^2*$A31^2+2*$H$2^2+$H$12*(6*bc*$A31-3*$H$5)+2*$H$5^2+$H$2*(-3*$H$12+2*$H$5))*_xlfn.CSC(2*Lmda),IF(AND($H$8<bc*$A31,bc*$A31<=$H$11),1/6*(-bc*$A31+$H$11)^2*(4*bc*$A31+2*$H$11-3*$H$12)*_xlfn.CSC(2*Lmda),0)))) -> 0 | BL31: =-fy*IF(bc*$A31<=$H$3,0,IF(AND($H$3<bc*$A31,bc*$A31<$H$6),-(1/6)*(-bc*$A31+$H$3)^2*(4*bc*$A31-3*$H$12+2*$H$3)*_xlfn.CSC(2*Lmda),IF(AND($H$6<=bc*$A31,bc*$A31<=$H$7),-(1/6)*($H$3-$H$6)*($H$12*(6*bc*$A31-3*$H$3-3*$H$6)+2*(-3*bc^2*$A31^2+$H$3^2+$H$3*$H$6+$H$6^2))*_xlfn.CSC(2*Lmda),IF(AND($H$7<bc*$A31,bc*$A31<=$H$10),1/6*(-bc*$A31+$H$10)^2*(4*bc*$A31+2*$H$10-3*$H$12)*_xlfn.CSC(2*Lmda),0)))) -> 0 | BM31: =fy*IF(bt*$A31<=$H$2,0,IF(AND($H$2<bt*$A31,bt*$A31<$H$5),-(1/6)*(-bt*$A31+$H$2)^2*(4*bt*$A31-3*$H$12+2*$H$2)*_xlfn.CSC(2*Lmda),IF(AND($H$5<=bt*$A31,bt*$A31<=$H$8),-(1/6)*($H$2-$H$5)*(-6*bt^2*$A31^2+2*$H$2^2+$H$12*(6*bt*$A31-3*$H$5)+2*$H$5^2+$H$2*(-3*$H$12+2*$H$5))*_xlfn.CSC(2*Lmda),IF(AND($H$8<bt*$A31,bt*$A31<=$H$11),1/6*(-bt*$A31+$H$11)^2*(4*bt*$A31+2*$H$11-3*$H$12)*_xlfn.CSC(2*Lmda),0)))) -> 0 | BN31: =-fy*IF(bt*$A31<=$H$3,0,IF(AND($H$3<bt*$A31,bt*$A31<$H$6),-(1/6)*(-bt*$A31+$H$3)^2*(4*bt*$A31-3*$H$12+2*$H$3)*_xlfn.CSC(2*Lmda),IF(AND($H$6<=bt*$A31,bt*$A31<=$H$7),-(1/6)*($H$3-$H$6)*($H$12*(6*bt*$A31-3*$H$3-3*$H$6)+2*(-3*bt^2*$A31^2+$H$3^2+$H$3*$H$6+$H$6^2))*_xlfn.CSC(2*Lmda),IF(AND($H$7<bt*$A31,bt*$A31<=$H$10),1/6*(-bt*$A31+$H$10)^2*(4*bt*$A31+2*$H$10-3*$H$12)*_xlfn.CSC(2*Lmda),0)))) -> 0 | BO31: =-Ey*ec*IF(bt*$A31<=$H$2,0,IF(AND($A31<=$H$2,$H$2<bt*$A31,bt*$A31<=$H$5),-(((-bt*$A31+$H$2)^2*($A31*(bt*(-4+3*bt)*$A31+(3-2*bt)*$H$12)+(2*(-1+bt)*$A31-$H$12)*$H$2+$H$2^2)*_xlfn.CSC(2*Lmda))/(6*$A31)),IF(AND($A31<=$H$2,$H$5<bt*$A31),-((($H$2-$H$5)^2*($H$2^2+$H$12*(3*$A31-2*$H$5)-$H$2*(2*$A31+$H$12-2*$H$5)+$H$5*(-4*$A31+3*$H$5))*_xlfn.CSC(2*Lmda))/(6*$A31)),IF(AND($H$2<$A31,$A31<=$H$5,$H$2<bt*$A31,bt*$A31<=$H$5),-(1/6)*(-1+bt)^2*$A31*($A31*((1+2*bt+3*bt^2)*$A31-(1+2*bt)*$H$12)+(-2*($A31+2*bt*$A31)+3*$H$12)*$H$2)*_xlfn.CSC(2*Lmda),IF(AND($H$2<$A31,$A31<=$H$5,$H$5<bt*$A31),-((($A31-$H$5)^2*($A31^2+2*$A31*$H$5+3*$H$5^2-$H$12*($A31+2*$H$5)+$H$2*(3*$H$12-2*($A31+2*$H$5)))*_xlfn.CSC(2*Lmda))/(6*$A31)),0))))) -> 0 | BP31: =Ey*ec*IF(bt*$A31<=$H$3,0,IF(AND($A31<=$H$3,$H$3<bt*$A31,bt*$A31<=$H$6),-(((-bt*$A31+$H$3)^2*(bt*(-4+3*bt)*$A31^2+2*(-1+bt)*$A31*$H$3+$H$3^2-$H$12*((-3+2*bt)*$A31+$H$3))*_xlfn.CSC(2*Lmda))/(6*$A31)),IF(AND($A31<=$H$3,$H$6<bt*$A31),(($H$3-$H$6)^2*(-($H$3^2)+2*$H$3*($A31-$H$6)+(4*$A31-3*$H$6)*$H$6+$H$12*(-3*$A31+$H$3+2*$H$6))*_xlfn.CSC(2*Lmda))/(6*$A31),IF(AND($H$3<$A31,$A31<=$H$6,$H$3<bt*$A31,bt*$A31<=$H$6),-(1/6)*(-1+bt)^2*$A31*(-$H$12*($A31+2*bt*$A31-3*$H$3)+$A31*((1+2*bt+3*bt^2)*$A31-2*(1+2*bt)*$H$3))*_xlfn.CSC(2*Lmda),IF(AND($H$3<$A31,$A31<=$H$6,$H$6<bt*$A31),-((($A31-$H$6)^2*($A31^2+2*$A31*$H$6+3*$H$6^2-2*$H$3*($A31+2*$H$6)-$H$12*($A31-3*$H$3+2*$H$6))*_xlfn.CSC(2*Lmda))/(6*$A31)),0))))) -> 0 | BQ31: =-Ey*ec*IF(bt*$A31<=$H$5,0,IF(AND($A31<=$H$5,$H$5<bt*$A31,bt*$A31<=$H$8),-(((bt*$A31-$H$5)*(-$H$2+$H$5)*(2*bt*(-3+2*bt)*$A31^2+2*(-3+2*bt)*$A31*$H$5+4*$H$5^2-3*$H$12*((-2+bt)*$A31+$H$5))*_xlfn.CSC(2*Lmda))/(6*$A31)),IF(AND($A31<=$H$5,$H$8<bt*$A31),(($H$2-$H$5)*($H$5-$H$8)*(6*$A31*$H$5-4*$H$5^2+6*$A31*$H$8-4*$H$5*$H$8-4*$H$8^2+3*$H$12*(-2*$A31+$H$5+$H$8))*_xlfn.CSC(2*Lmda))/(6*$A31),IF(AND($H$5<$A31,$A31<=$H$8,$H$5<bt*$A31,bt*$A31<=$H$8),1/6*(-1+bt)^2*$A31*(2*$A31+4*bt*$A31-3*$H$12)*($H$2-$H$5)*_xlfn.CSC(2*Lmda),IF(AND($H$5<$A31,$A31<=$H$8,$H$8<bt*$A31),(($H$2-$H$5)*($A31-$H$8)^2*(2*$A31-3*$H$12+4*$H$8)*_xlfn.CSC(2*Lmda))/(6*$A31),0))))) -> 0 | BR31: =Ey*ec*IF(bt*$A31<=$H$6,0,IF(AND($A31<=$H$6,$H$6<bt*$A31,bt*$A31<=$H$7),-(((bt*$A31-$H$6)*(-$H$3+$H$6)*(2*bt*(-3+2*bt)*$A31^2+2*(-3+2*bt)*$A31*$H$6+4*$H$6^2-3*$H$12*((-2+bt)*$A31+$H$6))*_xlfn.CSC(2*Lmda))/(6*$A31)),IF(AND($A31<=$H$6,$H$7<bt*$A31),(($H$3-$H$6)*($H$6-$H$7)*(6*$A31*$H$6-4*$H$6^2+6*$A31*$H$7-4*$H$6*$H$7-4*$H$7^2+3*$H$12*(-2*$A31+$H$6+$H$7))*_xlfn.CSC(2*Lmda))/(6*$A31),IF(AND($H$6<$A31,$A31<=$H$7,$H$6<bt*$A31,bt*$A31<=$H$7),1/6*(-1+bt)^2*$A31*(2*$A31+4*bt*$A31-3*$H$12)*($H$3-$H$6)*_xlfn.CSC(2*Lmda),IF(AND($H$6<$A31,$A31<=$H$7,$H$7<bt*$A31),(($H$3-$H$6)*($A31-$H$7)^2*(2*$A31-3*$H$12+4*$H$7)*_xlfn.CSC(2*Lmda))/(6*$A31),0))))) -> 0 | BS31: =-Ey*ec*IF(bt*$A31<=$H$8,0,IF(AND($A31<=$H$8,$H$8<bt*$A31,bt*$A31<=$H$11),((-4*bt^3*$A31^4+3*bt^4*$A31^4+4*$A31*$H$8^3-3*$H$8^4+$H$12*((3-2*bt)*bt^2*$A31^3-3*$A31*$H$8^2+2*$H$8^3)-$H$11*(bt*$A31-$H$8)*(2*bt*(-3+2*bt)*$A31^2+2*(-3+2*bt)*$A31*$H$8+4*$H$8^2-3*$H$12*((-2+bt)*$A31+$H$8)))*_xlfn.CSC(2*Lmda))/(6*$A31),IF(AND($A31<=$H$8,$H$11<bt*$A31),-((($H$11-$H$8)^2*($H$11^2+$H$12*(3*$A31-2*$H$8)-$H$11*(2*$A31+$H$12-2*$H$8)+$H$8*(-4*$A31+3*$H$8))*_xlfn.CSC(2*Lmda))/(6*$A31)),IF(AND($H$8<$A31,$A31<=$H$11,$H$8<bt*$A31,bt*$A31<=$H$11),1/6*(-1+bt)^2*$A31*($H$11*(-2*($A31+2*bt*$A31)+3*$H$12)+$A31*((1+2*bt+3*bt^2)*$A31-(1+2*bt)*$H$12))*_xlfn.CSC(2*Lmda),IF(AND($H$8<$A31,$A31<=$H$11,$H$11<bt*$A31),(($A31-$H$11)^3*($A31+$H$11-$H$12)*_xlfn.CSC(2*Lmda))/(6*$A31),0))))) -> 0 | BT31: =Ey*ec*IF(bt*$A31<=$H$7,0,IF(AND($A31<=$H$7,$H$7<bt*$A31,bt*$A31<=$H$10),((bt*$A31-$H$7)*(bt*$A31^2*(bt*(-4+3*bt)*$A31+(6-4*bt)*$H$10)+$A31*(bt*(-4+3*bt)*$A31+(6-4*bt)*$H$10)*$H$7+((-4+3*bt)*$A31-4*$H$10)*$H$7^2+3*$H$7^3+$H$12*($A31*((3-2*bt)*bt*$A31+3*(-2+bt)*$H$10)+((3-2*bt)*$A31+3*$H$10)*$H$7-2*$H$7^2))*_xlfn.CSC(2*Lmda))/(6*$A31),IF(AND($A31<=$H$7,$H$10<bt*$A31),((-$H$10+$H$7)^2*((2*$A31-$H$10)*$H$10+(4*$A31-2*$H$10)*$H$7-3*$H$7^2+$H$12*(-3*$A31+$H$10+2*$H$7))*_xlfn.CSC(2*Lmda))/(6*$A31),IF(AND($H$7<$A31,$A31<=$H$10,$H$7<bt*$A31,bt*$A31<=$H$10),1/6*(-1+bt)^2*$A31*($A31*((1+2*bt+3*bt^2)*$A31-2*(1+2*bt)*$H$10)-($A31+2*bt*$A31-3*$H$10)*$H$12)*_xlfn.CSC(2*Lmda),IF(AND($H$7<$A31,$A31<=$H$10,$H$10<bt*$A31),(($A31-$H$10)^3*($A31+$H$10-$H$12)*_xlfn.CSC(2*Lmda))/(6*$A31),0))))) -> 0 | BU31: =Ey*ec*IF($A31<=$H$2,0,IF(AND(bc*$A31<=$H$2,$H$2<$A31,$A31<=$H$5),-((($A31-$H$2)^3*($A31-$H$12+$H$2)*_xlfn.CSC(2*Lmda))/(6*$A31)),IF(AND(bc*$A31<=$H$2,$H$5<$A31),(($H$2-$H$5)^2*($H$2^2+$H$12*(3*$A31-2*$H$5)-$H$2*(2*$A31+$H$12-2*$H$5)+$H$5*(-4*$A31+3*$H$5))*_xlfn.CSC(2*Lmda))/(6*$A31),IF(AND($H$2<bc*$A31,bc*$A31<=$H$5,$H$2<$A31,$A31<=$H$5),-(1/6)*(-1+bc)^2*$A31*($A31*((1+2*bc+3*bc^2)*$A31-(1+2*bc)*$H$12)+(-2*($A31+2*bc*$A31)+3*$H$12)*$H$2)*_xlfn.CSC(2*Lmda),IF(AND($H$2<bc*$A31,bc*$A31<=$H$5,$H$5<$A31),((4*bc^3*$A31^4-3*bc^4*$A31^4-4*$A31*$H$5^3+3*$H$5^4+$H$12*(bc^2*(-3+2*bc)*$A31^3+3*$A31*$H$5^2-2*$H$5^3)+$H$2*(bc*$A31-$H$5)*(2*bc*(-3+2*bc)*$A31^2+2*(-3+2*bc)*$A31*$H$5+4*$H$5^2-3*$H$12*((-2+bc)*$A31+$H$5)))*_xlfn.CSC(2*Lmda))/(6*$A31),0))))) -> 0 | BV31: =-Ey*ec*IF($A31<=$H$3,0,IF(AND(bc*$A31<=$H$3,$H$3<$A31,$A31<=$H$6),-((($A31-$H$3)^3*($A31-$H$12+$H$3)*_xlfn.CSC(2*Lmda))/(6*$A31)),IF(AND(bc*$A31<=$H$3,$H$6<$A31),(($H$3-$H$6)^2*($H$3^2+$H$12*(3*$A31-$H$3-2*$H$6)-2*$H$3*($A31-$H$6)+$H$6*(-4*$A31+3*$H$6))*_xlfn.CSC(2*Lmda))/(6*$A31),IF(AND($H$3<bc*$A31,bc*$A31<=$H$6,$H$3<$A31,$A31<=$H$6),-(1/6)*(-1+bc)^2*$A31*(-$H$12*($A31+2*bc*$A31-3*$H$3)+$A31*((1+2*bc+3*bc^2)*$A31-2*(1+2*bc)*$H$3))*_xlfn.CSC(2*Lmda),IF(AND($H$3<bc*$A31,bc*$A31<=$H$6,$H$6<$A31),((4*bc^3*$A31^4-3*bc^4*$A31^4-4*$A31*$H$6^3+3*$H$6^4+$H$3*(2*bc^2*(-3+2*bc)*$A31^3+6*$A31*$H$6^2-4*$H$6^3)+$H$12*(bc*$A31-$H$6)*(bc*(-3+2*bc)*$A31^2+(-3+2*bc)*$A31*$H$6+2*$H$6^2-3*$H$3*((-2+bc)*$A31+$H$6)))*_xlfn.CSC(2*Lmda))/(6*$A31),0))))) -> 0 | BW31: =Ey*ec*IF($A31<=$H$5,0,IF(AND(bc*$A31<=$H$5,$H$5<$A31,$A31<=$H$8),-((($A31-$H$5)^2*(-$H$2+$H$5)*(2*$A31-3*$H$12+4*$H$5)*_xlfn.CSC(2*Lmda))/(6*$A31)),IF(AND(bc*$A31<=$H$5,$H$8<$A31),(($H$2-$H$5)*($H$5-$H$8)*(4*$H$5^2+$H$12*(6*$A31-3*$H$5-3*$H$8)-6*$A31*$H$8+4*$H$8^2+$H$5*(-6*$A31+4*$H$8))*_xlfn.CSC(2*Lmda))/(6*$A31),IF(AND($H$5<bc*$A31,bc*$A31<=$H$8,$H$5<$A31,$A31<=$H$8),1/6*(-1+bc)^2*$A31*(2*$A31+4*bc*$A31-3*$H$12)*($H$2-$H$5)*_xlfn.CSC(2*Lmda),IF(AND($H$5<bc*$A31,bc*$A31<=$H$8,$H$8<$A31),(($H$2-$H$5)*(bc*$A31-$H$8)*(2*bc*(-3+2*bc)*$A31^2+2*(-3+2*bc)*$A31*$H$8+4*$H$8^2-3*$H$12*((-2+bc)*$A31+$H$8))*_xlfn.CSC(2*Lmda))/(6*$A31),0))))) -> 0 | BX31: =-Ey*ec*IF($A31<=$H$6,0,IF(AND(bc*$A31<=$H$6,$H$6<$A31,$A31<=$H$7),-((($A31-$H$6)^2*(-$H$3+$H$6)*(2*$A31-3*$H$12+4*$H$6)*_xlfn.CSC(2*Lmda))/(6*$A31)),IF(AND(bc*$A31<=$H$6,$H$7<$A31),(($H$3-$H$6)*($H$6-$H$7)*(4*$H$6^2+$H$12*(6*$A31-3*$H$6-3*$H$7)-6*$A31*$H$7+4*$H$7^2+$H$6*(-6*$A31+4*$H$7))*_xlfn.CSC(2*Lmda))/(6*$A31),IF(AND($H$6<bc*$A31,bc*$A31<=$H$7,$H$6<$A31,$A31<=$H$7),1/6*(-1+bc)^2*$A31*(2*$A31+4*bc*$A31-3*$H$12)*($H$3-$H$6)*_xlfn.CSC(2*Lmda),IF(AND($H$6<bc*$A31,bc*$A31<=$H$7,$A31>$H$7),(($H$3-$H$6)*(bc*$A31-$H$7)*(2*bc*(-3+2*bc)*$A31^2+2*(-3+2*bc)*$A31*$H$7+4*$H$7^2-3*$H$12*((-2+bc)*$A31+$H$7))*_xlfn.CSC(2*Lmda))/(6*$A31),0))))) -> 0 | BY31: =Ey*ec*IF($A31<=$H$8,0,IF(AND(bc*$A31<=$H$8,$H$8<$A31,$A31<=$H$11),(($A31-$H$8)^2*($A31^2+2*$A31*$H$8+3*$H$8^2-$H$12*($A31+2*$H$8)+$H$11*(3*$H$12-2*($A31+2*$H$8)))*_xlfn.CSC(2*Lmda))/(6*$A31),IF(AND(bc*$A31<=$H$8,$H$11<$A31),(($H$11-$H$8)^2*($H$11^2+$H$12*(3*$A31-2*$H$8)-$H$11*(2*$A31+$H$12-2*$H$8)+$H$8*(-4*$A31+3*$H$8))*_xlfn.CSC(2*Lmda))/(6*$A31),IF(AND($H$8<bc*$A31,bc*$A31<=$H$11,$H$8<$A31,$A31<=$H$11),1/6*(-1+bc)^2*$A31*($H$11*(-2*($A31+2*bc*$A31)+3*$H$12)+$A31*((1+2*bc+3*bc^2)*$A31-(1+2*bc)*$H$12))*_xlfn.CSC(2*Lmda),IF(AND($H$8<bc*$A31,bc*$A31<=$H$11,$H$11<$A31),((-bc*$A31+$H$11)^2*($H$11^2+$H$11*(2*(-1+bc)*$A31-$H$12)+$A31*(bc*(-4+3*bc)*$A31+(3-2*bc)*$H$12))*_xlfn.CSC(2*Lmda))/(6*$A31),0))))) -> 0 | BZ31: =-Ey*ec*IF($A31<=$H$7,0,IF(AND(bc*$A31<=$H$7,$H$7<$A31,$A31<=$H$10),(($A31-$H$7)^2*($A31*($A31-2*$H$10)+2*($A31-2*$H$10)*$H$7+3*$H$7^2-$H$12*($A31-3*$H$10+2*$H$7))*_xlfn.CSC(2*Lmda))/(6*$A31),IF(AND(bc*$A31<=$H$7,$H$10<$A31),((-$H$10+$H$7)^2*($H$10*(-2*$A31+$H$10)+$H$12*(3*$A31-$H$10-2*$H$7)+(-4*$A31+2*$H$10)*$H$7+3*$H$7^2)*_xlfn.CSC(2*Lmda))/(6*$A31),IF(AND($H$7<bc*$A31,bc*$A31<=$H$10,$H$7<$A31,$A31<=$H$10),1/6*(-1+bc)^2*$A31*($A31*((1+2*bc+3*bc^2)*$A31-2*(1+2*bc)*$H$10)-($A31+2*bc*$A31-3*$H$10)*$H$12)*_xlfn.CSC(2*Lmda),IF(AND($H$7<bc*$A31,bc*$A31<=$H$10,$H$10<$A31),((-bc*$A31+$H$10)^2*(bc*(-4+3*bc)*$A31^2+2*(-1+bc)*$A31*$H$10+$H$10^2-((-3+2*bc)*$A31+$H$10)*$H$12)*_xlfn.CSC(2*Lmda))/(6*$A31),0))))) -> 0 | CA31: =fys*IF(bcs*$A31<=$N$2,0,IF(AND($N$2<bcs*$A31,bcs*$A31<$N$4),-(1/6)*(-bcs*$A31+$N$2)^2*(4*bcs*$A31-3*$H$12+2*$N$2)*_xlfn.CSC(2*Lmda),IF(AND($N$4<=bcs*$A31,bcs*$A31<=$N$7),-(1/6)*($N$2-$N$4)*($H$12*(6*bcs*$A31-3*$N$2-3*$N$4)+2*(-3*bcs^2*$A31^2+$N$2^2+$N$2*$N$4+$N$4^2))*_xlfn.CSC(2*Lmda),IF(AND($N$7<bcs*$A31,bcs*$A31<=$N$9),1/6*(-bcs*$A31+$N$9)^2*(4*bcs*$A31-3*$H$12+2*$N$9)*_xlfn.CSC(2*Lmda),0)))) -> 0 | CB31: =-fys*IF(bcs*$A31<=$N$3,0,IF(AND($N$3<bcs*$A31,bcs*$A31<$N$5),-(1/6)*(-bcs*$A31+$N$3)^2*(4*bcs*$A31-3*$H$12+2*$N$3)*_xlfn.CSC(2*Lmda),IF(AND($N$5<=bcs*$A31,bcs*$A31<=$N$6),-(1/6)*($N$3-$N$5)*($H$12*(6*bcs*$A31-3*$N$3-3*$N$5)+2*(-3*bcs^2*$A31^2+$N$3^2+$N$3*$N$5+$N$5^2))*_xlfn.CSC(2*Lmda),IF(AND($N$6<bcs*$A31,bcs*$A31<=$N$8),1/6*(-bcs*$A31+$N$8)^2*(4*bcs*$A31-3*$H$12+2*$N$8)*_xlfn.CSC(2*Lmda),0)))) -> 0 | CC31: =fys*IF(bts*$A31<=$N$2,0,IF(AND($N$2<bts*$A31,bts*$A31<$N$4),-(1/6)*(-bts*$A31+$N$2)^2*(4*bts*$A31-3*$H$12+2*$N$2)*_xlfn.CSC(2*Lmda),IF(AND($N$4<=bts*$A31,bts*$A31<=$N$7),-(1/6)*($N$2-$N$4)*($H$12*(6*bts*$A31-3*$N$2-3*$N$4)+2*(-3*bts^2*$A31^2+$N$2^2+$N$2*$N$4+$N$4^2))*_xlfn.CSC(2*Lmda),IF(AND($N$7<bts*$A31,bts*$A31<=$N$9),1/6*(-bts*$A31+$N$9)^2*(4*bts*$A31-3*$H$12+2*$N$9)*_xlfn.CSC(2*Lmda),0)))) -> 0 | CD31: =-fys*IF(bts*$A31<=$N$3,0,IF(AND($N$3<bts*$A31,bts*$A31<$N$5),-(1/6)*(-bts*$A31+$N$3)^2*(4*bts*$A31-3*$H$12+2*$N$3)*_xlfn.CSC(2*Lmda),IF(AND($N$5<=bts*$A31,bts*$A31<=$N$6),-(1/6)*($N$3-$N$5)*($H$12*(6*bts*$A31-3*$N$3-3*$N$5)+2*(-3*bts^2*$A31^2+$N$3^2+$N$3*$N$5+$N$5^2))*_xlfn.CSC(2*Lmda),IF(AND($N$6<bts*$A31,bts*$A31<=$N$8),1/6*(-bts*$A31+$N$8)^2*(4*bts*$A31-3*$H$12+2*$N$8)*_xlfn.CSC(2*Lmda),0)))) -> 0 | CE31: =-Ey*ec*IF(bts*$A31<=$N$2,0,IF(AND($A31<=$N$2,$N$2<bts*$A31,bts*$A31<=$N$4),-(((-bts*$A31+$N$2)^2*(bts*(-4+3*bts)*$A31^2+2*(-1+bts)*$A31*$N$2+$N$2^2-$H$12*((-3+2*bts)*$A31+$N$2))*_xlfn.CSC(2*Lmda))/(6*$A31)),IF(AND($A31<=$N$2,$N$4<bts*$A31),(($N$2-$N$4)^2*(-($N$2^2)+2*$N$2*($A31-$N$4)+(4*$A31-3*$N$4)*$N$4+$H$12*(-3*$A31+$N$2+2*$N$4))*_xlfn.CSC(2*Lmda))/(6*$A31),IF(AND($N$2<$A31,$A31<=$N$4,$N$2<bts*$A31,bts*$A31<=$N$4),-(1/6)*(-1+bts)^2*$A31*(-$H$12*($A31+2*bts*$A31-3*$N$2)+$A31*((1+2*bts+3*bts^2)*$A31-2*(1+2*bts)*$N$2))*_xlfn.CSC(2*Lmda),IF(AND($N$2<$A31,$A31<=$N$4,$N$4<bts*$A31),-((($A31-$N$4)^2*($A31^2+2*$A31*$N$4+3*$N$4^2-2*$N$2*($A31+2*$N$4)-$H$12*($A31-3*$N$2+2*$N$4))*_xlfn.CSC(2*Lmda))/(6*$A31)),0))))) -> 0 | CF31: =Ey*ec*IF(bts*$A31<=$N$3,0,IF(AND($A31<=$N$3,$N$3<bts*$A31,bts*$A31<=$N$5),-(((-bts*$A31+$N$3)^2*(bts*(-4+3*bts)*$A31^2+2*(-1+bts)*$A31*$N$3+$N$3^2-$H$12*((-3+2*bts)*$A31+$N$3))*_xlfn.CSC(2*Lmda))/(6*$A31)),IF(AND($A31<=$N$3,$N$5<bts*$A31),(($N$3-$N$5)^2*(-($N$3^2)+2*$N$3*($A31-$N$5)+(4*$A31-3*$N$5)*$N$5+$H$12*(-3*$A31+$N$3+2*$N$5))*_xlfn.CSC(2*Lmda))/(6*$A31),IF(AND($N$3<$A31,$A31<=$N$5,$N$3<bts*$A31,bts*$A31<=$N$5),-(1/6)*(-1+bts)^2*$A31*(-$H$12*($A31+2*bts*$A31-3*$N$3)+$A31*((1+2*bts+3*bts^2)*$A31-2*(1+2*bts)*$N$3))*_xlfn.CSC(2*Lmda),IF(AND($N$3<$A31,$A31<=$N$5,$N$5<bts*$A31),-((($A31-$N$5)^2*($A31^2+2*$A31*$N$5+3*$N$5^2-2*$N$3*($A31+2*$N$5)-$H$12*($A31-3*$N$3+2*$N$5))*_xlfn.CSC(2*Lmda))/(6*$A31)),0))))) -> 0 | CG31: =-Ey*ec*IF(bts*$A31<=$N$4,0,IF(AND($A31<=$N$4,$N$4<bts*$A31,bts*$A31<=$N$7),-(((bts*$A31-$N$4)*(-$N$2+$N$4)*(2*bts*(-3+2*bts)*$A31^2+2*(-3+2*bts)*$A31*$N$4+4*$N$4^2-3*$H$12*((-2+bts)*$A31+$N$4))*_xlfn.CSC(2*Lmda))/(6*$A31)),IF(AND($A31<=$N$4,$N$7<bts*$A31),(($N$2-$N$4)*($N$4-$N$7)*(6*$A31*$N$4-4*$N$4^2+6*$A31*$N$7-4*$N$4*$N$7-4*$N$7^2+3*$H$12*(-2*$A31+$N$4+$N$7))*_xlfn.CSC(2*Lmda))/(6*$A31),IF(AND($N$4<$A31,$A31<=$N$7,$N$4<bts*$A31,bts*$A31<=$N$7),1/6*(-1+bts)^2*$A31*(2*$A31+4*bts*$A31-3*$H$12)*($N$2-$N$4)*_xlfn.CSC(2*Lmda),IF(AND($N$4<$A31,$A31<=$N$7,$N$7<bts*$A31),(($N$2-$N$4)*($A31-$N$7)^2*(2*$A31-3*$H$12+4*$N$7)*_xlfn.CSC(2*Lmda))/(6*$A31),0))))) -> 0 | CH31: =Ey*ec*IF(bts*$A31<=$N$5,0,IF(AND($A31<=$N$5,$N$5<bts*$A31,bts*$A31<=$N$6),-(((bts*$A31-$N$5)*(-$N$3+$N$5)*(2*bts*(-3+2*bts)*$A31^2+2*(-3+2*bts)*$A31*$N$5+4*$N$5^2-3*$H$12*((-2+bts)*$A31+$N$5))*_xlfn.CSC(2*Lmda))/(6*$A31)),IF(AND($A31<=$N$5,$N$6<bts*$A31),(($N$3-$N$5)*($N$5-$N$6)*(6*$A31*$N$5-4*$N$5^2+6*$A31*$N$6-4*$N$5*$N$6-4*$N$6^2+3*$H$12*(-2*$A31+$N$5+$N$6))*_xlfn.CSC(2*Lmda))/(6*$A31),IF(AND($N$5<$A31,$A31<=$N$6,$N$5<bts*$A31,bts*$A31<=$N$6),1/6*(-1+bts)^2*$A31*(2*$A31+4*bts*$A31-3*$H$12)*($N$3-$N$5)*_xlfn.CSC(2*Lmda),IF(AND($N$5<$A31,$A31<=$N$6,$N$6<bts*$A31),(($N$3-$N$5)*($A31-$N$6)^2*(2*$A31-3*$H$12+4*$N$6)*_xlfn.CSC(2*Lmda))/(6*$A31),0))))) -> 0 | CI31: =-Ey*ec*IF(bts*$A31<=$N$7,0,IF(AND($A31<=$N$7,$N$7<bts*$A31,bts*$A31<=$N$9),((bts*$A31-$N$7)*(3*$N$7^3+$N$7^2*((-4+3*bts)*$A31-4*$N$9)+bts*$A31^2*(bts*(-4+3*bts)*$A31+(6-4*bts)*$N$9)+$A31*$N$7*(bts*(-4+3*bts)*$A31+(6-4*bts)*$N$9)+$H$12*(-2*$N$7^2+$N$7*((3-2*bts)*$A31+3*$N$9)+$A31*((3-2*bts)*bts*$A31+3*(-2+bts)*$N$9)))*_xlfn.CSC(2*Lmda))/(6*$A31),IF(AND($A31<=$N$7,$N$9<bts*$A31),(($N$7-$N$9)^2*(-3*$N$7^2+$N$7*(4*$A31-2*$N$9)+(2*$A31-$N$9)*$N$9+$H$12*(-3*$A31+2*$N$7+$N$9))*_xlfn.CSC(2*Lmda))/(6*$A31),IF(AND($N$7<$A31,$A31<=$N$9,$N$7<bts*$A31,bts*$A31<=$N$9),1/6*(-1+bts)^2*$A31*(-$H$12*($A31+2*bts*$A31-3*$N$9)+$A31*((1+2*bts+3*bts^2)*$A31-2*(1+2*bts)*$N$9))*_xlfn.CSC(2*Lmda),IF(AND($N$7<$A31,$A31<=$N$9,$N$9<bts*$A31),(($A31-$N$9)^3*($A31-$H$12+$N$9)*_xlfn.CSC(2*Lmda))/(6*$A31),0))))) -> 0 | CJ31: =Ey*ec*IF(bts*$A31<=$N$6,0,IF(AND($A31<=$N$6,$N$6<bts*$A31,bts*$A31<=$N$8),((bts*$A31-$N$6)*(3*$N$6^3+$N$6^2*((-4+3*bts)*$A31-4*$N$8)+bts*$A31^2*(bts*(-4+3*bts)*$A31+(6-4*bts)*$N$8)+$A31*$N$6*(bts*(-4+3*bts)*$A31+(6-4*bts)*$N$8)+$H$12*(-2*$N$6^2+$N$6*((3-2*bts)*$A31+3*$N$8)+$A31*((3-2*bts)*bts*$A31+3*(-2+bts)*$N$8)))*_xlfn.CSC(2*Lmda))/(6*$A31),IF(AND($A31<=$N$6,$N$8<bts*$A31),(($N$6-$N$8)^2*(-3*$N$6^2+$N$6*(4*$A31-2*$N$8)+(2*$A31-$N$8)*$N$8+$H$12*(-3*$A31+2*$N$6+$N$8))*_xlfn.CSC(2*Lmda))/(6*$A31),IF(AND($N$6<$A31,$A31<=$N$8,$N$6<bts*$A31,bts*$A31<=$N$8),1/6*(-1+bts)^2*$A31*(-$H$12*($A31+2*bts*$A31-3*$N$8)+$A31*((1+2*bts+3*bts^2)*$A31-2*(1+2*bts)*$N$8))*_xlfn.CSC(2*Lmda),IF(AND($N$6<$A31,$A31<=$N$8,$N$8<bts*$A31),(($A31-$N$8)^3*($A31-$H$12+$N$8)*_xlfn.CSC(2*Lmda))/(6*$A31),0))))) -> 0 | CK31: =Ey*ec*IF($A31<=$N$2,0,IF(AND(bcs*$A31<=$N$2,$N$2<$A31,$A31<=$N$4),-((($A31-$N$2)^3*($A31-$H$12+$N$2)*_xlfn.CSC(2*Lmda))/(6*$A31)),IF(AND(bcs*$A31<=$N$2,$N$4<$A31),(($N$2-$N$4)^2*($N$2^2+$H$12*(3*$A31-$N$2-2*$N$4)-2*$N$2*($A31-$N$4)+$N$4*(-4*$A31+3*$N$4))*_xlfn.CSC(2*Lmda))/(6*$A31),IF(AND($N$2<bcs*$A31,bcs*$A31<=$N$4,$N$2<$A31,$A31<=$N$4),-(1/6)*(-1+bcs)^2*$A31*(-$H$12*($A31+2*bcs*$A31-3*$N$2)+$A31*((1+2*bcs+3*bcs^2)*$A31-2*(1+2*bcs)*$N$2))*_xlfn.CSC(2*Lmda),IF(AND($N$2<bcs*$A31,bcs*$A31<=$N$4,$N$4<$A31),((4*bcs^3*$A31^4-3*bcs^4*$A31^4-4*$A31*$N$4^3+3*$N$4^4+$N$2*(2*bcs^2*(-3+2*bcs)*$A31^3+6*$A31*$N$4^2-4*$N$4^3)+$H$12*(bcs*$A31-$N$4)*(bcs*(-3+2*bcs)*$A31^2+(-3+2*bcs)*$A31*$N$4+2*$N$4^2-3*$N$2*((-2+bcs)*$A31+$N$4)))*_xlfn.CSC(2*Lmda))/(6*$A31),0))))) -> 0 | CL31: =-Ey*ec*IF($A31<=$N$3,0,IF(AND(bcs*$A31<=$N$3,$N$3<$A31,$A31<=$N$5),-((($A31-$N$3)^3*($A31-$H$12+$N$3)*_xlfn.CSC(2*Lmda))/(6*$A31)),IF(AND(bcs*$A31<=$N$3,$N$5<$A31),(($N$3-$N$5)^2*($N$3^2+$H$12*(3*$A31-$N$3-2*$N$5)-2*$N$3*($A31-$N$5)+$N$5*(-4*$A31+3*$N$5))*_xlfn.CSC(2*Lmda))/(6*$A31),IF(AND($N$3<bcs*$A31,bcs*$A31<=$N$5,$N$3<$A31,$A31<=$N$5),-(1/6)*(-1+bcs)^2*$A31*(-$H$12*($A31+2*bcs*$A31-3*$N$3)+$A31*((1+2*bcs+3*bcs^2)*$A31-2*(1+2*bcs)*$N$3))*_xlfn.CSC(2*Lmda),IF(AND($N$3<bcs*$A31,bcs*$A31<=$N$5,$N$5<$A31),((4*bcs^3*$A31^4-3*bcs^4*$A31^4-4*$A31*$N$5^3+3*$N$5^4+$N$3*(2*bcs^2*(-3+2*bcs)*$A31^3+6*$A31*$N$5^2-4*$N$5^3)+$H$12*(bcs*$A31-$N$5)*(bcs*(-3+2*bcs)*$A31^2+(-3+2*bcs)*$A31*$N$5+2*$N$5^2-3*$N$3*((-2+bcs)*$A31+$N$5)))*_xlfn.CSC(2*Lmda))/(6*$A31),0))))) -> 0 | CM31: =Ey*ec*IF($A31<=$N$4,0,IF(AND(bcs*$A31<=$N$4,$N$4<$A31,$A31<=$N$7),-((($A31-$N$4)^2*(-$N$2+$N$4)*(2*$A31-3*$H$12+4*$N$4)*_xlfn.CSC(2*Lmda))/(6*$A31)),IF(AND(bcs*$A31<=$N$4,$N$7<$A31),(($N$2-$N$4)*($N$4-$N$7)*(4*$N$4^2+$H$12*(6*$A31-3*$N$4-3*$N$7)-6*$A31*$N$7+4*$N$7^2+$N$4*(-6*$A31+4*$N$7))*_xlfn.CSC(2*Lmda))/(6*$A31),IF(AND($N$4<bcs*$A31,bcs*$A31<=$N$7,$N$4<$A31,$A31<=$N$7),1/6*(-1+bcs)^2*$A31*(2*$A31+4*bcs*$A31-3*$H$12)*($N$2-$N$4)*_xlfn.CSC(2*Lmda),IF(AND($N$4<bcs*$A31,bcs*$A31<=$N$7,$N$7<$A31),(($N$2-$N$4)*(bcs*$A31-$N$7)*(2*bcs*(-3+2*bcs)*$A31^2+2*(-3+2*bcs)*$A31*$N$7+4*$N$7^2-3*$H$12*((-2+bcs)*$A31+$N$7))*_xlfn.CSC(2*Lmda))/(6*$A31),0))))) -> 0 | CN31: =-Ey*ec*IF($A31<=$N$5,0,IF(AND(bcs*$A31<=$N$5,$N$5<$A31,$A31<=$N$6),-((($A31-$N$5)^2*(-$N$3+$N$5)*(2*$A31-3*$H$12+4*$N$5)*_xlfn.CSC(2*Lmda))/(6*$A31)),IF(AND(bcs*$A31<=$N$5,$N$6<$A31),(($N$3-$N$5)*($N$5-$N$6)*(4*$N$5^2+$H$12*(6*$A31-3*$N$5-3*$N$6)-6*$A31*$N$6+4*$N$6^2+$N$5*(-6*$A31+4*$N$6))*_xlfn.CSC(2*Lmda))/(6*$A31),IF(AND($N$5<bcs*$A31,bcs*$A31<=$N$6,$N$5<$A31,$A31<=$N$6),1/6*(-1+bcs)^2*$A31*(2*$A31+4*bcs*$A31-3*$H$12)*($N$3-$N$5)*_xlfn.CSC(2*Lmda),IF(AND($N$5<bcs*$A31,bcs*$A31<=$N$6,$A31>$N$6),(($N$3-$N$5)*(bcs*$A31-$N$6)*(2*bcs*(-3+2*bcs)*$A31^2+2*(-3+2*bcs)*$A31*$N$6+4*$N$6^2-3*$H$12*((-2+bcs)*$A31+$N$6))*_xlfn.CSC(2*Lmda))/(6*$A31),0))))) -> 0 | CO31: =Ey*ec*IF($A31<=$N$7,0,IF(AND(bcs*$A31<=$N$7,$N$7<$A31,$A31<=$N$9),(($A31-$N$7)^2*(3*$N$7^2-$H$12*($A31+2*$N$7-3*$N$9)+$A31*($A31-2*$N$9)+2*$N$7*($A31-2*$N$9))*_xlfn.CSC(2*Lmda))/(6*$A31),IF(AND(bcs*$A31<=$N$7,$N$9<$A31),(($N$7-$N$9)^2*(3*$N$7^2+$H$12*(3*$A31-2*$N$7-$N$9)+$N$9*(-2*$A31+$N$9)+$N$7*(-4*$A31+2*$N$9))*_xlfn.CSC(2*Lmda))/(6*$A31),IF(AND($N$7<bcs*$A31,bcs*$A31<=$N$9,$N$7<$A31,$A31<=$N$9),1/6*(-1+bcs)^2*$A31*(-$H$12*($A31+2*bcs*$A31-3*$N$9)+$A31*((1+2*bcs+3*bcs^2)*$A31-2*(1+2*bcs)*$N$9))*_xlfn.CSC(2*Lmda),IF(AND($N$7<bcs*$A31,bcs*$A31<=$N$9,$N$9<$A31),((-bcs*$A31+$N$9)^2*(bcs*(-4+3*bcs)*$A31^2+2*(-1+bcs)*$A31*$N$9+$N$9^2-$H$12*((-3+2*bcs)*$A31+$N$9))*_xlfn.CSC(2*Lmda))/(6*$A31),0))))) -> 0 | CP31: =-Ey*ec*IF($A31<=$N$6,0,IF(AND(bcs*$A31<=$N$6,$N$6<$A31,$A31<=$N$8),(($A31-$N$6)^2*(3*$N$6^2-$H$12*($A31+2*$N$6-3*$N$8)+$A31*($A31-2*$N$8)+2*$N$6*($A31-2*$N$8))*_xlfn.CSC(2*Lmda))/(6*$A31),IF(AND(bcs*$A31<=$N$6,$N$8<$A31),(($N$6-$N$8)^2*(3*$N$6^2+$H$12*(3*$A31-2*$N$6-$N$8)+$N$8*(-2*$A31+$N$8)+$N$6*(-4*$A31+2*$N$8))*_xlfn.CSC(2*Lmda))/(6*$A31),IF(AND($N$6<bcs*$A31,bcs*$A31<=$N$8,$N$6<$A31,$A31<=$N$8),1/6*(-1+bcs)^2*$A31*(-$H$12*($A31+2*bcs*$A31-3*$N$8)+$A31*((1+2*bcs+3*bcs^2)*$A31-2*(1+2*bcs)*$N$8))*_xlfn.CSC(2*Lmda),IF(AND($N$6<bcs*$A31,bcs*$A31<=$N$8,$N$8<$A31),((-bcs*$A31+$N$8)^2*(bcs*(-4+3*bcs)*$A31^2+2*(-1+bcs)*$A31*$N$8+$N$8^2-$H$12*((-3+2*bcs)*$A31+$N$8))*_xlfn.CSC(2*Lmda))/(6*$A31),0))))) -> 0 | CQ31: =fys*IF(bcs*$A31<=$N$11,0,IF(AND($N$11<bcs*$A31,bcs*$A31<$N$12),-(1/6)*(-bcs*$A31+$N$11)^2*(4*bcs*$A31-3*$H$12+2*$N$11)*_xlfn.CSC(2*Lmda),IF(AND($N$12<=bcs*$A31,bcs*$A31<=$N$13),-(1/6)*($N$11-$N$12)*($H$12*(6*bcs*$A31-3*$N$11-3*$N$12)+2*(-3*bcs^2*$A31^2+$N$11^2+$N$11*$N$12+$N$12^2))*_xlfn.CSC(2*Lmda),IF(AND($N$13<bcs*$A31,bcs*$A31<=$N$14),1/6*(-bcs*$A31+$N$14)^2*(4*bcs*$A31-3*$H$12+2*$N$14)*_xlfn.CSC(2*Lmda),0)))) -> 0 | CR31: =fys*IF(bts*$A31<=$N$11,0,IF(AND($N$11<bts*$A31,bts*$A31<$N$12),-(1/6)*(-bts*$A31+$N$11)^2*(4*bts*$A31-3*$H$12+2*$N$11)*_xlfn.CSC(2*Lmda),IF(AND($N$12<=bts*$A31,bts*$A31<=$N$13),-(1/6)*($N$11-$N$12)*($H$12*(6*bts*$A31-3*$N$11-3*$N$12)+2*(-3*bts^2*$A31^2+$N$11^2+$N$11*$N$12+$N$12^2))*_xlfn.CSC(2*Lmda),IF(AND($N$13<bts*$A31,bts*$A31<=$N$14),1/6*(-bts*$A31+$N$14)^2*(4*bts*$A31-3*$H$12+2*$N$14)*_xlfn.CSC(2*Lmda),0)))) -> 0 | CS31: =-Ey*ec*IF(bts*$A31<=$N$11,0,IF(AND($A31<=$N$11,$N$11<bts*$A31,bts*$A31<=$N$12),-(((-bts*$A31+$N$11)^2*(bts*(-4+3*bts)*$A31^2+2*(-1+bts)*$A31*$N$11+$N$11^2-$H$12*((-3+2*bts)*$A31+$N$11))*_xlfn.CSC(2*Lmda))/(6*$A31)),IF(AND($A31<=$N$11,$N$12<bts*$A31),(($N$11-$N$12)^2*(-($N$11^2)+2*$N$11*($A31-$N$12)+(4*$A31-3*$N$12)*$N$12+$H$12*(-3*$A31+$N$11+2*$N$12))*_xlfn.CSC(2*Lmda))/(6*$A31),IF(AND($N$11<$A31,$A31<=$N$12,$N$11<bts*$A31,bts*$A31<=$N$12),-(1/6)*(-1+bts)^2*$A31*(-$H$12*($A31+2*bts*$A31-3*$N$11)+$A31*((1+2*bts+3*bts^2)*$A31-2*(1+2*bts)*$N$11))*_xlfn.CSC(2*Lmda),IF(AND($N$11<$A31,$A31<=$N$12,$N$12<bts*$A31),-((($A31-$N$12)^2*($A31^2+2*$A31*$N$12+3*$N$12^2-2*$N$11*($A31+2*$N$12)-$H$12*($A31-3*$N$11+2*$N$12))*_xlfn.CSC(2*Lmda))/(6*$A31)),0))))) -> 0 | CT31: =-Ey*ec*IF(bts*$A31<=$N$12,0,IF(AND($A31<=$N$12,$N$12<bts*$A31,bts*$A31<=$N$13),-(((bts*$A31-$N$12)*(-$N$11+$N$12)*(2*bts*(-3+2*bts)*$A31^2+2*(-3+2*bts)*$A31*$N$12+4*$N$12^2-3*$H$12*((-2+bts)*$A31+$N$12))*_xlfn.CSC(2*Lmda))/(6*$A31)),IF(AND($A31<=$N$12,$N$13<bts*$A31),(($N$11-$N$12)*($N$12-$N$13)*(6*$A31*$N$12-4*$N$12^2+6*$A31*$N$13-4*$N$12*$N$13-4*$N$13^2+3*$H$12*(-2*$A31+$N$12+$N$13))*_xlfn.CSC(2*Lmda))/(6*$A31),IF(AND($N$12<$A31,$A31<=$N$13,$N$12<bts*$A31,bts*$A31<=$N$13),1/6*(-1+bts)^2*$A31*(2*$A31+4*bts*$A31-3*$H$12)*($N$11-$N$12)*_xlfn.CSC(2*Lmda),IF(AND($N$12<$A31,$A31<=$N$13,$N$13<bts*$A31),(($N$11-$N$12)*($A31-$N$13)^2*(2*$A31-3*$H$12+4*$N$13)*_xlfn.CSC(2*Lmda))/(6*$A31),0))))) -> 0 | CU31: =-Ey*ec*IF(bts*$A31<=$N$13,0,IF(AND($A31<=$N$13,$N$13<bts*$A31,bts*$A31<=$N$14),((bts*$A31-$N$13)*(3*$N$13^3+$N$13^2*((-4+3*bts)*$A31-4*$N$14)+bts*$A31^2*(bts*(-4+3*bts)*$A31+(6-4*bts)*$N$14)+$A31*$N$13*(bts*(-4+3*bts)*$A31+(6-4*bts)*$N$14)+$H$12*(-2*$N$13^2+$N$13*((3-2*bts)*$A31+3*$N$14)+$A31*((3-2*bts)*bts*$A31+3*(-2+bts)*$N$14)))*_xlfn.CSC(2*Lmda))/(6*$A31),IF(AND($A31<=$N$13,$N$14<bts*$A31),(($N$13-$N$14)^2*(-3*$N$13^2+$N$13*(4*$A31-2*$N$14)+(2*$A31-$N$14)*$N$14+$H$12*(-3*$A31+2*$N$13+$N$14))*_xlfn.CSC(2*Lmda))/(6*$A31),IF(AND($N$13<$A31,$A31<=$N$14,$N$13<bts*$A31,bts*$A31<=$N$14),1/6*(-1+bts)^2*$A31*(-$H$12*($A31+2*bts*$A31-3*$N$14)+$A31*((1+2*bts+3*bts^2)*$A31-2*(1+2*bts)*$N$14))*_xlfn.CSC(2*Lmda),IF(AND($N$13<$A31,$A31<=$N$14,$N$14<bts*$A31),(($A31-$N$14)^3*($A31-$H$12+$N$14)*_xlfn.CSC(2*Lmda))/(6*$A31),0))))) -> 0 | CV31: =Ey*ec*IF($A31<=$N$11,0,IF(AND(bcs*$A31<=$N$11,$N$11<$A31,$A31<=$N$12),-((($A31-$N$11)^3*($A31-$H$12+$N$11)*_xlfn.CSC(2*Lmda))/(6*$A31)),IF(AND(bcs*$A31<=$N$11,$N$12<$A31),(($N$11-$N$12)^2*($N$11^2+$H$12*(3*$A31-$N$11-2*$N$12)-2*$N$11*($A31-$N$12)+$N$12*(-4*$A31+3*$N$12))*_xlfn.CSC(2*Lmda))/(6*$A31),IF(AND($N$11<bcs*$A31,bcs*$A31<=$N$12,$N$11<$A31,$A31<=$N$12),-(1/6)*(-1+bcs)^2*$A31*(-$H$12*($A31+2*bcs*$A31-3*$N$11)+$A31*((1+2*bcs+3*bcs^2)*$A31-2*(1+2*bcs)*$N$11))*_xlfn.CSC(2*Lmda),IF(AND($N$11<bcs*$A31,bcs*$A31<=$N$12,$N$12<$A31),((4*bcs^3*$A31^4-3*bcs^4*$A31^4-4*$A31*$N$12^3+3*$N$12^4+$N$11*(2*bcs^2*(-3+2*bcs)*$A31^3+6*$A31*$N$12^2-4*$N$12^3)+$H$12*(bcs*$A31-$N$12)*(bcs*(-3+2*bcs)*$A31^2+(-3+2*bcs)*$A31*$N$12+2*$N$12^2-3*$N$11*((-2+bcs)*$A31+$N$12)))*_xlfn.CSC(2*Lmda))/(6*$A31),0))))) -> 0 | CW31: =Ey*ec*IF($A31<=$N$12,0,IF(AND(bcs*$A31<=$N$12,$N$12<$A31,$A31<=$N$13),-((($A31-$N$12)^2*(-$N$11+$N$12)*(2*$A31-3*$H$12+4*$N$12)*_xlfn.CSC(2*Lmda))/(6*$A31)),IF(AND(bcs*$A31<=$N$12,$N$13<$A31),(($N$11-$N$12)*($N$12-$N$13)*(4*$N$12^2+$H$12*(6*$A31-3*$N$12-3*$N$13)-6*$A31*$N$13+4*$N$13^2+$N$12*(-6*$A31+4*$N$13))*_xlfn.CSC(2*Lmda))/(6*$A31),IF(AND($N$12<bcs*$A31,bcs*$A31<=$N$13,$N$12<$A31,$A31<=$N$13),1/6*(-1+bcs)^2*$A31*(2*$A31+4*bcs*$A31-3*$H$12)*($N$11-$N$12)*_xlfn.CSC(2*Lmda),IF(AND($N$12<bcs*$A31,bcs*$A31<=$N$13,$N$13<$A31),(($N$11-$N$12)*(bcs*$A31-$N$13)*(2*bcs*(-3+2*bcs)*$A31^2+2*(-3+2*bcs)*$A31*$N$13+4*$N$13^2-3*$H$12*((-2+bcs)*$A31+$N$13))*_xlfn.CSC(2*Lmda))/(6*$A31),0))))) -> 0 | CX31: =Ey*ec*IF($A31<=$N$13,0,IF(AND(bcs*$A31<=$N$13,$N$13<$A31,$A31<=$N$14),(($A31-$N$13)^2*(3*$N$13^2-$H$12*($A31+2*$N$13-3*$N$14)+$A31*($A31-2*$N$14)+2*$N$13*($A31-2*$N$14))*_xlfn.CSC(2*Lmda))/(6*$A31),IF(AND(bcs*$A31<=$N$13,$N$14<$A31),(($N$13-$N$14)^2*(3*$N$13^2+$H$12*(3*$A31-2*$N$13-$N$14)+$N$14*(-2*$A31+$N$14)+$N$13*(-4*$A31+2*$N$14))*_xlfn.CSC(2*Lmda))/(6*$A31),IF(AND($N$13<bcs*$A31,bcs*$A31<=$N$14,$N$13<$A31,$A31<=$N$14),1/6*(-1+bcs)^2*$A31*(-$H$12*($A31+2*bcs*$A31-3*$N$14)+$A31*((1+2*bcs+3*bcs^2)*$A31-2*(1+2*bcs)*$N$14))*_xlfn.CSC(2*Lmda),IF(AND($N$13<bcs*$A31,bcs*$A31<=$N$14,$N$14<$A31),((-bcs*$A31+$N$14)^2*(bcs*(-4+3*bcs)*$A31^2+2*(-1+bcs)*$A31*$N$14+$N$14^2-$H$12*((-3+2*bcs)*$A31+$N$14))*_xlfn.CSC(2*Lmda))/(6*$A31),0))))) -> 0
A32: 1.181590829 | B32: 0.9 | C32: -5208171.98 | D32: 72113.42452 | E32: 50991.89149 | F32: 50991.89149 | G32: -5786857.755 | H32: 80126.02724 | I32: 56657.65721 | J32: 56657.65721 | U32: 2572.244545 | V32: 0 | W32: 0 | X32: -66402000 | Y32: 63976500 | Z32: 0 | AA32: 0 | AB32: 0 | AC32: 0 | AD32: 0 | AE32: 0 | AF32: 0 | AG32: 0 | AH32: 0 | AI32: 0 | AJ32: 0 | AK32: 0 | AL32: 0 | AM32: 0 | AN32: -33891000 | AO32: 31963400 | AP32: 0 | AQ32: 0 | AR32: 0 | AS32: 0 | AT32: 0 | AU32: 0 | AV32: 0 | AW32: 0 | AX32: 0 | AY32: 0 | AZ32: 0 | BA32: 0 | BB32: 0 | BC32: -1436330 | BD32: 0 | BE32: 0 | BF32: 0 | BG32: 0 | BH32: 0 | BI32: 0 | BJ32: 80126.02724 | BK32: 0 | BL32: 0 | BM32: 0 | BN32: 0 | BO32: 0 | BP32: 0 | BQ32: 0 | BR32: 0 | BS32: 0 | BT32: 0 | BU32: 0 | BV32: 0 | BW32: 0 | BX32: 0 | BY32: 0 | BZ32: 0 | CA32: 0 | CB32: 0 | CC32: 0 | CD32: 0 | CE32: 0 | CF32: 0 | CG32: 0 | CH32: 0 | CI32: 0 | CJ32: 0 | CK32: 0 | CL32: 0 | CM32: 0 | CN32: 0 | CO32: 0 | CP32: 0 | CQ32: 0 | CR32: 0 | CS32: 0 | CT32: 0 | CU32: 0 | CV32: 0 | CW32: 0 | CX32: 0
A33: 1.772386244 | B33: 0.9 | C33: -5205278.205 | D33: 160511.3835 | E33: 113498.6877 | F33: 113498.6877 | G33: -5783642.45 | H33: 178345.9817 | I33: 126109.653 | J33: 126109.653 | U33: 5787.550226 | V33: 0 | W33: 0 | X33: -66402000 | Y33: 63976500 | Z33: 0 | AA33: 0 | AB33: 0 | AC33: 0 | AD33: 0 | AE33: 0 | AF33: 0 | AG33: 0 | AH33: 0 | AI33: 0 | AJ33: 0 | AK33: 0 | AL33: 0 | AM33: 0 | AN33: -33891000 | AO33: 31963400 | AP33: 0 | AQ33: 0 | AR33: 0 | AS33: 0 | AT33: 0 | AU33: 0 | AV33: 0 | AW33: 0 | AX33: 0 | AY33: 0 | AZ33: 0 | BA33: 0 | BB33: 0 | BC33: -1436330 | BD33: 0 | BE33: 0 | BF33: 0 | BG33: 0 | BH33: 0 | BI33: 0 | BJ33: 178345.9817 | BK33: 0 | BL33: 0 | BM33: 0 | BN33: 0 | BO33: 0 | BP33: 0 | BQ33: 0 | BR33: 0 | BS33: 0 | BT33: 0 | BU33: 0 | BV33: 0 | BW33: 0 | BX33: 0 | BY33: 0 | BZ33: 0 | CA33: 0 | CB33: 0 | CC33: 0 | CD33: 0 | CE33: 0 | CF33: 0 | CG33: 0 | CH33: 0 | CI33: 0 | CJ33: 0 | CK33: 0 | CL33: 0 | CM33: 0 | CN33: 0 | CO33: 0 | CP33: 0 | CQ33: 0 | CR33: 0 | CS33: 0 | CT33: 0 | CU33: 0 | CV33: 0 | CW33: 0 | CX33: 0
A34: 2.363181658 | B34: 0.9 | C34: -5197878.599 | D34: 378209.2293 | E34: 267434.3107 | F34: 267434.3107 | G34: -5775420.666 | H34: 420232.477 | I34: 297149.2341 | J34: 297149.2341 | U34: 10288.97818 | V34: 0 | W34: 0 | X34: -66382829.67 | Y34: 63975239.26 | Z34: -15386.1563 | AA34: 1196.916939 | AB34: 0 | AC34: 0 | AD34: 0 | AE34: 0 | AF34: 0 | AG34: 0 | AH34: 0 | AI34: 0 | AJ34: 0 | AK34: 0 | AL34: 0 | AM34: 0 | AN34: -33891000 | AO34: 31963400 | AP34: 0 | AQ34: 0 | AR34: 0 | AS34: 0 | AT34: 0 | AU34: 0 | AV34: 0 | AW34: 0 | AX34: 0 | AY34: 0 | AZ34: 0 | BA34: 0 | BB34: 0 | BC34: -1436330 | BD34: 0 | BE34: 0 | BF34: 0 | BG34: 0 | BH34: 0 | BI34: 0 | BJ34: 313614.937 | BK34: 0 | BL34: 0 | BM34: 547140.0538 | BN34: -35771.58726 | BO34: -438709.8413 | BP34: 33958.91473 | BQ34: 0 | BR34: 0 | BS34: 0 | BT34: 0 | BU34: 0 | BV34: 0 | BW34: 0 | BX34: 0 | BY34: 0 | BZ34: 0 | CA34: 0 | CB34: 0 | CC34: 0 | CD34: 0 | CE34: 0 | CF34: 0 | CG34: 0 | CH34: 0 | CI34: 0 | CJ34: 0 | CK34: 0 | CL34: 0 | CM34: 0 | CN34: 0 | CO34: 0 | CP34: 0 | CQ34: 0 | CR34: 0 | CS34: 0 | CT34: 0 | CU34: 0 | CV34: 0 | CW34: 0 | CX34: 0
A35: 2.953977073 | B35: 0.9 | C35: -5173219.879 | D35: 1082006.294 | E35: 765093.9878 | F35: 765093.9878 | G35: -5748022.088 | H35: 1202229.216 | I35: 850104.4309 | J35: 850104.4309 | U35: 16076.52841 | V35: 0 | W35: 0 | X35: -66300885.55 | Y35: 63930260 | Z35: -64461.69429 | AA35: 34899.20108 | AB35: 0 | AC35: 0 | AD35: 0 | AE35: 0 | AF35: 19.42855436 | AG35: 0 | AH35: 0 | AI35: 0 | AJ35: 0 | AK35: 0 | AL35: 0 | AM35: 0 | AN35: -33891000 | AO35: 31963400 | AP35: 0 | AQ35: 0 | AR35: 0 | AS35: 0 | AT35: 0 | AU35: 0 | AV35: 0 | AW35: 0 | AX35: 0 | AY35: 0 | AZ35: 0 | BA35: 0 | BB35: 0 | BC35: -1436330 | BD35: 0 | BE35: 0 | BF35: 0 | BG35: 0 | BH35: 0 | BI35: 0 | BJ35: 484641.1735 | BK35: 0 | BL35: 0 | BM35: 2826853.927 | BN35: -1284987.645 | BO35: -1792689.236 | BP35: 967848.955 | BQ35: 0 | BR35: 0 | BS35: 0 | BT35: 0 | BU35: 562.0409369 | BV35: 0 | BW35: 0 | BX35: 0 | BY35: 0 | BZ35: 0 | CA35: 0 | CB35: 0 | CC35: 0 | CD35: 0 | CE35: 0 | CF35: 0 | CG35: 0 | CH35: 0 | CI35: 0 | CJ35: 0 | CK35: 0 | CL35: 0 | CM35: 0 | CN35: 0 | CO35: 0 | CP35: 0 | CQ35: 0 | CR35: 0 | CS35: 0 | CT35: 0 | CU35: 0 | CV35: 0 | CW35: 0 | CX35: 0
A36: 3.544772487 | B36: 0.9 | C36: -5136856.721 | D36: 2100836.976 | E36: 1485516.072 | F36: 1485516.072 | G36: -5707618.579 | H36: 2334263.306 | I36: 1650573.413 | J36: 1650573.413 | U36: 23150.20091 | V36: 0 | W36: 0 | X36: -66154480.82 | Y36: 63820820.12 | Z36: -133482.5282 | AA36: 97377.32262 | AB36: 0 | AC36: 0 | AD36: 0 | AE36: 0 | AF36: 3007.301648 | AG36: -80.17756205 | AH36: 0 | AI36: 0 | AJ36: 0 | AK36: 0 | AL36: 0 | AM36: 0 | AN36: -33891000 | AO36: 31963400 | AP36: 0 | AQ36: 0 | AR36: 0 | AS36: 0 | AT36: 0 | AU36: 0 | AV36: 0 | AW36: 0 | AX36: 0 | AY36: 0 | AZ36: 0 | BA36: 0 | BB36: 0 | BC36: -1436330 | BD36: 0 | BE36: 0 | BF36: 0 | BG36: 0 | BH36: 0 | BI36: 0 | BJ36: 690132.9714 | BK36: 0 | BL36: 0 | BM36: 6775334.622 | BN36: -4235351.994 | BO36: -3610246.632 | BP36: 2630561.255 | BQ36: 0 | BR36: 0 | BS36: 0 | BT36: 0 | BU36: 86108.68563 | BV36: -2275.602198 | BW36: 0 | BX36: 0 | BY36: 0 | BZ36: 0 | CA36: 0 | CB36: 0 | CC36: 0 | CD36: 0 | CE36: 0 | CF36: 0 | CG36: 0 | CH36: 0 | CI36: 0 | CJ36: 0 | CK36: 0 | CL36: 0 | CM36: 0 | CN36: 0 | CO36: 0 | CP36: 0 | CQ36: 0 | CR36: 0 | CS36: 0 | CT36: 0 | CU36: 0 | CV36: 0 | CW36: 0 | CX36: 0
A37: 4.135567902 | B37: 0.9 | C37: -5093309.237 | D37: 3299030.802 | E37: 2332767.052 | F37: 2332767.052 | G37: -5659232.485 | H37: 3665589.78 | I37: 2591963.391 | J37: 2591963.391 | U37: 31509.99568 | V37: 0 | W37: 0 | X37: -65943615.48 | Y37: 63646919.63 | Z37: -221212.8605 | AA37: 179090.1206 | AB37: 0 | AC37: 0 | AD37: 0 | AE37: 0 | AF37: 15661.37652 | AG37: -3655.27306 | AH37: 0 | AI37: 0 | AJ37: 0 | AK37: 0 | AL37: 0 | AM37: 0 | AN37: -33891000 | AO37: 31963400 | AP37: 0 | AQ37: 0 | AR37: 0 | AS37: 0 | AT37: 0 | AU37: 0 | AV37: 0 | AW37: 0 | AX37: 0 | AY37: 0 | AZ37: 0 | BA37: 0 | BB37: 0 | BC37: -1436330 | BD37: 0 | BE37: 0 | BF37: 0 | BG37: 0 | BH37: 0 | BI37: 0 | BJ37: 928798.611 | BK37: 0 | BL37: 0 | BM37: 12279646.24 | BN37: -8773928.738 | BO37: -5811109.48 | BP37: 4701038.391 | BQ37: 0 | BR37: 0 | BS37: 0 | BT37: 0 | BU37: 443809.0751 | BV37: -102664.3207 | BW37: 0 | BX37: 0 | BY37: 0 | BZ37: 0 | CA37: 0 | CB37: 0 | CC37: 0 | CD37: 0 | CE37: 0 | CF37: 0 | CG37: 0 | CH37: 0 | CI37: 0 | CJ37: 0 | CK37: 0 | CL37: 0 | CM37: 0 | CN37: 0 | CO37: 0 | CP37: 0 | CQ37: 0 | CR37: 0 | CS37: 0 | CT37: 0 | CU37: 0 | CV37: 0 | CW37: 0 | CX37: 0
A38: 4.726363316 | B38: 0.9 | C38: -5044837.483 | D38: 4608171.264 | E38: 3258469.149 | F38: 3258469.149 | G38: -5605374.981 | H38: 5120190.293 | I38: 3620521.277 | J38: 3620521.277 | U38: 41155.91272 | V38: 0 | W38: 0 | X38: -65668289.52 | Y38: 63408558.53 | Z38: -327652.6912 | AA38: 279512.417 | AB38: 0 | AC38: 0 | AD38: 0 | AE38: 0 | AF38: 41948.43057 | AG38: -16678.05901 | AH38: 0 | AI38: 0 | AJ38: 0 | AK38: 0 | AL38: 0 | AM38: 0 | AN38: -33891000 | AO38: 31963400 | AP38: 0 | AQ38: 0 | AR38: 0 | AS38: 0 | AT38: 0 | AU38: 0 | AV38: 0 | AW38: 0 | AX38: 0 | AY38: 0 | AZ38: 0 | BA38: 0 | BB38: 0 | BC38: -1436330 | BD38: 0 | BE38: 0 | BF38: 0 | BG38: 0 | BH38: 0 | BI38: 0 | BJ38: 1199346.373 | BK38: 0 | BL38: 0 | BM38: 19226852.89 | BN38: -14787781.98 | BO38: -8351120.182 | BP38: 7120062.004 | BQ38: 0 | BR38: 0 | BS38: 0 | BT38: 0 | BU38: 1176335.086 | BV38: -463503.8975 | BW38: 0 | BX38: 0 | BY38: 0 | BZ38: 0 | CA38: 0 | CB38: 0 | CC38: 0 | CD38: 0 | CE38: 0 | CF38: 0 | CG38: 0 | CH38: 0 | CI38: 0 | CJ38: 0 | CK38: 0 | CL38: 0 | CM38: 0 | CN38: 0 | CO38: 0 | CP38: 0 | CQ38: 0 | CR38: 0 | CS38: 0 | CT38: 0 | CU38: 0 | CV38: 0 | CW38: 0 | CX38: 0
A39: 5.317158731 | B39: 0.9 | C39: -4992697.046 | D39: 5989732.5 | E39: 4235380.468 | F39: 4235380.468 | G39: -5547441.162 | H39: 6655258.334 | I39: 4705978.298 | J39: 4705978.298 | U39: 52087.95204 | V39: 0 | W39: 0 | X39: -65328502.95 | Y39: 63105736.81 | Z39: -452802.0202 | AA39: 398644.2117 | AB39: 0 | AC39: 0 | AD39: 0 | AE39: 0 | AF39: 84072.22903 | AG39: -42747.39689 | AH39: 0 | AI39: 0 | AJ39: 0 | AK39: 0 | AL39: 0 | AM39: 0 | AN39: -33891000 | AO39: 31963400 | AP39: 0 | AQ39: 0 | AR39: 0 | AS39: 0 | AT39: 0 | AU39: 0 | AV39: 0 | AW39: 0 | AX39: 0 | AY39: 0 | AZ39: 0 | BA39: 0 | BB39: 0 | BC39: -1436330 | BD39: 0 | BE39: 0 | BF39: 0 | BG39: 0 | BH39: 0 | BI39: 0 | BJ39: 1500484.536 | BK39: 0 | BL39: 0 | BM39: 27504018.67 | BN39: -22163975.83 | BO39: -11186121.14 | BP39: 9843474.496 | BQ39: 0 | BR39: 0 | BS39: 0 | BT39: 0 | BU39: 2332753.167 | BV39: -1175375.573 | BW39: 0 | BX39: 0 | BY39: 0 | BZ39: 0 | CA39: 0 | CB39: 0 | CC39: 0 | CD39: 0 | CE39: 0 | CF39: 0 | CG39: 0 | CH39: 0 | CI39: 0 | CJ39: 0 | CK39: 0 | CL39: 0 | CM39: 0 | CN39: 0 | CO39: 0 | CP39: 0 | CQ39: 0 | CR39: 0 | CS39: 0 | CT39: 0 | CU39: 0 | CV39: 0 | CW39: 0 | CX39: 0
A40: 5.907954145 | B40: 0.9 | C40: -4937693.234 | D40: 7418633.596 | E40: 5245766.123 | F40: 5245766.123 | G40: -5486325.815 | H40: 8242926.218 | I40: 5828629.026 | J40: 5828629.026 | U40: 64306.11363 | V40: 2172.066362 | W40: 0 | X40: -64924255.77 | Y40: 62738454.48 | Z40: -596660.8475 | AA40: 536485.5048 | AB40: 0 | AC40: 0 | AD40: 0 | AE40: 0 | AF40: 141125.2353 | AG40: -84022.60358 | AH40: 0 | AI40: 0 | AJ40: 0 | AK40: 0 | AL40: 0 | AM40: 0 | AN40: -33891000 | AO40: 31963400 | AP40: 0 | AQ40: 0 | AR40: 0 | AS40: 0 | AT40: 0 | AU40: 0 | AV40: 0 | AW40: 0 | AX40: 0 | AY40: 0 | AZ40: 0 | BA40: 0 | BB40: 0 | BC40: -1436330 | BD40: 0 | BE40: 0 | BF40: 0 | BG40: 0 | BH40: 0 | BI40: 0 | BJ40: 1830921.382 | BK40: 62641.89549 | BL40: 0 | BM40: 36998207.69 | BN40: -30789574.38 | BO40: -14271954.75 | BP40: 12827118.27 | BQ40: 0 | BR40: 0 | BS40: 0 | BT40: 0 | BU40: 3871018.067 | BV40: -2285451.955 | BW40: 0 | BX40: 0 | BY40: 0 | BZ40: 0 | CA40: 0 | CB40: 0 | CC40: 0 | CD40: 0 | CE40: 0 | CF40: 0 | CG40: 0 | CH40: 0 | CI40: 0 | CJ40: 0 | CK40: 0 | CL40: 0 | CM40: 0 | CN40: 0 | CO40: 0 | CP40: 0 | CQ40: 0 | CR40: 0 | CS40: 0 | CT40: 0 | CU40: 0 | CV40: 0 | CW40: 0 | CX40: 0
A41: 6.498749559 | B41: 0.9 | C41: -4880757.575 | D41: 8866482.634 | E41: 6269549.996 | F41: 6269549.996 | G41: -5423063.973 | H41: 9851647.371 | I41: 6966166.662 | J41: 6966166.662 | U41: 77810.39749 | V41: 11931.51688 | W41: -39.45577119 | X41: -64455547.97 | Y41: 62306711.54 | Z41: -759229.1732 | AA41: 693036.2963 | AB41: 0 | AC41: 0 | AD41: 0 | AE41: 0 | AF41: 208031.0825 | AG41: -141838.2056 | AH41: 0 | AI41: 0 | AJ41: 0 | AK41: 0 | AL41: 0 | AM41: 0 | AN41: -33891000 | AO41: 31963400 | AP41: 0 | AQ41: 0 | AR41: 0 | AS41: 0 | AT41: 0 | AU41: 0 | AV41: 0 | AW41: 0 | AX41: 0 | AY41: 0 | AZ41: 0 | BA41: 0 | BB41: 0 | BC41: -1436330 | BD41: 0 | BE41: 0 | BF41: 0 | BG41: 0 | BH41: 0 | BI41: 0 | BJ41: 2189365.191 | BK41: 341671.49 | BL41: -1123.250554 | BM41: 47596484.05 | BN41: -40551641.74 | BO41: -17564463.42 | BP41: 16026835.72 | BQ41: 0 | BR41: 0 | BS41: 0 | BT41: 0 | BU41: 5630620.642 | BV41: -3816101.309 | BW41: 0 | BX41: 0 | BY41: 0 | BZ41: 0 | CA41: 0 | CB41: 0 | CC41: 0 | CD41: 0 | CE41: 0 | CF41: 0 | CG41: 0 | CH41: 0 | CI41: 0 | CJ41: 0 | CK41: 0 | CL41: 0 | CM41: 0 | CN41: 0 | CO41: 0 | CP41: 0 | CQ41: 0 | CR41: 0 | CS41: 0 | CT41: 0 | CU41: 0 | CV41: 0 | CW41: 0 | CX41: 0
A42: 7.089544974 | B42: 0.9 | C42: -4822569.156 | D42: 10312504.18 | E42: 7292041.634 | F42: 7292041.634 | G42: -5358410.173 | H42: 11458337.97 | I42: 8102268.482 | J42: 8102268.482 | U42: 92600.80362 | V42: 29535.01174 | W42: -4748.234345 | X42: -63922379.56 | Y42: 61810507.98 | Z42: -940506.9973 | AA42: 868296.5861 | AB42: 0 | AC42: 0 | AD42: 0 | AE42: 0 | AF42: 284535.7158 | AG42: -212325.3046 | AH42: 0 | AI42: 0 | AJ42: 0 | AK42: 0 | AL42: 0 | AM42: 0 | AN42: -33890522 | AO42: 31963400 | AP42: -474.1738484 | AQ42: 0 | AR42: 0 | AS42: 0 | AT42: 0 | AU42: 0 | AV42: 0 | AW42: 0 | AX42: 0 | AY42: 0 | AZ42: 0 | BA42: 0 | BB42: 0 | BC42: -1436330 | BD42: 0 | BE42: 0 | BF42: 0 | BG42: 0 | BH42: 0 | BI42: 0 | BJ42: 2574524.243 | BK42: 839749.0655 | BL42: -134208.2601 | BM42: 59185911.85 | BN42: -51337242.02 | BO42: -21019489.55 | BP42: 19398469.26 | BQ42: 0 | BR42: 0 | BS42: 0 | BT42: 0 | BU42: 7592320.026 | BV42: -5641775.805 | BW42: 0 | BX42: 0 | BY42: 0 | BZ42: 0 | CA42: 0 | CB42: 0 | CC42: 9889.001006 | CD42: 0 | CE42: -9809.836273 | CF42: 0 | CG42: 0 | CH42: 0 | CI42: 0 | CJ42: 0 | CK42: 0 | CL42: 0 | CM42: 0 | CN42: 0 | CO42: 0 | CP42: 0 | CQ42: 0 | CR42: 0 | CS42: 0 | CT42: 0 | CU42: 0 | CV42: 0 | CW42: 0 | CX42: 0
A43: 7.680340388 | B43: 0.9 | C43: -4759552.522 | D43: 11827133 | E43: 8363045.949 | F43: 8363045.949 | G43: -5288391.691 | H43: 13141258.89 | I43: 9292273.277 | J43: 9292273.277 | U43: 108677.332 | V43: 54982.55095 | W43: -17301.05726 | X43: -63324750.54 | Y43: 61249843.81 | Z43: -1140494.32 | AA43: 1062266.374 | AB43: 0 | AC43: 0 | AD43: 0 | AE43: 0 | AF43: 370639.1352 | AG43: -292411.1897 | AH43: 0 | AI43: 0 | AJ43: 0 | AK43: 0 | AL43: 0 | AM43: 0 | AN43: -33838149.7 | AO43: 31962031.52 | AP43: -48746.99776 | AQ43: 1351.384894 | AR43: 0 | AS43: 0 | AT43: 0 | AU43: 0 | AV43: 0 | AW43: 0 | AX43: 0 | AY43: 0 | AZ43: 0 | BA43: 0 | BB43: 0 | BC43: -1436330 | BD43: 0 | BE43: 0 | BF43: 0 | BG43: 0 | BH43: 0 | BI43: 0 | BJ43: 2985106.818 | BK43: 1552080.596 | BL43: -485487.6413 | BM43: 71653555.2 | BN43: -63033439.32 | BO43: -24592875.54 | BP43: 22897861.28 | BQ43: 0 | BR43: 0 | BS43: 0 | BT43: 0 | BU43: 9744254.02 | BV43: -7662506.816 | BW43: 0 | BX43: 0 | BY43: 0 | BZ43: 0 | CA43: 0 | CB43: 0 | CC43: 1060609.308 | CD43: -27069.42392 | CE43: -977560.3555 | CF43: 26730.76227 | CG43: 0 | CH43: 0 | CI43: 0 | CJ43: 0 | CK43: 0 | CL43: 0 | CM43: 0 | CN43: 0 | CO43: 0 | CP43: 0 | CQ43: 0 | CR43: 0 | CS43: 0 | CT43: 0 | CU43: 0 | CV43: 0 | CW43: 0 | CX43: 0
A44: 8.271135803 | B44: 0.9 | C44: -4683178.7 | D44: 13574510.05 | E44: 9598628.107 | F44: 9598628.107 | G44: -5203531.888 | H44: 15082788.94 | I44: 10665142.34 | J44: 10665142.34 | U44: 126039.9827 | V44: 88274.13449 | W44: -37697.92452 | X44: -62662660.9 | Y44: 60624719.03 | Z44: -1359191.141 | AA44: 1274945.661 | AB44: 0 | AC44: 0 | AD44: 0 | AE44: 0 | AF44: 466341.3407 | AG44: -382095.8609 | AH44: 0 | AI44: 0 | AJ44: 0 | AK44: 0 | AL44: 0 | AM44: 0 | AN44: -33699225.44 | AO44: 31903364.33 | AP44: -165437.6777 | AQ44: 55422.58438 | AR44: 0 | AS44: 0 | AT44: 0 | AU44: 0 | AV44: 0 | AW44: 0 | AX44: 0 | AY44: 0 | AZ44: 0 | BA44: 0 | BB44: 0 | BC44: -1436330 | BD44: 0 | BE44: 0 | BF44: 0 | BG44: 0 | BH44: 0 | BI44: 0 | BJ44: 3419821.197 | BK44: 2473872.054 | BL44: -1050167.368 | BM44: 84886478.21 | BN44: -75527297.73 | BO44: -28240463.79 | BP44: 26480854.18 | BQ44: 0 | BR44: 0 | BS44: 0 | BT44: 0 | BU44: 12074560.43 | BV44: -9866432.143 | BW44: 0 | BX44: 0 | BY44: 0 | BZ44: 0 | CA44: 0 | CB44: 0 | CC44: 3729623.293 | CD44: -1150307.532 | CE44: -3208828.255 | CF44: 1061076.401 | CG44: 0 | CH44: 0 | CI44: 0 | CJ44: 0 | CK44: 0 | CL44: 0 | CM44: 0 | CN44: 0 | CO44: 0 | CP44: 0 | CQ44: 0 | CR44: 0 | CS44: 0 | CT44: 0 | CU44: 0 | CV44: 0 | CW44: 0 | CX44: 0
A45: 8.861931217 | B45: 0.9 | C45: -4594569.616 | D45: 15519998.11 | E45: 10974295.91 | F45: 10974295.91 | G45: -5105077.351 | H45: 17244442.35 | I45: 12193662.12 | J45: 12193662.12 | U45: 144688.7557 | V45: 129409.7624 | W45: -65938.83612 | X45: -61936110.65 | Y45: 59935133.64 | Z45: -1596597.46 | AA45: 1506334.446 | AB45: 0 | AC45: 0 | AD45: 0 | AE45: 0 | AF45: 571642.3323 | AG45: -481379.3183 | AH45: 0 | AI45: 0 | AJ45: 0 | AK45: 0 | AL45: 0 | AM45: 0 | AN45: -33473749.24 | AO45: 31758145.18 | AP45: -338362.8764 | AQ45: 178036.915 | AR45: 0 | AS45: 0 | AT45: 0 | AU45: 0 | AV45: 0 | AW45: 0 | AX45: 0 | AY45: 0 | AZ45: 0 | BA45: 0 | BB45: 0 | BC45: -1436330 | BD45: 0 | BE45: 0 | BF45: 0 | BG45: 0 | BH45: 0 | BI45: 0 | BJ45: 3877375.659 | BK45: 3600329.415 | BL45: -1823453.413 | BM45: 98771744.97 | BN45: -88705881.38 | BO45: -31918096.7 | BP45: 30103290.38 | BQ45: 0 | BR45: 0 | BS45: 0 | BT45: 0 | BU45: 14571377.06 | BV45: -12241689.59 | BW45: 0 | BX45: 0 | BY45: 0 | BZ45: 0 | CA45: 0 | CB45: 0 | CC45: 7855886.684 | CD45: -3805460.84 | CE45: -6332624.918 | CF45: 3291645.034 | CG45: 0 | CH45: 0 | CI45: 0 | CJ45: 0 | CK45: 0 | CL45: 0 | CM45: 0 | CN45: 0 | CO45: 0 | CP45: 0 | CQ45: 0 | CR45: 0 | CS45: 0 | CT45: 0 | CU45: 0 | CV45: 0 | CW45: 0 | CX45: 0
A46: 9.452726632 | B46: 0.9 | C46: -4495802.349 | D46: 17612278.23 | E46: 12453761.37 | F46: 12453761.37 | G46: -4995335.943 | H46: 19569198.03 | I46: 13837512.63 | J46: 13837512.63 | U46: 164623.6509 | V46: 178389.4346 | W46: -102023.7921 | X46: -61145099.79 | Y46: 59181087.63 | Z46: -1852713.277 | AA46: 1756432.729 | AB46: 0 | AC46: 0 | AD46: 0 | AE46: 0 | AF46: 686542.11 | AG46: -590261.5617 | AH46: 0 | AI46: 0 | AJ46: 0 | AK46: 0 | AL46: 0 | AM46: 0 | AN46: -33161721.08 | AO46: 31526374.09 | AP46: -558385.0906 | AQ46: 357749.009 | AR46: 0 | AS46: 0 | AT46: 0 | AU46: 0 | AV46: 0 | AW46: 0 | AX46: 0 | AY46: 0 | AZ46: 0 | BA46: 0 | BB46: 0 | BC46: -1436330 | BD46: 0 | BE46: 0 | BF46: 0 | BG46: 0 | BH46: 0 | BI46: 0 | BJ46: 4356478.486 | BK46: 4926658.651 | BL46: -2800551.751 | BM46: 113196419.6 | BN46: -102456254.4 | BO46: -35581616.68 | BP46: 33721012.26 | BQ46: 0 | BR46: 0 | BS46: 0 | BT46: 0 | BU46: 17222841.7 | BV46: -14776416.96 | BW46: 0 | BX46: 0 | BY46: 0 | BZ46: 0 | CA46: 0 | CB46: 0 | CC46: 13278355.21 | CD46: -7831485.075 | CE46: -10058026.65 | CF46: 6371783.615 | CG46: 0 | CH46: 0 | CI46: 0 | CJ46: 0 | CK46: 0 | CL46: 0 | CM46: 0 | CN46: 0 | CO46: 0 | CP46: 0 | CQ46: 0 | CR46: 0 | CS46: 0 | CT46: 0 | CU46: 0 | CV46: 0 | CW46: 0 | CX46: 0
A47: 10.04352205 | B47: 0.9 | C47: -4388465.253 | D47: 19811832.95 | E47: 14009081.43 | F47: 14009081.43 | G47: -4876072.503 | H47: 22013147.72 | I47: 15565646.03 | J47: 15565646.03 | U47: 185844.6684 | V47: 235213.1512 | W47: -145952.7924 | X47: -60289628.32 | Y47: 58362581 | Z47: -2127538.593 | AA47: 2025240.51 | AB47: 0 | AC47: 0 | AD47: 0 | AE47: 0 | AF47: 811040.6738 | AG47: -708742.5913 | AH47: 0 | AI47: 0 | AJ47: 0 | AK47: 0 | AL47: 0 | AM47: 0 | AN47: -32763140.97 | AO47: 31208051.04 | AP47: -818516.8182 | AQ47: 585806.526 | AR47: 0 | AS47: 0 | AT47: 0 | AU47: 0 | AV47: 0 | AW47: 0 | AX47: 0 | AY47: 0 | AZ47: 0 | BA47: 0 | BB47: 0 | BC47: -1436330 | BD47: 0 | BE47: 0 | BF47: 0 | BG47: 0 | BH47: 0 | BI47: 0 | BJ47: 4855837.956 | BK47: 6448065.737 | BL47: -3976668.355 | BM47: 128047566.2 | BN47: -116665480.8 | BO47: -39186866.12 | BP47: 37289862.22 | BQ47: 0 | BR47: 0 | BS47: 0 | BT47: 0 | BU47: 20017092.18 | BV47: -17458752.06 | BW47: 0 | BX47: 0 | BY47: 0 | BZ47: 0 | CA47: 0 | CB47: 0 | CC47: 19835984.58 | CD47: -13067335.96 | CE47: -14150626.16 | CF47: 10024468.3 | CG47: 0 | CH47: 0 | CI47: 0 | CJ47: 0 | CK47: 0 | CL47: 0 | CM47: 0 | CN47: 0 | CO47: 0 | CP47: 0 | CQ47: 0 | CR47: 0 | CS47: 0 | CT47: 0 | CU47: 0 | CV47: 0 | CW47: 0 | CX47: 0
A48: 10.63431746 | B48: 0.9 | C48: -4273793.715 | D48: 22087668.14 | E48: 15618339.92 | F48: 15618339.92 | G48: -4748659.683 | H48: 24541853.49 | I48: 17353711.02 | J48: 17353711.02 | U48: 208351.8081 | V48: 299880.9121 | W48: -197725.837 | X48: -59369696.23 | Y48: 57479613.77 | Z48: -2421073.407 | AA48: 2312757.79 | AB48: 0 | AC48: 0 | AD48: 0 | AE48: 0 | AF48: 945138.0238 | AG48: -836822.407 | AH48: 0 | AI48: 0 | AJ48: 0 | AK48: 0 | AL48: 0 | AM48: 0 | AN48: -32278008.91 | AO48: 30803176.05 | AP48: -1113323.335 | AQ48: 855402.0906 | AR48: 0 | AS48: 0 | AT48: 0 | AU48: 0 | AV48: 0 | AW48: 0 | AX48: 0 | AY48: 0 | AZ48: 0 | BA48: 0 | BB48: 0 | BC48: -1436330 | BD48: 0 | BE48: 0 | BF48: 0 | BG48: 0 | BH48: 0 | BI48: 0 | BJ48: 5374162.351 | BK48: 8159756.647 | BL48: -5347009.2 | BM48: 143212248.8 | BN48: -131220624.7 | BO48: -42689687.43 | BP48: 40765682.68 | BQ48: 0 | BR48: 0 | BS48: 0 | BT48: 0 | BU48: 22942266.28 | BV48: -20276832.69 | BW48: 0 | BX48: 0 | BY48: 0 | BZ48: 0 | CA48: 0 | CB48: 0 | CC48: 27367730.55 | CD48: -19351969.23 | CE48: -18416833.57 | CF48: 14022962.99 | CG48: 0 | CH48: 0 | CI48: 0 | CJ48: 0 | CK48: 0 | CL48: 0 | CM48: 0 | CN48: 0 | CO48: 0 | CP48: 0 | CQ48: 0 | CR48: 0 | CS48: 0 | CT48: 0 | CU48: 0 | CV48: 0 | CW48: 0 | CX48: 0
A49: 11.22511288 | B49: 0.9 | C49: -4152600.058 | D49: 24417408.7 | E49: 17265715.27 | F49: 17265715.27 | G49: -4614000.064 | H49: 27130454.11 | I49: 19184128.08 | J49: 19184128.08 | U49: 232145.0702 | V49: 372392.7174 | W49: -257342.9259 | X49: -58385303.52 | Y49: 56532185.92 | Z49: -2733317.72 | AA49: 2618984.569 | AB49: 0 | AC49: 0 | AD49: 0 | AE49: 0 | AF49: 1088834.16 | AG49: -974501.0088 | AH49: 0 | AI49: 0 | AJ49: 0 | AK49: 0 | AL49: 0 | AM49: 0 | AN49: -31706324.9 | AO49: 30311749.1 | AP49: -1438524.433 | AQ49: 1161161.459 | AR49: 0 | AS49: 0 | AT49: 0 | AU49: 0 | AV49: 10.3636163 | AW49: 0 | AX49: 0 | AY49: 0 | AZ49: 0 | BA49: 0 | BB49: 0 | BC49: -1427829.813 | BD49: -8319.097225 | BE49: 0 | BF49: 0 | BG49: 0 | BH49: 0 | BI49: 0 | BJ49: 5910159.951 | BK49: 10056937.35 | BL49: -6906780.258 | BM49: 158577531.6 | BN49: -146008750.3 | BO49: -46045923.01 | BP49: 44104316.03 | BQ49: 0 | BR49: 0 | BS49: 0 | BT49: 0 | BU49: 25986501.81 | BV49: -23218796.66 | BW49: 0 | BX49: 0 | BY49: 0 | BZ49: 0 | CA49: 0 | CB49: 0 | CC49: 35712548.82 | CD49: -26524340.6 | CE49: -22693349.25 | CF49: 18177585.73 | CG49: 0 | CH49: 0 | CI49: 0 | CJ49: 0 | CK49: 214.2588351 | CL49: 0 | CM49: 0 | CN49: 0 | CO49: 0 | CP49: 0 | CQ49: 0 | CR49: 121390.4661 | CS49: -118791.8872 | CT49: 0 | CU49: 0 | CV49: 0 | CW49: 0 | CX49: 0
A50: 11.81590829 | B50: 0.9 | C50: -4022119.122 | D50: 26830379.06 | E50: 18971942.98 | F50: 18971942.98 | G50: -4469021.247 | H50: 29811532.29 | I50: 21079936.64 | J50: 21079936.64 | U50: 257224.4545 | V50: 452748.567 | W50: -324804.0593 | X50: -57336450.21 | Y50: 55520297.46 | Z50: -3064271.531 | AA50: 2943920.845 | AB50: 0 | AC50: 0 | AD50: 0 | AE50: 0 | AF50: 1242129.082 | AG50: -1121778.397 | AH50: 0 | AI50: 0 | AJ50: 0 | AK50: 0 | AL50: 0 | AM50: 0 | AN50: -31048088.94 | AO50: 29733770.2 | AP50: -1791690.685 | AQ50: 1498785.235 | AR50: 0 | AS50: 0 | AT50: 0 | AU50: 0 | AV50: 1034.120416 | AW50: 0 | AX50: 0 | AY50: 0 | AZ50: 0 | BA50: 0 | BB50: 0 | BC50: -1381525.413 | BD50: -10731.91166 | BE50: -39590.06595 | BF50: 0 | BG50: 0 | BH50: 0 | BI50: 0 | BJ50: 6462539.036 | BK50: 12134813.83 | BL50: -8651187.503 | BM50: 174030478.7 | BN50: -160916921.6 | BO50: -49211415.25 | BP50: 47261604.67 | BQ50: 0 | BR50: 0 | BS50: 0 | BT50: 0 | BU50: 29137936.57 | BV50: -26272781.76 | BW50: 0 | BX50: 0 | BY50: 0 | BZ50: 0 | CA50: 0 | CB50: 0 | CC50: 44709395.13 | CD50: -34423405.8 | CE50: -26859647.6 | CF50: 22326445.18 | CG50: 0 | CH50: 0 | CI50: 0 | CJ50: 0 | CK50: 21074.07154 | CL50: 0 | CM50: 0 | CN50: 0 | CO50: 0 | CP50: 0 | CQ50: 0 | CR50: 754581.2379 | CS50: -152593.5579 | CT50: -539383.086 | CU50: 0 | CV50: 0 | CW50: 0 | CX50: 0
A51: 12.4067037 | B51: 0.9 | C51: -3881576.407 | D51: 29325803.52 | E51: 20736474.53 | F51: 20736474.53 | G51: -4312862.674 | H51: 32584226.13 | I51: 23040527.26 | J51: 23040527.26 | U51: 283589.9611 | V51: 540948.4609 | W51: -400109.2369 | X51: -56223136.28 | Y51: 54443948.38 | Z51: -3413934.84 | AA51: 3287566.62 | AB51: 0 | AC51: 0 | AD51: 0 | AE51: 0 | AF51: 1405022.79 | AG51: -1278654.571 | AH51: 0 | AI51: 0 | AJ51: 0 | AK51: 0 | AL51: 0 | AM51: 0 | AN51: -30303301.03 | AO51: 29069239.36 | AP51: -2172602.38 | AQ51: 1865047.941 | AR51: 0 | AS51: 0 | AT51: 0 | AU51: 0 | AV51: 5630.216691 | AW51: -254.9843813 | AX51: 0 | AY51: 0 | AZ51: 0 | BA51: 0 | BB51: 0 | BC51: -1334818.434 | BD51: -9176.661103 | BE51: -77867.98535 | BF51: 0 | BG51: 0 | BH51: 0 | BI51: 0 | BJ51: 7030007.887 | BK51: 14388592.05 | BL51: -10575436.91 | BM51: 189458154.2 | BN51: -175832202.8 | BO51: -52142006.56 | BP51: 50193391.01 | BQ51: 0 | BR51: 0 | BS51: 0 | BT51: 0 | BU51: 32384708.38 | BV51: -29426925.8 | BW51: 0 | BX51: 0 | BY51: 0 | BZ51: 0 | CA51: 0 | CB51: 0 | CC51: 54197225.21 | CD51: -42888120.57 | CE51: -30842452.12 | CF51: 26333834.72 | CG51: 0 | CH51: 0 | CI51: 0 | CJ51: 0 | CK51: 113073.5715 | CL51: -5010.955001 | CM51: 0 | CN51: 0 | CO51: 0 | CP51: 0 | CQ51: 0 | CR51: 1350000.805 | CS51: -130477.4281 | CT51: -1022128.565 | CU51: 0 | CV51: 0 | CW51: 0 | CX51: 0
A52: 12.99749912 | B52: 0.9 | C52: -3732184.68 | D52: 31876012.12 | E52: 22539744.33 | F52: 22539744.33 | G52: -4146871.867 | H52: 35417791.24 | I52: 25044160.36 | J52: 25044160.36 | U52: 311241.5899 | V52: 636992.3992 | W52: -483258.4589 | X52: -55045361.74 | Y52: 53303138.69 | Z52: -3782307.648 | AA52: 3649921.894 | AB52: 0 | AC52: 0 | AD52: 0 | AE52: 0 | AF52: 1577515.285 | AG52: -1445129.531 | AH52: 0 | AI52: 0 | AJ52: 0 | AK52: 0 | AL52: 0 | AM52: 0 | AN52: -29471961.17 | AO52: 28318156.56 | AP52: -2581259.519 | AQ52: 2259059.631 | AR52: 0 | AS52: 0 | AT52: 0 | AU52: 0 | AV52: 16072.09818 | AW52: -2722.658199 | AX52: 0 | AY52: 0 | AZ52: 0 | BA52: 0 | BB52: 0 | BC52: -1288111.454 | BD52: -7762.796962 | BE52: -111095.041 | BF52: 0 | BG52: 0 | BH52: 0 | BI52: 0 | BJ52: 7611274.783 | BK52: 16813477.99 | BL52: -12674734.45 | BM52: 204747622.2 | BN52: -190641657.9 | BO52: -54793539.35 | BP52: 52855517.44 | BQ52: 0 | BR52: 0 | BS52: 0 | BT52: 0 | BU52: 35714955.02 | BV52: -32669366.58 | BW52: 0 | BX52: 0 | BY52: 0 | BZ52: 0 | CA52: 0 | CB52: 0 | CC52: 64014994.77 | CD52: -51757440.61 | CE52: -34573093.52 | CF52: 30113066.92 | CG52: 0 | CH52: 0 | CI52: 0 | CJ52: 0 | CK52: 318033.7953 | CL52: -52701.43264 | CM52: 0 | CN52: 0 | CO52: 0 | CP52: 0 | CQ52: 0 | CR52: 1901967.327 | CS52: -110371.8555 | CT52: -1400213.236 | CU52: 0 | CV52: 0 | CW52: 0 | CX52: 0
A53: 13.58829453 | B53: 0.9 | C53: -3574947.181 | D53: 34457925.32 | E53: 24365432.66 | F53: 24365432.66 | G53: -3972163.534 | H53: 38286583.69 | I53: 27072702.96 | J53: 27072702.96 | U53: 340179.3411 | V53: 740880.3818 | W53: -574251.7253 | X53: -53803126.58 | Y53: 52097868.39 | Z53: -4169389.954 | AA53: 4030986.666 | AB53: 0 | AC53: 0 | AD53: 0 | AE53: 0 | AF53: 1759606.565 | AG53: -1621203.277 | AH53: 0 | AI53: 0 | AJ53: 0 | AK53: 0 | AL53: 0 | AM53: 0 | AN53: -28554069.36 | AO53: 27480521.81 | AP53: -3017662.103 | AQ53: 2680816.765 | AR53: 0 | AS53: 0 | AT53: 0 | AU53: 0 | AV53: 34237.82874 | AW53: -9751.889344 | AX53: 0 | AY53: 0 | AZ53: 0 | BA53: 0 | BB53: 0 | BC53: -1241404.475 | BD53: -6471.877528 | BE53: -139930.0411 | BF53: 0 | BG53: 0 | BH53: 0 | BI53: 0 | BJ53: 8205048.005 | BK53: 19404677.62 | BL53: -14944286.1 | BM53: 219785946.7 | BN53: -205232351.1 | BO53: -57121856.01 | BP53: 55203826.37 | BQ53: 0 | BR53: 0 | BS53: 0 | BT53: 0 | BU53: 39116814.31 | BV53: -35988241.92 | BW53: 0 | BX53: 0 | BY53: 0 | BZ53: 0 | CA53: 0 | CB53: 0 | CC53: 74001659.55 | CD53: -60870321.67 | CE53: -37982902.53 | CF53: 33595401.9 | CG53: 0 | CH53: 0 | CI53: 0 | CJ53: 0 | CK53: 667382.497 | CL53: -185882.832 | CM53: 0 | CN53: 0 | CO53: 0 | CP53: 0 | CQ53: 0 | CR53: 2410480.805 | CS53: -92014.59363 | CT53: -1686797.303 | CU53: 0 | CV53: 0 | CW53: 0 | CX53: 0
A54: 14.17908995 | B54: 0.9 | C54: -3410701.261 | D54: 37052103.86 | E54: 26199793.89 | F54: 26199793.89 | G54: -3789668.068 | H54: 41169004.28 | I54: 29110882.1 | J54: 29110882.1 | U54: 370403.2145 | V54: 852612.4088 | W54: -673089.0359 | X54: -52496430.81 | Y54: 50828137.47 | Z54: -4575181.758 | AA54: 4430760.936 | AB54: 0 | AC54: 0 | AD54: 0 | AE54: 0 | AF54: 1951296.632 | AG54: -1806875.809 | AH54: 0 | AI54: 0 | AJ54: 0 | AK54: 0 | AL54: 0 | AM54: 0 | AN54: -27550025.96 | AO54: 26556335.11 | AP54: -3381986.103 | AQ54: 3130319.343 | AR54: -99425.12419 | AS54: 0 | AT54: 0 | AU54: 0 | AV54: 61692.46161 | AW54: -23303.01751 | AX54: 0 | AY54: 0 | AZ54: 0 | BA54: 0 | BB54: 0 | BC54: -1194697.496 | BD54: -5288.534715 | BE54: -164921.9927 | BF54: 0 | BG54: 0 | BH54: 0 | BI54: 0 | BJ54: 8810035.832 | BK54: 22157396.92 | BL54: -17379297.83 | BM54: 234460192 | BN54: -219491346.5 | BO54: -59082798.94 | BP54: 57194160.2 | BQ54: 0 | BR54: 0 | BS54: 0 | BT54: 0 | BU54: 42578424.05 | BV54: -39371689.6 | BW54: 0 | BX54: 0 | BY54: 0 | BZ54: 0 | CA54: 0 | CB54: 0 | CC54: 83992363.1 | CD54: -70065719.46 | CE54: -40051246.7 | CF54: 36712170.37 | CG54: -948164.9698 | CH54: 0 | CI54: 0 | CJ54: 0 | CK54: 1184319.416 | CL54: -437300.1034 | CM54: 0 | CN54: 0 | CO54: 0 | CP54: 0 | CQ54: 0 | CR54: 2875541.238 | CS54: -75187.10357 | CT54: -1892847.598 | CU54: 0 | CV54: 0 | CW54: 0 | CX54: 0
A55: 14.76988536 | B55: 0.9 | C55: -3242012.635 | D55: 39625138.11 | E55: 28019203.86 | F55: 28019203.86 | G55: -3602236.261 | H55: 44027931.23 | I55: 31132448.74 | J55: 31132448.74 | U55: 401913.2102 | V55: 972188.4801 | W55: -779770.391 | X55: -51125274.43 | Y55: 49493945.94 | Z55: -4999683.061 | AA55: 4849244.704 | AB55: 0 | AC55: 0 | AD55: 0 | AE55: 0 | AF55: 2152585.485 | AG55: -2002147.128 | AH55: 0 | AI55: 0 | AJ55: 0 | AK55: 0 | AL55: 0 | AM55: 0 | AN55: -26510631.21 | AO55: 25546831.21 | AP55: -2852858.937 | AQ55: 3432396.596 | AR55: -1070925.845 | AS55: 173943.6339 | AT55: 0 | AU55: 0 | AV55: 99750.64148 | AW55: -45022.72803 | AX55: 0 | AY55: 0 | AZ55: 0 | BA55: 0 | BB55: 0 | BC55: -1147990.516 | BD55: -4199.859326 | BE55: -186532.0616 | BF55: 0 | BG55: 0 | BH55: 0 | BI55: 0 | BJ55: 9424946.547 | BK55: 25066841.85 | BL55: -19974975.62 | BM55: 248657422 | BN55: -233305708.1 | BO55: -60632210.55 | BP55: 58782361.32 | BQ55: 0 | BR55: 0 | BS55: 0 | BT55: 0 | BU55: 46087922.04 | BV55: -42807847.44 | BW55: 0 | BX55: 0 | BY55: 0 | BZ55: 0 | CA55: 0 | CB55: 0 | CC55: 93374612.03 | CD55: -79171953.72 | CE55: -33418200.79 | CF55: 37881293.18 | CG55: -9703151.086 | CH55: 1502839.698 | CI55: 0 | CJ55: 0 | CK55: 1885461.878 | CL55: -831588.551 | CM55: 0 | CN55: 0 | CO55: 0 | CP55: 0 | CQ55: 0 | CR55: 3297148.626 | CS55: -59705.81271 | CT55: -2027576.263 | CU55: 0 | CV55: 0 | CW55: 0 | CX55: 0
A56: 15.36068078 | B56: 0.9 | C56: -3074293.907 | D56: 42123084.5 | E56: 29785518.69 | F56: 29785518.69 | G56: -3415882.118 | H56: 46803427.22 | I56: 33095020.77 | J56: 33095020.77 | U56: 434709.3281 | V56: 1099608.596 | W56: -894295.7903 | X56: -49689657.43 | Y56: 48095293.8 | Z56: -5442893.862 | AA56: 5286437.971 | AB56: 0 | AC56: 0 | AD56: 0 | AE56: 0 | AF56: 2363473.124 | AG56: -2207017.233 | AH56: 0 | AI56: 0 | AJ56: 0 | AK56: 0 | AL56: 0 | AM56: 0 | AN56: -25471236.46 | AO56: 24507436.46 | AP56: -2379077.352 | AQ56: 2915727.705 | AR56: -1938112.968 | AS56: 1140130.534 | AT56: 0 | AU56: 0 | AV56: 149524.76 | AW56: -76304.37005 | AX56: 0 | AY56: 0 | AZ56: 0 | BA56: 0 | BB56: 0 | BC56: -1101283.537 | BD56: -3194.928198 | BE56: -205150.4649 | BF56: 0 | BG56: 0 | BH56: 0 | BI56: 0 | BJ56: 10048488.43 | BK56: 28128218.4 | BL56: -22726525.44 | BM56: 262264700.9 | BN56: -246562500.1 | BO56: -61725933.23 | BP56: 59924272.15 | BQ56: 0 | BR56: 0 | BS56: 0 | BT56: 0 | BU56: 49633446.09 | BV56: -46284853.23 | BW56: 0 | BX56: 0 | BY56: 0 | BZ56: 0 | CA56: 0 | CB56: 0 | CC56: 101789877.7 | CD56: -87587219.4 | CE56: -27544829.52 | CF56: 31814635.82 | CG56: -16601612.82 | CH56: 9306874.784 | CI56: 0 | CJ56: 0 | CK56: 2782110.647 | CL56: -1386833.38 | CM56: 0 | CN56: 0 | CO56: 0 | CP56: 0 | CQ56: 0 | CR56: 3675302.97 | CS56: -45415.39038 | CT56: -2098778.186 | CU56: 0 | CV56: 0 | CW56: 0 | CX56: 0
A57: 15.95147619 | B57: 0.9 | C57: -2908064.995 | D57: 44539957.21 | E57: 31494505.78 | F57: 31494505.78 | G57: -3231183.327 | H57: 49488841.34 | I57: 34993895.31 | J57: 34993895.31 | U57: 468791.5683 | V57: 1234872.756 | W57: -1016665.234 | X57: -48189579.82 | Y57: 46632181.05 | Z57: -5904814.161 | AA57: 5742340.736 | AB57: 0 | AC57: 0 | AD57: 0 | AE57: 0 | AF57: 2583959.549 | AG57: -2421486.123 | AH57: 0 | AI57: 0 | AJ57: 0 | AK57: 0 | AL57: 0 | AM57: 0 | AN57: -24431841.71 | AO57: 23468041.71 | AP57: -1956741.202 | AQ57: 2450396.601 | AR57: -2712576.892 | AS57: 2006260.919 | AT57: 0 | AU57: 0 | AV57: 211962.4102 | AW57: -118334.8706 | AX57: 0 | AY57: 0 | AZ57: 0 | BA57: 0 | BB57: 0 | BC57: -1054576.558 | BD57: -2264.436413 | BE57: -221109.6101 | BF57: 0 | BG57: 0 | BH57: 0 | BI57: 0 | BJ57: 10679369.76 | BK57: 31336732.53 | BL57: -25629153.26 | BM57: 275169092.8 | BN57: -259148786.5 | BO57: -62319809.39 | BP57: 60575735.07 | BQ57: 0 | BR57: 0 | BS57: 0 | BT57: 0 | BU57: 53203133.99 | BV57: -49790844.79 | BW57: 0 | BX57: 0 | BY57: 0 | BZ57: 0 | CA57: 0 | CB57: 0 | CC57: 109238160.1 | CD57: -95035501.83 | CE57: -22375416.27 | CF57: 26412194.21 | CG57: -21840518.98 | CH57: 15384274.78 | CI57: 0 | CJ57: 0 | CK57: 3881234.472 | CL57: -2115782.68 | CM57: 0 | CN57: 0 | CO57: 0 | CP57: 0 | CQ57: 0 | CR57: 4010004.269 | CS57: -32183.51786 | CT57: -2113093.458 | CU57: 0 | CV57: 0 | CW57: 0 | CX57: 0
A58: 16.54227161 | B58: 0.9 | C58: -2743042.257 | D58: 46877099.78 | E58: 33147115.14 | F58: 33147115.14 | G58: -3047824.73 | H58: 52085666.43 | I58: 36830127.93 | J58: 36830127.93 | U58: 504159.9308 | V58: 1377980.96 | W58: -1146878.722 | X58: -46625041.6 | Y58: 45104607.68 | Z58: -6385443.959 | AA58: 6216953 | AB58: 0 | AC58: 0 | AD58: 0 | AE58: 0 | AF58: 2814044.76 | AG58: -2645553.8 | AH58: 0 | AI58: 0 | AJ58: 0 | AK58: 0 | AL58: 0 | AM58: 0 | AN58: -23392446.96 | AO58: 22428646.96 | AP58: -1582507.507 | AQ58: 2033071.835 | AR58: -3404252.247 | AS58: 2783055.129 | AT58: 0 | AU58: 0 | AV58: 287875.8144 | AW58: -172131.5957 | AX58: 0 | AY58: 0 | AZ58: 0 | BA58: 0 | BB58: 0 | BC58: -1007869.578 | BD58: -1400.408327 | BE58: -234694.4176 | BF58: 0 | BG58: 0 | BH58: 0 | BI58: 0 | BJ58: 11316298.81 | BK58: 34687590.23 | BL58: -28678065.06 | BM58: 287257661.9 | BN58: -270951631.6 | BO58: -62369681.43 | BP58: 60692592.5 | BQ58: 0 | BR58: 0 | BS58: 0 | BT58: 0 | BU58: 56785123.55 | BV58: -53313959.91 | BW58: 0 | BX58: 0 | BY58: 0 | BZ58: 0 | CA58: 0 | CB58: 0 | CC58: 115719459.3 | CD58: -101516801 | CE58: -17859641.04 | CF58: 21629777.58 | CG58: -25588699.95 | CH58: 19911057.18 | CI58: 0 | CJ58: 0 | CK58: 5186243.659 | CL58: -3026800.477 | CM58: 0 | CN58: 0 | CO58: 0 | CP58: 0 | CQ58: 0 | CR58: 4301252.524 | CS58: -19896.77908 | CT58: -2076213.584 | CU58: 0 | CV58: 0 | CW58: 0 | CX58: 0
A59: 17.13306702 | B59: 0.9 | C59: -2578981.174 | D59: 49135510.09 | E59: 34744052.38 | F59: 34744052.38 | G59: -2865534.638 | H59: 54595011.21 | I59: 38604502.65 | J59: 38604502.65 | U59: 540814.4156 | V59: 1528933.209 | W59: -1284936.254 | X59: -45014087.44 | Y59: 43530618.37 | Z59: -5708124.989 | AA59: 5560179.224 | AB59: -1159090.26 | AC59: 1132527.531 | AD59: 0 | AE59: 0 | AF59: 3053728.757 | AG59: -2879220.263 | AH59: 0 | AI59: 0 | AJ59: 0 | AK59: 0 | AL59: 0 | AM59: 0 | AN59: -22353052.21 | AO59: 21389252.21 | AP59: -1253494.385 | AQ59: 1660881.472 | AR59: -4021703.365 | AS59: 3479754.838 | AT59: 0 | AU59: 0 | AV59: 377965.1646 | AW59: -238571.5851 | AX59: 0 | AY59: 0 | AZ59: 0 | BA59: 0 | BB59: 0 | BC59: -961162.5991 | BD59: -595.9683846 | BE59: -246150.5086 | BF59: 0 | BG59: 0 | BH59: 0 | BI59: 0 | BJ59: 11957983.87 | BK59: 38175997.45 | BL59: -31868466.81 | BM59: 298297762.2 | BN59: -281738389.3 | BO59: -53903986.39 | BP59: 52482283.13 | BQ59: -7810909.688 | BR59: 7631908.032 | BS59: 0 | BT59: 0 | BU59: 60367552.58 | BV59: -56842336.4 | BW59: 0 | BX59: 0 | BY59: 0 | BZ59: 0 | CA59: 0 | CB59: 0 | CC59: 121233775.3 | CD59: -107031117 | CE59: -13951649.96 | CF59: 17426815.95 | CG59: -27991699.19 | CH59: 23038961.18 | CI59: 0 | CJ59: 0 | CK59: 6697603.599 | CL59: -4124622.61 | CM59: 0 | CN59: 0 | CO59: 0 | CP59: 0 | CQ59: 0 | CR59: 4549047.734 | CS59: -8457.401599 | CT59: -1993045.034 | CU59: 0 | CV59: 0 | CW59: 0 | CX59: 0
A60: 17.72386243 | B60: 0.9 | C60: -2415669.83 | D60: 51315897.94 | E60: 36285819.42 | F60: 36285819.42 | G60: -2684077.588 | H60: 57017664.38 | I60: 40317577.13 | J60: 40317577.13 | U60: 578755.0226 | V60: 1687729.502 | W60: -1430837.831 | X60: -43401090.45 | Y60: 41954586.23 | Z60: -4742655.692 | AA60: 4620969.808 | AB60: -2567546.38 | AC60: 2508706.236 | AD60: 0 | AE60: 0 | AF60: 3303011.54 | AG60: -3122485.512 | AH60: 0 | AI60: 0 | AJ60: 0 | AK60: 0 | AL60: 0 | AM60: 0 | AN60: -21313657.45 | AO60: 20349857.45 | AP60: -967204.2063 | AQ60: 1331336.497 | AR60: -4572352.672 | AS60: 4104369.496 | AT60: 0 | AU60: 0 | AV60: 482837.2935 | AW60: -318414.9398 | AX60: 0 | AY60: 0 | AZ60: 0 | BA60: 0 | BB60: 0 | BC60: -914455.6198 | BD60: -4.264759904 | BE60: -255690.7547 | BF60: 0 | BG60: 159.1069881 | BH60: 0 | BI60: 0 | BJ60: 12603133.22 | BK60: 41797160.19 | BL60: -35195564.48 | BM60: 307939611 | BN60: -291159277.1 | BO60: -43977046.81 | BP60: 42831654.97 | BQ60: -16124816.72 | BR60: 15755286.28 | BS60: 0 | BT60: 0 | BU60: 63938558.88 | BV60: -60364112.06 | BW60: 0 | BX60: 0 | BY60: 0 | BZ60: 0 | CA60: 0 | CB60: 0 | CC60: 125781108 | CD60: -111578449.6 | CE60: -10609311 | CF60: 13765756.58 | CG60: -29175654.33 | CH60: 24899494.12 | CI60: 0 | CJ60: 0 | CK60: 8413325.587 | CL60: -5410961.429 | CM60: 0 | CN60: 0 | CO60: 0 | CP60: 0 | CQ60: 0 | CR60: 4753389.899 | CS60: -59.99497789 | CT60: -1867840.084 | CU60: 0 | CV60: 2279.345694 | CW60: 0 | CX60: 0
A61: 18.31465785 | B61: 0.9 | C61: -2252923.651 | D61: 53418731.56 | E61: 37772747.33 | F61: 37772747.33 | G61: -2503248.502 | H61: 59354146.18 | I61: 41969719.25 | J61: 41969719.25 | U61: 617981.7519 | V61: 1854369.839 | W61: -1584583.452 | X61: -41788093.47 | Y61: 40378554.1 | Z61: -3888869.154 | AA61: 3790083.15 | AB61: -3829385.62 | AC61: 3741628.061 | AD61: 0 | AE61: 0 | AF61: 3561893.11 | AG61: -3375349.547 | AH61: 0 | AI61: 0 | AJ61: 0 | AK61: 0 | AL61: 0 | AM61: 0 | AN61: -20274262.7 | AO61: 19310462.7 | AP61: -721461.6164 | AQ61: 1042269.061 | AR61: -5062664.859 | AS61: 4663875.075 | AT61: 0 | AU61: 0 | AV61: 603020.7331 | AW61: -412323.6833 | AX61: 0 | AY61: 0 | AZ61: 0 | BA61: 0 | BB61: 0 | BC61: -867748.6404 | BD61: 0 | BE61: -264218.3138 | BF61: 0 | BG61: 857.2134467 | BH61: 717.7535617 | BI61: 0 | BJ61: 13250455.14 | BK61: 45546284.41 | BL61: -38654564.05 | BM61: 316168463.3 | BN61: -299199549.8 | BO61: -35386622.91 | BP61: 34476234.72 | BQ61: -22226101.06 | BR61: 21716748.24 | BS61: 0 | BT61: 0 | BU61: 67486280.25 | BV61: -63867424.69 | BW61: 0 | BX61: 0 | BY61: 0 | BZ61: 0 | CA61: 0 | CB61: 0 | CC61: 129361457.4 | CD61: -115158799.1 | CE61: -7793613.62 | CF61: 10611577.39 | CG61: -29250427.22 | CH61: 25607194.61 | CI61: 0 | CJ61: 0 | CK61: 10329362.64 | CL61: -6884993.452 | CM61: 0 | CN61: 0 | CO61: 0 | CP61: 0 | CQ61: 0 | CR61: 4914279.019 | CS61: 0 | CT61: -1714258.2 | CU61: 0 | CV61: 12207.2803 | CW61: 9955.873969 | CX61: 0
A62: 18.90545326 | B62: =IF($B$2="ACI 318-14",IF(ec/$A62*(-$H$11+$A62)<-0.005,0.9,IF(AND(-0.005<ec/$A62*(-$H$11+$A62),ec/$A62*(-$H$11+$A62)<-eyt),0.65+0.25*(-ec/$A62*($A62-$H$11)-eyt)/(0.005-eyt),0.65)),IF(ec/$A62*(-$H$11+$A62)<-0.003-eyt,0.9,IF(AND(-0.003-eyt<ec/$A62*(-$H$11+$A62),ec/$A62*(-$H$11+$A62)<-eyt),0.65+0.25*(-ec/$A62*($A62-$H$11)-eyt)/(0.003),0.65))) -> 0.9 | C62: =$B62*MIN(G62,$E$16) -> -2090581.138 | D62: =$B62*H62 -> 55444275.32 | E62: =$B62*I62 -> 39205023.06 | F62: =$B62*J62 -> 39205023.06 | G62: =SUM(U62:AK62)+IF($K$15="Yes", SUM(AL62:BI62),0) -> -2322867.931 | H62: =SUM(BJ62:BZ62)+IF($K$15="Yes",SUM(CA62:CX62),0) -> 61604750.35 | I62: 43561136.73 | J62: 43561136.73 | U62: =f1c*IF(beta*$A62<$H$4,beta^2*$A62^2*_xlfn.CSC(2*Lmda),IF(AND($H$4<=beta*$A62,beta*$A62<=$H$9),(2*beta*$A62-$H$4)*$H$4*_xlfn.CSC(2*Lmda),IF(AND($H$9<beta*$A62,beta*$A62<=$H$12),_xlfn.CSC(2*Lmda)*(-(beta^2)*$A62^2+2*beta*$A62*$H$12-($H$12^2)+b*h*SIN(2*Lmda)),b*h))) -> 658494.6035 | V62: =fy*IF(bc*$A62<=$H$2,0,IF(AND($H$2<bc*$A62,bc*$A62<$H$5),(-bc*$A62+$H$2)^2*_xlfn.CSC(2*Lmda),IF(AND($H$5<=bc*$A62,bc*$A62<=$H$8),-(2*bc*$A62-$H$2-$H$5)*($H$2-$H$5)*_xlfn.CSC(2*Lmda),IF(AND($H$8<bc*$A62,bc*$A62<=$H$11),(b-2*rb)*(h-2*rh)-(bc^2)*$A62^2*_xlfn.CSC(2*Lmda)-($H$11^2)*_xlfn.CSC(2*Lmda)+bc*$A62*$H$11*_xlfn.CSC(Lmda)*_xlfn.SEC(Lmda),(b-2*rb)*(h-2*rh))))) -> 2028854.221 | W62: =-fy*IF(bc*$A62<=$H$3,0,IF(AND($H$3<bc*$A62,bc*$A62<$H$6),(-bc*$A62+$H$3)^2*_xlfn.CSC(2*Lmda),IF(AND($H$6<=bc*$A62,bc*$A62<=$H$7),-(2*bc*$A62-$H$3-$H$6)*($H$3-$H$6)*_xlfn.CSC(2*Lmda),IF(AND($H$7<bc*$A62,bc*$A62<=$H$10),(h-2*(rh+t1b))*(b-2*(rb+t1h))-(bc^2)*$A62^2*_xlfn.CSC(2*Lmda)-($H$10^2)*_xlfn.CSC(2*Lmda)+bc*$A62*$H$10*_xlfn.CSC(Lmda)*_xlfn.SEC(Lmda),(h-2*(rh+t1b))*(b-2*(rb+t1h)))))) -> -1746173.118 | X62: =-fy*IF(bt*$A62<=$H$2,(b-2*rb)*(h-2*rh),IF(AND($H$2<bt*$A62,bt*$A62<$H$5),(b-2*rb)*(h-2*rh)-$A62^2*bt^2*_xlfn.CSC(2*Lmda)-_xlfn.CSC(2*Lmda)*$H$2*(-2*$A62*bt+$H$2),IF(AND($H$5<=bt*$A62,bt*$A62<=$H$8),(b-2*rb)*(h-2*rh)+_xlfn.CSC(2*Lmda)*(2*$A62*bt-$H$2-$H$5)*($H$2-$H$5),IF(AND($H$8<bt*$A62,bt*$A62<=$H$11),_xlfn.CSC(2*Lmda)*(-$A62*bt+$H$11)^2,0)))) -> -40175096.48 | Y62: =fy*IF(bt*$A62<=$H$3,(h-2*(rh+t1b))*(b-2*(rb+t1h)),IF(AND($H$3<bt*$A62,bt*$A62<$H$6),(h-2*(rh+t1b))*(b-2*(rb+t1h))-(bt^2)*$A62^2*_xlfn.CSC(2*Lmda)-($H$3^2)*_xlfn.CSC(2*Lmda)+bt*$A62*$H$3*_xlfn.CSC(Lmda)*_xlfn.SEC(Lmda),IF(AND($H$6<=bt*$A62,bt*$A62<=$H$7),(h-2*(rh+t1b))*(b-2*(rb+t1h))-($H$3^2)*_xlfn.CSC(2*Lmda)+$H$6^2*_xlfn.CSC(2*Lmda)+bt*$A62*$H$3*_xlfn.CSC(Lmda)*_xlfn.SEC(Lmda)-bt*$A62*$H$6*_xlfn.CSC(Lmda)*_xlfn.SEC(Lmda),IF(AND($H$7<bt*$A62,bt*$A62<=$H$10),(-bt*$A62+$H$10)^2*_xlfn.CSC(2*Lmda),0)))) -> 38802521.97 | Z62: =-Ey*ec*IF(bt*$A62<=$H$2,0,IF(AND($A62<=$H$2,$H$2<bt*$A62,bt*$A62<=$H$5),((-bt*$A62+$H$2)^2*((-3+2*bt)*$A62+$H$2)*_xlfn.CSC(Lmda)*_xlfn.SEC(Lmda))/(6*$A62),IF(AND($A62<=$H$2,$H$5<bt*$A62),-(((3*$A62-$H$2-2*$H$5)*($H$2-$H$5)^2*_xlfn.CSC(Lmda)*_xlfn.SEC(Lmda))/(6*$A62)),IF(AND($H$2<$A62,$A62<=$H$5,$H$2<bt*$A62,bt*$A62<=$H$5),1/6*(-1+bt)^2*$A62*($A62+2*bt*$A62-3*$H$2)*_xlfn.CSC(Lmda)*_xlfn.SEC(Lmda),IF(AND($H$2<$A62,$A62<=$H$5,$H$5<bt*$A62),(($A62-$H$5)^2*($A62-3*$H$2+2*$H$5)*_xlfn.CSC(Lmda)*_xlfn.SEC(Lmda))/(6*$A62),0))))) -> -3138193.017 | AA62: =Ey*ec*IF(bt*$A62<=$H$3,0,IF(AND($A62<=$H$3,$H$3<bt*$A62,bt*$A62<=$H$6),((-bt*$A62+$H$3)^2*((-3+2*bt)*$A62+$H$3)*_xlfn.CSC(Lmda)*_xlfn.SEC(Lmda))/(6*$A62),IF(AND($A62<=$H$3,$H$6<bt*$A62),-(((3*$A62-$H$3-2*$H$6)*($H$3-$H$6)^2*_xlfn.CSC(Lmda)*_xlfn.SEC(Lmda))/(6*$A62)),IF(AND($H$3<$A62,$A62<=$H$6,$H$3<bt*$A62,bt*$A62<=$H$6),1/6*(-1+bt)^2*$A62*($A62+2*bt*$A62-3*$H$3)*_xlfn.CSC(Lmda)*_xlfn.SEC(Lmda),IF(AND($H$3<$A62,$A62<=$H$6,$H$6<bt*$A62),(($A62-$H$6)^2*($A62-3*$H$3+2*$H$6)*_xlfn.CSC(Lmda)*_xlfn.SEC(Lmda))/(6*$A62),0))))) -> 3059261.893 | AB62: =-Ey*ec*IF(bt*$A62<=$H$5,0,IF(AND($A62<=$H$5,$H$5<bt*$A62,bt*$A62<=$H$8),((bt*$A62-$H$5)*((-2+bt)*$A62+$H$5)*(-$H$2+$H$5)*_xlfn.CSC(2*Lmda))/$A62,IF(AND($A62<=$H$5,$H$8<bt*$A62),(($H$2-$H$5)*($H$5-$H$8)*(-2*$A62+$H$5+$H$8)*_xlfn.CSC(2*Lmda))/$A62,IF(AND($H$5<$A62,$A62<=$H$8,$H$5<bt*$A62,bt*$A62<=$H$8),-((-1+bt)^2)*$A62*($H$2-$H$5)*_xlfn.CSC(2*Lmda),IF(AND($H$5<$A62,$A62<=$H$8,$H$8<bt*$A62),-((($H$2-$H$5)*($A62-$H$8)^2*_xlfn.CSC(2*Lmda))/$A62),0))))) -> -4958353.312 | AC62: =Ey*ec*IF(bt*$A62<=$H$6,0,IF(AND($A62<=$H$6,$H$6<bt*$A62,bt*$A62<=$H$7),((bt*$A62-$H$6)*((-2+bt)*$A62+$H$6)*(-$H$3+$H$6)*_xlfn.CSC(2*Lmda))/$A62,IF(AND($A62<=$H$6,$H$7<bt*$A62),(($H$3-$H$6)*($H$6-$H$7)*(-2*$A62+$H$6+$H$7)*_xlfn.CSC(2*Lmda))/$A62,IF(AND($H$6<$A62,$A62<=$H$7,$H$6<bt*$A62,bt*$A62<=$H$7),-((-1+bt)^2)*$A62*($H$3-$H$6)*_xlfn.CSC(2*Lmda),IF(AND($H$6<$A62,$A62<=$H$7,$H$7<bt*$A62),-((($H$3-$H$6)*($A62-$H$7)^2*_xlfn.CSC(2*Lmda))/$A62),0))))) -> 4844723.339 | AD62: =-Ey*ec*IF(bt*$A62<=$H$8,0,IF(AND($A62<=$H$8,$H$8<bt*$A62,bt*$A62<=$H$11),-(((bt*$A62-$H$8)*(bt*(-3+2*bt)*$A62^2+(-3+2*bt)*$A62*$H$8+2*$H$8^2-3*$H$11*((-2+bt)*$A62+$H$8))*_xlfn.CSC(Lmda)*_xlfn.SEC(Lmda))/(6*$A62)),IF(AND($A62<=$H$8,$H$11<bt*$A62),-(((3*$A62-$H$11-2*$H$8)*($H$11-$H$8)^2*_xlfn.CSC(Lmda)*_xlfn.SEC(Lmda))/(6*$A62)),IF(AND($H$8<$A62,$A62<=$H$11,$H$8<bt*$A62,bt*$A62<=$H$11),-(1/6)*(-1+bt)^2*$A62*($A62+2*bt*$A62-3*$H$11)*_xlfn.CSC(Lmda)*_xlfn.SEC(Lmda),IF(AND($H$8<$A62,$A62<=$H$11,$H$11<bt*$A62),-((($A62-$H$11)^3*_xlfn.CSC(Lmda)*_xlfn.SEC(Lmda))/(6*$A62)),0))))) -> 0 | AE62: =Ey*ec*IF(bt*$A62<=$H$7,0,IF(AND($A62<=$H$7,$H$7<bt*$A62,bt*$A62<=$H$10),((bt*$A62^2*((3-2*bt)*bt*$A62+3*(-2+bt)*$H$10)+6*$A62*$H$10*$H$7-3*($A62+$H$10)*$H$7^2+2*$H$7^3)*_xlfn.CSC(Lmda)*_xlfn.SEC(Lmda))/(6*$A62),IF(AND($A62<=$H$7,$H$10<bt*$A62),-(((3*$A62-$H$10-2*$H$7)*(-$H$10+$H$7)^2*_xlfn.CSC(Lmda)*_xlfn.SEC(Lmda))/(6*$A62)),IF(AND($H$7<$A62,$A62<=$H$10,$H$7<bt*$A62,bt*$A62<=$H$10),-(1/6)*(-1+bt)^2*$A62*($A62+2*bt*$A62-3*$H$10)*_xlfn.CSC(Lmda)*_xlfn.SEC(Lmda),IF(AND($H$7<$A62,$A62<=$H$10,$H$10<bt*$A62),-((($A62-$H$10)^3*_xlfn.CSC(Lmda)*_xlfn.SEC(Lmda))/(6*$A62)),0))))) -> 0 | AF62: =Ey*ec*IF($A62<=$H$2,0,IF(AND(bc*$A62<=$H$2,$H$2<$A62,$A62<=$H$5),(($A62-$H$2)^3*_xlfn.CSC(Lmda)*_xlfn.SEC(Lmda))/(6*$A62),IF(AND(bc*$A62<=$H$2,$H$5<$A62),((3*$A62-$H$2-2*$H$5)*($H$2-$H$5)^2*_xlfn.CSC(Lmda)*_xlfn.SEC(Lmda))/(6*$A62),IF(AND($H$2<bc*$A62,bc*$A62<=$H$5,$H$2<$A62,$A62<=$H$5),1/6*(-1+bc)^2*$A62*($A62+2*bc*$A62-3*$H$2)*_xlfn.CSC(Lmda)*_xlfn.SEC(Lmda),IF(AND($H$2<bc*$A62,bc*$A62<=$H$5,$H$5<$A62),((bc*$A62-$H$5)*(bc*(-3+2*bc)*$A62^2+(-3+2*bc)*$A62*$H$5+2*$H$5^2-3*$H$2*((-2+bc)*$A62+$H$5))*_xlfn.CSC(Lmda)*_xlfn.SEC(Lmda))/(6*$A62),0))))) -> 3830373.465 | AG62: =-Ey*ec*IF($A62<=$H$3,0,IF(AND(bc*$A62<=$H$3,$H$3<$A62,$A62<=$H$6),(($A62-$H$3)^3*_xlfn.CSC(Lmda)*_xlfn.SEC(Lmda))/(6*$A62),IF(AND(bc*$A62<=$H$3,$H$6<$A62),((3*$A62-$H$3-2*$H$6)*($H$3-$H$6)^2*_xlfn.CSC(Lmda)*_xlfn.SEC(Lmda))/(6*$A62),IF(AND($H$3<bc*$A62,bc*$A62<=$H$6,$H$3<$A62,$A62<=$H$6),1/6*(-1+bc)^2*$A62*($A62+2*bc*$A62-3*$H$3)*_xlfn.CSC(Lmda)*_xlfn.SEC(Lmda),IF(AND($H$3<bc*$A62,bc*$A62<=$H$6,$H$6<$A62),((bc*$A62-$H$6)*(bc*(-3+2*bc)*$A62^2+(-3+2*bc)*$A62*$H$6+2*$H$6^2-3*$H$3*((-2+bc)*$A62+$H$6))*_xlfn.CSC(Lmda)*_xlfn.SEC(Lmda))/(6*$A62),0))))) -> -3637812.369 | AH62: =Ey*ec*IF($A62<=$H$5,0,IF(AND(bc*$A62<=$H$5,$H$5<$A62,$A62<=$H$8),(($A62-$H$5)^2*(-$H$2+$H$5)*_xlfn.CSC(2*Lmda))/$A62,IF(AND(bc*$A62<=$H$5,$H$8<$A62),-((($H$2-$H$5)*($H$5-$H$8)*(-2*$A62+$H$5+$H$8)*_xlfn.CSC(2*Lmda))/$A62),IF(AND($H$5<bc*$A62,bc*$A62<=$H$8,$H$5<$A62,$A62<=$H$8),-((-1+bc)^2)*$A62*($H$2-$H$5)*_xlfn.CSC(2*Lmda),IF(AND($H$5<bc*$A62,bc*$A62<=$H$8,$H$8<$A62),-((($H$2-$H$5)*(bc*$A62-$H$8)*((-2+bc)*$A62+$H$8)*_xlfn.CSC(2*Lmda))/$A62),0))))) -> 0 | AI62: =-Ey*ec*IF($A62<=$H$6,0,IF(AND(bc*$A62<=$H$6,$H$6<$A62,$A62<=$H$7),(($A62-$H$6)^2*(-$H$3+$H$6)*_xlfn.CSC(2*Lmda))/$A62,IF(AND(bc*$A62<=$H$6,$H$7<$A62),-((($H$3-$H$6)*($H$6-$H$7)*(-2*$A62+$H$6+$H$7)*_xlfn.CSC(2*Lmda))/$A62),IF(AND($H$6<bc*$A62,bc*$A62<=$H$7,$H$6<$A62,$A62<=$H$7),-((-1+bc)^2)*$A62*($H$3-$H$6)*_xlfn.CSC(2*Lmda),IF(AND($H$6<bc*$A62,bc*$A62<=$H$7,$H$7<$A62),-((($H$3-$H$6)*(bc*$A62-$H$7)*((-2+bc)*$A62+$H$7)*_xlfn.CSC(2*Lmda))/$A62),0))))) -> 0 | AJ62: =Ey*ec*IF($A62<=$H$8,0,IF(AND(bc*$A62<=$H$8,$H$8<$A62,$A62<=$H$11),-((($A62-$H$8)^2*($A62-3*$H$11+2*$H$8)*_xlfn.CSC(Lmda)*_xlfn.SEC(Lmda))/(6*$A62)),IF(AND(bc*$A62<=$H$8,$H$11<$A62),((3*$A62-$H$11-2*$H$8)*($H$11-$H$8)^2*_xlfn.CSC(Lmda)*_xlfn.SEC(Lmda))/(6*$A62),IF(AND($H$8<bc*$A62,bc*$A62<=$H$11,$H$8<$A62,$A62<=$H$11),-(1/6)*(-1+bc)^2*$A62*($A62+2*bc*$A62-3*$H$11)*_xlfn.CSC(Lmda)*_xlfn.SEC(Lmda),IF(AND($H$8<bc*$A62,bc*$A62<=$H$11,$H$11<$A62),-(((-bc*$A62+$H$11)^2*((-3+2*bc)*$A62+$H$11)*_xlfn.CSC(Lmda)*_xlfn.SEC(Lmda))/(6*$A62)),0))))) -> 0 | AK62: =-Ey*ec*IF($A62<=$H$7,0,IF(AND(bc*$A62<=$H$7,$H$7<$A62,$A62<=$H$10),-((($A62-$H$7)^2*($A62-3*$H$10+2*$H$7)*_xlfn.CSC(Lmda)*_xlfn.SEC(Lmda))/(6*$A62)),IF(AND(bc*$A62<=$H$7,$H$10<$A62),((3*$A62-$H$10-2*$H$7)*(-$H$10+$H$7)^2*_xlfn.CSC(Lmda)*_xlfn.SEC(Lmda))/(6*$A62),IF(AND($H$7<bc*$A62,bc*$A62<=$H$10,$H$7<$A62,$A62<=$H$10),-(1/6)*(-1+bc)^2*$A62*($A62+2*bc*$A62-3*$H$10)*_xlfn.CSC(Lmda)*_xlfn.SEC(Lmda),IF(AND($H$7<bc*$A62,bc*$A62<=$H$10,$H$10<$A62),-(((-bc*$A62+$H$10)^2*((-3+2*bc)*$A62+$H$10)*_xlfn.CSC(Lmda)*_xlfn.SEC(Lmda))/(6*$A62)),0))))) -> 0 | AL62: =fys*IF(bcs*$A62<=$N$2,0,IF(AND($N$2<bcs*$A62,bcs*$A62<$N$4),(-bcs*$A62+$N$2)^2*_xlfn.CSC(2*Lmda),IF(AND($N$4<=bcs*$A62,bcs*$A62<=$N$7),-(2*bcs*$A62-$N$2-$N$4)*($N$2-$N$4)*_xlfn.CSC(2*Lmda),IF(AND($N$7<bcs*$A62,bcs*$A62<=$N$9),_xlfn.CSC(2*Lmda)*(-(bcs^2)*$A62^2+2*bcs*$A62*$N$9-($N$9^2)+bf*d*SIN(2*Lmda)),bf*d)))) -> 0 | AM62: =-fys*IF(bcs*$A62<=$N$3,0,IF(AND($N$3<bcs*$A62,bcs*$A62<$N$5),(-bcs*$A62+$N$3)^2*_xlfn.CSC(2*Lmda),IF(AND($N$5<=bcs*$A62,bcs*$A62<=$N$6),-(2*bcs*$A62-$N$3-$N$5)*($N$3-$N$5)*_xlfn.CSC(2*Lmda),IF(AND($N$6<bcs*$A62,bcs*$A62<=$N$8),(d-2*tf)*(bf-2*thss)-(bcs^2)*$A62^2*_xlfn.CSC(2*Lmda)-($N$8^2)*_xlfn.CSC(2*Lmda)+bcs*$A62*$N$8*_xlfn.CSC(Lmda)*_xlfn.SEC(Lmda),(bf-2*thss)*(d-2*tf))))) -> 0 | AN62: =-fys*IF(bts*$A62<=$N$2,bf*d,IF(AND($N$2<bts*$A62,bts*$A62<$N$4),_xlfn.CSC(2*Lmda)*(-(bts^2)*$A62^2+2*bts*$A62*$N$2-($N$2^2)+bf*d*SIN(2*Lmda)),IF(AND($N$4<=bts*$A62,bts*$A62<=$N$7),_xlfn.CSC(2*Lmda)*(2*bts*$A62*$N$2-($N$2^2)-2*bts*$A62*$N$4+$N$4^2+bf*d*SIN(2*Lmda)),IF(AND($N$7<bts*$A62,bts*$A62<=$N$9),(-bts*$A62+$N$9)^2*_xlfn.CSC(2*Lmda),0)))) -> -19234867.95 | AO62: =fys*IF(bts*$A62<=$N$3,(bf-2*thss)*(d-2*tf),IF(AND($N$3<bts*$A62,bts*$A62<$N$5),(d-2*tf)*(bf-2*thss)-(bts^2)*$A62^2*_xlfn.CSC(2*Lmda)-($N$3^2)*_xlfn.CSC(2*Lmda)+bts*$A62*$N$3*_xlfn.CSC(Lmda)*_xlfn.SEC(Lmda),IF(AND($N$5<=bts*$A62,bts*$A62<=$N$6),(d-2*tf)*(bf-2*thss)-($N$3^2)*_xlfn.CSC(2*Lmda)+$N$5^2*_xlfn.CSC(2*Lmda)+bts*$A62*$N$3*_xlfn.CSC(Lmda)*_xlfn.SEC(Lmda)-bts*$A62*$N$5*_xlfn.CSC(Lmda)*_xlfn.SEC(Lmda),IF(AND($N$6<bts*$A62,bts*$A62<=$N$8),(-bts*$A62+$N$8)^2*_xlfn.CSC(2*Lmda),0)))) -> 18271067.95 | AP62: =-Ey*ec*IF(bts*$A62<=$N$2,0,IF(AND($A62<=$N$2,$N$2<bts*$A62,bts*$A62<=$N$4),((-bts*$A62+$N$2)^2*((-3+2*bts)*$A62+$N$2)*_xlfn.CSC(Lmda)*_xlfn.SEC(Lmda))/(6*$A62),IF(AND($A62<=$N$2,$N$4<bts*$A62),-(((3*$A62-$N$2-2*$N$4)*($N$2-$N$4)^2*_xlfn.CSC(Lmda)*_xlfn.SEC(Lmda))/(6*$A62)),IF(AND($N$2<$A62,$A62<=$N$4,$N$2<bts*$A62,bts*$A62<=$N$4),1/6*(-1+bts)^2*$A62*($A62+2*bts*$A62-3*$N$2)*_xlfn.CSC(Lmda)*_xlfn.SEC(Lmda),IF(AND($N$2<$A62,$A62<=$N$4,$N$4<bts*$A62),(($A62-$N$4)^2*($A62-3*$N$2+2*$N$4)*_xlfn.CSC(Lmda)*_xlfn.SEC(Lmda))/(6*$A62),0))))) -> -514363.1795 | AQ62: =Ey*ec*IF(bts*$A62<=$N$3,0,IF(AND($A62<=$N$3,$N$3<bts*$A62,bts*$A62<=$N$5),((-bts*$A62+$N$3)^2*((-3+2*bts)*$A62+$N$3)*_xlfn.CSC(Lmda)*_xlfn.SEC(Lmda))/(6*$A62),IF(AND($A62<=$N$3,$N$5<bts*$A62),-(((3*$A62-$N$3-2*$N$5)*($N$3-$N$5)^2*_xlfn.CSC(Lmda)*_xlfn.SEC(Lmda))/(6*$A62)),IF(AND($N$3<$A62,$A62<=$N$5,$N$3<bts*$A62,bts*$A62<=$N$5),1/6*(-1+bts)^2*$A62*($A62+2*bts*$A62-3*$N$3)*_xlfn.CSC(Lmda)*_xlfn.SEC(Lmda),IF(AND($N$3<$A62,$A62<=$N$5,$N$5<bts*$A62),(($A62-$N$5)^2*($A62-3*$N$3+2*$N$5)*_xlfn.CSC(Lmda)*_xlfn.SEC(Lmda))/(6*$A62),0))))) -> 791782.2959 | AR62: =-Ey*ec*IF(bts*$A62<=$N$4,0,IF(AND($A62<=$N$4,$N$4<bts*$A62,bts*$A62<=$N$7),((bts*$A62-$N$4)*((-2+bts)*$A62+$N$4)*(-$N$2+$N$4)*_xlfn.CSC(2*Lmda))/$A62,IF(AND($A62<=$N$4,$N$7<bts*$A62),(($N$2-$N$4)*($N$4-$N$7)*(-2*$A62+$N$4+$N$7)*_xlfn.CSC(2*Lmda))/$A62,IF(AND($N$4<$A62,$A62<=$N$7,$N$4<bts*$A62,bts*$A62<=$N$7),-((-1+bts)^2)*$A62*($N$2-$N$4)*_xlfn.CSC(2*Lmda),IF(AND($N$4<$A62,$A62<=$N$7,$N$7<bts*$A62),-((($N$2-$N$4)*($A62-$N$7)^2*_xlfn.CSC(2*Lmda))/$A62),0))))) -> -5498296.53 | AS62: =Ey*ec*IF(bts*$A62<=$N$5,0,IF(AND($A62<=$N$5,$N$5<bts*$A62,bts*$A62<=$N$6),((bts*$A62-$N$5)*((-2+bts)*$A62+$N$5)*(-$N$3+$N$5)*_xlfn.CSC(2*Lmda))/$A62,IF(AND($A62<=$N$5,$N$6<bts*$A62),(($N$3-$N$5)*($N$5-$N$6)*(-2*$A62+$N$5+$N$6)*_xlfn.CSC(2*Lmda))/$A62,IF(AND($N$5<$A62,$A62<=$N$6,$N$5<bts*$A62,bts*$A62<=$N$6),-((-1+bts)^2)*$A62*($N$3-$N$5)*_xlfn.CSC(2*Lmda),IF(AND($N$5<$A62,$A62<=$N$6,$N$6<bts*$A62),-((($N$3-$N$5)*($A62-$N$6)^2*_xlfn.CSC(2*Lmda))/$A62),0))))) -> 5164375.552 | AT62: =-Ey*ec*IF(bts*$A62<=$N$7,0,IF(AND($A62<=$N$7,$N$7<bts*$A62,bts*$A62<=$N$9),((2*$N$7^3+6*$A62*$N$7*$N$9-3*$N$7^2*($A62+$N$9)+bts*$A62^2*((3-2*bts)*bts*$A62+3*(-2+bts)*$N$9))*_xlfn.CSC(Lmda)*_xlfn.SEC(Lmda))/(6*$A62),IF(AND($A62<=$N$7,$N$9<bts*$A62),-(((3*$A62-2*$N$7-$N$9)*($N$7-$N$9)^2*_xlfn.CSC(Lmda)*_xlfn.SEC(Lmda))/(6*$A62)),IF(AND($N$7<$A62,$A62<=$N$9,$N$7<bts*$A62,bts*$A62<=$N$9),-(1/6)*(-1+bts)^2*$A62*($A62+2*bts*$A62-3*$N$9)*_xlfn.CSC(Lmda)*_xlfn.SEC(Lmda),IF(AND($N$7<$A62,$A62<=$N$9,$N$9<bts*$A62),-((($A62-$N$9)^3*_xlfn.CSC(Lmda)*_xlfn.SEC(Lmda))/(6*$A62)),0))))) -> 0 | AU62: =Ey*ec*IF(bts*$A62<=$N$6,0,IF(AND($A62<=$N$6,$N$6<bts*$A62,bts*$A62<=$N$8),((2*$N$6^3+6*$A62*$N$6*$N$8-3*$N$6^2*($A62+$N$8)+bts*$A62^2*((3-2*bts)*bts*$A62+3*(-2+bts)*$N$8))*_xlfn.CSC(Lmda)*_xlfn.SEC(Lmda))/(6*$A62),IF(AND($A62<=$N$6,$N$8<bts*$A62),-(((3*$A62-2*$N$6-$N$8)*($N$6-$N$8)^2*_xlfn.CSC(Lmda)*_xlfn.SEC(Lmda))/(6*$A62)),IF(AND($N$6<$A62,$A62<=$N$8,$N$6<bts*$A62,bts*$A62<=$N$8),-(1/6)*(-1+bts)^2*$A62*($A62+2*bts*$A62-3*$N$8)*_xlfn.CSC(Lmda)*_xlfn.SEC(Lmda),IF(AND($N$6<$A62,$A62<=$N$8,$N$8<bts*$A62),-((($A62-$N$8)^3*_xlfn.CSC(Lmda)*_xlfn.SEC(Lmda))/(6*$A62)),0))))) -> 0 | AV62: =Ey*ec*IF($A62<=$N$2,0,IF(AND(bcs*$A62<=$N$2,$N$2<$A62,$A62<=$N$4),(($A62-$N$2)^3*_xlfn.CSC(Lmda)*_xlfn.SEC(Lmda))/(6*$A62),IF(AND(bcs*$A62<=$N$2,$N$4<$A62),((3*$A62-$N$2-2*$N$4)*($N$2-$N$4)^2*_xlfn.CSC(Lmda)*_xlfn.SEC(Lmda))/(6*$A62),IF(AND($N$2<bcs*$A62,bcs*$A62<=$N$4,$N$2<$A62,$A62<=$N$4),1/6*(-1+bcs)^2*$A62*($A62+2*bcs*$A62-3*$N$2)*_xlfn.CSC(Lmda)*_xlfn.SEC(Lmda),IF(AND($N$2<bcs*$A62,bcs*$A62<=$N$4,$N$4<$A62),((bcs*$A62-$N$4)*(bcs*(-3+2*bcs)*$A62^2+(-3+2*bcs)*$A62*$N$4+2*$N$4^2-3*$N$2*((-2+bcs)*$A62+$N$4))*_xlfn.CSC(Lmda)*_xlfn.SEC(Lmda))/(6*$A62),0))))) -> 738977.9487 | AW62: =-Ey*ec*IF($A62<=$N$3,0,IF(AND(bcs*$A62<=$N$3,$N$3<$A62,$A62<=$N$5),(($A62-$N$3)^3*_xlfn.CSC(Lmda)*_xlfn.SEC(Lmda))/(6*$A62),IF(AND(bcs*$A62<=$N$3,$N$5<$A62),((3*$A62-$N$3-2*$N$5)*($N$3-$N$5)^2*_xlfn.CSC(Lmda)*_xlfn.SEC(Lmda))/(6*$A62),IF(AND($N$3<bcs*$A62,bcs*$A62<=$N$5,$N$3<$A62,$A62<=$N$5),1/6*(-1+bcs)^2*$A62*($A62+2*bcs*$A62-3*$N$3)*_xlfn.CSC(Lmda)*_xlfn.SEC(Lmda),IF(AND($N$3<bcs*$A62,bcs*$A62<=$N$5,$N$5<$A62),((bcs*$A62-$N$5)*(bcs*(-3+2*bcs)*$A62^2+(-3+2*bcs)*$A62*$N$5+2*$N$5^2-3*$N$3*((-2+bcs)*$A62+$N$5))*_xlfn.CSC(Lmda)*_xlfn.SEC(Lmda))/(6*$A62),0))))) -> -520877.0863 | AX62: =Ey*ec*IF($A62<=$N$4,0,IF(AND(bcs*$A62<=$N$4,$N$4<$A62,$A62<=$N$7),(($A62-$N$4)^2*(-$N$2+$N$4)*_xlfn.CSC(2*Lmda))/$A62,IF(AND(bcs*$A62<=$N$4,$N$7<$A62),-((($N$2-$N$4)*($N$4-$N$7)*(-2*$A62+$N$4+$N$7)*_xlfn.CSC(2*Lmda))/$A62),IF(AND($N$4<bcs*$A62,bcs*$A62<=$N$7,$N$4<$A62,$A62<=$N$7),-((-1+bcs)^2)*$A62*($N$2-$N$4)*_xlfn.CSC(2*Lmda),IF(AND($N$4<bcs*$A62,bcs*$A62<=$N$7,$N$7<$A62),-((($N$2-$N$4)*(bcs*$A62-$N$7)*((-2+bcs)*$A62+$N$7)*_xlfn.CSC(2*Lmda))/$A62),0))))) -> 0 | AY62: =-Ey*ec*IF($A62<=$N$5,0,IF(AND(bcs*$A62<=$N$5,$N$5<$A62,$A62<=$N$6),(($A62-$N$5)^2*(-$N$3+$N$5)*_xlfn.CSC(2*Lmda))/$A62,IF(AND(bcs*$A62<=$N$5,$N$6<$A62),-((($N$3-$N$5)*($N$5-$N$6)*(-2*$A62+$N$5+$N$6)*_xlfn.CSC(2*Lmda))/$A62),IF(AND($N$5<bcs*$A62,bcs*$A62<=$N$6,$N$5<$A62,$A62<=$N$6),-((-1+bcs)^2)*$A62*($N$3-$N$5)*_xlfn.CSC(2*Lmda),IF(AND($N$5<bcs*$A62,bcs*$A62<=$N$6,$N$6<$A62),-((($N$3-$N$5)*(bcs*$A62-$N$6)*((-2+bcs)*$A62+$N$6)*_xlfn.CSC(2*Lmda))/$A62),0))))) -> 0 | AZ62: =Ey*ec*IF($A62<=$N$7,0,IF(AND(bcs*$A62<=$N$7,$N$7<$A62,$A62<=$N$9),-((($A62-$N$7)^2*($A62+2*$N$7-3*$N$9)*_xlfn.CSC(Lmda)*_xlfn.SEC(Lmda))/(6*$A62)),IF(AND(bcs*$A62<=$N$7,$N$9<$A62),((3*$A62-2*$N$7-$N$9)*($N$7-$N$9)^2*_xlfn.CSC(Lmda)*_xlfn.SEC(Lmda))/(6*$A62),IF(AND($N$7<bcs*$A62,bcs*$A62<=$N$9,$N$7<$A62,$A62<=$N$9),-(1/6)*(-1+bcs)^2*$A62*($A62+2*bcs*$A62-3*$N$9)*_xlfn.CSC(Lmda)*_xlfn.SEC(Lmda),IF(AND($N$7<bcs*$A62,bcs*$A62<=$N$9,$N$9<$A62),-(((-bcs*$A62+$N$9)^2*((-3+2*bcs)*$A62+$N$9)*_xlfn.CSC(Lmda)*_xlfn.SEC(Lmda))/(6*$A62)),0))))) -> 0 | BA62: =-Ey*ec*IF($A62<=$N$6,0,IF(AND(bcs*$A62<=$N$6,$N$6<$A62,$A62<=$N$8),-((($A62-$N$6)^2*($A62+2*$N$6-3*$N$8)*_xlfn.CSC(Lmda)*_xlfn.SEC(Lmda))/(6*$A62)),IF(AND(bcs*$A62<=$N$6,$N$8<$A62),((3*$A62-2*$N$6-$N$8)*($N$6-$N$8)^2*_xlfn.CSC(Lmda)*_xlfn.SEC(Lmda))/(6*$A62),IF(AND($N$6<bcs*$A62,bcs*$A62<=$N$8,$N$6<$A62,$A62<=$N$8),-(1/6)*(-1+bcs)^2*$A62*($A62+2*bcs*$A62-3*$N$8)*_xlfn.CSC(Lmda)*_xlfn.SEC(Lmda),IF(AND($N$6<bcs*$A62,bcs*$A62<=$N$8,$N$8<$A62),-(((-bcs*$A62+$N$8)^2*((-3+2*bcs)*$A62+$N$8)*_xlfn.CSC(Lmda)*_xlfn.SEC(Lmda))/(6*$A62)),0))))) -> 0 | BB62: =fys*IF(bcs*$A62<=$N$11,0,IF(AND($N$11<bcs*$A62,bcs*$A62<$N$12),(-bcs*$A62+$N$11)^2*_xlfn.CSC(2*Lmda),IF(AND($N$12<=bcs*$A62,bcs*$A62<=$N$13),-(2*bcs*$A62-$N$11-$N$12)*($N$11-$N$12)*_xlfn.CSC(2*Lmda),IF(AND($N$13<bcs*$A62,bcs*$A62<=$N$14),(d-2*tf)*tw-(bcs^2)*$A62^2*_xlfn.CSC(2*Lmda)-($N$14^2)*_xlfn.CSC(2*Lmda)+bcs*$A62*$N$14*_xlfn.CSC(Lmda)*_xlfn.SEC(Lmda),tw*(d-2*tf))))) -> 0 | BC62: =-fys*IF(bts*$A62<=$N$11,tw*(d-2*tf),IF(AND($N$11<bts*$A62,bts*$A62<$N$12),(d-2*tf)*tw-(bts^2)*$A62^2*_xlfn.CSC(2*Lmda)-($N$11^2)*_xlfn.CSC(2*Lmda)+bts*$A62*$N$11*_xlfn.CSC(Lmda)*_xlfn.SEC(Lmda),IF(AND($N$12<=bts*$A62,bts*$A62<=$N$13),_xlfn.CSC(2*Lmda)*(2*bts*$A62*$N$11-($N$11^2)-2*bts*$A62*$N$12+$N$12^2+(d-2*tf)*tw*SIN(2*Lmda)),IF(AND($N$13<bts*$A62,bts*$A62<=$N$14),(-bts*$A62+$N$14)^2*_xlfn.CSC(2*Lmda),0)))) -> -821041.6611 | BD62: =-Ey*ec*IF(bts*$A62<=$N$11,0,IF(AND($A62<=$N$11,$N$11<bts*$A62,bts*$A62<=$N$12),((-bts*$A62+$N$11)^2*((-3+2*bts)*$A62+$N$11)*_xlfn.CSC(Lmda)*_xlfn.SEC(Lmda))/(6*$A62),IF(AND($A62<=$N$11,$N$12<bts*$A62),-(((3*$A62-$N$11-2*$N$12)*($N$11-$N$12)^2*_xlfn.CSC(Lmda)*_xlfn.SEC(Lmda))/(6*$A62)),IF(AND($N$11<$A62,$A62<=$N$12,$N$11<bts*$A62,bts*$A62<=$N$12),1/6*(-1+bts)^2*$A62*($A62+2*bts*$A62-3*$N$11)*_xlfn.CSC(Lmda)*_xlfn.SEC(Lmda),IF(AND($N$11<$A62,$A62<=$N$12,$N$12<bts*$A62),(($A62-$N$12)^2*($A62-3*$N$11+2*$N$12)*_xlfn.CSC(Lmda)*_xlfn.SEC(Lmda))/(6*$A62),0))))) -> 0 | BE62: =-Ey*ec*IF(bts*$A62<=$N$12,0,IF(AND($A62<=$N$12,$N$12<bts*$A62,bts*$A62<=$N$13),((bts*$A62-$N$12)*((-2+bts)*$A62+$N$12)*(-$N$11+$N$12)*_xlfn.CSC(2*Lmda))/$A62,IF(AND($A62<=$N$12,$N$13<bts*$A62),-(_xlfn.CSC(2*Lmda)*($N$11 - $N$12)*($N$12 - $N$13)*(6*$A62*$N$12 - (4*$N$12^2) + 6*$A62*$N$13-4*$N$12*$N$13-(4*$N$13^2) + 3*$H$12*(-2*$A62 + $N$12 + $N$13)))/(6*$A62),IF(AND($N$12<$A62,$A62<=$N$13,$N$12<bts*$A62,bts*$A62<=$N$13),-((-1+bts)^2)*$A62*($N$11-$N$12)*_xlfn.CSC(2*Lmda),IF(AND($N$12<$A62,$A62<=$N$13,$N$13<bts*$A62),-((($N$11-$N$12)*($A62-$N$13)^2*_xlfn.CSC(2*Lmda))/$A62),0))))) -> -272741.4852 | BF62: =-Ey*ec*IF(bts*$A62<=$N$13,0,IF(AND($A62<=$N$13,$N$13<bts*$A62,bts*$A62<=$N$14),((2*$N$13^3+6*$A62*$N$13*$N$14-3*$N$13^2*($A62+$N$14)+bts*$A62^2*((3-2*bts)*bts*$A62+3*(-2+bts)*$N$14))*_xlfn.CSC(Lmda)*_xlfn.SEC(Lmda))/(6*$A62),IF(AND($A62<=$N$13,$N$14<bts*$A62),-(((3*$A62-2*$N$13-$N$14)*($N$13-$N$14)^2*_xlfn.CSC(Lmda)*_xlfn.SEC(Lmda))/(6*$A62)),IF(AND($N$13<$A62,$A62<=$N$14,$N$13<bts*$A62,bts*$A62<=$N$14),-(1/6)*(-1+bts)^2*$A62*($A62+2*bts*$A62-3*$N$14)*_xlfn.CSC(Lmda)*_xlfn.SEC(Lmda),IF(AND($N$13<$A62,$A62<=$N$14,$N$14<bts*$A62),-((($A62-$N$14)^3*_xlfn.CSC(Lmda)*_xlfn.SEC(Lmda))/(6*$A62)),0))))) -> 0 | BG62: =Ey*ec*IF($A62<=$N$11,0,IF(AND(bcs*$A62<=$N$11,$N$11<$A62,$A62<=$N$12),(($A62-$N$11)^3*_xlfn.CSC(Lmda)*_xlfn.SEC(Lmda))/(6*$A62),IF(AND(bcs*$A62<=$N$11,$N$12<$A62),((3*$A62-$N$11-2*$N$12)*($N$11-$N$12)^2*_xlfn.CSC(Lmda)*_xlfn.SEC(Lmda))/(6*$A62),IF(AND($N$11<bcs*$A62,bcs*$A62<=$N$12,$N$11<$A62,$A62<=$N$12),1/6*(-1+bcs)^2*$A62*($A62+2*bcs*$A62-3*$N$11)*_xlfn.CSC(Lmda)*_xlfn.SEC(Lmda),IF(AND($N$11<bcs*$A62,bcs*$A62<=$N$12,$N$12<$A62),((bcs*$A62-$N$12)*(bcs*(-3+2*bcs)*$A62^2+(-3+2*bcs)*$A62*$N$12+2*$N$12^2-3*$N$11*((-2+bcs)*$A62+$N$12))*_xlfn.CSC(Lmda)*_xlfn.SEC(Lmda))/(6*$A62),0))))) -> 1515.686464 | BH62: =Ey*ec*IF($A62<=$N$12,0,IF(AND(bcs*$A62<=$N$12,$N$12<$A62,$A62<=$N$13),(($A62-$N$12)^2*(-$N$11+$N$12)*_xlfn.CSC(2*Lmda))/$A62,IF(AND(bcs*$A62<=$N$12,$N$13<$A62),-((($N$11-$N$12)*($N$12-$N$13)*(-2*$A62+$N$12+$N$13)*_xlfn.CSC(2*Lmda))/$A62),IF(AND($N$12<bcs*$A62,bcs*$A62<=$N$13,$N$12<$A62,$A62<=$N$13),-((-1+bcs)^2)*$A62*($N$11-$N$12)*_xlfn.CSC(2*Lmda),IF(AND($N$12<bcs*$A62,bcs*$A62<=$N$13,$N$13<$A62),-((($N$11-$N$12)*(bcs*$A62-$N$13)*((-2+bcs)*$A62+$N$13)*_xlfn.CSC(2*Lmda))/$A62),0))))) -> 2999.331183 | BI62: =Ey*ec*IF($A62<=$N$13,0,IF(AND(bcs*$A62<=$N$13,$N$13<$A62,$A62<=$N$14),-((($A62-$N$13)^2*($A62+2*$N$13-3*$N$14)*_xlfn.CSC(Lmda)*_xlfn.SEC(Lmda))/(6*$A62)),IF(AND(bcs*$A62<=$N$13,$N$14<$A62),((3*$A62-2*$N$13-$N$14)*($N$13-$N$14)^2*_xlfn.CSC(Lmda)*_xlfn.SEC(Lmda))/(6*$A62),IF(AND($N$13<bcs*$A62,bcs*$A62<=$N$14,$N$13<$A62,$A62<=$N$14),-(1/6)*(-1+bcs)^2*$A62*($A62+2*bcs*$A62-3*$N$14)*_xlfn.CSC(Lmda)*_xlfn.SEC(Lmda),IF(AND($N$13<bcs*$A62,bcs*$A62<=$N$14,$N$14<$A62),-(((-bcs*$A62+$N$14)^2*((-3+2*bcs)*$A62+$N$14)*_xlfn.CSC(Lmda)*_xlfn.SEC(Lmda))/(6*$A62)),0))))) -> 0 | BJ62: =f1c*IF(beta*$A62<$H$4,-(1/6)*beta^2*$A62^2*(4*beta*$A62-3*$H$12)*_xlfn.CSC(2*Lmda),IF(AND($H$4<=beta*$A62,beta*$A62<=$H$9),1/6*$H$4*(-6*beta^2*$A62^2+$H$12*(6*beta*$A62-3*$H$4)+2*$H$4^2)*_xlfn.CSC(2*Lmda),IF(AND($H$9<beta*$A62,beta*$A62<=$H$12),1/6*(4*beta*$A62-$H$12)*(-beta*$A62+$H$12)^2*_xlfn.CSC(2*Lmda),0))) -> 13898657.91 | BK62: =fy*IF(bc*$A62<=$H$2,0,IF(AND($H$2<bc*$A62,bc*$A62<$H$5),-(1/6)*(-bc*$A62+$H$2)^2*(4*bc*$A62-3*$H$12+2*$H$2)*_xlfn.CSC(2*Lmda),IF(AND($H$5<=bc*$A62,bc*$A62<=$H$8),-(1/6)*($H$2-$H$5)*(-6*bc^2*$A62^2+2*$H$2^2+$H$12*(6*bc*$A62-3*$H$5)+2*$H$5^2+$H$2*(-3*$H$12+2*$H$5))*_xlfn.CSC(2*Lmda),IF(AND($H$8<bc*$A62,bc*$A62<=$H$11),1/6*(-bc*$A62+$H$11)^2*(4*bc*$A62+2*$H$11-3*$H$12)*_xlfn.CSC(2*Lmda),0)))) -> 49418576.08 | BL62: =-fy*IF(bc*$A62<=$H$3,0,IF(AND($H$3<bc*$A62,bc*$A62<$H$6),-(1/6)*(-bc*$A62+$H$3)^2*(4*bc*$A62-3*$H$12+2*$H$3)*_xlfn.CSC(2*Lmda),IF(AND($H$6<=bc*$A62,bc*$A62<=$H$7),-(1/6)*($H$3-$H$6)*($H$12*(6*bc*$A62-3*$H$3-3*$H$6)+2*(-3*bc^2*$A62^2+$H$3^2+$H$3*$H$6+$H$6^2))*_xlfn.CSC(2*Lmda),IF(AND($H$7<bc*$A62,bc*$A62<=$H$10),1/6*(-bc*$A62+$H$10)^2*(4*bc*$A62+2*$H$10-3*$H$12)*_xlfn.CSC(2*Lmda),0)))) -> -42240671.49 | BM62: =fy*IF(bt*$A62<=$H$2,0,IF(AND($H$2<bt*$A62,bt*$A62<$H$5),-(1/6)*(-bt*$A62+$H$2)^2*(4*bt*$A62-3*$H$12+2*$H$2)*_xlfn.CSC(2*Lmda),IF(AND($H$5<=bt*$A62,bt*$A62<=$H$8),-(1/6)*($H$2-$H$5)*(-6*bt^2*$A62^2+2*$H$2^2+$H$12*(6*bt*$A62-3*$H$5)+2*$H$5^2+$H$2*(-3*$H$12+2*$H$5))*_xlfn.CSC(2*Lmda),IF(AND($H$8<bt*$A62,bt*$A62<=$H$11),1/6*(-bt*$A62+$H$11)^2*(4*bt*$A62+2*$H$11-3*$H$12)*_xlfn.CSC(2*Lmda),0)))) -> 322984318.9 | BN62: =-fy*IF(bt*$A62<=$H$3,0,IF(AND($H$3<bt*$A62,bt*$A62<$H$6),-(1/6)*(-bt*$A62+$H$3)^2*(4*bt*$A62-3*$H$12+2*$H$3)*_xlfn.CSC(2*Lmda),IF(AND($H$6<=bt*$A62,bt*$A62<=$H$7),-(1/6)*($H$3-$H$6)*($H$12*(6*bt*$A62-3*$H$3-3*$H$6)+2*(-3*bt^2*$A62^2+$H$3^2+$H$3*$H$6+$H$6^2))*_xlfn.CSC(2*Lmda),IF(AND($H$7<bt*$A62,bt*$A62<=$H$10),1/6*(-bt*$A62+$H$10)^2*(4*bt*$A62+2*$H$10-3*$H$12)*_xlfn.CSC(2*Lmda),0)))) -> -305859207.3 | BO62: =-Ey*ec*IF(bt*$A62<=$H$2,0,IF(AND($A62<=$H$2,$H$2<bt*$A62,bt*$A62<=$H$5),-(((-bt*$A62+$H$2)^2*($A62*(bt*(-4+3*bt)*$A62+(3-2*bt)*$H$12)+(2*(-1+bt)*$A62-$H$12)*$H$2+$H$2^2)*_xlfn.CSC(2*Lmda))/(6*$A62)),IF(AND($A62<=$H$2,$H$5<bt*$A62),-((($H$2-$H$5)^2*($H$2^2+$H$12*(3*$A62-2*$H$5)-$H$2*(2*$A62+$H$12-2*$H$5)+$H$5*(-4*$A62+3*$H$5))*_xlfn.CSC(2*Lmda))/(6*$A62)),IF(AND($H$2<$A62,$A62<=$H$5,$H$2<bt*$A62,bt*$A62<=$H$5),-(1/6)*(-1+bt)^2*$A62*($A62*((1+2*bt+3*bt^2)*$A62-(1+2*bt)*$H$12)+(-2*($A62+2*bt*$A62)+3*$H$12)*$H$2)*_xlfn.CSC(2*Lmda),IF(AND($H$2<$A62,$A62<=$H$5,$H$5<bt*$A62),-((($A62-$H$5)^2*($A62^2+2*$A62*$H$5+3*$H$5^2-$H$12*($A62+2*$H$5)+$H$2*(3*$H$12-2*($A62+2*$H$5)))*_xlfn.CSC(2*Lmda))/(6*$A62)),0))))) -> -28004777.74 | BP62: =Ey*ec*IF(bt*$A62<=$H$3,0,IF(AND($A62<=$H$3,$H$3<bt*$A62,bt*$A62<=$H$6),-(((-bt*$A62+$H$3)^2*(bt*(-4+3*bt)*$A62^2+2*(-1+bt)*$A62*$H$3+$H$3^2-$H$12*((-3+2*bt)*$A62+$H$3))*_xlfn.CSC(2*Lmda))/(6*$A62)),IF(AND($A62<=$H$3,$H$6<bt*$A62),(($H$3-$H$6)^2*(-($H$3^2)+2*$H$3*($A62-$H$6)+(4*$A62-3*$H$6)*$H$6+$H$12*(-3*$A62+$H$3+2*$H$6))*_xlfn.CSC(2*Lmda))/(6*$A62),IF(AND($H$3<$A62,$A62<=$H$6,$H$3<bt*$A62,bt*$A62<=$H$6),-(1/6)*(-1+bt)^2*$A62*(-$H$12*($A62+2*bt*$A62-3*$H$3)+$A62*((1+2*bt+3*bt^2)*$A62-2*(1+2*bt)*$H$3))*_xlfn.CSC(2*Lmda),IF(AND($H$3<$A62,$A62<=$H$6,$H$6<bt*$A62),-((($A62-$H$6)^2*($A62^2+2*$A62*$H$6+3*$H$6^2-2*$H$3*($A62+2*$H$6)-$H$12*($A62-3*$H$3+2*$H$6))*_xlfn.CSC(2*Lmda))/(6*$A62)),0))))) -> 27292911.41 | BQ62: =-Ey*ec*IF(bt*$A62<=$H$5,0,IF(AND($A62<=$H$5,$H$5<bt*$A62,bt*$A62<=$H$8),-(((bt*$A62-$H$5)*(-$H$2+$H$5)*(2*bt*(-3+2*bt)*$A62^2+2*(-3+2*bt)*$A62*$H$5+4*$H$5^2-3*$H$12*((-2+bt)*$A62+$H$5))*_xlfn.CSC(2*Lmda))/(6*$A62)),IF(AND($A62<=$H$5,$H$8<bt*$A62),(($H$2-$H$5)*($H$5-$H$8)*(6*$A62*$H$5-4*$H$5^2+6*$A62*$H$8-4*$H$5*$H$8-4*$H$8^2+3*$H$12*(-2*$A62+$H$5+$H$8))*_xlfn.CSC(2*Lmda))/(6*$A62),IF(AND($H$5<$A62,$A62<=$H$8,$H$5<bt*$A62,bt*$A62<=$H$8),1/6*(-1+bt)^2*$A62*(2*$A62+4*bt*$A62-3*$H$12)*($H$2-$H$5)*_xlfn.CSC(2*Lmda),IF(AND($H$5<$A62,$A62<=$H$8,$H$8<bt*$A62),(($H$2-$H$5)*($A62-$H$8)^2*(2*$A62-3*$H$12+4*$H$8)*_xlfn.CSC(2*Lmda))/(6*$A62),0))))) -> -26325350.12 | BR62: =Ey*ec*IF(bt*$A62<=$H$6,0,IF(AND($A62<=$H$6,$H$6<bt*$A62,bt*$A62<=$H$7),-(((bt*$A62-$H$6)*(-$H$3+$H$6)*(2*bt*(-3+2*bt)*$A62^2+2*(-3+2*bt)*$A62*$H$6+4*$H$6^2-3*$H$12*((-2+bt)*$A62+$H$6))*_xlfn.CSC(2*Lmda))/(6*$A62)),IF(AND($A62<=$H$6,$H$7<bt*$A62),(($H$3-$H$6)*($H$6-$H$7)*(6*$A62*$H$6-4*$H$6^2+6*$A62*$H$7-4*$H$6*$H$7-4*$H$7^2+3*$H$12*(-2*$A62+$H$6+$H$7))*_xlfn.CSC(2*Lmda))/(6*$A62),IF(AND($H$6<$A62,$A62<=$H$7,$H$6<bt*$A62,bt*$A62<=$H$7),1/6*(-1+bt)^2*$A62*(2*$A62+4*bt*$A62-3*$H$12)*($H$3-$H$6)*_xlfn.CSC(2*Lmda),IF(AND($H$6<$A62,$A62<=$H$7,$H$7<bt*$A62),(($H$3-$H$6)*($A62-$H$7)^2*(2*$A62-3*$H$12+4*$H$7)*_xlfn.CSC(2*Lmda))/(6*$A62),0))))) -> 25722055.31 | BS62: =-Ey*ec*IF(bt*$A62<=$H$8,0,IF(AND($A62<=$H$8,$H$8<bt*$A62,bt*$A62<=$H$11),((-4*bt^3*$A62^4+3*bt^4*$A62^4+4*$A62*$H$8^3-3*$H$8^4+$H$12*((3-2*bt)*bt^2*$A62^3-3*$A62*$H$8^2+2*$H$8^3)-$H$11*(bt*$A62-$H$8)*(2*bt*(-3+2*bt)*$A62^2+2*(-3+2*bt)*$A62*$H$8+4*$H$8^2-3*$H$12*((-2+bt)*$A62+$H$8)))*_xlfn.CSC(2*Lmda))/(6*$A62),IF(AND($A62<=$H$8,$H$11<bt*$A62),-((($H$11-$H$8)^2*($H$11^2+$H$12*(3*$A62-2*$H$8)-$H$11*(2*$A62+$H$12-2*$H$8)+$H$8*(-4*$A62+3*$H$8))*_xlfn.CSC(2*Lmda))/(6*$A62)),IF(AND($H$8<$A62,$A62<=$H$11,$H$8<bt*$A62,bt*$A62<=$H$11),1/6*(-1+bt)^2*$A62*($H$11*(-2*($A62+2*bt*$A62)+3*$H$12)+$A62*((1+2*bt+3*bt^2)*$A62-(1+2*bt)*$H$12))*_xlfn.CSC(2*Lmda),IF(AND($H$8<$A62,$A62<=$H$11,$H$11<bt*$A62),(($A62-$H$11)^3*($A62+$H$11-$H$12)*_xlfn.CSC(2*Lmda))/(6*$A62),0))))) -> 0 | BT62: =Ey*ec*IF(bt*$A62<=$H$7,0,IF(AND($A62<=$H$7,$H$7<bt*$A62,bt*$A62<=$H$10),((bt*$A62-$H$7)*(bt*$A62^2*(bt*(-4+3*bt)*$A62+(6-4*bt)*$H$10)+$A62*(bt*(-4+3*bt)*$A62+(6-4*bt)*$H$10)*$H$7+((-4+3*bt)*$A62-4*$H$10)*$H$7^2+3*$H$7^3+$H$12*($A62*((3-2*bt)*bt*$A62+3*(-2+bt)*$H$10)+((3-2*bt)*$A62+3*$H$10)*$H$7-2*$H$7^2))*_xlfn.CSC(2*Lmda))/(6*$A62),IF(AND($A62<=$H$7,$H$10<bt*$A62),((-$H$10+$H$7)^2*((2*$A62-$H$10)*$H$10+(4*$A62-2*$H$10)*$H$7-3*$H$7^2+$H$12*(-3*$A62+$H$10+2*$H$7))*_xlfn.CSC(2*Lmda))/(6*$A62),IF(AND($H$7<$A62,$A62<=$H$10,$H$7<bt*$A62,bt*$A62<=$H$10),1/6*(-1+bt)^2*$A62*($A62*((1+2*bt+3*bt^2)*$A62-2*(1+2*bt)*$H$10)-($A62+2*bt*$A62-3*$H$10)*$H$12)*_xlfn.CSC(2*Lmda),IF(AND($H$7<$A62,$A62<=$H$10,$H$10<bt*$A62),(($A62-$H$10)^3*($A62+$H$10-$H$12)*_xlfn.CSC(2*Lmda))/(6*$A62),0))))) -> 0 | BU62: =Ey*ec*IF($A62<=$H$2,0,IF(AND(bc*$A62<=$H$2,$H$2<$A62,$A62<=$H$5),-((($A62-$H$2)^3*($A62-$H$12+$H$2)*_xlfn.CSC(2*Lmda))/(6*$A62)),IF(AND(bc*$A62<=$H$2,$H$5<$A62),(($H$2-$H$5)^2*($H$2^2+$H$12*(3*$A62-2*$H$5)-$H$2*(2*$A62+$H$12-2*$H$5)+$H$5*(-4*$A62+3*$H$5))*_xlfn.CSC(2*Lmda))/(6*$A62),IF(AND($H$2<bc*$A62,bc*$A62<=$H$5,$H$2<$A62,$A62<=$H$5),-(1/6)*(-1+bc)^2*$A62*($A62*((1+2*bc+3*bc^2)*$A62-(1+2*bc)*$H$12)+(-2*($A62+2*bc*$A62)+3*$H$12)*$H$2)*_xlfn.CSC(2*Lmda),IF(AND($H$2<bc*$A62,bc*$A62<=$H$5,$H$5<$A62),((4*bc^3*$A62^4-3*bc^4*$A62^4-4*$A62*$H$5^3+3*$H$5^4+$H$12*(bc^2*(-3+2*bc)*$A62^3+3*$A62*$H$5^2-2*$H$5^3)+$H$2*(bc*$A62-$H$5)*(2*bc*(-3+2*bc)*$A62^2+2*(-3+2*bc)*$A62*$H$5+4*$H$5^2-3*$H$12*((-2+bc)*$A62+$H$5)))*_xlfn.CSC(2*Lmda))/(6*$A62),0))))) -> 70998854.49 | BV62: =-Ey*ec*IF($A62<=$H$3,0,IF(AND(bc*$A62<=$H$3,$H$3<$A62,$A62<=$H$6),-((($A62-$H$3)^3*($A62-$H$12+$H$3)*_xlfn.CSC(2*Lmda))/(6*$A62)),IF(AND(bc*$A62<=$H$3,$H$6<$A62),(($H$3-$H$6)^2*($H$3^2+$H$12*(3*$A62-$H$3-2*$H$6)-2*$H$3*($A62-$H$6)+$H$6*(-4*$A62+3*$H$6))*_xlfn.CSC(2*Lmda))/(6*$A62),IF(AND($H$3<bc*$A62,bc*$A62<=$H$6,$H$3<$A62,$A62<=$H$6),-(1/6)*(-1+bc)^2*$A62*(-$H$12*($A62+2*bc*$A62-3*$H$3)+$A62*((1+2*bc+3*bc^2)*$A62-2*(1+2*bc)*$H$3))*_xlfn.CSC(2*Lmda),IF(AND($H$3<bc*$A62,bc*$A62<=$H$6,$H$6<$A62),((4*bc^3*$A62^4-3*bc^4*$A62^4-4*$A62*$H$6^3+3*$H$6^4+$H$3*(2*bc^2*(-3+2*bc)*$A62^3+6*$A62*$H$6^2-4*$H$6^3)+$H$12*(bc*$A62-$H$6)*(bc*(-3+2*bc)*$A62^2+(-3+2*bc)*$A62*$H$6+2*$H$6^2-3*$H$3*((-2+bc)*$A62+$H$6)))*_xlfn.CSC(2*Lmda))/(6*$A62),0))))) -> -67340412.1 | BW62: =Ey*ec*IF($A62<=$H$5,0,IF(AND(bc*$A62<=$H$5,$H$5<$A62,$A62<=$H$8),-((($A62-$H$5)^2*(-$H$2+$H$5)*(2*$A62-3*$H$12+4*$H$5)*_xlfn.CSC(2*Lmda))/(6*$A62)),IF(AND(bc*$A62<=$H$5,$H$8<$A62),(($H$2-$H$5)*($H$5-$H$8)*(4*$H$5^2+$H$12*(6*$A62-3*$H$5-3*$H$8)-6*$A62*$H$8+4*$H$8^2+$H$5*(-6*$A62+4*$H$8))*_xlfn.CSC(2*Lmda))/(6*$A62),IF(AND($H$5<bc*$A62,bc*$A62<=$H$8,$H$5<$A62,$A62<=$H$8),1/6*(-1+bc)^2*$A62*(2*$A62+4*bc*$A62-3*$H$12)*($H$2-$H$5)*_xlfn.CSC(2*Lmda),IF(AND($H$5<bc*$A62,bc*$A62<=$H$8,$H$8<$A62),(($H$2-$H$5)*(bc*$A62-$H$8)*(2*bc*(-3+2*bc)*$A62^2+2*(-3+2*bc)*$A62*$H$8+4*$H$8^2-3*$H$12*((-2+bc)*$A62+$H$8))*_xlfn.CSC(2*Lmda))/(6*$A62),0))))) -> 0 | BX62: =-Ey*ec*IF($A62<=$H$6,0,IF(AND(bc*$A62<=$H$6,$H$6<$A62,$A62<=$H$7),-((($A62-$H$6)^2*(-$H$3+$H$6)*(2*$A62-3*$H$12+4*$H$6)*_xlfn.CSC(2*Lmda))/(6*$A62)),IF(AND(bc*$A62<=$H$6,$H$7<$A62),(($H$3-$H$6)*($H$6-$H$7)*(4*$H$6^2+$H$12*(6*$A62-3*$H$6-3*$H$7)-6*$A62*$H$7+4*$H$7^2+$H$6*(-6*$A62+4*$H$7))*_xlfn.CSC(2*Lmda))/(6*$A62),IF(AND($H$6<bc*$A62,bc*$A62<=$H$7,$H$6<$A62,$A62<=$H$7),1/6*(-1+bc)^2*$A62*(2*$A62+4*bc*$A62-3*$H$12)*($H$3-$H$6)*_xlfn.CSC(2*Lmda),IF(AND($H$6<bc*$A62,bc*$A62<=$H$7,$A62>$H$7),(($H$3-$H$6)*(bc*$A62-$H$7)*(2*bc*(-3+2*bc)*$A62^2+2*(-3+2*bc)*$A62*$H$7+4*$H$7^2-3*$H$12*((-2+bc)*$A62+$H$7))*_xlfn.CSC(2*Lmda))/(6*$A62),0))))) -> 0 | BY62: =Ey*ec*IF($A62<=$H$8,0,IF(AND(bc*$A62<=$H$8,$H$8<$A62,$A62<=$H$11),(($A62-$H$8)^2*($A62^2+2*$A62*$H$8+3*$H$8^2-$H$12*($A62+2*$H$8)+$H$11*(3*$H$12-2*($A62+2*$H$8)))*_xlfn.CSC(2*Lmda))/(6*$A62),IF(AND(bc*$A62<=$H$8,$H$11<$A62),(($H$11-$H$8)^2*($H$11^2+$H$12*(3*$A62-2*$H$8)-$H$11*(2*$A62+$H$12-2*$H$8)+$H$8*(-4*$A62+3*$H$8))*_xlfn.CSC(2*Lmda))/(6*$A62),IF(AND($H$8<bc*$A62,bc*$A62<=$H$11,$H$8<$A62,$A62<=$H$11),1/6*(-1+bc)^2*$A62*($H$11*(-2*($A62+2*bc*$A62)+3*$H$12)+$A62*((1+2*bc+3*bc^2)*$A62-(1+2*bc)*$H$12))*_xlfn.CSC(2*Lmda),IF(AND($H$8<bc*$A62,bc*$A62<=$H$11,$H$11<$A62),((-bc*$A62+$H$11)^2*($H$11^2+$H$11*(2*(-1+bc)*$A62-$H$12)+$A62*(bc*(-4+3*bc)*$A62+(3-2*bc)*$H$12))*_xlfn.CSC(2*Lmda))/(6*$A62),0))))) -> 0 | BZ62: =-Ey*ec*IF($A62<=$H$7,0,IF(AND(bc*$A62<=$H$7,$H$7<$A62,$A62<=$H$10),(($A62-$H$7)^2*($A62*($A62-2*$H$10)+2*($A62-2*$H$10)*$H$7+3*$H$7^2-$H$12*($A62-3*$H$10+2*$H$7))*_xlfn.CSC(2*Lmda))/(6*$A62),IF(AND(bc*$A62<=$H$7,$H$10<$A62),((-$H$10+$H$7)^2*($H$10*(-2*$A62+$H$10)+$H$12*(3*$A62-$H$10-2*$H$7)+(-4*$A62+2*$H$10)*$H$7+3*$H$7^2)*_xlfn.CSC(2*Lmda))/(6*$A62),IF(AND($H$7<bc*$A62,bc*$A62<=$H$10,$H$7<$A62,$A62<=$H$10),1/6*(-1+bc)^2*$A62*($A62*((1+2*bc+3*bc^2)*$A62-2*(1+2*bc)*$H$10)-($A62+2*bc*$A62-3*$H$10)*$H$12)*_xlfn.CSC(2*Lmda),IF(AND($H$7<bc*$A62,bc*$A62<=$H$10,$H$10<$A62),((-bc*$A62+$H$10)^2*(bc*(-4+3*bc)*$A62^2+2*(-1+bc)*$A62*$H$10+$H$10^2-((-3+2*bc)*$A62+$H$10)*$H$12)*_xlfn.CSC(2*Lmda))/(6*$A62),0))))) -> 0 | CA62: =fys*IF(bcs*$A62<=$N$2,0,IF(AND($N$2<bcs*$A62,bcs*$A62<$N$4),-(1/6)*(-bcs*$A62+$N$2)^2*(4*bcs*$A62-3*$H$12+2*$N$2)*_xlfn.CSC(2*Lmda),IF(AND($N$4<=bcs*$A62,bcs*$A62<=$N$7),-(1/6)*($N$2-$N$4)*($H$12*(6*bcs*$A62-3*$N$2-3*$N$4)+2*(-3*bcs^2*$A62^2+$N$2^2+$N$2*$N$4+$N$4^2))*_xlfn.CSC(2*Lmda),IF(AND($N$7<bcs*$A62,bcs*$A62<=$N$9),1/6*(-bcs*$A62+$N$9)^2*(4*bcs*$A62-3*$H$12+2*$N$9)*_xlfn.CSC(2*Lmda),0)))) -> 0 | CB62: =-fys*IF(bcs*$A62<=$N$3,0,IF(AND($N$3<bcs*$A62,bcs*$A62<$N$5),-(1/6)*(-bcs*$A62+$N$3)^2*(4*bcs*$A62-3*$H$12+2*$N$3)*_xlfn.CSC(2*Lmda),IF(AND($N$5<=bcs*$A62,bcs*$A62<=$N$6),-(1/6)*($N$3-$N$5)*($H$12*(6*bcs*$A62-3*$N$3-3*$N$5)+2*(-3*bcs^2*$A62^2+$N$3^2+$N$3*$N$5+$N$5^2))*_xlfn.CSC(2*Lmda),IF(AND($N$6<bcs*$A62,bcs*$A62<=$N$8),1/6*(-bcs*$A62+$N$8)^2*(4*bcs*$A62-3*$H$12+2*$N$8)*_xlfn.CSC(2*Lmda),0)))) -> 0 | CC62: =fys*IF(bts*$A62<=$N$2,0,IF(AND($N$2<bts*$A62,bts*$A62<$N$4),-(1/6)*(-bts*$A62+$N$2)^2*(4*bts*$A62-3*$H$12+2*$N$2)*_xlfn.CSC(2*Lmda),IF(AND($N$4<=bts*$A62,bts*$A62<=$N$7),-(1/6)*($N$2-$N$4)*($H$12*(6*bts*$A62-3*$N$2-3*$N$4)+2*(-3*bts^2*$A62^2+$N$2^2+$N$2*$N$4+$N$4^2))*_xlfn.CSC(2*Lmda),IF(AND($N$7<bts*$A62,bts*$A62<=$N$9),1/6*(-bts*$A62+$N$9)^2*(4*bts*$A62-3*$H$12+2*$N$9)*_xlfn.CSC(2*Lmda),0)))) -> 131974823.6 | CD62: =-fys*IF(bts*$A62<=$N$3,0,IF(AND($N$3<bts*$A62,bts*$A62<$N$5),-(1/6)*(-bts*$A62+$N$3)^2*(4*bts*$A62-3*$H$12+2*$N$3)*_xlfn.CSC(2*Lmda),IF(AND($N$5<=bts*$A62,bts*$A62<=$N$6),-(1/6)*($N$3-$N$5)*($H$12*(6*bts*$A62-3*$N$3-3*$N$5)+2*(-3*bts^2*$A62^2+$N$3^2+$N$3*$N$5+$N$5^2))*_xlfn.CSC(2*Lmda),IF(AND($N$6<bts*$A62,bts*$A62<=$N$8),1/6*(-bts*$A62+$N$8)^2*(4*bts*$A62-3*$H$12+2*$N$8)*_xlfn.CSC(2*Lmda),0)))) -> -117772165.3 | CE62: =-Ey*ec*IF(bts*$A62<=$N$2,0,IF(AND($A62<=$N$2,$N$2<bts*$A62,bts*$A62<=$N$4),-(((-bts*$A62+$N$2)^2*(bts*(-4+3*bts)*$A62^2+2*(-1+bts)*$A62*$N$2+$N$2^2-$H$12*((-3+2*bts)*$A62+$N$2))*_xlfn.CSC(2*Lmda))/(6*$A62)),IF(AND($A62<=$N$2,$N$4<bts*$A62),(($N$2-$N$4)^2*(-($N$2^2)+2*$N$2*($A62-$N$4)+(4*$A62-3*$N$4)*$N$4+$H$12*(-3*$A62+$N$2+2*$N$4))*_xlfn.CSC(2*Lmda))/(6*$A62),IF(AND($N$2<$A62,$A62<=$N$4,$N$2<bts*$A62,bts*$A62<=$N$4),-(1/6)*(-1+bts)^2*$A62*(-$H$12*($A62+2*bts*$A62-3*$N$2)+$A62*((1+2*bts+3*bts^2)*$A62-2*(1+2*bts)*$N$2))*_xlfn.CSC(2*Lmda),IF(AND($N$2<$A62,$A62<=$N$4,$N$4<bts*$A62),-((($A62-$N$4)^2*($A62^2+2*$A62*$N$4+3*$N$4^2-2*$N$2*($A62+2*$N$4)-$H$12*($A62-3*$N$2+2*$N$4))*_xlfn.CSC(2*Lmda))/(6*$A62)),0))))) -> -5468181.057 | CF62: =Ey*ec*IF(bts*$A62<=$N$3,0,IF(AND($A62<=$N$3,$N$3<bts*$A62,bts*$A62<=$N$5),-(((-bts*$A62+$N$3)^2*(bts*(-4+3*bts)*$A62^2+2*(-1+bts)*$A62*$N$3+$N$3^2-$H$12*((-3+2*bts)*$A62+$N$3))*_xlfn.CSC(2*Lmda))/(6*$A62)),IF(AND($A62<=$N$3,$N$5<bts*$A62),(($N$3-$N$5)^2*(-($N$3^2)+2*$N$3*($A62-$N$5)+(4*$A62-3*$N$5)*$N$5+$H$12*(-3*$A62+$N$3+2*$N$5))*_xlfn.CSC(2*Lmda))/(6*$A62),IF(AND($N$3<$A62,$A62<=$N$5,$N$3<bts*$A62,bts*$A62<=$N$5),-(1/6)*(-1+bts)^2*$A62*(-$H$12*($A62+2*bts*$A62-3*$N$3)+$A62*((1+2*bts+3*bts^2)*$A62-2*(1+2*bts)*$N$3))*_xlfn.CSC(2*Lmda),IF(AND($N$3<$A62,$A62<=$N$5,$N$5<bts*$A62),-((($A62-$N$5)^2*($A62^2+2*$A62*$N$5+3*$N$5^2-2*$N$3*($A62+2*$N$5)-$H$12*($A62-3*$N$3+2*$N$5))*_xlfn.CSC(2*Lmda))/(6*$A62)),0))))) -> 7931391.527 | CG62: =-Ey*ec*IF(bts*$A62<=$N$4,0,IF(AND($A62<=$N$4,$N$4<bts*$A62,bts*$A62<=$N$7),-(((bts*$A62-$N$4)*(-$N$2+$N$4)*(2*bts*(-3+2*bts)*$A62^2+2*(-3+2*bts)*$A62*$N$4+4*$N$4^2-3*$H$12*((-2+bts)*$A62+$N$4))*_xlfn.CSC(2*Lmda))/(6*$A62)),IF(AND($A62<=$N$4,$N$7<bts*$A62),(($N$2-$N$4)*($N$4-$N$7)*(6*$A62*$N$4-4*$N$4^2+6*$A62*$N$7-4*$N$4*$N$7-4*$N$7^2+3*$H$12*(-2*$A62+$N$4+$N$7))*_xlfn.CSC(2*Lmda))/(6*$A62),IF(AND($N$4<$A62,$A62<=$N$7,$N$4<bts*$A62,bts*$A62<=$N$7),1/6*(-1+bts)^2*$A62*(2*$A62+4*bts*$A62-3*$H$12)*($N$2-$N$4)*_xlfn.CSC(2*Lmda),IF(AND($N$4<$A62,$A62<=$N$7,$N$7<bts*$A62),(($N$2-$N$4)*($A62-$N$7)^2*(2*$A62-3*$H$12+4*$N$7)*_xlfn.CSC(2*Lmda))/(6*$A62),0))))) -> -28312146.94 | CH62: =Ey*ec*IF(bts*$A62<=$N$5,0,IF(AND($A62<=$N$5,$N$5<bts*$A62,bts*$A62<=$N$6),-(((bts*$A62-$N$5)*(-$N$3+$N$5)*(2*bts*(-3+2*bts)*$A62^2+2*(-3+2*bts)*$A62*$N$5+4*$N$5^2-3*$H$12*((-2+bts)*$A62+$N$5))*_xlfn.CSC(2*Lmda))/(6*$A62)),IF(AND($A62<=$N$5,$N$6<bts*$A62),(($N$3-$N$5)*($N$5-$N$6)*(6*$A62*$N$5-4*$N$5^2+6*$A62*$N$6-4*$N$5*$N$6-4*$N$6^2+3*$H$12*(-2*$A62+$N$5+$N$6))*_xlfn.CSC(2*Lmda))/(6*$A62),IF(AND($N$5<$A62,$A62<=$N$6,$N$5<bts*$A62,bts*$A62<=$N$6),1/6*(-1+bts)^2*$A62*(2*$A62+4*bts*$A62-3*$H$12)*($N$3-$N$5)*_xlfn.CSC(2*Lmda),IF(AND($N$5<$A62,$A62<=$N$6,$N$6<bts*$A62),(($N$3-$N$5)*($A62-$N$6)^2*(2*$A62-3*$H$12+4*$N$6)*_xlfn.CSC(2*Lmda))/(6*$A62),0))))) -> 25262283.97 | CI62: =-Ey*ec*IF(bts*$A62<=$N$7,0,IF(AND($A62<=$N$7,$N$7<bts*$A62,bts*$A62<=$N$9),((bts*$A62-$N$7)*(3*$N$7^3+$N$7^2*((-4+3*bts)*$A62-4*$N$9)+bts*$A62^2*(bts*(-4+3*bts)*$A62+(6-4*bts)*$N$9)+$A62*$N$7*(bts*(-4+3*bts)*$A62+(6-4*bts)*$N$9)+$H$12*(-2*$N$7^2+$N$7*((3-2*bts)*$A62+3*$N$9)+$A62*((3-2*bts)*bts*$A62+3*(-2+bts)*$N$9)))*_xlfn.CSC(2*Lmda))/(6*$A62),IF(AND($A62<=$N$7,$N$9<bts*$A62),(($N$7-$N$9)^2*(-3*$N$7^2+$N$7*(4*$A62-2*$N$9)+(2*$A62-$N$9)*$N$9+$H$12*(-3*$A62+2*$N$7+$N$9))*_xlfn.CSC(2*Lmda))/(6*$A62),IF(AND($N$7<$A62,$A62<=$N$9,$N$7<bts*$A62,bts*$A62<=$N$9),1/6*(-1+bts)^2*$A62*(-$H$12*($A62+2*bts*$A62-3*$N$9)+$A62*((1+2*bts+3*bts^2)*$A62-2*(1+2*bts)*$N$9))*_xlfn.CSC(2*Lmda),IF(AND($N$7<$A62,$A62<=$N$9,$N$9<bts*$A62),(($A62-$N$9)^3*($A62-$H$12+$N$9)*_xlfn.CSC(2*Lmda))/(6*$A62),0))))) -> 0 | CJ62: =Ey*ec*IF(bts*$A62<=$N$6,0,IF(AND($A62<=$N$6,$N$6<bts*$A62,bts*$A62<=$N$8),((bts*$A62-$N$6)*(3*$N$6^3+$N$6^2*((-4+3*bts)*$A62-4*$N$8)+bts*$A62^2*(bts*(-4+3*bts)*$A62+(6-4*bts)*$N$8)+$A62*$N$6*(bts*(-4+3*bts)*$A62+(6-4*bts)*$N$8)+$H$12*(-2*$N$6^2+$N$6*((3-2*bts)*$A62+3*$N$8)+$A62*((3-2*bts)*bts*$A62+3*(-2+bts)*$N$8)))*_xlfn.CSC(2*Lmda))/(6*$A62),IF(AND($A62<=$N$6,$N$8<bts*$A62),(($N$6-$N$8)^2*(-3*$N$6^2+$N$6*(4*$A62-2*$N$8)+(2*$A62-$N$8)*$N$8+$H$12*(-3*$A62+2*$N$6+$N$8))*_xlfn.CSC(2*Lmda))/(6*$A62),IF(AND($N$6<$A62,$A62<=$N$8,$N$6<bts*$A62,bts*$A62<=$N$8),1/6*(-1+bts)^2*$A62*(-$H$12*($A62+2*bts*$A62-3*$N$8)+$A62*((1+2*bts+3*bts^2)*$A62-2*(1+2*bts)*$N$8))*_xlfn.CSC(2*Lmda),IF(AND($N$6<$A62,$A62<=$N$8,$N$8<bts*$A62),(($A62-$N$8)^3*($A62-$H$12+$N$8)*_xlfn.CSC(2*Lmda))/(6*$A62),0))))) -> 0 | CK62: =Ey*ec*IF($A62<=$N$2,0,IF(AND(bcs*$A62<=$N$2,$N$2<$A62,$A62<=$N$4),-((($A62-$N$2)^3*($A62-$H$12+$N$2)*_xlfn.CSC(2*Lmda))/(6*$A62)),IF(AND(bcs*$A62<=$N$2,$N$4<$A62),(($N$2-$N$4)^2*($N$2^2+$H$12*(3*$A62-$N$2-2*$N$4)-2*$N$2*($A62-$N$4)+$N$4*(-4*$A62+3*$N$4))*_xlfn.CSC(2*Lmda))/(6*$A62),IF(AND($N$2<bcs*$A62,bcs*$A62<=$N$4,$N$2<$A62,$A62<=$N$4),-(1/6)*(-1+bcs)^2*$A62*(-$H$12*($A62+2*bcs*$A62-3*$N$2)+$A62*((1+2*bcs+3*bcs^2)*$A62-2*(1+2*bcs)*$N$2))*_xlfn.CSC(2*Lmda),IF(AND($N$2<bcs*$A62,bcs*$A62<=$N$4,$N$4<$A62),((4*bcs^3*$A62^4-3*bcs^4*$A62^4-4*$A62*$N$4^3+3*$N$4^4+$N$2*(2*bcs^2*(-3+2*bcs)*$A62^3+6*$A62*$N$4^2-4*$N$4^3)+$H$12*(bcs*$A62-$N$4)*(bcs*(-3+2*bcs)*$A62^2+(-3+2*bcs)*$A62*$N$4+2*$N$4^2-3*$N$2*((-2+bcs)*$A62+$N$4)))*_xlfn.CSC(2*Lmda))/(6*$A62),0))))) -> 12439931.11 | CL62: =-Ey*ec*IF($A62<=$N$3,0,IF(AND(bcs*$A62<=$N$3,$N$3<$A62,$A62<=$N$5),-((($A62-$N$3)^3*($A62-$H$12+$N$3)*_xlfn.CSC(2*Lmda))/(6*$A62)),IF(AND(bcs*$A62<=$N$3,$N$5<$A62),(($N$3-$N$5)^2*($N$3^2+$H$12*(3*$A62-$N$3-2*$N$5)-2*$N$3*($A62-$N$5)+$N$5*(-4*$A62+3*$N$5))*_xlfn.CSC(2*Lmda))/(6*$A62),IF(AND($N$3<bcs*$A62,bcs*$A62<=$N$5,$N$3<$A62,$A62<=$N$5),-(1/6)*(-1+bcs)^2*$A62*(-$H$12*($A62+2*bcs*$A62-3*$N$3)+$A62*((1+2*bcs+3*bcs^2)*$A62-2*(1+2*bcs)*$N$3))*_xlfn.CSC(2*Lmda),IF(AND($N$3<bcs*$A62,bcs*$A62<=$N$5,$N$5<$A62),((4*bcs^3*$A62^4-3*bcs^4*$A62^4-4*$A62*$N$5^3+3*$N$5^4+$N$3*(2*bcs^2*(-3+2*bcs)*$A62^3+6*$A62*$N$5^2-4*$N$5^3)+$H$12*(bcs*$A62-$N$5)*(bcs*(-3+2*bcs)*$A62^2+(-3+2*bcs)*$A62*$N$5+2*$N$5^2-3*$N$3*((-2+bcs)*$A62+$N$5)))*_xlfn.CSC(2*Lmda))/(6*$A62),0))))) -> -8543755.591 | CM62: =Ey*ec*IF($A62<=$N$4,0,IF(AND(bcs*$A62<=$N$4,$N$4<$A62,$A62<=$N$7),-((($A62-$N$4)^2*(-$N$2+$N$4)*(2*$A62-3*$H$12+4*$N$4)*_xlfn.CSC(2*Lmda))/(6*$A62)),IF(AND(bcs*$A62<=$N$4,$N$7<$A62),(($N$2-$N$4)*($N$4-$N$7)*(4*$N$4^2+$H$12*(6*$A62-3*$N$4-3*$N$7)-6*$A62*$N$7+4*$N$7^2+$N$4*(-6*$A62+4*$N$7))*_xlfn.CSC(2*Lmda))/(6*$A62),IF(AND($N$4<bcs*$A62,bcs*$A62<=$N$7,$N$4<$A62,$A62<=$N$7),1/6*(-1+bcs)^2*$A62*(2*$A62+4*bcs*$A62-3*$H$12)*($N$2-$N$4)*_xlfn.CSC(2*Lmda),IF(AND($N$4<bcs*$A62,bcs*$A62<=$N$7,$N$7<$A62),(($N$2-$N$4)*(bcs*$A62-$N$7)*(2*bcs*(-3+2*bcs)*$A62^2+2*(-3+2*bcs)*$A62*$N$7+4*$N$7^2-3*$H$12*((-2+bcs)*$A62+$N$7))*_xlfn.CSC(2*Lmda))/(6*$A62),0))))) -> 0 | CN62: =-Ey*ec*IF($A62<=$N$5,0,IF(AND(bcs*$A62<=$N$5,$N$5<$A62,$A62<=$N$6),-((($A62-$N$5)^2*(-$N$3+$N$5)*(2*$A62-3*$H$12+4*$N$5)*_xlfn.CSC(2*Lmda))/(6*$A62)),IF(AND(bcs*$A62<=$N$5,$N$6<$A62),(($N$3-$N$5)*($N$5-$N$6)*(4*$N$5^2+$H$12*(6*$A62-3*$N$5-3*$N$6)-6*$A62*$N$6+4*$N$6^2+$N$5*(-6*$A62+4*$N$6))*_xlfn.CSC(2*Lmda))/(6*$A62),IF(AND($N$5<bcs*$A62,bcs*$A62<=$N$6,$N$5<$A62,$A62<=$N$6),1/6*(-1+bcs)^2*$A62*(2*$A62+4*bcs*$A62-3*$H$12)*($N$3-$N$5)*_xlfn.CSC(2*Lmda),IF(AND($N$5<bcs*$A62,bcs*$A62<=$N$6,$A62>$N$6),(($N$3-$N$5)*(bcs*$A62-$N$6)*(2*bcs*(-3+2*bcs)*$A62^2+2*(-3+2*bcs)*$A62*$N$6+4*$N$6^2-3*$H$12*((-2+bcs)*$A62+$N$6))*_xlfn.CSC(2*Lmda))/(6*$A62),0))))) -> 0 | CO62: =Ey*ec*IF($A62<=$N$7,0,IF(AND(bcs*$A62<=$N$7,$N$7<$A62,$A62<=$N$9),(($A62-$N$7)^2*(3*$N$7^2-$H$12*($A62+2*$N$7-3*$N$9)+$A62*($A62-2*$N$9)+2*$N$7*($A62-2*$N$9))*_xlfn.CSC(2*Lmda))/(6*$A62),IF(AND(bcs*$A62<=$N$7,$N$9<$A62),(($N$7-$N$9)^2*(3*$N$7^2+$H$12*(3*$A62-2*$N$7-$N$9)+$N$9*(-2*$A62+$N$9)+$N$7*(-4*$A62+2*$N$9))*_xlfn.CSC(2*Lmda))/(6*$A62),IF(AND($N$7<bcs*$A62,bcs*$A62<=$N$9,$N$7<$A62,$A62<=$N$9),1/6*(-1+bcs)^2*$A62*(-$H$12*($A62+2*bcs*$A62-3*$N$9)+$A62*((1+2*bcs+3*bcs^2)*$A62-2*(1+2*bcs)*$N$9))*_xlfn.CSC(2*Lmda),IF(AND($N$7<bcs*$A62,bcs*$A62<=$N$9,$N$9<$A62),((-bcs*$A62+$N$9)^2*(bcs*(-4+3*bcs)*$A62^2+2*(-1+bcs)*$A62*$N$9+$N$9^2-$H$12*((-3+2*bcs)*$A62+$N$9))*_xlfn.CSC(2*Lmda))/(6*$A62),0))))) -> 0 | CP62: =-Ey*ec*IF($A62<=$N$6,0,IF(AND(bcs*$A62<=$N$6,$N$6<$A62,$A62<=$N$8),(($A62-$N$6)^2*(3*$N$6^2-$H$12*($A62+2*$N$6-3*$N$8)+$A62*($A62-2*$N$8)+2*$N$6*($A62-2*$N$8))*_xlfn.CSC(2*Lmda))/(6*$A62),IF(AND(bcs*$A62<=$N$6,$N$8<$A62),(($N$6-$N$8)^2*(3*$N$6^2+$H$12*(3*$A62-2*$N$6-$N$8)+$N$8*(-2*$A62+$N$8)+$N$6*(-4*$A62+2*$N$8))*_xlfn.CSC(2*Lmda))/(6*$A62),IF(AND($N$6<bcs*$A62,bcs*$A62<=$N$8,$N$6<$A62,$A62<=$N$8),1/6*(-1+bcs)^2*$A62*(-$H$12*($A62+2*bcs*$A62-3*$N$8)+$A62*((1+2*bcs+3*bcs^2)*$A62-2*(1+2*bcs)*$N$8))*_xlfn.CSC(2*Lmda),IF(AND($N$6<bcs*$A62,bcs*$A62<=$N$8,$N$8<$A62),((-bcs*$A62+$N$8)^2*(bcs*(-4+3*bcs)*$A62^2+2*(-1+bcs)*$A62*$N$8+$N$8^2-$H$12*((-3+2*bcs)*$A62+$N$8))*_xlfn.CSC(2*Lmda))/(6*$A62),0))))) -> 0 | CQ62: =fys*IF(bcs*$A62<=$N$11,0,IF(AND($N$11<bcs*$A62,bcs*$A62<$N$12),-(1/6)*(-bcs*$A62+$N$11)^2*(4*bcs*$A62-3*$H$12+2*$N$11)*_xlfn.CSC(2*Lmda),IF(AND($N$12<=bcs*$A62,bcs*$A62<=$N$13),-(1/6)*($N$11-$N$12)*($H$12*(6*bcs*$A62-3*$N$11-3*$N$12)+2*(-3*bcs^2*$A62^2+$N$11^2+$N$11*$N$12+$N$12^2))*_xlfn.CSC(2*Lmda),IF(AND($N$13<bcs*$A62,bcs*$A62<=$N$14),1/6*(-bcs*$A62+$N$14)^2*(4*bcs*$A62-3*$H$12+2*$N$14)*_xlfn.CSC(2*Lmda),0)))) -> 0 | CR62: =fys*IF(bts*$A62<=$N$11,0,IF(AND($N$11<bts*$A62,bts*$A62<$N$12),-(1/6)*(-bts*$A62+$N$11)^2*(4*bts*$A62-3*$H$12+2*$N$11)*_xlfn.CSC(2*Lmda),IF(AND($N$12<=bts*$A62,bts*$A62<=$N$13),-(1/6)*($N$11-$N$12)*($H$12*(6*bts*$A62-3*$N$11-3*$N$12)+2*(-3*bts^2*$A62^2+$N$11^2+$N$11*$N$12+$N$12^2))*_xlfn.CSC(2*Lmda),IF(AND($N$13<bts*$A62,bts*$A62<=$N$14),1/6*(-bts*$A62+$N$14)^2*(4*bts*$A62-3*$H$12+2*$N$14)*_xlfn.CSC(2*Lmda),0)))) -> 5031715.095 | CS62: =-Ey*ec*IF(bts*$A62<=$N$11,0,IF(AND($A62<=$N$11,$N$11<bts*$A62,bts*$A62<=$N$12),-(((-bts*$A62+$N$11)^2*(bts*(-4+3*bts)*$A62^2+2*(-1+bts)*$A62*$N$11+$N$11^2-$H$12*((-3+2*bts)*$A62+$N$11))*_xlfn.CSC(2*Lmda))/(6*$A62)),IF(AND($A62<=$N$11,$N$12<bts*$A62),(($N$11-$N$12)^2*(-($N$11^2)+2*$N$11*($A62-$N$12)+(4*$A62-3*$N$12)*$N$12+$H$12*(-3*$A62+$N$11+2*$N$12))*_xlfn.CSC(2*Lmda))/(6*$A62),IF(AND($N$11<$A62,$A62<=$N$12,$N$11<bts*$A62,bts*$A62<=$N$12),-(1/6)*(-1+bts)^2*$A62*(-$H$12*($A62+2*bts*$A62-3*$N$11)+$A62*((1+2*bts+3*bts^2)*$A62-2*(1+2*bts)*$N$11))*_xlfn.CSC(2*Lmda),IF(AND($N$11<$A62,$A62<=$N$12,$N$12<bts*$A62),-((($A62-$N$12)^2*($A62^2+2*$A62*$N$12+3*$N$12^2-2*$N$11*($A62+2*$N$12)-$H$12*($A62-3*$N$11+2*$N$12))*_xlfn.CSC(2*Lmda))/(6*$A62)),0))))) -> 0 | CT62: =-Ey*ec*IF(bts*$A62<=$N$12,0,IF(AND($A62<=$N$12,$N$12<bts*$A62,bts*$A62<=$N$13),-(((bts*$A62-$N$12)*(-$N$11+$N$12)*(2*bts*(-3+2*bts)*$A62^2+2*(-3+2*bts)*$A62*$N$12+4*$N$12^2-3*$H$12*((-2+bts)*$A62+$N$12))*_xlfn.CSC(2*Lmda))/(6*$A62)),IF(AND($A62<=$N$12,$N$13<bts*$A62),(($N$11-$N$12)*($N$12-$N$13)*(6*$A62*$N$12-4*$N$12^2+6*$A62*$N$13-4*$N$12*$N$13-4*$N$13^2+3*$H$12*(-2*$A62+$N$12+$N$13))*_xlfn.CSC(2*Lmda))/(6*$A62),IF(AND($N$12<$A62,$A62<=$N$13,$N$12<bts*$A62,bts*$A62<=$N$13),1/6*(-1+bts)^2*$A62*(2*$A62+4*bts*$A62-3*$H$12)*($N$11-$N$12)*_xlfn.CSC(2*Lmda),IF(AND($N$12<$A62,$A62<=$N$13,$N$13<bts*$A62),(($N$11-$N$12)*($A62-$N$13)^2*(2*$A62-3*$H$12+4*$N$13)*_xlfn.CSC(2*Lmda))/(6*$A62),0))))) -> -1546685.108 | CU62: =-Ey*ec*IF(bts*$A62<=$N$13,0,IF(AND($A62<=$N$13,$N$13<bts*$A62,bts*$A62<=$N$14),((bts*$A62-$N$13)*(3*$N$13^3+$N$13^2*((-4+3*bts)*$A62-4*$N$14)+bts*$A62^2*(bts*(-4+3*bts)*$A62+(6-4*bts)*$N$14)+$A62*$N$13*(bts*(-4+3*bts)*$A62+(6-4*bts)*$N$14)+$H$12*(-2*$N$13^2+$N$13*((3-2*bts)*$A62+3*$N$14)+$A62*((3-2*bts)*bts*$A62+3*(-2+bts)*$N$14)))*_xlfn.CSC(2*Lmda))/(6*$A62),IF(AND($A62<=$N$13,$N$14<bts*$A62),(($N$13-$N$14)^2*(-3*$N$13^2+$N$13*(4*$A62-2*$N$14)+(2*$A62-$N$14)*$N$14+$H$12*(-3*$A62+2*$N$13+$N$14))*_xlfn.CSC(2*Lmda))/(6*$A62),IF(AND($N$13<$A62,$A62<=$N$14,$N$13<bts*$A62,bts*$A62<=$N$14),1/6*(-1+bts)^2*$A62*(-$H$12*($A62+2*bts*$A62-3*$N$14)+$A62*((1+2*bts+3*bts^2)*$A62-2*(1+2*bts)*$N$14))*_xlfn.CSC(2*Lmda),IF(AND($N$13<$A62,$A62<=$N$14,$N$14<bts*$A62),(($A62-$N$14)^3*($A62-$H$12+$N$14)*_xlfn.CSC(2*Lmda))/(6*$A62),0))))) -> 0 | CV62: =Ey*ec*IF($A62<=$N$11,0,IF(AND(bcs*$A62<=$N$11,$N$11<$A62,$A62<=$N$12),-((($A62-$N$11)^3*($A62-$H$12+$N$11)*_xlfn.CSC(2*Lmda))/(6*$A62)),IF(AND(bcs*$A62<=$N$11,$N$12<$A62),(($N$11-$N$12)^2*($N$11^2+$H$12*(3*$A62-$N$11-2*$N$12)-2*$N$11*($A62-$N$12)+$N$12*(-4*$A62+3*$N$12))*_xlfn.CSC(2*Lmda))/(6*$A62),IF(AND($N$11<bcs*$A62,bcs*$A62<=$N$12,$N$11<$A62,$A62<=$N$12),-(1/6)*(-1+bcs)^2*$A62*(-$H$12*($A62+2*bcs*$A62-3*$N$11)+$A62*((1+2*bcs+3*bcs^2)*$A62-2*(1+2*bcs)*$N$11))*_xlfn.CSC(2*Lmda),IF(AND($N$11<bcs*$A62,bcs*$A62<=$N$12,$N$12<$A62),((4*bcs^3*$A62^4-3*bcs^4*$A62^4-4*$A62*$N$12^3+3*$N$12^4+$N$11*(2*bcs^2*(-3+2*bcs)*$A62^3+6*$A62*$N$12^2-4*$N$12^3)+$H$12*(bcs*$A62-$N$12)*(bcs*(-3+2*bcs)*$A62^2+(-3+2*bcs)*$A62*$N$12+2*$N$12^2-3*$N$11*((-2+bcs)*$A62+$N$12)))*_xlfn.CSC(2*Lmda))/(6*$A62),0))))) -> 21570.96429 | CW62: =Ey*ec*IF($A62<=$N$12,0,IF(AND(bcs*$A62<=$N$12,$N$12<$A62,$A62<=$N$13),-((($A62-$N$12)^2*(-$N$11+$N$12)*(2*$A62-3*$H$12+4*$N$12)*_xlfn.CSC(2*Lmda))/(6*$A62)),IF(AND(bcs*$A62<=$N$12,$N$13<$A62),(($N$11-$N$12)*($N$12-$N$13)*(4*$N$12^2+$H$12*(6*$A62-3*$N$12-3*$N$13)-6*$A62*$N$13+4*$N$13^2+$N$12*(-6*$A62+4*$N$13))*_xlfn.CSC(2*Lmda))/(6*$A62),IF(AND($N$12<bcs*$A62,bcs*$A62<=$N$13,$N$12<$A62,$A62<=$N$13),1/6*(-1+bcs)^2*$A62*(2*$A62+4*bcs*$A62-3*$H$12)*($N$11-$N$12)*_xlfn.CSC(2*Lmda),IF(AND($N$12<bcs*$A62,bcs*$A62<=$N$13,$N$13<$A62),(($N$11-$N$12)*(bcs*$A62-$N$13)*(2*bcs*(-3+2*bcs)*$A62^2+2*(-3+2*bcs)*$A62*$N$13+4*$N$13^2-3*$H$12*((-2+bcs)*$A62+$N$13))*_xlfn.CSC(2*Lmda))/(6*$A62),0))))) -> 41012.70107 | CX62: =Ey*ec*IF($A62<=$N$13,0,IF(AND(bcs*$A62<=$N$13,$N$13<$A62,$A62<=$N$14),(($A62-$N$13)^2*(3*$N$13^2-$H$12*($A62+2*$N$13-3*$N$14)+$A62*($A62-2*$N$14)+2*$N$13*($A62-2*$N$14))*_xlfn.CSC(2*Lmda))/(6*$A62),IF(AND(bcs*$A62<=$N$13,$N$14<$A62),(($N$13-$N$14)^2*(3*$N$13^2+$H$12*(3*$A62-2*$N$13-$N$14)+$N$14*(-2*$A62+$N$14)+$N$13*(-4*$A62+2*$N$14))*_xlfn.CSC(2*Lmda))/(6*$A62),IF(AND($N$13<bcs*$A62,bcs*$A62<=$N$14,$N$13<$A62,$A62<=$N$14),1/6*(-1+bcs)^2*$A62*(-$H$12*($A62+2*bcs*$A62-3*$N$14)+$A62*((1+2*bcs+3*bcs^2)*$A62-2*(1+2*bcs)*$N$14))*_xlfn.CSC(2*Lmda),IF(AND($N$13<bcs*$A62,bcs*$A62<=$N$14,$N$14<$A62),((-bcs*$A62+$N$14)^2*(bcs*(-4+3*bcs)*$A62^2+2*(-1+bcs)*$A62*$N$14+$N$14^2-$H$12*((-3+2*bcs)*$A62+$N$14))*_xlfn.CSC(2*Lmda))/(6*$A62),0))))) -> 0
A63: =A62+$H$11/bc/199 -> 19.49624868 | B63: 0.9 | C63: -1928500.365 | D63: 57392620.63 | E63: 40582711.24 | F63: 40582711.24 | G63: -2142778.184 | H63: 63769578.48 | I63: 45091901.37 | J63: 45091901.37 | U63: 700293.5774 | V63: 2211182.647 | W63: -1915606.827 | X63: -38562099.5 | Y63: 37226489.84 | Z63: -2483093.998 | AA63: 2421249.571 | AB63: -5966528.687 | AC63: 5829794.484 | AD63: 0 | AE63: 0 | AF63: 4108452.607 | AG63: -3909873.976 | AH63: 0 | AI63: 0 | AJ63: 0 | AK63: 0 | AL63: 0 | AM63: 0 | AN63: -18195473.2 | AO63: 17231673.2 | AP63: -344236.1792 | AQ63: 578209.2563 | AR63: -5884218.642 | AS63: 5611235.027 | AT63: 0 | AU63: 0 | AV63: 891115.3494 | AW63: -644584.2045 | AX63: 0 | AY63: 0 | AZ63: 0 | BA63: 0 | BB63: 0 | BC63: -774334.6817 | BD63: 0 | BE63: -281264.6566 | BF63: 0 | BG63: 2134.252026 | BH63: 6706.555843 | BI63: 0 | BJ63: 14546449.8 | BK63: 53409241.18 | BL63: -45949092.78 | BM63: 328387177.9 | BN63: -311138249.6 | BO63: -21716907.23 | BP63: 21171322.04 | BQ63: -28607625.51 | BR63: 27952028.08 | BS63: 0 | BT63: 0 | BU63: 74464419.41 | BV63: -70771212.09 | BW63: 0 | BX63: 0 | BY63: 0 | BZ63: 0 | CA63: 0 | CB63: 0 | CC63: 133621206.5 | CD63: -119418548.2 | CE63: -3598871.269 | CF63: 5694123.808 | CG63: -26445290.59 | CH63: 23952835.45 | CI63: 0 | CJ63: 0 | CK63: 14737773.81 | CL63: -10382469.33 | CM63: 0 | CN63: 0 | CO63: 0 | CP63: 0 | CQ63: 0 | CR63: 5105698.127 | CS63: 0 | CT63: -1365182.532 | CU63: 0 | CV63: 30367.15228 | CW63: 90384.36717 | CX63: 0
A64: 20.08704409 | B64: 0.9 | C64: -1766556.105 | D64: 59263711.38 | E64: 41905772.2 | F64: 41905772.2 | G64: -1962840.116 | H64: 65848568.2 | I64: 46561969.11 | J64: 46561969.11 | U64: 743378.6735 | V64: 2401355.117 | W64: -2092884.582 | X64: -36949102.51 | Y64: 35650457.71 | Z64: -1916925.08 | AA64: 1869643.419 | AB64: -6864569.892 | AC64: 6707255.389 | AD64: 0 | AE64: 0 | AF64: 4396130.535 | AG64: -4191534.369 | AH64: 0 | AI64: 0 | AJ64: 0 | AK64: 0 | AL64: 0 | AM64: 0 | AN64: -17156078.45 | AO64: 16192278.45 | AP64: -209604.6896 | AQ64: 400079.1083 | AR64: -6224817.332 | AS64: 6009186.53 | AT64: 0 | AU64: 0 | AV64: 1059791.531 | AW64: -783894.2051 | AX64: 0 | AY64: 0 | AZ64: 0 | BA64: 0 | BB64: 0 | BC64: -727627.7024 | BD64: 0 | BE64: -289787.828 | BF64: 0 | BG64: 2716.431378 | BH64: 11713.63516 | BI64: 0 | BJ64: 15192539.1 | BK64: 57513485.68 | BL64: -49775033.89 | BM64: 332377040.2 | BN64: -315036676.8 | BO64: -16419779.54 | BP64: 16011976.83 | BQ64: -29236216.95 | BR64: 28566214.16 | BS64: 0 | BT64: 0 | BU64: 77871112.81 | BV64: -74147962.47 | BW64: 0 | BX64: 0 | BY64: 0 | BZ64: 0 | CA64: 0 | CB64: 0 | CC64: 134300606.3 | CD64: -120097947.9 | CE64: -2153448.296 | CF64: 3870244.346 | CG64: -23724396.76 | CH64: 21756560.77 | CI64: 0 | CJ64: 0 | CK64: 17214376.7 | CL64: -12394807.72 | CM64: 0 | CN64: 0 | CO64: 0 | CP64: 0 | CQ64: 0 | CR64: 5136228.114 | CS64: 0 | CT64: -1169750.471 | CU64: 0 | CV64: 38645.91744 | CW64: 155558.0729 | CX64: 0
A65: 20.67783951 | B65: 0.9 | C65: -1604637.44 | D65: 61057365.01 | E65: 43174076.84 | F65: 43174076.84 | G65: -1782930.489 | H65: 67841516.68 | I65: 47971196.49 | J65: 47971196.49 | U65: 787749.8919 | V65: 2599371.632 | W65: -2278006.38 | X65: -35336105.53 | Y65: 34074425.58 | Z65: -1433798.908 | AA65: 1398772.417 | AB65: -7661916.998 | AC65: 7486329.789 | AD65: 0 | AE65: 0 | AF65: 4693407.248 | AG65: -4482793.549 | AH65: 0 | AI65: 0 | AJ65: 0 | AK65: 0 | AL65: 0 | AM65: 0 | AN65: -16116683.7 | AO65: 15152883.7 | AP65: -109161.462 | AQ65: 256089.1134 | AR65: -6523977.466 | AS65: 6362422.172 | AT65: 0 | AU65: 0 | AV65: 1245324.108 | AW65: -939204.9217 | AX65: 0 | AY65: 0 | AZ65: 0 | BA65: 0 | BB65: 0 | BC65: -680920.7231 | BD65: 0 | BE65: -298310.9994 | BF65: 0 | BG65: 3265.343338 | BH65: 17909.15301 | BI65: 0 | BJ65: 15835634.1 | BK65: 61726515.56 | BL65: -53713700.79 | BM65: 334953905.9 | BN65: -317554488.7 | BO65: -12019910.42 | BP65: 11724705.98 | BQ65: -28355752.41 | BR65: 27705927.13 | BS65: 0 | BT65: 0 | BU65: 81207072.5 | BV65: -77458801.03 | BW65: 0 | BX65: 0 | BY65: 0 | BZ65: 0 | CA65: 0 | CB65: 0 | CC65: 134013022.7 | CD65: -119810364.4 | CE65: -1101309.964 | CF65: 2431547.767 | CG65: -20215485.37 | CH65: 18742290.28 | CI65: 0 | CJ65: 0 | CK65: 19860148.48 | CL65: -14573116.53 | CM65: 0 | CN65: 0 | CO65: 0 | CP65: 0 | CQ65: 0 | CR65: 5123305.056 | CS65: 0 | CT65: -960388.9268 | CU65: 0 | CV65: 46451.61031 | CW65: 234308.1961 | CX65: 0
A66: 21.26863492 | B66: 0.9 | C66: -1442645.779 | D66: 62773290.08 | E66: 44387419.09 | F66: 44387419.09 | G66: -1602939.755 | H66: 69748100.09 | I66: 49319354.55 | J66: 49319354.55 | U66: 833407.2326 | V66: 2805232.191 | W66: -2470972.223 | X66: -33723108.54 | Y66: 32498393.45 | Z66: -1028482.275 | AA66: 1003595.661 | AB66: -8366961.179 | AC66: 8175216.56 | AD66: 0 | AE66: 0 | AF66: 5000282.748 | AG66: -4783651.515 | AH66: 0 | AI66: 0 | AJ66: 0 | AK66: 0 | AL66: 0 | AM66: 0 | AN66: -15077288.94 | AO66: 14113488.94 | AP66: -41744.49725 | AQ66: 145081.2817 | AR66: -6785152.255 | AS66: 6674668.275 | AT66: 0 | AU66: 0 | AV66: 1447995.403 | AW66: -1110869.984 | AX66: 0 | AY66: 0 | AZ66: 0 | BA66: 0 | BB66: 0 | BC66: -634213.7437 | BD66: 0 | BE66: -306834.1709 | BF66: 0 | BG66: 3783.76019 | BH66: 25194.07286 | BI66: 0 | BJ66: 16474443.06 | BK66: 66043536.79 | BL66: -57760299.46 | BM66: 336117775 | BN66: -318691685.6 | BO66: -8432209.399 | BP66: 8227365.14 | BQ66: -26094790.15 | BR66: 25496779.06 | BS66: 0 | BT66: 0 | BU66: 84460436.28 | BV66: -80691865.58 | BW66: 0 | BX66: 0 | BY66: 0 | BZ66: 0 | CA66: 0 | CB66: 0 | CC66: 132758455.9 | CD66: -118555797.6 | CE66: -413260.9673 | CF66: 1350969.259 | CG66: -15977240.78 | CH66: 14971206.54 | CI66: 0 | CJ66: 0 | CK66: 22664570.13 | CL66: -16908598.68 | CM66: 0 | CN66: 0 | CO66: 0 | CP66: 0 | CQ66: 0 | CR66: 5066928.953 | CS66: 0 | CT66: -737097.8984 | CU66: 0 | CV66: 53823.65357 | CW66: 324656.4058 | CX66: 0
A67: 21.85943034 | B67: 0.9 | C67: -1280493.189 | D67: 64411100.95 | E67: 45545526.27 | F67: 45545526.27 | G67: -1422770.21 | H67: 71567889.94 | I67: 50606140.3 | J67: 50606140.3 | U67: 880350.6955 | V67: 3018936.795 | W67: -2671782.11 | X67: -32110111.56 | Y67: 30922361.31 | Z67: -696307.7277 | AA67: 679617.2057 | AB67: -8987186.458 | AC67: 8781228.212 | AD67: 0 | AE67: 0 | AF67: 5316757.035 | AG67: -5094108.267 | AH67: 0 | AI67: 0 | AJ67: 0 | AK67: 0 | AL67: 0 | AM67: 0 | AN67: -14037894.19 | AO67: 13074094.19 | AP67: -6317.418084 | AQ67: 66022.81148 | AR67: -7011421.593 | AS67: 6949248.315 | AT67: 0 | AU67: 0 | AV67: 1668057.219 | AW67: -1299204.792 | AX67: 0 | AY67: 0 | AZ67: 0 | BA67: 0 | BB67: 0 | BC67: -587506.7644 | BD67: 0 | BE67: -315357.3423 | BF67: 0 | BG67: 4274.154509 | BH67: 33480.06481 | BI67: 0 | BJ67: 17107674.27 | BK67: 70459755.34 | BL67: -61910035.86 | BM67: 335868647.4 | BN67: -318448267.2 | BO67: -5578845.468 | BP67: 5444750.973 | BQ67: -22567990.2 | BR67: 22050802.34 | BS67: 0 | BT67: 0 | BU67: 87619341.95 | BV67: -83835293.93 | BW67: 0 | BX67: 0 | BY67: 0 | BZ67: 0 | CA67: 0 | CB67: 0 | CC67: 130536905.9 | CD67: -116334247.6 | CE67: -61322.75695 | CF67: 602430.4387 | CG67: -11062003.1 | CH67: 10497877.78 | CI67: 0 | CJ67: 0 | CK67: 25616320.38 | CL67: -19391468.58 | CM67: 0 | CN67: 0 | CO67: 0 | CP67: 0 | CQ67: 0 | CR67: 4967099.806 | CS67: 0 | CT67: -499877.386 | CU67: 0 | CV67: 60797.20801 | CW67: 424838.2446 | CX67: 0
A68: 22.45022575 | B68: 0.9 | C68: -1118100.991 | D68: 65970330.23 | E68: 46648067.86 | F68: 46648067.86 | G68: -1242334.434 | H68: 73300366.92 | I68: 51831186.51 | J68: 51831186.51 | U68: 928580.2807 | V68: 3240485.442 | W68: -2880436.041 | X68: -30497114.57 | Y68: 29346329.18 | Z68: -433099.1228 | AA68: 422814.3651 | AB68: -9529289.062 | AC68: 9310907.518 | AD68: 0 | AE68: 0 | AF68: 5642830.107 | AG68: -5414163.805 | AH68: 0 | AI68: 0 | AJ68: 0 | AK68: 0 | AL68: 0 | AM68: 0 | AN68: -12998499.44 | AO68: 12034699.44 | AP68: 0 | AQ68: 17989.61691 | AR68: -7207481.854 | AS68: 7189135.929 | AT68: 0 | AU68: 0 | AV68: 1903781.911 | AW68: -1504491.546 | AX68: 1940.680635 | AY68: 0 | AZ68: 0 | BA68: 0 | BB68: 0 | BC68: -540799.785 | BD68: 0 | BE68: -323880.5137 | BF68: 0 | BG68: 4738.738601 | BH68: 42688.09686 | BI68: 0 | BJ68: 17734036.01 | BK68: 74970377.19 | BL68: -66158115.98 | BM68: 334206523.2 | BN68: -316824233.7 | BO68: -3388291.904 | BP68: 3307687.807 | BQ68: -17877943.11 | BR68: 17468236.49 | BS68: 0 | BT68: 0 | BU68: 90671927.31 | BV68: -86877223.88 | BW68: 0 | BX68: 0 | BY68: 0 | BZ68: 0 | CA68: 0 | CB68: 0 | CC68: 127348372.6 | CD68: -113145714.3 | CE68: 0 | CF68: 160709.5599 | CG68: -5535060.22 | CH68: 5371128.173 | CI68: 0 | CJ68: 0 | CK68: 28684807.74 | CL68: -22011082.29 | CM68: 18457.27865 | CN68: 0 | CO68: 0 | CP68: 0 | CQ68: 0 | CR68: 4823817.614 | CS68: 0 | CT68: -248727.3896 | CU68: 0 | CV68: 67403.73327 | CW68: 533274.9877 | CX68: 0
A69: 23.04102117 | B69: 0.8942120986 | C69: -949254.4084 | D69: 67016665.33 | E69: 47387938.51 | F69: 47387938.51 | G69: -1061553.976 | H69: 74944932.46 | I69: 52994069.96 | J69: 52994069.96 | U69: 978095.9882 | V69: 3469878.134 | W69: -3096934.017 | X69: -28884117.59 | Y69: 27770297.05 | Z69: -235108.6398 | AA69: 229577.0363 | AB69: -9999278.429 | AC69: 9770126.196 | AD69: 0 | AE69: 0 | AF69: 5978501.965 | AG69: -5743818.129 | AH69: 0 | AI69: 0 | AJ69: 0 | AK69: 0 | AL69: 0 | AM69: 0 | AN69: -11959104.69 | AO69: 10995304.69 | AP69: 0 | AQ69: 152.3902555 | AR69: -7397152.429 | AS69: 7396999.765 | AT69: 0 | AU69: 0 | AV69: 2133411.606 | AW69: -1726983.5 | AX69: 27168.37482 | AY69: 0 | AZ69: 0 | BA69: 0 | BB69: 0 | BC69: -494092.8057 | BD69: 0 | BE69: -332403.6851 | BF69: 0 | BG69: 5179.497868 | BH69: 52747.24285 | BI69: 0 | BJ69: 18352236.56 | BK69: 79570608.31 | BL69: -70499745.79 | BM69: 331131402.3 | BN69: -313819585 | BO69: -1794518.024 | BP69: 1752254.878 | BQ69: -12116717.36 | BR69: 11839040.04 | BS69: 0 | BT69: 0 | BU69: 93606330.17 | BV69: -89805793.22 | BW69: 0 | BX69: 0 | BY69: 0 | BZ69: 0 | CA69: 0 | CB69: 0 | CC69: 123192856.1 | CD69: -108990197.8 | CE69: 0 | CF69: 1331.686789 | CG69: 363891.5969 | CH69: -365225.6809 | CI69: 0 | CJ69: 0 | CK69: 31654114.77 | CL69: -24756047.48 | CM69: 253040.608 | CN69: 0 | CO69: 0 | CP69: 0 | CQ69: 0 | CR69: 4637082.378 | CS69: 0 | CT69: 16352.09075 | CU69: 0 | CV69: 73671.46237 | CW69: 648549.8306 | CX69: 0
A70: 23.63181658 | B70: 0.8802791262 | C70: -774960.9698 | D70: 67342161.86 | E70: 47618099.31 | F70: 47618099.31 | G70: -880358.2259 | H70: 76500918.69 | I70: 54094318.37 | J70: 54094318.37 | U70: 1028897.818 | V70: 3707114.871 | W70: -3321276.037 | X70: -27271120.6 | Y70: 26194264.92 | Z70: -98963.2402 | AA70: 96656.12649 | AB70: -10402563.05 | AC70: 10164168.79 | AD70: 0 | AE70: 0 | AF70: 6323772.61 | AG70: -6083071.239 | AH70: 0 | AI70: 0 | AJ70: 0 | AK70: 0 | AL70: 0 | AM70: 0 | AN70: -10919709.94 | AO70: 9955909.939 | AP70: 0 | AQ70: 0 | AR70: -7586823.004 | AS70: 7586823.004 | AT70: 0 | AU70: 0 | AV70: 2351559.815 | AW70: -1955143.832 | AX70: 79847.01595 | AY70: -11581.39816 | AZ70: 0 | BA70: 0 | BB70: 0 | BC70: -447385.8264 | BD70: 0 | BE70: -340926.8565 | BF70: 0 | BG70: 5598.219171 | BH70: 63593.66922 | BI70: 0 | BJ70: 18960984.2 | BK70: 84255654.67 | BL70: -74930131.26 | BM70: 326643284.8 | BN70: -309434321.1 | BO70: -736302.1798 | BP70: 719129.4678 | BQ70: -5367174.536 | BR70: 5244175.658 | BS70: 0 | BT70: 0 | BU70: 96410688.33 | BV70: -92609139.78 | BW70: 0 | BX70: 0 | BY70: 0 | BZ70: 0 | CA70: 0 | CB70: 0 | CC70: 118070356.3 | CD70: -103867698 | CE70: 0 | CF70: 0 | CG70: 6572823.481 | CH70: -6572823.481 | CI70: 0 | CJ70: 0 | CK70: 34474956.46 | CL70: -27513841.7 | CM70: 727954.1282 | CN70: -98925.37607 | CO70: 0 | CP70: 0 | CQ70: 0 | CR70: 4406894.097 | CS70: 0 | CT70: 295361.0551 | CU70: 0 | CV70: 79625.805 | CW70: 769387.6493 | CX70: 0
A71: 24.22261199 | B71: 0.867025811 | C71: -605776.5982 | D71: 67599918.91 | E71: 47800361.07 | F71: 47800361.07 | G71: -698683.4654 | H71: 77967596.87 | I71: 55131416.46 | J71: 55131416.46 | U71: 1080985.77 | V71: 3952195.652 | W71: -3553462.102 | X71: -25658123.62 | Y71: 24618232.79 | Z71: -21618.96241 | AA71: 21119.52754 | AB71: -10744023.76 | AC71: 10497804.29 | AD71: 0 | AE71: 0 | AF71: 6678642.04 | AG71: -6431923.135 | AH71: 0 | AI71: 0 | AJ71: 0 | AK71: 0 | AL71: 0 | AM71: 0 | AN71: -9880315.187 | AO71: 8916515.187 | AP71: 0 | AQ71: 0 | AR71: -7776493.579 | AS71: 7776493.579 | AT71: 0 | AU71: 0 | AV71: 2559066.649 | AW71: -2172319.349 | AX71: 157967.9982 | AY71: -50464.66373 | AZ71: 0 | BA71: 0 | BB71: 0 | BC71: -400678.847 | BD71: 0 | BE71: -349450.0279 | BF71: 0 | BG71: 5996.515045 | BH71: 75169.7701 | BI71: 0 | BJ71: 19558987.21 | BK71: 89020722.25 | BL71: -79444478.37 | BM71: 320742170.7 | BN71: -303668442.1 | BO71: -156645.2881 | BP71: 153026.1619 | BQ71: 2295907.802 | BR71: -2243292.765 | BS71: 0 | BT71: 0 | BU71: 99073139.6 | BV71: -95275401.34 | BW71: 0 | BX71: 0 | BY71: 0 | BZ71: 0 | CA71: 0 | CB71: 0 | CC71: 111980873.3 | CD71: -97778214.97 | CE71: 0 | CF71: 0 | CG71: 13091735.43 | CH71: -13091735.43 | CI71: 0 | CJ71: 0 | CK71: 37158196.11 | CL71: -30138376.11 | CM71: 1409063.324 | CN71: -421118.3061 | CO71: 0 | CP71: 0 | CQ71: 0 | CR71: 4133252.771 | CS71: 0 | CT71: 588299.5035 | CU71: 0 | CV71: 85289.6919 | CW71: 894637.7222 | CX71: 0
A72: 24.81340741 | B72: 0.8544036061 | C72: -441275.5764 | D72: 67791957.5 | E72: 47936152.86 | F72: 47936152.86 | G72: -516472.0434 | H72: 79344184.66 | I72: 56104811.02 | J72: 56104811.02 | U72: 1134359.844 | V72: 4205120.477 | W72: -3793492.211 | X72: -24045126.63 | Y72: 23042200.66 | Z72: 0 | AA72: 0 | AB72: -11028397.99 | AC72: 10775661.55 | AD72: 0 | AE72: 0 | AF72: 7042788.511 | AG72: -6790059.438 | AH72: 321.4298236 | AI72: -314.0636559 | AJ72: 0 | AK72: 0 | AL72: 0 | AM72: 0 | AN72: -8840920.435 | AO72: 7877120.435 | AP72: 0 | AQ72: 0 | AR72: -7966164.154 | AS72: 7966164.154 | AT72: 0 | AU72: 0 | AV72: 2756692.205 | AW72: -2379153.174 | AX72: 259714.0114 | AY72: -114841.423 | AZ72: 0 | BA72: 0 | BB72: 0 | BC72: -353971.8677 | BD72: 0 | BE72: -357973.1993 | BF72: 0 | BG72: 6375.844449 | BH72: 87423.42588 | BI72: 0 | BJ72: 20144953.87 | BK72: 93861017.03 | BL72: -84037993.08 | BM72: 313428059.9 | BN72: -296521947.8 | BO72: 0 | BP72: 0 | BQ72: 10802607.85 | BR72: -10555045.82 | BS72: 0 | BT72: 0 | BU72: 101579553.6 | BV72: -97790499.49 | BW72: 2265.923117 | BX72: -2213.995236 | BY72: 0 | BZ72: 0 | CA72: 0 | CB72: 0 | CC72: 104924407 | CD72: -90721748.7 | CE72: 0 | CF72: 0 | CG72: 19920627.45 | CH72: -19920627.45 | CI72: 0 | CJ72: 0 | CK72: 39713662.44 | CL72: -32637932.68 | CM72: 2265484.587 | CN72: -935714.5534 | CO72: 0 | CP72: 0 | CQ72: 0 | CR72: 3816158.4 | CS72: 0 | CT72: 895167.4359 | CU72: 0 | CV72: 90683.8699 | CW72: 1023258.92 | CX72: 0
A73: 25.40420282 | B73: 0.8423684805 | C73: -281074.4994 | D73: 67920046.17 | E73: 48026725.23 | F73: 48026725.23 | G73: -333671.6721 | H73: 80629852.31 | I73: 57013915.34 | J73: 57013915.34 | U73: 1189020.041 | V73: 4465889.346 | W73: -4041366.364 | X73: -22432129.65 | Y73: 21466168.52 | Z73: 0 | AA73: 0 | AB73: -11290978.89 | AC73: 11032224.92 | AD73: 0 | AE73: 0 | AF73: 7384603.538 | AG73: -7126588.685 | AH73: 32252.25084 | AI73: -31513.12998 | AJ73: 0 | AK73: 0 | AL73: 0 | AM73: 0 | AN73: -7801525.684 | AO73: 6837725.684 | AP73: 0 | AQ73: 0 | AR73: -8155834.729 | AS73: 8155834.729 | AT73: 0 | AU73: 0 | AV73: 2945125.875 | AW73: -2576366.821 | AX73: 383436.7976 | AY73: -202933.0601 | AZ73: 0 | BA73: 0 | BB73: 0 | BC73: -307264.8883 | BD73: 0 | BE73: -366496.3707 | BF73: 0 | BG73: 6737.530624 | BH73: 100307.3653 | BI73: 0 | BJ73: 20717592.47 | BK73: 98771744.97 | BL73: -88705881.38 | BM73: 304700952.4 | BN73: -287994838.5 | BO73: 0 | BP73: 0 | BQ73: 19877349.97 | BR73: -19421823.19 | BS73: 0 | BT73: 0 | BU73: 103701693.8 | BV73: -99931106.68 | BW73: 221011.1071 | BX73: -215946.2228 | BY73: 0 | BZ73: 0 | CA73: 0 | CB73: 0 | CC73: 96900957.49 | CD73: -82698299.18 | CE73: 0 | CF73: 0 | CG73: 27059499.53 | CH73: -27059499.53 | CI73: 0 | CJ73: 0 | CK73: 42150269.87 | CL73: -35021230.81 | CM73: 3269207.2 | CN73: -1613510.99 | CO73: 0 | CP73: 0 | CQ73: 0 | CR73: 3455610.985 | CS73: 0 | CT73: 1215964.852 | CU73: 0 | CV73: 95827.1559 | CW73: 1154306.963 | CX73: 0
A74: 25.99499824 | B74: 0.830880406 | C74: -124769.5078 | D74: 67985218.3 | E74: 48072808.88 | F74: 48072808.88 | G74: -150165.4232 | H74: 81823109.33 | I74: 57857675.47 | J74: 57857675.47 | U74: 1244966.36 | V74: 4734502.26 | W74: -4297084.561 | X74: -20819132.66 | Y74: 19890136.39 | Z74: 0 | AA74: 0 | AB74: -11553559.8 | AC74: 11288788.29 | AD74: 0 | AE74: 0 | AF74: 7684738.948 | AG74: -7422578.697 | AH74: 113944.6906 | AI74: -111333.4341 | AJ74: 0 | AK74: 0 | AL74: 0 | AM74: 0 | AN74: -6762130.932 | AO74: 5806180.472 | AP74: 0 | AQ74: 0 | AR74: -8345505.304 | AS74: 7908706.34 | AT74: 0 | AU74: 429018.8187 | AV74: 3124994.378 | AW74: -2764616.211 | AX74: 527637.9405 | AY74: -313122.6516 | AZ74: 0 | BA74: 0 | BB74: 0 | BC74: -260557.909 | BD74: 0 | BE74: -375019.5422 | BF74: 0 | BG74: 7082.776519 | BH74: 113778.6144 | BI74: 0 | BJ74: 21275611.27 | BK74: 103748112 | BL74: -93443349.23 | BM74: 294560848.4 | BN74: -278087113.9 | BO74: 0 | BP74: 0 | BQ74: 29362210.1 | BR74: -28689319.95 | BS74: 0 | BT74: 0 | BU74: 105318130.6 | BV74: -101578134.3 | BW74: 758375.6963 | BX74: -740996.0938 | BY74: 0 | BZ74: 0 | CA74: 0 | CB74: 0 | CC74: 87910524.72 | CD74: -73778377.05 | CE74: 0 | CF74: 0 | CG74: 34508351.68 | CH74: -30613142.58 | CI74: 0 | CJ74: -3825317.228 | CK74: 44476122.42 | CL74: -37296197.21 | CM74: 4394766.879 | CN74: -2427959.317 | CO74: 0 | CP74: 0 | CQ74: 0 | CR74: 3051610.526 | CS74: 0 | CT74: 1550691.753 | CU74: 0 | CV74: 100736.6562 | CW74: 1286923.415 | CX74: 0
A75: 26.58579365 | B75: 0.8199029126 | C75: 29765.8959 | D75: 67971401.85 | E75: 48063039.18 | F75: 48063039.18 | G75: 36304.17144 | H75: 82901768.99 | I75: 58620403.02 | J75: 58620403.02 | U75: 1302198.801 | V75: 5010959.218 | W75: -4560646.803 | X75: -19217908.64 | Y75: 18325877.22 | Z75: 0 | AA75: 0 | AB75: -10861383.63 | AC75: 10612474.64 | AD75: -943145.9936 | AE75: 921265.9434 | AF75: 7945263.684 | AG75: -7680022.389 | AH75: 242081.3077 | AI75: -236533.5602 | AJ75: 0 | AK75: 0 | AL75: 2889.145792 | AM75: 0 | AN75: -5733495.57 | AO75: 4846923.409 | AP75: 0 | AQ75: 0 | AR75: -8024779.426 | AS75: 7117449.14 | AT75: -499745.9515 | AU75: 1332285.889 | AV75: 3293964.428 | AW75: -2944498.962 | AX75: 690952.2163 | AY75: -443937.0005 | AZ75: 0 | BA75: 0 | BB75: 0 | BC75: -213850.9296 | BD75: 0 | BE75: -383542.7136 | BF75: 0 | BG75: 7412.678152 | BH75: 127798.0193 | BI75: 0 | BJ75: 21817718.57 | BK75: 108785324.2 | BL75: -98245602.61 | BM75: 283095150.5 | BN75: -266886177 | BO75: 0 | BP75: 0 | BQ75: 32251517.85 | BR75: -31512413.79 | BS75: 6919455.135 | BT75: -6758907.049 | BU75: 106461490.1 | BV75: -102763043.3 | BW75: 1563534.345 | BX75: -1527703.021 | BY75: 0 | BZ75: 0 | CA75: 59497.13323 | CB75: 0 | CC75: 78059525.01 | CD75: -64595391.38 | CE75: 0 | CF75: 0 | CG75: 37257933.47 | CH75: -28951984.1 | CI75: 4903902.653 | CJ75: -12494148.69 | CK75: 46638793.99 | CL75: -39470053.99 | CM75: 5618962.827 | CN75: -3354871.086 | CO75: 0 | CP75: 0 | CQ75: 0 | CR75: 2604157.022 | CS75: 0 | CT75: 1899348.137 | CU75: 0 | CV75: 105427.9564 | CW75: 1420326.145 | CX75: 0
A76: 27.17658907 | B76: 0.8094027016 | C76: 184516.191 | D76: 67859324.11 | E76: 47983788.25 | F76: 47983788.25 | G76: 227965.8699 | H76: 83838766.51 | I76: 59282960.33 | J76: 59282960.33 | U76: 1360717.364 | V76: 5295260.221 | W76: -4832053.09 | X76: -17676100.71 | Y76: 16821034.15 | Z76: 0 | AA76: 0 | AB76: -9629472.366 | AC76: 9408794.933 | AD76: -2369249.652 | AE76: 2313120.508 | AF76: 8168066.778 | AG76: -7900739.382 | AH76: 413633.1342 | AI76: -404153.9546 | AJ76: 0 | AK76: 0 | AL76: 12085.42528 | AM76: 0 | AN76: -4780533.395 | AO76: 3974218.297 | AP76: 0 | AQ76: 0 | AR76: -7236710.604 | AS76: 6385561.672 | AT76: -1393835.854 | AU76: 2096874.743 | AV76: 3449058.043 | AW76: -3116560.724 | AX76: 872133.1163 | AY76: -594031.0139 | AZ76: 0 | BA76: 0 | BB76: 0 | BC76: -167143.9503 | BD76: 0 | BE76: -392065.885 | BF76: 0 | BG76: 7728.236236 | BH76: 142329.8307 | BI76: 0 | BJ76: 22342622.64 | BK76: 113878587.5 | BL76: -103107847.5 | BM76: 270706013 | BN76: -254794182 | BO76: 0 | BP76: 0 | BQ76: 30489861.06 | BR76: -29791128.67 | BS76: 18431089.99 | BT76: -17994009.61 | BU76: 107162089.5 | BV76: -103515087.8 | BW76: 2590081.302 | BX76: -2530724.727 | BY76: 0 | BZ76: 0 | CA76: 246854.7815 | CB76: 0 | CC76: 68050272.28 | CD76: -55429668.21 | CE76: 0 | CF76: 0 | CG76: 35024178.15 | CH76: -27232371.06 | CI76: 14319980.03 | CJ76: -20620800.37 | CK76: 48575000.15 | CL76: -41549395.26 | CM76: 6920611.712 | CN76: -4372161.191 | CO76: 0 | CP76: 0 | CQ76: 0 | CR76: 2113250.473 | CS76: 0 | CT76: 2261934.006 | CU76: 0 | CV76: 109915.2871 | CW76: 1553801.034 | CX76: 0
A77: 27.76738448 | B77: 0.799349308 | C77: 339385.2926 | D77: 67648021.58 | E77: 47834374.79 | F77: 47834374.79 | G77: 424576.9518 | H77: 84628861.13 | I77: 59841641.59 | J77: 59841641.59 | U77: 1420522.05 | V77: 5587405.268 | W77: -5111303.42 | X77: -16198753.4 | Y77: 15380651.69 | Z77: 0 | AA77: 0 | AB77: -8497926.958 | AC77: 8303181.012 | AD77: -3637166.073 | AE77: 3549087.909 | AF77: 8354876.497 | AG77: -8086394.433 | AH77: 625828.9865 | AI77: -611486.9406 | AJ77: 0 | AK77: 0 | AL77: 27594.75399 | AM77: 0 | AN77: -3914123.17 | AO77: 3188065.136 | AP77: 0 | AQ77: 0 | AR77: -6506612.652 | AS77: 5709254.379 | AT77: -2150846.239 | AU77: 2731158.385 | AV77: 3590653.058 | AW77: -3281300.708 | AX77: 1070040.218 | AY77: -762174.075 | AZ77: 0 | BA77: 0 | BB77: 0 | BC77: -120436.971 | BD77: 0 | BE77: -400589.0564 | BF77: 0 | BG77: 8030.366316 | BH77: 157341.3418 | BI77: 0 | BJ77: 22849031.75 | BK77: 119023107.9 | BL77: -108025289.9 | BM77: 257540876.4 | BN77: -241958569.3 | BO77: 0 | BP77: 0 | BQ77: 28580553.56 | BR77: -27925576.53 | BS77: 29920469.36 | BT77: -29194074.38 | BU77: 107448183.3 | BV77: -103861549.2 | BW77: 3795560.242 | BX77: -3708577.855 | BY77: 0 | BZ77: 0 | CA77: 559023.3498 | CB77: 0 | CC77: 58144660.54 | CD77: -46442251.83 | CE77: 0 | CF77: 0 | CG77: 32772014.49 | CH77: -25472471.29 | CI77: 23076378.44 | CJ77: -28083434 | CK77: 50292094.37 | CL77: -43540253.92 | CM77: 8280333.037 | CN77: -5459624.108 | CO77: 0 | CP77: 0 | CQ77: 0 | CR77: 1578890.879 | CS77: 0 | CT77: 2638449.358 | CU77: 0 | CV77: 114211.6676 | CW77: 1686694.738 | CX77: 0
A78: 28.3581799 | B78: 0.7897148058 | C78: 494214.1563 | D78: 67337564.97 | E78: 47614848.82 | F78: 47614848.82 | G78: 625813.4615 | H78: 85268206.29 | I78: 60293726.89 | J78: 60293726.89 | U78: 1481612.858 | V78: 5887394.359 | W78: -5398397.795 | X78: -14785866.7 | Y78: 14004729.85 | Z78: 0 | AA78: 0 | AB78: -7460474.543 | AC78: 7289503.766 | AD78: -4756877.884 | AE78: 4639007.016 | AF78: 8507277.083 | AG78: -8238513.57 | AH78: 876128.6129 | AI78: -856050.4813 | AJ78: 0 | AK78: 0 | AL78: 49417.1319 | AM78: -864.4015794 | AN78: -3134264.897 | AO78: 2488463.925 | AP78: 0 | AQ78: 0 | AR78: -5830862.392 | AS78: 5085053.499 | AT78: -2778875.753 | AU78: 3242812.066 | AV78: 3719101.245 | AW78: -3438309.801 | AX78: 1283628.133 | AY78: -947238.1182 | AZ78: 0 | BA78: 0 | BB78: 0 | BC78: -73729.99162 | BD78: 0 | BE78: -409112.2278 | BF78: 0 | BG78: 8319.907643 | BH78: 172802.5713 | BI78: 0 | BJ78: 23335654.21 | BK78: 124214091.2 | BL78: -112993135.7 | BM78: 243712676.6 | BN78: -228492274.9 | BO78: 0 | BP78: 0 | BQ78: 26560558.57 | BR78: -25951873.51 | BS78: 41278506.85 | BT78: -40250862.02 | BU78: 107346178 | BV78: -103827941.9 | BW78: 5141052.868 | BX78: -5023235.992 | BY78: 0 | BZ78: 0 | CA78: 992830.432 | CB78: -17117.9673 | CC78: 48503734.05 | CD78: -37794186.49 | CE78: 0 | CF78: 0 | CG78: 30516728.94 | CH78: -23688938.63 | CI78: 31057318.62 | CJ78: -34766137.08 | CK78: 51797243.16 | CL78: -45430996.08 | CM78: 9680361.344 | CN78: -6598738.109 | CO78: 0 | CP78: 0 | CQ78: 0 | CR78: 1001078.241 | CS78: 0 | CT78: 3028894.194 | CU78: 0 | CV78: 118329.0321 | CW78: 1818408.359 | CX78: 0
A79: 28.94897531 | B79: 0.7804735486 | C79: 648905.1794 | D79: 66928836.25 | E79: 47325833.97 | F79: 47325833.97 | G79: 831424.9478 | H79: 85754137.82 | I79: 60637332.36 | J79: 60637332.36 | U79: 1543989.788 | V79: 6195227.494 | W79: -5693336.214 | X79: -13437440.62 | Y79: 12693268.62 | Z79: 0 | AA79: 0 | AB79: -6511354.326 | AC79: 6362134.421 | AD79: -5737552.802 | AE79: 5591913.529 | AF79: 8626723.454 | AG79: -8358498.249 | AH79: 1162199.129 | AI79: -1135565.155 | AJ79: 0 | AK79: 0 | AL79: 77552.55902 | AM79: -7324.563485 | AN79: -2440958.574 | AO79: 1875414.665 | AP79: 0 | AQ79: 0 | AR79: -5206132.413 | AS79: 4509768.844 | AT79: -3285361.929 | AU79: 3638884.489 | AV79: 3834725.657 | AW79: -3583227.704 | AX79: 1511936.812 | AY79: -1148187.165 | AZ79: 0 | BA79: 0 | BB79: 0 | BC79: -27023.01228 | BD79: 0 | BE79: -417635.3992 | BF79: 0 | BG79: 8597.630956 | BH79: 188685.9855 | BI79: 0 | BJ79: 23801198.27 | BK79: 129446743.6 | BL79: -118006590.9 | BM79: 229334349.5 | BN79: -214508234.7 | BO79: 0 | BP79: 0 | BQ79: 24463821.89 | BR79: -23903187.49 | BS79: 52402880.87 | BT79: -51062828.89 | BU79: 106880820.5 | BV79: -103438194.1 | BW79: 6590817.884 | BX79: -6439776.922 | BY79: 0 | BZ79: 0 | CA79: 1545103.622 | CB79: -143823.3163 | CC79: 39288537.09 | CD79: -29646516.48 | CE79: 0 | CF79: 0 | CG79: 28272360.08 | CH79: -21897067.45 | CI79: 38152331.54 | CJ79: -40558318.2 | CK79: 53097334.88 | CL79: -47133262.84 | CM79: 11104381.42 | CN79: -7772493.442 | CO79: 0 | CP79: 0 | CQ79: 0 | CR79: 379812.5582 | CS79: 0 | CT79: 3433268.515 | CU79: 0 | CV79: 122278.341 | CW79: 1948391.889 | CX79: 0
A80: 29.53977072 | B80: 0.7716019417 | C80: 802956.3213 | D80: 66424455.22 | E80: 46969182.72 | F80: 46969182.72 | G80: 1040635.434 | H80: 86086428.28 | I80: 60872297.21 | J80: 60872297.21 | U80: 1607322.236 | V80: 6510904.674 | W80: -5996118.678 | X80: -12153475.15 | Y80: 11446268 | Z80: 0 | AA80: 0 | AB80: -5645266.375 | AC80: 5515894.501 | AD80: -6587625.127 | AE80: 6416120.288 | AF80: 8714554.132 | AG80: -8447637.807 | AH80: 1481894.282 | AI80: -1447933.894 | AJ80: 0 | AK80: 0 | AL80: 112001.0353 | AM80: -20097.7746 | AN80: -1834204.202 | AO80: 1348917.356 | AP80: 0 | AQ80: 0 | AR80: -4629361.498 | AS80: 3980465.441 | AT80: -3677147.298 | AU80: 3925860.458 | AV80: 3937823.506 | AW80: -3715635.108 | AX80: 1754083.01 | AY80: -1364068.116 | AZ80: 0 | BA80: 0 | BB80: 0 | BC80: 0 | BD80: 0 | BE80: -394483.6224 | BF80: -12249.33545 | BG80: 8864.245337 | BH80: 204966.2532 | BI80: 0 | BJ80: 24242113.86 | BK80: 134716271 | BL80: -123060861.5 | BM80: 214518831 | BN80: -200119384.5 | BO80: 0 | BP80: 0 | BQ80: 22321573.67 | BR80: -21810032.92 | BS80: 63197358.18 | BT80: -61534457.45 | BU80: 106075364.4 | BV80: -102714805.4 | BW80: 8111973.302 | BX80: -7926072.208 | BY80: 0 | BZ80: 0 | CA80: 2212670.515 | CB80: -391268.4472 | CC80: 30660113.94 | CD80: -22160286.07 | CE80: 0 | CF80: 0 | CG80: 26051823.4 | CH80: -20110928.53 | CI80: 44255727.4 | CJ80: -45354174.96 | CK80: 54199007.57 | CL80: -48638858.31 | CM80: 12537383.27 | CN80: -8965241.137 | CO80: 0 | CP80: 0 | CQ80: 0 | CR80: 0 | CS80: 0 | CT80: 3396170.009 | CU80: 174209.3687 | CV80: 126069.6776 | CW80: 2076139.32 | CX80: 0
A81: 30.13056614 | B81: 0.763078241 | C81: 954290.2095 | D81: 65841866.23 | E81: 46557230.1 | F81: 46557230.1 | G81: 1250579.768 | H81: 86284554.7 | I81: 61012393.74 | J81: 61012393.74 | U81: 1670706.181 | V81: 6834425.898 | W81: -6306745.186 | X81: -10933970.29 | Y81: 10263727.99 | Z81: 0 | AA81: 0 | AB81: -4857326.44 | AC81: 4746011.688 | AD81: -7314867.645 | AE81: 7119288.15 | AF81: 8772002.659 | AG81: -8507120.458 | AH81: 1833236.152 | AI81: -1791224.105 | AJ81: 0 | AK81: 0 | AL81: 152762.5609 | AM81: -39184.03492 | AN81: -1314001.78 | AO81: 908971.9982 | AP81: 0 | AQ81: 0 | AR81: -4097728.527 | AS81: 3494438.51 | AT81: -3960537.719 | AU81: 4109716.167 | AV81: 4028668.691 | AW81: -3835804.969 | AX81: 2009252.754 | AY81: -1594002.622 | AZ81: 0 | BA81: 0 | BB81: 0 | BC81: 0 | BD81: 0 | BE81: -359277.1079 | BF81: -11579.18476 | BG81: 9120.404252 | BH81: 221620.0302 | BI81: 0 | BJ81: 24651568.57 | BK81: 140017879.3 | BL81: -128151153.6 | BM81: 199379057 | BN81: -185438660.3 | BO81: 0 | BP81: 0 | BQ81: 20162594.65 | BR81: -19700530.95 | BS81: 73571196.99 | BT81: -71575665.47 | BU81: 104951715.9 | BV81: -101678988 | BW81: 9674216.109 | BX81: -9452513.289 | BY81: 0 | BZ81: 0 | CA81: 2992358.703 | CB81: -756280.9541 | CC81: 22779508.87 | CD81: -15496539.54 | CE81: 0 | CF81: 0 | CG81: 23867021.41 | CH81: -18343489.1 | CI81: 49266127.03 | CJ81: -49052224.47 | CK81: 55108673.49 | CL81: -49953692.56 | CM81: 13965534.15 | CN81: -10162559.59 | CO81: 0 | CP81: 0 | CQ81: 0 | CR81: 0 | CS81: 0 | CT81: 3163824.815 | CU81: 164678.8876 | CV81: 129712.3342 | CW81: 2201184.331 | CX81: 0
A82: 30.72136155 | B82: 0.7548823749 | C82: 1102675.794 | D82: 65187600.72 | E82: 46094594.52 | F82: 46094594.52 | G82: 1460725.314 | H82: 86354646.61 | I82: 61061956.21 | J82: 61061956.21 | U82: 1734090.126 | V82: 7165791.167 | W82: -6625215.738 | X82: -9778926.045 | Y82: 9145648.601 | Z82: 0 | AA82: 0 | AB82: -4143025.98 | AC82: 4048080.763 | AD82: -7926455.237 | AE82: 7708488.671 | AF82: 8800207.689 | AG82: -8538043.015 | AH82: 2214398.967 | AI82: -2163651.858 | AJ82: 0 | AK82: 0 | AL82: 199837.1356 | AM82: -64583.34445 | AN82: -880351.3099 | AO82: 555578.5907 | AP82: 0 | AQ82: 0 | AR82: -3608629.386 | AS82: 3049191.331 | AT82: -4141353.988 | AU82: 4195968.103 | AV82: 4107514.042 | AW82: -3943989.243 | AX82: 2276694.686 | AY82: -1837179.903 | AZ82: 0 | BA82: 0 | BB82: 0 | BC82: 0 | BD82: 0 | BE82: -326417.1806 | BF82: -10934.80909 | BG82: 9366.710901 | BH82: 238625.7679 | BI82: 0 | BJ82: 25029193.37 | BK82: 145346774.5 | BL82: -133272672.9 | BM82: 184027963.4 | BN82: -170578998 | BO82: 0 | BP82: 0 | BQ82: 18013451.64 | BR82: -17600639.59 | BS82: 83438618.94 | BT82: -81101283.4 | BU82: 103530563.9 | BV82: -100350789.6 | BW82: 11249574.3 | BX82: -10991769.19 | BY82: 0 | BZ82: 0 | CA82: 3880995.782 | CB82: -1235688.431 | CC82: 15807766.15 | CD82: -9816321.146 | CE82: 0 | CF82: 0 | CG82: 21728941.05 | CH82: -16606718.89 | CI82: 53086047.43 | CJ82: -51554887.95 | CK82: 55832540.82 | CL82: -51083510.21 | CM82: 15376065.37 | CN82: -11351136.56 | CO82: 0 | CP82: 0 | CQ82: 0 | CR82: 0 | CS82: 0 | CT82: 2938739.42 | CU82: 155514.9634 | CV82: 133214.8887 | CW82: 2323096.473 | CX82: 0
A83: 31.31215697 | B83: 0.7469957868 | C83: 1248275.289 | D83: 64463173.17 | E83: 45582346.89 | F83: 45582346.89 | G83: 1671060.682 | H83: 86296568.62 | I83: 61020888.86 | J83: 61020888.86 | U83: 1797474.07 | V83: 7505000.48 | W83: -6951530.335 | X83: -8688342.413 | Y83: 8092029.823 | Z83: 0 | AA83: 0 | AB83: -3498196.723 | AC83: 3418028.979 | AD83: -8429021.281 | AE83: 8190259.708 | AF83: 8800221.939 | AG83: -8541419.512 | AH83: 2623694.748 | AI83: -2563567.859 | AJ83: 0 | AK83: 0 | AL83: 253224.7596 | AM83: -96295.7032 | AN83: -533252.7901 | AO83: 288737.1341 | AP83: 0 | AQ83: 0 | AR83: -3159656.501 | AS83: 2642415.617 | AT83: -4224977.595 | AU83: 4189716.411 | AV83: 4174593.309 | AW83: -4040420.874 | AX83: 2555714.154 | AY83: -2092850.366 | AZ83: 0 | BA83: 0 | BB83: 0 | BC83: 0 | BD83: 0 | BE83: -295771.0148 | BF83: -10314.74948 | BG83: 9603.722959 | BH83: 255963.5439 | BI83: 0 | BJ83: 25374988.27 | BK83: 150698162.7 | BL83: -138420625.6 | BM83: 168578486.1 | BN83: -155653333.4 | BO83: 0 | BP83: 0 | BQ83: 15898706.43 | BR83: -15534357.73 | BS83: 92718340.84 | BT83: -90030590.96 | BU83: 101831494.7 | BV83: -98749203.61 | BW83: 12812186.95 | BX83: -12518571.64 | BY83: 0 | BZ83: 0 | CA83: 4875409.345 | CB83: -1826318.472 | CC83: 9905930.049 | CD83: -5280675.178 | CE83: 0 | CF83: 0 | CG83: 19647740.03 | CH83: -14911684.25 | CI83: 55621534.22 | CJ83: -52768122.48 | CK83: 56376632.93 | CL83: -52033906.05 | CM83: 16757171.92 | CN83: -12518664.5 | CO83: 0 | CP83: 0 | CQ83: 0 | CR83: 0 | CS83: 0 | CT83: 2721078.189 | CU83: 146696.8477 | CV83: 136585.2714 | CW83: 2441477.781 | CX83: 0
A84: 31.90295238 | B84: 0.7394012945 | C84: 1391239.233 | D84: 63669989.91 | E84: 45021481.62 | F84: 45021481.62 | G84: 1881575.328 | H84: 86110195.35 | I84: 60889103.06 | J84: 60889103.06 | U84: 1860858.015 | V84: 7852053.837 | W84: -7285688.976 | X84: -7662219.394 | Y84: 7102871.658 | Z84: 0 | AA84: 0 | AB84: -2918979.158 | AC84: 2852085.272 | AD84: -8828707.796 | AE84: 8570654.831 | AF84: 8773020.147 | AG84: -8518188.87 | AH84: 3059560.554 | AI84: -2989444.981 | AJ84: 0 | AK84: 0 | AL84: 312925.4328 | AM84: -134321.1111 | AN84: -272706.2211 | AO84: 108447.6282 | AP84: 0 | AQ84: 0 | AR84: -2748580.635 | AS84: 2271974.064 | AT84: -4216391.401 | AU84: 4095683.452 | AV84: 4230122.926 | AW84: -4125315.55 | AX84: 2845667.961 | AY84: -2360319.948 | AZ84: 0 | BA84: 0 | BB84: 0 | BC84: 0 | BD84: 0 | BE84: -267215.6238 | BF84: -9717.655049 | BG84: 9831.956793 | BH84: 273614.9116 | BI84: 0 | BJ84: 25688953.27 | BK84: 156067249.7 | BL84: -143590217.5 | BM84: 153143560.9 | BN84: -140774602.5 | BO84: 0 | BP84: 0 | BQ84: 13841101.39 | BR84: -13523906.57 | BS84: 101333158.5 | BT84: -98286905.09 | BU84: 99873093.58 | BV84: -96892266.93 | BW84: 14338108.77 | BX84: -14009524.1 | BY84: 0 | BZ84: 0 | CA84: 5972426.986 | CB84: -2524998.671 | CC84: 5235044.852 | CD84: -2050645.904 | CE84: 0 | CF84: 0 | CG84: 17632823.67 | CH84: -13268631.81 | CI84: 56781834.91 | CJ84: -52601093.57 | CK84: 56746805.47 | CL84: -52810338.92 | CM84: 18097923.24 | CN84: -13653747.52 | CO84: 0 | CP84: 0 | CQ84: 0 | CR84: 0 | CS84: 0 | CT84: 2510993.31 | CU84: 138205.3289 | CV84: 139830.825 | CW84: 2555959.772 | CX84: 0
A85: 32.4937478 | B85: 0.7320829656 | C85: 1531707.518 | D85: 62809358.6 | E85: 44412923.39 | F85: 44412923.39 | G85: 2092259.471 | H85: 85795410.57 | I85: 60666516.61 | J85: 60666516.61 | U85: 1924241.96 | V85: 8206951.239 | W85: -7627691.661 | X85: -6700556.989 | Y85: 6178174.106 | Z85: 0 | AA85: 0 | AB85: -2401794.467 | AC85: 2346752.838 | AD85: -9131210.107 | AE85: 8855287.35 | AF85: 8719506.163 | AG85: -8469221.723 | AH85: 3520547.109 | AI85: -3439867.164 | AJ85: 0 | AK85: 0 | AL85: 378939.1551 | AM85: -178659.5683 | AN85: -98711.60289 | AO85: 14710.07302 | AP85: 0 | AQ85: 0 | AR85: -2373334.679 | AS85: 1935884.808 | AT85: -4120215.875 | AU85: 3918248.139 | AV85: 4274303.587 | AW85: -4198873.271 | AX85: 3145959.689 | AY85: -2638945.058 | AZ85: 0 | BA85: 0 | BB85: 0 | BC85: 0 | BD85: 0 | BE85: -240636.9654 | BF85: -9142.273139 | BG85: 10051.89122 | BH85: 291562.7662 | BI85: 0 | BJ85: 25971088.36 | BK85: 161449241.6 | BL85: -148776654.8 | BM85: 137836123.8 | BN85: -126055741.1 | BO85: 0 | BP85: 0 | BQ85: 11861724.93 | BR85: -11589891.24 | BS85: 109209575.7 | BT85: -105797213 | BU85: 97673036.63 | BV85: -94797146.58 | BW85: 15805135.95 | BX85: -15442931.6 | BY85: 0 | BZ85: 0 | CA85: 7168876.299 | CB85: -3328556.623 | CC85: 1956154.828 | CD85: -287277.5978 | CE85: 0 | CF85: 0 | CG85: 15692913.26 | CH85: -11687062.98 | CI85: 56479107.78 | CJ85: -50965883.51 | CK85: 56948761.63 | CL85: -53418144.04 | CM85: 19388183.72 | CN85: -14745818.54 | CO85: 0 | CP85: 0 | CQ85: 0 | CR85: 0 | CS85: 0 | CT85: 2308625.903 | CU85: 130022.5926 | CV85: 142958.3585 | CW85: 2666200.76 | CX85: 0
A86: 33.08454321 | B86: 0.7250260055 | C86: 1669773.216 | D86: 61883241.88 | E86: 43758059.98 | F86: 43758059.98 | G86: 2303052.86 | H86: 85353134.11 | I86: 60353779.92 | J86: 60353779.92 | U86: 1987625.905 | V86: 8569692.685 | W86: -7977538.39 | X86: -5803355.197 | Y86: 5317937.167 | Z86: 0 | AA86: 0 | AB86: -1943319.458 | AC86: 1898784.645 | AD86: -9341816.731 | AE86: 9049369.625 | AF86: 8640519.273 | AG86: -8395326.52 | AH86: 4005308.66 | AI86: -3913519.495 | AJ86: 0 | AK86: 0 | AL86: 451265.9267 | AM86: -229311.0747 | AN86: -11268.93543 | AO86: 0 | AP86: 0 | AQ86: 0 | AR86: -2031999.171 | AS86: 1632307.549 | AT86: -3940741.456 | AU86: 3668949.905 | AV86: 4307321.649 | AW86: -4261279.752 | AX86: 3456035.521 | AY86: -2928128.08 | AZ86: 0 | BA86: 0 | BB86: 0 | BC86: 0 | BD86: 0 | BE86: -215929.1432 | BF86: -8587.440583 | BG86: 10263.97084 | BH86: 309791.2242 | BI86: 0 | BJ86: 26221393.55 | BK86: 166839344.3 | BL86: -153975143.3 | BM86: 122769110.7 | BN86: -111609685.1 | BO86: 0 | BP86: 0 | BQ86: 9980159.136 | BR86: -9751445.058 | BS86: 116277473.6 | BT86: -112491844.4 | BU86: 95248171.3 | BV86: -92480217.59 | BW86: 17192650.66 | BX86: -16798648.8 | BY86: 0 | BZ86: 0 | CA86: 8461584.879 | CB86: -4233819.92 | CC86: 230304.2503 | CD86: 0 | CE86: 0 | CF86: 0 | CG86: 13836107.12 | CH86: -10175800.52 | CI86: 54628162.07 | CJ86: -47927817.68 | CK86: 56988065.76 | CL86: -53862544.07 | CM86: 20618541.7 | CN86: -15785065.26 | CO86: 0 | CP86: 0 | CQ86: 0 | CR86: 0 | CS86: 0 | CT86: 2114107.007 | CU86: 122132.0969 | CV86: 145974.1944 | CW86: 2771883.465 | CX86: 0
A87: 33.67533863 | B87: 0.7182166582 | C87: 1804310.471 | D87: 60918429.91 | E87: 43075834.89 | F87: 43075834.89 | G87: 2512209.164 | H87: 84819015.57 | I87: 59976101.08 | J87: 59976101.08 | U87: 2051009.849 | V87: 8940278.175 | W87: -8335229.164 | X87: -4970614.019 | Y87: 4522160.842 | Z87: 0 | AA87: 0 | AB87: -1540464.148 | AC87: 1505161.521 | AD87: -9465445.062 | AE87: 9157748.236 | AF87: 8536839.868 | AG87: -8297254.974 | AH87: 4512593.891 | AI87: -4409179.333 | AJ87: 0 | AK87: 0 | AL87: 529905.7475 | AM87: -286275.6303 | AN87: 0 | AO87: 0 | AP87: 0 | AQ87: 0 | AR87: -1722789.353 | AS87: 1359531.128 | AT87: -3692254.281 | AU87: 3414067.626 | AV87: 4329350.393 | AW87: -4312707.677 | AX87: 3775380.504 | AY87: -3227313.334 | AZ87: 0 | BA87: 0 | BB87: 0 | BC87: 0 | BD87: 0 | BE87: -192993.692 | BF87: -8052.075836 | BG87: 10468.60907 | BH87: 328285.5173 | BI87: 0 | BJ87: 26439868.84 | BK87: 172232763.8 | BL87: -159180888.9 | BM87: 108055457.5 | BN87: -97549370.5 | BO87: 0 | BP87: 0 | BQ87: 8214611.901 | BR87: -8026358.651 | BS87: 122469813.8 | BT87: -118304178.3 | BU87: 92614589.35 | BV87: -89957132.37 | BW87: 18481481.94 | BX87: -18057944.09 | BY87: 0 | BZ87: 0 | CA87: 9847380.319 | CB87: -5237616.158 | CC87: 0 | CD87: 0 | CE87: 0 | CF87: 0 | CG87: 12069935.28 | CH87: -8743048.02 | CI87: 51363054.11 | CJ87: -44716456.8 | CK87: 56870155.53 | CL87: -54148658.98 | CM87: 21780246.01 | CN87: -16762363.97 | CO87: 0 | CP87: 0 | CQ87: 0 | CR87: 0 | CS87: 0 | CT87: 1927558.467 | CU87: 114518.4607 | CV87: 148884.2115 | CW87: 2872712.874 | CX87: 0
A88: 34.26613404 | B88: 0.7116421158 | C88: 1934152.278 | D88: 59944060.57 | E88: 42386851.72 | F88: 42386851.72 | G88: 2717872.137 | H88: 84233435.94 | I88: 59562033.75 | J88: 59562033.75 | U88: 2114393.794 | V88: 9318707.709 | W88: -8700763.983 | X88: -4202333.454 | Y88: 3790845.13 | Z88: 0 | AA88: 0 | AB88: -1190351.658 | AC88: 1163072.516 | AD88: -9506673.361 | AE88: 9184935.516 | AF88: 8409194.519 | AG88: -8175706.957 | AH88: 5041237.785 | AI88: -4925708.359 | AJ88: 0 | AK88: 0 | AL88: 614858.6175 | AM88: -349553.235 | AN88: 0 | AO88: 0 | AP88: 0 | AQ88: 0 | AR88: -1444043.551 | AS88: 1115962.398 | AT88: -3441364.724 | AU88: 3167974.391 | AV88: 4340551.15 | AW88: -4353317.819 | AX88: 4103515.199 | AY88: -3535983.463 | AZ88: 0 | BA88: 0 | BB88: 0 | BC88: 0 | BD88: 0 | BE88: -171738.9375 | BF88: -7535.171942 | BG88: 10666.19081 | BH88: 347031.8951 | BI88: 0 | BJ88: 26626514.23 | BK88: 177624706 | BL88: -164389097.8 | BM88: 93808099.98 | BN88: -83987733.12 | BO88: 0 | BP88: 0 | BQ88: 6582035.411 | BR88: -6431195.716 | BS88: 127722373.6 | BT88: -123170380.4 | BU88: 89787691.96 | BV88: -87242883.04 | BW88: 19653780.95 | BX88: -19203377.67 | BY88: 0 | BZ88: 0 | CA88: 11323090.21 | CB88: -6336772.93 | CC88: 0 | CD88: 0 | CE88: 0 | CF88: 0 | CG88: 10401408.47 | CH88: -7396443.328 | CI88: 47986315.56 | CJ88: -41615832.51 | CK88: 56600352.86 | CL88: -54281514.89 | CM88: 22865149.01 | CN88: -17669220.18 | CO88: 0 | CP88: 0 | CQ88: 0 | CR88: 0 | CS88: 0 | CT88: 1749093.725 | CU88: 107167.3636 | CV88: 151693.8831 | CW88: 2968414.317 | CX88: 0
A89: 34.85692946 | B89: 0.7052904394 | C89: 2059540.044 | D89: 58960640.13 | E89: 41691468.46 | F89: 41691468.46 | G89: 2920130.388 | H89: 83597673.87 | I89: 59112482.09 | J89: 59112482.09 | U89: 2177777.739 | V89: 9704981.288 | W89: -9074142.845 | X89: -3498513.501 | Y89: 3123990.031 | Z89: 0 | AA89: 0 | AB89: -890300.1479 | AC89: 869897.249 | AD89: -9469769.5 | AE89: 9135137.877 | AF89: 8258260.536 | AG89: -8031334.892 | AH89: 5590154.306 | AI89: -5462045.428 | AJ89: 0 | AK89: 0 | AL89: 706124.5367 | AM89: -419143.889 | AN89: 0 | AO89: 0 | AP89: 0 | AQ89: 0 | AR89: -1194212.746 | AS89: 900116.2236 | AT89: -3198979.898 | AU89: 2930223.3 | AV89: 4341074.311 | AW89: -4383260.052 | AX89: 4439992.672 | AY89: -3853656.185 | AZ89: 0 | BA89: 0 | BB89: 0 | BC89: 0 | BD89: 0 | BE89: -152079.4206 | BF89: -7035.790215 | BG89: 10857.07486 | BH89: 366017.54 | BI89: 0 | BJ89: 26781329.72 | BK89: 183010377 | BL89: -169594975.9 | BM89: 80139974.15 | BN89: -71037708.86 | BO89: 0 | BP89: 0 | BQ89: 5098232.551 | BR89: -4981396.983 | BS89: 131973506.4 | BT89: -127029166.4 | BU89: 86782248.2 | BV89: -84351857.39 | BW89: 20692908.95 | BX89: -20218692.11 | BY89: 0 | BZ89: 0 | CA89: 12885542.16 | CB89: -7528117.83 | CC89: 0 | CD89: 0 | CE89: 0 | CF89: 0 | CG89: 8837062.097 | CH89: -6143106.46 | CI89: 44724042.72 | CJ89: -38620314.12 | CK89: 56183873.74 | CL89: -54266052.06 | CM89: 23865655.42 | CN89: -18497715.29 | CO89: 0 | CP89: 0 | CQ89: 0 | CR89: 0 | CS89: 0 | CT89: 1578818.53 | CU89: 100065.4563 | CV89: 154408.3117 | CW89: 3058731.748 | CX89: 0
A90: 35.44772487 | B90: 0.6991504854 | C90: 2180758.139 | D90: 57967354.62 | E90: 40989109.54 | F90: 40989109.54 | G90: 3119154.152 | H90: 82911126.91 | I90: 58627020.07 | J90: 58627020.07 | U90: 2241161.683 | V90: 10099098.91 | W90: -9455365.752 | X90: -2859154.163 | Y90: 2521595.546 | Z90: 0 | AA90: 0 | AB90: -637806.5692 | AC90: 623190.0345 | AD90: -9358716.825 | AE90: 9012281.304 | AF90: 8084670.077 | AG90: -7864747.708 | AH90: 6158329.825 | AI90: -6017200.138 | AJ90: 0 | AK90: 0 | AL90: 803703.5051 | AM90: -495047.5922 | AN90: 0 | AO90: 0 | AP90: 0 | AQ90: 0 | AR90: -971851.1898 | AS90: 710606.4756 | AT90: -2964674.567 | AU90: 2700397.245 | AV90: 4331060.244 | AW90: -4402674.257 | AX90: 4784395.783 | AY90: -4179881.371 | AZ90: 0 | BA90: 0 | BB90: 0 | BC90: 0 | BD90: 0 | BE90: -133935.3794 | BF90: -6553.054544 | BG90: 11041.59611 | BH90: 385230.4884 | BI90: 0 | BJ90: 26904315.3 | BK90: 188384982.8 | BL90: -174793729 | BM90: 67164015.88 | BN90: -58812233.62 | BO90: 0 | BP90: 0 | BQ90: 3777952.677 | BR90: -3691373.8 | BS90: 135163928 | BT90: -129821589.9 | BU90: 83612447.79 | BV90: -81297889.24 | BW90: 21583336.47 | BX90: -21088713.8 | BY90: 0 | BZ90: 0 | CA90: 14531563.74 | CB90: -8808478.453 | CC90: 0 | CD90: 0 | CE90: 0 | CF90: 0 | CG90: 7382995.883 | CH90: -4989682.767 | CI90: 41570512.3 | CJ90: -35724646.35 | CK90: 55625837.03 | CL90: -54107131.99 | CM90: 24774676.34 | CN90: -19240458.62 | CO90: 0 | CP90: 0 | CQ90: 0 | CR90: 0 | CS90: 0 | CT90: 1416831.584 | CU90: 93200.27926 | CV90: 157032.2593 | CW90: 3143426.19 | CX90: 0
A91: 36.03852028 | B91: 0.6932118415 | C91: 2298068.311 | D91: 56963457.53 | E91: 40279247.1 | F91: 40279247.1 | G91: 3315102.503 | H91: 82173232.08 | I91: 58105249.64 | J91: 58105249.64 | U91: 2304545.628 | V91: 10501060.58 | W91: -9844432.704 | X91: -2284255.437 | Y91: 1983661.674 | Z91: 0 | AA91: 0 | AB91: -430532.0073 | AC91: 420665.5582 | AD91: -9177237.481 | AE91: 8820034.34 | AF91: 7889013.846 | AG91: -7676514.401 | AH91: 6744817.177 | AI91: -6590247.032 | AJ91: 0 | AK91: 0 | AL91: 907595.5228 | AM91: -577264.3447 | AN91: 0 | AO91: 0 | AP91: 0 | AQ91: 0 | AR91: -775607.9344 | AS91: 546137.9205 | AT91: -2738051.377 | AU91: 2478106.47 | AV91: 4310640.111 | AW91: -4411691.145 | AX91: 5136334.747 | AY91: -4514238.408 | AZ91: 0 | BA91: 0 | BB91: 0 | BC91: 0 | BD91: 0 | BE91: -117232.2823 | BF91: -6086.146273 | BG91: 11220.06749 | BH91: 404659.5617 | BI91: 0 | BJ91: 26995470.98 | BK91: 193743729.2 | BL91: -179980563.3 | BM91: 54993161.06 | BN91: -47424243.31 | BO91: 0 | BP91: 0 | BQ91: 2634977.977 | BR91: -2574592.511 | BS91: 137236522.3 | BT91: -131490850.9 | BU91: 80291948.5 | BV91: -78094303.82 | BW91: 22310552.33 | BX91: -21799264.15 | BY91: 0 | BZ91: 0 | CA91: 16257982.56 | CB91: -10174682.39 | CC91: 0 | CD91: 0 | CE91: 0 | CF91: 0 | CG91: 6044909.567 | CH91: -3942381.841 | CI91: 38520376.33 | CJ91: -32923918.5 | CK91: 54931272.45 | CL91: -53809543.92 | CM91: 25585587.7 | CN91: -19890544.12 | CO91: 0 | CP91: 0 | CQ91: 0 | CR91: 0 | CS91: 0 | CT91: 1263225.113 | CU91: 86560.18996 | CV91: 159570.1758 | CW91: 3222274.337 | CX91: 0
A92: 36.6293157 | B92: 0.6874647667 | C92: 2411711.82 | D92: 55948263.24 | E92: 39561396.33 | F92: 39561396.33 | G92: 3508124.252 | H92: 81383462.77 | I92: 57546798.4 | J92: 57546798.4 | U92: 2367929.573 | V92: 10910866.29 | W92: -10241343.7 | X92: -1773817.325 | Y92: 1510188.415 | Z92: 0 | AA92: 0 | AB92: -266288.4451 | AC92: 260185.9456 | AD92: -8928813.473 | AE92: 8561828.848 | AF92: 7671844.438 | AG92: -7467167.261 | AH92: 7348730.306 | AI92: -7180320.358 | AJ92: 0 | AK92: 0 | AL92: 1017800.59 | AM92: -665794.1463 | AN92: 0 | AO92: 0 | AP92: 0 | AQ92: 0 | AR92: -604219.1916 | AS92: 405498.8876 | AT92: -2518738.613 | AU92: 2262986.366 | AV92: 4279936.61 | AW92: -4410432.991 | AX92: 5495444.927 | AY92: -4856333.819 | AZ92: 0 | BA92: 0 | BB92: 0 | BC92: 0 | BD92: 0 | BE92: -101900.4062 | BF92: -5634.299559 | BG92: 11392.78172 | BH92: 424294.302 | BI92: 0 | BJ92: 27054796.76 | BK92: 199081822.3 | BL92: -185150684.7 | BM92: 43740345.59 | BN92: -36986673.82 | BO92: 0 | BP92: 0 | BQ92: 1682201.464 | BR92: -1643650.66 | BS92: 138136166.8 | BT92: -131982122.1 | BU92: 76833919.14 | BV92: -74753958.82 | BW92: 22860981.58 | BX92: -22337079.28 | BY92: 0 | BZ92: 0 | CA92: 18061626.22 | CB92: -11623557.24 | CC92: 0 | CD92: 0 | CE92: 0 | CF92: 0 | CG92: 4828135.164 | CH92: -3007012.654 | CI92: 35568631.84 | CJ92: -30213536.72 | CK92: 54105127.77 | CL92: -53378010.65 | CM92: 26292192.8 | CN92: -20441511.27 | CO92: 0 | CP92: 0 | CQ92: 0 | CR92: 0 | CS92: 0 | CT92: 1118085.397 | CU92: 80134.29709 | CV92: 162026.2241 | CW92: 3295067.288 | CX92: 0
A93: 37.22011111 | B93: 0.6819001387 | C93: 2521911.351 | D93: 54921141.2 | E93: 38835111.38 | F93: 38835111.38 | G93: 3698358.759 | H93: 80541325.75 | I93: 56951317.61 | J93: 56951317.61 | U93: 2431313.518 | V93: 11328516.05 | W93: -10646098.74 | X93: -1327839.826 | Y93: 1101175.77 | Z93: 0 | AA93: 0 | AB93: -143026.7876 | AC93: 139749.0603 | AD93: -8616705.727 | AE93: 8240878.795 | AF93: 7433679.361 | AG93: -7237204.781 | AH93: 7969239.412 | AI93: -7786609.334 | AJ93: 0 | AK93: 0 | AL93: 1134318.706 | AM93: -760636.9971 | AN93: 0 | AO93: 0 | AP93: 0 | AQ93: 0 | AR93: -456501.4131 | AS93: 287554.6377 | AT93: -2306388.159 | AU93: 2054695.471 | AV93: 4239064.652 | AW93: -4399014.31 | AX93: 5861384.835 | AY93: -5205799.109 | AZ93: 0 | BA93: 0 | BB93: 0 | BC93: 0 | BD93: 0 | BE93: -87874.45486 | BF93: -5196.797185 | BG93: 11560.01297 | BH93: 444124.9158 | BI93: 0 | BJ93: 27082292.64 | BK93: 204394468 | BL93: -190299299.1 | BM93: 33518505.36 | BN93: -27612461.03 | BO93: 0 | BP93: 0 | BQ93: 931697.5471 | BR93: -910345.9491 | BS93: 137809574.2 | BT93: -131242393 | BU93: 73251078.26 | BV93: -71289281.47 | BW93: 23221911.16 | BX93: -22689737.48 | BY93: 0 | BZ93: 0 | CA93: 19939322.29 | CB93: -13151930.6 | CC93: 0 | CD93: 0 | CE93: 0 | CF93: 0 | CG93: 3737666.146 | CH93: -2189015.352 | CI93: 32710593.52 | CJ93: -27589198.8 | CK93: 53152275.28 | CL93: -52817193.78 | CM93: 26888688.36 | CN93: -20887309.78 | CO93: 0 | CP93: 0 | CQ93: 0 | CR93: 0 | CS93: 0 | CT93: 981493.2346 | CU93: 73912.40083 | CV93: 164404.3026 | CW93: 3361609.407 | CX93: 0
